Workbook

Sheet Quick Start Guide
B9: Envision Tomorrow™ Balanced Housing Model
B10: ="Version "&ChangeLog!B23&", Updated "&ChangeLog!A23 -> Version 3.5.2, Updated 10/16/17
B12: What is the Balanced Housing Model?
B13: The Balanced Housing Model is a tool that leverages demographic data and the power of scenarios to estimate a community's future housing needs.
B14: This app is used to analyze a community’s existing housing supply, including the matches and mismatches by age, household income and tenure (rental or owner-occupied). Using this information, the app is used to create a series of policy and strategic recommendations for a balanced, sustainable future housing supply along with targeted goals that can be used to determine a community’s future progress in implementing a long-range plan.
B16: Quick Start Guide
B17: A few quick and easy steps will get you started modeling your housing future:
B19: 1. Save this file with a new name.
B21: 2. Gather Data for Use in the Balanced Housing Model
B22: Required:
B24: Forecast Data:
B25: Projected Future Population
B26: Projected Future Households
B28: American Community Survey:
B29: B01001. Sex by Age
B30: B26001. Group Quarters
B31: B25002. Occupancy Status
B32: B25118. Tenure by Household Income in the Past 12 Months
B33: B25070. Gross Rent as a Percentage of Household Income in the Past 12 Months - Universe: Renter-Occupied Housing Units
B34: B25063. Gross Rent - Universe: Renter-Occupied Housing Units
B35: B25091. Mortgage Status by Selected Monthly Owner Costs as a Percentage of Household Income in the Past 12 Months - Universe: Owner-Occupied Housing Units
B36: B25087. Mortgage Status and Selected Monthly Owner Costs - Universe: Owner-Occupied Housing Units
B37: B19037. Age of Householder by Household Income in the Past 12 Months (in Inflation-Adjusted Dollars) - Universe: Households
B38: B25007. Tenure by Age of Householder - Universe: Occupied Housing Units
B39: B25119. Median Household Income in the Past 12 Months (In Inflation-Adjusted Dollars) By Tenure - Universe: Occupied Housing Units
B40: B25032. Tenure by Units in Structure - Universe: Occupied Housing Units
B42: Optional:
B44: ESRI Tapestry Data (2014 or later)
B45: B25077. Median Value (Dollars) - Universe: Owner Occupied Housing Units
B46: Future Projected Households and Population by Age Cohort
B48: 3. Work Through Spreadsheet Tabs
B49: Using the inputs you have gathered above, work through each of the main tabs in the Balanced Housing Model
C51: TAB Color Definition
C52: Input Tab
C53: Optional Input Tab
C54: Output Tab
C55: Reference Tab
C56: ChangeLog
C58: CELL Color Definition
C59: Input/Override Cell
C60: Header Cell
C61: Subheader Cell
C62: Output Cell | D62: [white]
C63: Information Cell | D63: ◊

Sheet Initial Inputs
A1: BASELINE AND SCENARIO ASSUMPTIONS | D1: =IF(F1=0,"Worksheet Complete",IF(F1=1,"Missing Fields",IF(F1>1,"Missing Fields"))) -> Missing Fields | F1: =COUNTBLANK(B4:B7) +COUNTBLANK(B12)+ COUNTBLANK(B19:B20)+COUNTBLANK(E5:E53)+COUNTBLANK(I5:I8) -> 52
M2: Age Cohorts 2030 | N2: <25 | O2: 25-44 | P2: 45-64 | Q2: 65+ | S2: http://www.census.gov/population/projections/data/national/2009/2009comparisonfiles.html
A3: Scenario Info | D3: B01001. SEX BY AGE - Universe: TOTAL POPULATION | G3: Population Summary | M3: - | N3: - | O3: - | P3: - | Q3: - | S3: SOUTH | T3: WEST | U3: NORTHEAST | V3: MIDWEST
A4: Geography | B4: City of Austin | E4: Estimate | H4: =IF(B6>0,B6,0) -> 2013 | I4: =IF(B7>1,B7,"Forecast") -> 2040 | J4: =B7&" %" -> 2040 % | K4: =B7&" Forecast ◊" -> 2040 Forecast ◊ | M4: ALABAMA | N4: 0.3132264846 | O4: 0.2332934571 | P4: 0.2402859275 | Q4: 0.2131941309 | S4: ALABAMA | T4: ALASKA | U4: CONNECTICUT | V4: ILLINOIS
A5: State | B5: TEXAS | D5: Total: | G5: <25 | H5: =SUM(E7:E14,E31:E38) -> 0 | I5: =IF(K5>0,0,IFERROR(((VLOOKUP($B$5,$M$3:$Q$54,2,FALSE))*B$19),0)) -> 0 | J5: =IFERROR(IF(K5>0,(K5/SUM(K$5:K$8)),VLOOKUP($B$5,$M$3:$Q$54,2,FALSE)),0) -> 0.3699115702 | M5: ALASKA | N5: 0.389237202 | O5: 0.28522233 | P5: 0.1789393251 | Q5: 0.1466011428 | S5: FLORIDA | T5: ARIZONA | U5: DELAWARE | V5: INDIANA
A6: Base Year | B6: 2013 | D6: Male: | G6: 25-44 | H6: =SUM(E15:E18,E39:E42) -> 0 | I6: =IF(K6>0,0,IFERROR(((VLOOKUP($B$5,$M$3:$Q$54,3,FALSE))*B$19),0)) -> 0 | J6: =IFERROR(IF(K6>0,(K6/SUM(K$5:K$8)),VLOOKUP($B$5,$M$3:$Q$54,3,FALSE)),0) -> 0.2632597813 | M6: ARIZONA | N6: 0.3350840153 | O6: 0.2274353723 | P6: 0.2161152168 | Q6: 0.2213653956 | S6: GEORGIA | T6: CALIFORNIA | U6: DISTRICT OF COLUMBIA | V6: IOWA
A7: Forecast Year | B7: 2040 | D7: Under 5 years | G7: 45-64 | H7: =SUM(E19:E23,E43:E47) -> 0 | I7: =IF(K7>0,0,IFERROR(((VLOOKUP($B$5,$M$3:$Q$54,4,FALSE))*B$19),0)) -> 0 | J7: =IFERROR(IF(K7>0,(K7/SUM(K$5:K$8)),VLOOKUP($B$5,$M$3:$Q$54,4,FALSE)),0) -> 0.2111703001 | M7: ARKANSAS | N7: 0.3281375764 | O7: 0.2317980821 | P7: 0.2374829023 | Q7: 0.2025814392 | S7: KENTUCKY | T7: COLORADO | U7: MAINE | V7: KANSAS
D8: 5 to 9 years | G8: 65+ | H8: =SUM(E24:E29,E48:E53) -> 0 | I8: =IF(K8>0,0,IFERROR(((VLOOKUP($B$5,$M$3:$Q$54,5,FALSE))*B$19),0)) -> 0 | J8: =IFERROR(IF(K8>0,(K8/SUM(K$5:K$8)),VLOOKUP($B$5,$M$3:$Q$54,5,FALSE)),0) -> 0.1556583483 | M8: CALIFORNIA | N8: 0.3321865685 | O8: 0.2756949579 | P8: 0.2136651243 | Q8: 0.1784533492 | S8: LOUISIANA | T8: HAWAII | U8: MARYLAND | V8: MICHIGAN
A9: =IF(B6>0,B6&" ◊","Base Year ◊") -> 2013 ◊ | D9: 10 to 14 years | M9: COLORADO | N9: 0.3522483162 | O9: 0.2702556144 | P9: 0.2124029993 | Q9: 0.1650930701 | S9: MISSISSIPPI | T9: IDAHO | U9: MASSACHUSETTS | V9: MINNESOTA
A10: Population | B10: =E5 -> 0 | D10: 15 to 17 years | G10: Householder Summary | M10: CONNECTICUT | N10: 0.2997931481 | O10: 0.2536188232 | P10: 0.2312221611 | Q10: 0.2153658675 | S10: MISSOURI | T10: MONTANA | U10: NEW HAMPSHIRE | V10: NEBRASKA
A11: Households | B11: ='Current Summary'!B4 -> 0 | D11: 18 and 19 years | H11: =IF(B6>0,B6,0) -> 2013 | I11: =IF(B7>1,B7,"Forecast") -> 2040 | J11: =B7&" %" -> 2040 % | K11: =B7&" Forecast ◊" -> 2040 Forecast ◊ | L11: =IF(B7>1,B7,"Forecast") -> 2040 | M11: DELAWARE | N11: 0.2945821788 | O11: 0.2219298124 | P11: 0.2486377434 | Q11: 0.2348502653 | S11: NORTH CAROLINA | T11: NEVADA | U11: NEW JERSEY | V11: NORTH DAKOTA
A12: Persons in Group Quarters | D12: 20 years | G12: <25 | H12: ='Future Cohorts'!B6 -> 0 | I12: =IFERROR((L12/SUM(L$12:L$15))*B$20,0) -> 0 | J12: =IFERROR(IF(K12>0,(K12/SUM(K$12:K$15)),L12/SUM(L$12:L$15)),0) -> 0 | L12: =IFERROR(IF(K12>0,0,(H12/H5)*(J5*B$19)),0) -> 0 | M12: DISTRICT OF COLUMBIA | N12: 0.3592454328 | O12: 0.3076365784 | P12: 0.1987476178 | Q12: 0.1343703711 | S12: SOUTH CAROLINA | T12: NEW MEXICO | U12: NEW YORK | V12: OHIO
A13: Persons Per Household | B13: =IFERROR(((B10-B12)/B11),"- ") -> - | D13: 21 years | G13: 25-44 | H13: ='Future Cohorts'!B23 -> 0 | I13: =IFERROR((L13/SUM(L$12:L$15))*B$20,0) -> 0 | J13: =IFERROR(IF(K13>0,(K13/SUM(K$12:K$15)),L13/SUM(L$12:L$15)),0) -> 0 | L13: =IFERROR(IF(K13>0,0,(H13/H6)*(J6*B$19)),0) -> 0 | M13: FLORIDA | N13: 0.2779517607 | O13: 0.2172635497 | P13: 0.2339377759 | Q13: 0.2708469137 | S13: TENNESSEE | T13: OREGON | U13: PENNSYLVANIA | V13: SOUTH DAKOTA
A14: Vacancy Rate | B14: 0.07 | D14: 22 to 24 years | G14: 45-64 | H14: ='Future Cohorts'!B40 -> 0 | I14: =IFERROR((L14/SUM(L$12:L$15))*B$20,0) -> 0 | J14: =IFERROR(IF(K14>0,(K14/SUM(K$12:K$15)),L14/SUM(L$12:L$15)),0) -> 0 | L14: =IFERROR(IF(K14>0,0,(H14/H7)*(J7*B$19)),0) -> 0 | M14: GEORGIA | N14: 0.3592929943 | O14: 0.2572017529 | P14: 0.2247548186 | Q14: 0.1587504341 | S14: TEXAS | T14: UTAH | U14: RHODE ISLAND | V14: WISCONSIN
A15: Vacant Units | B15: ='Current Summary'!B34 -> 0 | D15: 25 to 29 years | G15: 65+ | H15: ='Future Cohorts'!B57 -> 0 | I15: =IFERROR((L15/SUM(L$12:L$15))*B$20,0) -> 0 | J15: =IFERROR(IF(K15>0,(K15/SUM(K$12:K$15)),L15/SUM(L$12:L$15)),0) -> 0 | L15: =IFERROR(IF(K15>0,0,(H15/H8)*(J8*B$19)),0) -> 0 | M15: HAWAII | N15: 0.3250416426 | O15: 0.250964158 | P15: 0.2009745942 | Q15: 0.2230196051 | S15: WEST VIRGINIA | T15: WASHINGTON | U15: VERMONT
A16: Total Dwelling Units | B16: =B15+B11 -> 0 | D16: 30 to 34 years | M16: IDAHO | N16: 0.3304285488 | O16: 0.2433733545 | P16: 0.2428976292 | Q16: 0.1833004675 | S16: VIRGINIA | T16: WYOMING
D17: 35 to 39 years | M17: ILLINOIS | N17: 0.334066484 | O17: 0.2600224881 | P17: 0.2263386023 | Q17: 0.1795724257 | S17: ARKANSAS
A18: =IF(B7>0,B7&" ◊","Forecast Year ◊") -> 2040 ◊ | D18: 40 to 44 years | M18: INDIANA | N18: 0.3411655146 | O18: 0.2509453595 | P18: 0.2270002179 | Q18: 0.1808889081 | S18: OKLAHOMA
A19: Population | D19: 45 to 49 years | M19: IOWA | N19: 0.30799121 | O19: 0.2277122956 | P19: 0.2398811304 | Q19: 0.224415364
A20: Households | D20: 50 to 54 years | M20: KANSAS | N20: 0.3320595602 | O20: 0.2418100979 | P20: 0.2244044728 | Q20: 0.2017258691 | S20: Region:
A21: Persons in Group Quarters | B21: =IFERROR(((B12/B10)*B19),0) -> 0 | D21: 55 to 59 years | M21: KENTUCKY | N21: 0.313936252 | O21: 0.2473825455 | P21: 0.2403386346 | Q21: 0.1983425679 | S21: =IF(OR(B5=T4,B5=T5,B5=T6,B5=T7,B5=T8,B5=T9,B5=T10,B5=T11,B5=T12,B5=T13,B5=T14,B5=T15,B5=T16),"West", IF(OR(B5=S4,B5=S5,B5=S6,B5=S7,B5=S8,B5=S9,B5=S10,B5=S11,B5=S12,B5=S13,B5=S14,B5=S15,B5=S16,B5=S17,B5=S18),"South",IF(OR(B5=U4,B5=U5,B5=U6,B5=U7,B5=U8,B5=U9,B5=U10,B5=U11,B5=U12,B5=U13,B5=U14,B5=U15),"Northeast",IF(OR(V4,B5=V5,B5=V6,B5=V7,B5=V8,B5=V9,B5=V10,B5=V11,B5=V12,B5=V13,B5=V14),"Midwest")))) -> South
A22: Persons Per Household | B22: =IFERROR(((B19-B21)/B20),0) -> 0 | D22: 60 and 61 years | M22: LOUISIANA | N22: 0.3328555399 | O22: 0.2440051114 | P22: 0.2265363604 | Q22: 0.1966029884
D23: 62 to 64 years | M23: MAINE | N23: 0.2436607831 | O23: 0.2272522725 | P23: 0.2640328765 | Q23: 0.2650540679
D24: 65 and 66 years | M24: MARYLAND | N24: 0.3349717918 | O24: 0.2732226461 | P24: 0.2158370585 | Q24: 0.1759685035
D25: 67 to 69 years | M25: MASSACHUSETTS | N25: 0.3075151501 | O25: 0.2544058343 | P25: 0.2294212686 | Q25: 0.208657747
D26: 70 to 74 years | M26: MICHIGAN | N26: 0.3114696491 | O26: 0.2540273338 | P26: 0.2399367618 | Q26: 0.1945662553
D27: 75 to 79 years | M27: MINNESOTA | N27: 0.3256285551 | O27: 0.2554325712 | P27: 0.2297382071 | Q27: 0.1892006667
D28: 80 to 84 years | M28: MISSISSIPPI | N28: 0.3176632465 | O28: 0.2267451599 | P28: 0.250551835 | Q28: 0.2050397586
D29: 85 years and over | M29: MISSOURI | N29: 0.321332101 | O29: 0.248250708 | P29: 0.2279787807 | Q29: 0.2024384103
D30: Female: | M30: MONTANA | N30: 0.2720715323 | O30: 0.2133069448 | P30: 0.2566461033 | Q30: 0.2579754196
D31: Under 5 years | M31: NEBRASKA | N31: 0.3435379924 | O31: 0.2317103118 | P31: 0.2182901551 | Q31: 0.2064615407
D32: 5 to 9 years | M32: NEVADA | N32: 0.3319161944 | O32: 0.2336709868 | P32: 0.2482474729 | Q32: 0.1861653459
D33: 10 to 14 years | M33: NEW HAMPSHIRE | N33: 0.2877135401 | O33: 0.2549464886 | P33: 0.2430720007 | Q33: 0.2142679707
D34: 15 to 17 years | M34: NEW JERSEY | N34: 0.2978477808 | O34: 0.2604522956 | P34: 0.2417961242 | Q34: 0.1999037995
D35: 18 and 19 years | M35: NEW MEXICO | N35: 0.2957692212 | O35: 0.2068254252 | P35: 0.2329952546 | Q35: 0.2644100989
D36: 20 years | M36: NEW YORK | N36: 0.3092266952 | O36: 0.2600545996 | P36: 0.2296197306 | Q36: 0.2010989746
D37: 21 years | M37: NORTH CAROLINA | N37: 0.3500361759 | O37: 0.2483896655 | P37: 0.2238493151 | Q37: 0.1777248435
D38: 22 to 24 years | M38: NORTH DAKOTA | N38: 0.3047467217 | O38: 0.2171107513 | P38: 0.226961287 | Q38: 0.25118124
D39: 25 to 29 years | M39: OHIO | N39: 0.3136226327 | O39: 0.2487093231 | P39: 0.233606204 | Q39: 0.2040618403
D40: 30 to 34 years | M40: OKLAHOMA | N40: 0.3459182659 | O40: 0.2384436879 | P40: 0.222051435 | Q40: 0.1935866112
D41: 35 to 39 years | M41: OREGON | N41: 0.3176489547 | O41: 0.2627694553 | P41: 0.2371297982 | Q41: 0.1824517917
D42: 40 to 44 years | M42: PENNSYLVANIA | N42: 0.2963289063 | O42: 0.2410837751 | P42: 0.2362381369 | Q42: 0.2263491817
D43: 45 to 49 years | M43: RHODE ISLAND | N43: 0.3069740776 | O43: 0.2484194768 | P43: 0.230799321 | Q43: 0.2138071246
D44: 50 to 54 years | M44: SOUTH CAROLINA | N44: 0.3106080544 | O44: 0.231907934 | P44: 0.2371394848 | Q44: 0.2203445268
D45: 55 to 59 years | M45: SOUTH DAKOTA | N45: 0.3274958711 | O45: 0.2125934773 | P45: 0.2287141676 | Q45: 0.231196484
D46: 60 and 61 years | M46: TENNESSEE | N46: 0.3341173672 | O46: 0.2469183542 | P46: 0.2268794253 | Q46: 0.1920848534
D47: 62 to 64 years | M47: TEXAS | N47: 0.3699115702 | O47: 0.2632597813 | P47: 0.2111703001 | Q47: 0.1556583483
D48: 65 and 66 years | M48: UTAH | N48: 0.4220884056 | O48: 0.250741744 | P48: 0.1950308246 | Q48: 0.1321390258
D49: 67 to 69 years | M49: VERMONT | N49: 0.2724385314 | O49: 0.2426492589 | P49: 0.2405688141 | Q49: 0.2443433956
D50: 70 to 74 years | M50: VIRGINIA | N50: 0.3328641909 | O50: 0.2626854971 | P50: 0.216767418 | Q50: 0.187682894
D51: 75 to 79 years | M51: WASHINGTON | N51: 0.3170849971 | O51: 0.2772508027 | P51: 0.2243381615 | Q51: 0.1813260387
D52: 80 to 84 years | M52: WEST VIRGINIA | N52: 0.2609451737 | O52: 0.2179424044 | P52: 0.273174535 | Q52: 0.2479378869
D53: 85 years and over | M53: WISCONSIN | N53: 0.3045530604 | O53: 0.2406852222 | P53: 0.2414183019 | Q53: 0.2133434155
M54: WYOMING | N54: 0.2636798036 | O54: 0.2159608703 | P54: 0.2553658942 | Q54: 0.2649934319

Sheet Current Summary
A1: CURRENT HOUSING SUMMARY | B1: =IF(D1=0,"Worksheet complete",IF(D1=1,"Missing fields",IF(D1>1,"Missing fields"))) -> Missing fields | D1: =COUNTBLANK(B4:B28) +COUNTBLANK(B32:B34)+ COUNTBLANK(B38:B40)+COUNTBLANK(B44:B66) -> 54
A3: B25118. TENURE BY HOUSEHOLD INCOME IN THE PAST 12 MONTHS (IN 2009 INFLATION-ADJUSTED DOLLARS) - Universe: OCCUPIED HOUSING UNITS
A4: Total: | C4: For Chart
A5: Owner occupied: | C5: <15k | D5: 15k <35k | E5: 35k <50k | F5: 50k <75k | G5: 75k <100k | H5: 100k <150k | I5: 150k+
A6: Less than $5,000 | C6: =SUM(B6:B8) -> 0 | D6: =SUM(B9:B11) -> 0 | E6: =B12 -> 0 | F6: =B13 -> 0 | G6: =SUM(B14) -> 0 | H6: =SUM(B15) -> 0 | I6: =SUM(B16) -> 0
A7: $5,000 to $9,999 | C7: =SUM(B18:B20) -> 0 | D7: =SUM(B21:B23) -> 0 | E7: =B24 -> 0 | F7: =B25 -> 0 | G7: =SUM(B26) -> 0 | H7: =SUM(B27) -> 0 | I7: =SUM(B28) -> 0
A8: $10,000 to $14,999
A9: $15,000 to $19,999
A10: $20,000 to $24,999 | C10: Owner occupied
A11: $25,000 to $34,999 | C11: Renter occupied
A12: $35,000 to $49,999
A13: $50,000 to $74,999
A14: $75,000 to $99,999
A15: $100,000 to $149,999
A16: $150,000 or more
A17: Renter occupied: | E17: Actual Households at Income Level | F17: Estimated Occupied Housing Units Affordable at Income Level
A18: Less than $5,000 | D18: <15k | E18: =SUM('Current Summary'!B81:B83) -> 0 | F18: =SUM('Current Summary'!C81:C83) -> 0
A19: $5,000 to $9,999 | D19: 15k <35k | E19: =SUM('Current Summary'!B84:B86) -> 0 | F19: =SUM('Current Summary'!C84:C86) -> 0
A20: $10,000 to $14,999 | D20: 35k <50k | E20: ='Current Summary'!B87 -> 0 | F20: ='Current Summary'!C87 -> 0
A21: $15,000 to $19,999 | D21: 50k <75k | E21: ='Current Summary'!B88 -> 0 | F21: ='Current Summary'!C88 -> 0
A22: $20,000 to $24,999 | D22: 75k <100k | E22: ='Current Summary'!B89 -> 0 | F22: ='Current Summary'!C89 -> 0
A23: $25,000 to $34,999 | D23: 100k <150k | E23: ='Current Summary'!B90 -> 0 | F23: ='Current Summary'!C90 -> 0
A24: $35,000 to $49,999 | D24: 150k+ | E24: ='Current Summary'!B91 -> 0 | F24: ='Current Summary'!C91 -> 0
A25: $50,000 to $74,999
A26: $75,000 to $99,999
A27: $100,000 to $149,999
A28: $150,000 or more
A30: B25002. OCCUPANCY STATUS - Universe: HOUSING UNITS | I30: Housing Burden Index
B31: Estimate | I31: 0
A32: Total: | F32: Owner-occupied | G32: Renter-occupied | I32: 0
A33: Occupied | E33: Single family | F33: =B46 -> 0 | G33: =B57 -> 0 | I33: 0
A34: Vacant | E34: Townhome | F34: =B47 -> 0 | G34: =B58 -> 0 | I34: 0
E35: Multifamily | F35: =SUM(B48:B53) -> 0 | G35: =SUM(B59:B64) -> 0 | I35: 0
A36: B25119. MEDIAN HOUSEHOLD INCOME THE PAST 12 MONTHS (IN 2007 INFLATION-ADJUSTED DOLLARS) BY TENURE - Universe: OCCUPIED HOUSING UNITS | D36: Other | E36: Mobile Home | F36: =SUM(B54:B55) -> 0 | G36: =SUM(B65:B66) -> 0 | I36: 0
B37: Estimate | D37: Total | E37: Total | F37: =SUM(F33:F36) -> 0 | G37: =SUM(G33:G36) -> 0 | H37: =SUM(F37:G37) -> 0 | I37: 0
A38: Total: | E38: Percent | F38: =F37/H37 ->  | G38: =G37/H37 ->  | I38: 0
A39: Owner occupied (dollars) | I39: 0
A40: Renter occupied (dollars) | I40: ='Current Rental'!H11 -> 1
I41: ='Current Rental'!H12 -> 2
A42: B25032. TENURE BY UNITS IN STRUCTURE - Universe: OCCUPIED HOUSING UNITS | I42: ='Current Rental'!H13 -> 3
B43: Estimate | I43: ='Current Rental'!H14 -> 4
A44: Total: | I44: 0
A45: Owner-occupied housing units:
A46: 1 (detached) | C46: =IF(B$45>0,B46/$B$45,0) -> 0
A47: 1 (attached) | C47: =IF(B$45>0,B47/$B$45,0) -> 0
A48: 2 units | C48: =IF(B$45>0,B48/$B$45,0) -> 0
A49: 3 or 4 units | C49: =IF(B$45>0,B49/$B$45,0) -> 0
A50: 5 to 9 units | C50: =IF(B$45>0,B50/$B$45,0) -> 0
A51: 10 to 19 units | C51: =IF(B$45>0,B51/$B$45,0) -> 0
A52: 20 to 49 units | C52: =IF(B$45>0,B52/$B$45,0) -> 0
A53: 50 or more units | C53: =IF(B$45>0,B53/$B$45,0) -> 0
A54: Mobile home | C54: =IF(B$45>0,B54/$B$45,0) -> 0
A55: Boat, RV, van, etc. | C55: =IF(B$45>0,B55/$B$45,0) -> 0
A56: Renter-occupied housing units: | C56: =IF(B$45>0,B56/$B$45,0) -> 0
A57: 1, detached | C57: =IF(B56>0,B57/$B$56,0) -> 0
A58: 1, attached | C58: =IF(B57>0,B58/$B$56,0) -> 0
A59: 2 | C59: =IF(B58>0,B59/$B$56,0) -> 0
A60: 3 or 4 | C60: =IF(B59>0,B60/$B$56,0) -> 0
A61: 5 to 9 | C61: =IF(B60>0,B61/$B$56,0) -> 0
A62: 10 to 19 | C62: =IF(B61>0,B62/$B$56,0) -> 0
A63: 20 to 49 | C63: =IF(B62>0,B63/$B$56,0) -> 0
A64: 50 or more | C64: =IF(B63>0,B64/$B$56,0) -> 0
A65: Mobile home | C65: =IF(B64>0,B65/$B$56,0) -> 0
A66: Boat, RV, van, etc. | C66: =IF(B65>0,B66/$B$56,0) -> 0
A68: Total
A69: =A46 -> 1 (detached) | B69: ='Current Summary'!B46+'Current Summary'!B57 -> 0 | C69: =IF(SUM('Current Summary'!$B$69:$B$78)>0,'Current Summary'!B69/SUM('Current Summary'!$B$69:$B$78),0) -> 0
A70: 1 (attached) | B70: ='Current Summary'!B47+'Current Summary'!B58 -> 0 | C70: =IF(SUM('Current Summary'!$B$69:$B$78)>0,'Current Summary'!B70/SUM('Current Summary'!$B$69:$B$78),0) -> 0
A71: 2 units | B71: ='Current Summary'!B48+'Current Summary'!B59 -> 0 | C71: =IF(SUM('Current Summary'!$B$69:$B$78)>0,'Current Summary'!B71/SUM('Current Summary'!$B$69:$B$78),0) -> 0
A72: 3 or 4 units | B72: ='Current Summary'!B49+'Current Summary'!B60 -> 0 | C72: =IF(SUM('Current Summary'!$B$69:$B$78)>0,'Current Summary'!B72/SUM('Current Summary'!$B$69:$B$78),0) -> 0
A73: 5 to 9 units | B73: ='Current Summary'!B50+'Current Summary'!B61 -> 0 | C73: =IF(SUM('Current Summary'!$B$69:$B$78)>0,'Current Summary'!B73/SUM('Current Summary'!$B$69:$B$78),0) -> 0
A74: 10 to 19 units | B74: ='Current Summary'!B51+'Current Summary'!B62 -> 0 | C74: =IF(SUM('Current Summary'!$B$69:$B$78)>0,'Current Summary'!B74/SUM('Current Summary'!$B$69:$B$78),0) -> 0
A75: 20 to 49 units | B75: ='Current Summary'!B52+'Current Summary'!B63 -> 0 | C75: =IF(SUM('Current Summary'!$B$69:$B$78)>0,'Current Summary'!B75/SUM('Current Summary'!$B$69:$B$78),0) -> 0
A76: 50 or more units | B76: ='Current Summary'!B53+'Current Summary'!B64 -> 0 | C76: =IF(SUM('Current Summary'!$B$69:$B$78)>0,'Current Summary'!B76/SUM('Current Summary'!$B$69:$B$78),0) -> 0
A77: Mobile home | B77: ='Current Summary'!B54+'Current Summary'!B65 -> 0 | C77: =IF(SUM('Current Summary'!$B$69:$B$78)>0,'Current Summary'!B77/SUM('Current Summary'!$B$69:$B$78),0) -> 0
A78: Boat, RV, van, etc. | B78: ='Current Summary'!B55+'Current Summary'!B66 -> 0 | C78: =IF(SUM('Current Summary'!$B$69:$B$78)>0,'Current Summary'!B78/SUM('Current Summary'!$B$69:$B$78),0) -> 0
A80: Comparing Household Incomes with Actual Monthly Housing Costs | B80: Actual Households at Income Level | C80: Occupied Units Affordable at Income Level | D80: Percent Match ◊
A81: Less than $5,000 | B81: ='Current Summary'!B6+'Current Summary'!B18 -> 0 | C81: =SUMIFS($B$95:$B$108,$C$95:$C$108,">=0",$C$95:$C$108,"<5000") -> 0 | D81: =IFERROR(C81/B81,0) -> 0
A82: $5,000 to $9,999 | B82: ='Current Summary'!B7+'Current Summary'!B19 -> 0 | C82: =SUMIFS($B$95:$B$108,$C$95:$C$108,">=5000",$C$95:$C$108,"<10000") -> 0 | D82: =IFERROR(C82/B82,0) -> 0
A83: $10,000 to $14,999 | B83: ='Current Summary'!B8+'Current Summary'!B20 -> 0 | C83: =SUMIFS($B$95:$B$108,$C$95:$C$108,">=10000",$C$95:$C$108,"<15000") -> 0 | D83: =IFERROR(C83/B83,0) -> 0
A84: $15,000 to $19,999 | B84: ='Current Summary'!B9+'Current Summary'!B21 -> 0 | C84: =SUMIFS($B$95:$B$108,$C$95:$C$108,">=15000",$C$95:$C$108,"<20000") -> 0 | D84: =IFERROR(C84/B84,0) -> 0
A85: $20,000 to $24,999 | B85: ='Current Summary'!B10+'Current Summary'!B22 -> 0 | C85: =SUMIFS($B$95:$B$108,$C$95:$C$108,">=20000",$C$95:$C$108,"<25000") -> 0 | D85: =IFERROR(C85/B85,0) -> 0
A86: $25,000 to $34,999 | B86: ='Current Summary'!B11+'Current Summary'!B23 -> 0 | C86: =SUMIFS($B$95:$B$108,$C$95:$C$108,">=25000",$C$95:$C$108,"<35000") -> 0 | D86: =IFERROR(C86/B86,0) -> 0
A87: $35,000 to $49,999 | B87: ='Current Summary'!B12+'Current Summary'!B24 -> 0 | C87: =SUMIFS($B$95:$B$108,$C$95:$C$108,">=35000",$C$95:$C$108,"<50000") -> 0 | D87: =IFERROR(C87/B87,0) -> 0
A88: $50,000 to $74,999 | B88: ='Current Summary'!B13+'Current Summary'!B25 -> 0 | C88: =SUMIFS($B$95:$B$108,$C$95:$C$108,">=50000",$C$95:$C$108,"<75000")*0.5+SUMIFS($B$95:$B$108,$C$95:$C$108,">=75000",$C$95:$C$108,"<100000")*0.5 -> 0 | D88: =IFERROR(C88/B88,0) -> 0
A89: $75,000 to $99,999 | B89: ='Current Summary'!B14+'Current Summary'!B26 -> 0 | C89: =SUMIFS($B$95:$B$108,$C$95:$C$108,">=50000",$C$95:$C$108,"<75000")*0.5+SUMIFS($B$95:$B$108,$C$95:$C$108,">=75000",$C$95:$C$108,"<100000")*0.5 -> 0 | D89: =IFERROR(C89/B89,0) -> 0
A90: $100,000 to $149,999 | B90: ='Current Summary'!B15+'Current Summary'!B27 -> 0 | C90: =SUMIFS($B$95:$B$108,$C$95:$C$108,">100000",$C$95:$C$108,"<150000") -> 0 | D90: =IFERROR(C90/B90,0) -> 0
A91: $150,000 or more | B91: ='Current Summary'!B16+'Current Summary'!B28 -> 0 | C91: =SUMIFS($B$95:$B$108,$C$95:$C$108,">=150000") -> 0 | D91: =IFERROR(C91/B91,0) -> 0
A93: ESTIMATED MONTHLY HOUSING COSTS
B94: Estimate | C94: Annual Income for Affordability | D94: Upper Bound
A95: Less than $100 | B95: ='Current Rental'!B25+'Current Owner'!D80 -> 0 | C95: =IF(I31>0,(D95*12)/VLOOKUP(INDEX('Current Rental'!$A$9:$A$19,MATCH(0.3,'Current Rental'!$B$9:$B$19,-1)+I31),'Current Rental'!$A$9:$B$19,2),(D95*12)/0.3) -> 1960 | D95: 49
A96: $100 to $199 | B96: ='Current Rental'!B26+'Current Rental'!B27+'Current Owner'!D81 -> 0 | C96: =IF(I32>0,(D96*12)/VLOOKUP(INDEX('Current Rental'!$A$9:$A$19,MATCH(0.3,'Current Rental'!$B$9:$B$19,-1)+I32),'Current Rental'!$A$9:$B$19,2),(D96*12)/0.3) -> 7960 | D96: 199
A97: $200 to $299 | B97: ='Current Rental'!B28+'Current Rental'!B29+'Current Owner'!D82 -> 0 | C97: =IF(I33>0,(D97*12)/VLOOKUP(INDEX('Current Rental'!$A$9:$A$19,MATCH(0.3,'Current Rental'!$B$9:$B$19,-1)+I33),'Current Rental'!$A$9:$B$19,2),(D97*12)/0.3) -> 11960 | D97: 299
A98: $300 to $399 | B98: ='Current Rental'!B30+'Current Rental'!B31+'Current Owner'!D83 -> 0 | C98: =IF(I34>0,(D98*12)/VLOOKUP(INDEX('Current Rental'!$A$9:$A$19,MATCH(0.3,'Current Rental'!$B$9:$B$19,-1)+I34),'Current Rental'!$A$9:$B$19,2),(D98*12)/0.3) -> 15960 | D98: 399
A99: $400 to $499 | B99: ='Current Rental'!B32+'Current Rental'!B33+'Current Owner'!D84 -> 0 | C99: =IF(I35>0,(D99*12)/VLOOKUP(INDEX('Current Rental'!$A$9:$A$19,MATCH(0.3,'Current Rental'!$B$9:$B$19,-1)+I35),'Current Rental'!$A$9:$B$19,2),(D99*12)/0.3) -> 19960 | D99: 499
A100: $500 to $599 | B100: ='Current Rental'!B34+'Current Rental'!B35+'Current Owner'!D85 -> 0 | C100: =IF(I36>0,(D100*12)/VLOOKUP(INDEX('Current Rental'!$A$9:$A$19,MATCH(0.3,'Current Rental'!$B$9:$B$19,-1)+I36),'Current Rental'!$A$9:$B$19,2),(D100*12)/0.3) -> 23960 | D100: 599
A101: $600 to $699 | B101: ='Current Rental'!B36+'Current Rental'!B37+'Current Owner'!D86 -> 0 | C101: =IF(I37>0,(D101*12)/VLOOKUP(INDEX('Current Rental'!$A$9:$A$19,MATCH(0.3,'Current Rental'!$B$9:$B$19,-1)+I37),'Current Rental'!$A$9:$B$19,2),(D101*12)/0.3) -> 27960 | D101: 699
A102: $700 to $799 | B102: ='Current Rental'!B38+'Current Rental'!B39+'Current Owner'!D87 -> 0 | C102: =IF(I38>0,(D102*12)/VLOOKUP(INDEX('Current Rental'!$A$9:$A$19,MATCH(0.3,'Current Rental'!$B$9:$B$19,-1)+I38),'Current Rental'!$A$9:$B$19,2),(D102*12)/0.3) -> 31960 | D102: 799
A103: $800 to $899 | B103: ='Current Rental'!B40+'Current Owner'!D88 -> 0 | C103: =IF(I39>0,(D103*12)/VLOOKUP(INDEX('Current Rental'!$A$9:$A$19,MATCH(0.3,'Current Rental'!$B$9:$B$19,-1)+I39),'Current Rental'!$A$9:$B$19,2),(D103*12)/0.3) -> 35960 | D103: 899
A104: $900 to $999 | B104: ='Current Rental'!B41+'Current Owner'!D89 -> 0 | C104: =IF(I40>0,(D104*12)/VLOOKUP(INDEX('Current Rental'!$A$9:$A$19,MATCH(0.3,'Current Rental'!$B$9:$B$19,-1)+I40),'Current Rental'!$A$9:$B$19,2),(D104*12)/0.3) -> 47193.27169 | D104: 999
A105: $1,000 to $1,499 | B105: ='Current Rental'!B42+'Current Rental'!B43+'Current Owner'!D90 -> 0 | C105: =IF(I41>0,(D105*12)/VLOOKUP(INDEX('Current Rental'!$A$9:$A$19,MATCH(0.3,'Current Rental'!$B$9:$B$19,-1)+I41),'Current Rental'!$A$9:$B$19,2),(D105*12)/0.3) -> 87409.96489 | D105: 1499
A106: $1,500 to $1,999 | B106: ='Current Rental'!B44+'Current Owner'!D91 -> 0 | C106: =IF(I42>0,(D106*12)/VLOOKUP(INDEX('Current Rental'!$A$9:$A$19,MATCH(0.3,'Current Rental'!$B$9:$B$19,-1)+I42),'Current Rental'!$A$9:$B$19,2),(D106*12)/0.3) -> 131864.3226 | D106: 1999
A107: $2,000 or more | B107: ='Current Rental'!B45+'Current Owner'!D92 -> 0 | C107: =IF(I43>0,(D107*12)/VLOOKUP(INDEX('Current Rental'!$A$9:$A$19,MATCH(0.3,'Current Rental'!$B$9:$B$19,-1)+I43),'Current Rental'!$A$9:$B$19,2),(D107*12)/0.3) -> 267201.8259 | D107: 2499
A108: No cash rent | B108: ='Current Rental'!B46 -> 0 | C108: =IF(I44>0,(D108*12)/VLOOKUP(INDEX('Current Rental'!$A$9:$A$19,MATCH(0.3,'Current Rental'!$B$9:$B$19,-1)+I44),'Current Rental'!$A$9:$B$19,2),(D108*12)/0.3) -> 0 | D108: 0
A110: HOUSEHOLD INCOME BY PERCENT OF HOUSEHOLD INCOME SPENT ON HOUSING COSTS - 2013 AMERICAN HOUSING SURVEY
B111: Midwest | C111: Northeast | D111: South | E111: West
A112: Less than $15,000 | B112: 0.551603628 | C112: 0.554228954 | D112: 0.530362441 | E112: 0.571015772
A113: $15,000 to $34,999 | B113: 0.472522408 | C113: 0.5117821 | D113: 0.437292749 | E113: 0.461237224
A114: $35,000 to $49,999 | B114: 0.352661853 | C114: 0.368063183 | D114: 0.312736724 | E114: 0.337789045
A115: $50,000 to $74,999 | B115: 0.277325027 | C115: 0.311668882 | D115: 0.254019261 | E115: 0.271300593
A116: $75,000 to $99,999 | B116: 0.233630977 | C116: 0.253332102 | D116: 0.205788894 | E116: 0.225127949
A117: $100,000 to $149,999 | B117: 0.191629217 | C117: 0.226090273 | D117: 0.181914255 | E117: 0.193703053
A118: $150,000 or more | B118: 0.126023491 | C118: 0.152938364 | D118: 0.112229772 | E118: 0.132420107

Sheet Current Rental
A1: CURRENT RENTAL AFFORDABILITY | C1: =IF(E1=0,"Worksheet complete",IF(E1=1,"Missing fields",IF(E1>1,"Missing fields"))) -> Missing fields | E1: =COUNTBLANK(B50:B60) +COUNTBLANK(B23:B46) -> 35
E3: Actual Households at Income Level | F3: Estimated Occupied Housing Units Affordable at Income Level | G3: Index
A4: Less than 20% | B4: =SUM(B51,B52,B53) -> 0 | D4: <15k | E4: =SUM(G36:G38) -> 0 | F4: =SUM(H36:H38) -> 0 | G4: =0 -> 0 | H4: =IF($G14>0,$G14+1,IF(($D35*12)/VLOOKUP(INDEX($A$9:$A$19,MATCH(0.3,$B$9:$B$19,-1)+1),$A$9:$B$19,2)>=INDEX($A$9:$A$19,MATCH(0.3,$B$9:$B$19,-1)+1),1,0)) -> 0
A5: 20-30% | B5: =SUM(B54,B55) -> 0 | D5: 15k <35k | E5: =SUM(G39:G41) -> 0 | F5: =SUM(H39:H41) -> 0 | G5: =IF($G4>0,$G4+1,IF(($D25*12)/VLOOKUP(INDEX($A$9:$A$19,MATCH(0.3,$B$9:$B$19,-1)+1),$A$9:$B$19,2)>=INDEX($A$9:$A$19,MATCH(0.3,$B$9:$B$19,-1)+1),1,0)) -> 0 | H5: =IF($H4>0,$H4+1,IF(($D36*12)/VLOOKUP(INDEX($A$9:$A$19,MATCH(0.3,$B$9:$B$19,-1)+1),$A$9:$B$19,2)>=INDEX($A$9:$A$19,MATCH(0.3,$B$9:$B$19,-1)+1),1,0)) -> 0
A6: 30-50% | B6: =SUM(B56:B58) -> 0 | D6: 35k <50k | E6: =G42 -> 0 | F6: 0 | G6: 0 | H6: 0
A7: 50% or more | B7: =B59 -> 0 | D7: 50k <75k | E7: 0 | F7: 0 | G7: 0 | H7: 0
D8: 75k <100k | E8: 0 | F8: 0 | G8: 0 | H8: 0
A9: 0 | B9: =SUMIF('Current Summary'!$B$111:$E$111,'Initial Inputs'!$S$21,'Current Summary'!$B$112:$E$112) -> 0.530362441 | D9: 100k <150k | E9: 0 | F9: 0 | G9: 0 | H9: 0
A10: 5000 | B10: =SUMIF('Current Summary'!$B$111:$E$111,'Initial Inputs'!$S$21,'Current Summary'!$B$112:$E$112) -> 0.530362441 | D10: 150k+ | E10: =SUM(G46) -> 0 | F10: =SUM(H46) -> 0 | G10: 0 | H10: 0
A11: 10000 | B11: =SUMIF('Current Summary'!$B$111:$E$111,'Initial Inputs'!$S$21,'Current Summary'!$B$112:$E$112) -> 0.530362441 | D11: Compound Demand | E11: Remaining Demand | F11: Percent | G11: 0 | H11: 1
A12: 15000 | B12: =SUMIF('Current Summary'!$B$111:$E$111,'Initial Inputs'!$S$21,'Current Summary'!$B$113:$E$113) -> 0.437292749 | D12: =E4+E13 -> 0 | E12: =D12-F4 -> 0 | F12: =IF(E12/E4>1,1,IF(E12/E4<0,0,E12/E4)) ->  | G12: 0 | H12: 2
A13: 20000 | B13: =SUMIF('Current Summary'!$B$111:$E$111,'Initial Inputs'!$S$21,'Current Summary'!$B$113:$E$113) -> 0.437292749 | D13: 0 | E13: 0 | G13: 0 | H13: 3
A14: 25000 | B14: =SUMIF('Current Summary'!$B$111:$E$111,'Initial Inputs'!$S$21,'Current Summary'!$B$113:$E$113) -> 0.437292749 | D14: 0 | E14: 0 | G14: 0 | H14: 4
A15: 35000 | B15: =SUMIF('Current Summary'!$B$111:$E$111,'Initial Inputs'!$S$21,'Current Summary'!$B$114:$E$114) -> 0.312736724 | D15: 0 | E15: 0
A16: 50000 | B16: =SUMIF('Current Summary'!$B$111:$E$111,'Initial Inputs'!$S$21,'Current Summary'!$B$115:$E$115) -> 0.254019261 | D16: 0 | E16: 0
A17: 70000 | B17: =SUMIF('Current Summary'!$B$111:$E$111,'Initial Inputs'!$S$21,'Current Summary'!$B$116:$E$116) -> 0.205788894 | D17: 0 | E17: 0
A18: 100000 | B18: =SUMIF('Current Summary'!$B$111:$E$111,'Initial Inputs'!$S$21,'Current Summary'!$B$117:$E$117) -> 0.181914255 | E18: =E10-F10 -> 0
A19: 150000 | B19: =SUMIF('Current Summary'!$B$111:$E$111,'Initial Inputs'!$S$21,'Current Summary'!$B$118:$E$118) -> 0.112229772
A21: B25063. GROSS RENT - Universe: RENTER-OCCUPIED HOUSING UNITS | F21: Underpayment Adjustment ◊ | H21: Override %
B22: Estimate | C22: Annual Inc. for Affordability | D22: Upper Bound | F22: 15k <35k | G22: =IFERROR(IF(H22>0,H22,IF(F13>0,F13,0)),0) -> 0
A23: Total: | F23: 35k <50k | G23: =IFERROR(IF(H23>0,H23,IF(F14>0,F14,0)),0) -> 0
A24: With cash rent: | F24: 50k <75k | G24: =IFERROR(IF(H24>0,H24,IF(F15>0,F15,0)),0) -> 0
A25: Less than $100 | C25: =($D25*12)/0.3 -> 3960 | D25: 99 | F25: 75k <100k | G25: =IFERROR(IF(H25>0,H25,IF(F16>0,F16,0)),0) -> 0
A26: $100 to $149 | C26: =IF($G6>0,($D26*12)/VLOOKUP(INDEX($A$9:$A$19,MATCH(0.3,$B$9:$B$19,-1)+$G6),$A$9:$B$19,2),($D26*12)/0.3) -> 5960 | D26: 149 | F26: 100k <150k | G26: =IFERROR(IF(H26>0,H26,IF(F17>0,F17,0)),0) -> 0
A27: $150 to $199 | C27: 7960 | D27: 199 | F27: 150k+ | G27: =IFERROR(IF(H27>0,H27,IF(F18>0,F18,0)),0) -> 0
A28: $200 to $249 | C28: 9960 | D28: 249
A29: $250 to $299 | C29: 11960 | D29: 299 | F29: Rental Housing Affordability
A30: $300 to $349 | C30: 13960 | D30: 349 | F30: Affordable | H30: =IFERROR((($B$4+$B$5)/SUM(B4:B7)),0) -> 0
A31: $350 to $399 | C31: 15960 | D31: 399 | F31: Unaffordable | H31: =IFERROR(($B$6/SUM(B4:B7)),0) -> 0
A32: $400 to $449 | C32: 17960 | D32: 449 | F32: Severely Unaffordable | H32: =IFERROR(($B$7/SUM(B4:B7)),0) -> 0
A33: $450 to $499 | C33: 19960 | D33: 499
A34: $500 to $549 | C34: 21960 | D34: 549 | F34: Incomes of Renters | H34: Occ'd Units Affordable at Inc. Level
A35: $550 to $599 | C35: =IF($H4>0,($D35*12)/VLOOKUP(INDEX($A$9:$A$19,MATCH(0.3,$B$9:$B$19,-1)+$H4),$A$9:$B$19,2),($D35*12)/0.3) -> 23960 | D35: 599 | F35: ='Current Summary'!A17 -> Renter occupied: | G35: ='Current Summary'!B17 -> 0
A36: $600 to $649 | C36: 25960 | D36: 649 | F36: ='Current Summary'!A18 -> Less than $5,000 | G36: ='Current Summary'!B18 -> 0 | H36: =SUMIFS($B$25:$B$46,$C$25:$C$46,">=0",$C$25:$C$46,"<5000") -> 0
A37: $650 to $699 | C37: 27960 | D37: 699 | F37: ='Current Summary'!A19 -> $5,000 to $9,999 | G37: ='Current Summary'!B19 -> 0 | H37: =SUMIFS($B$25:$B$46,$C$25:$C$46,">=5000",$C$25:$C$46,"<10000") -> 0
A38: $700 to $749 | C38: 29960 | D38: 749 | F38: ='Current Summary'!A20 -> $10,000 to $14,999 | G38: ='Current Summary'!B20 -> 0 | H38: =SUMIFS($B$25:$B$46,$C$25:$C$46,">=10000",$C$25:$C$46,"<15000") -> 0
A39: $750 to $799 | C39: 31960 | D39: 799 | F39: ='Current Summary'!A21 -> $15,000 to $19,999 | G39: ='Current Summary'!B21 -> 0 | H39: =SUMIFS($B$25:$B$46,$C$25:$C$46,">=15000",$C$25:$C$46,"<20000") -> 0
A40: $800 to $899 | C40: 35960 | D40: 899 | F40: ='Current Summary'!A22 -> $20,000 to $24,999 | G40: ='Current Summary'!B22 -> 0 | H40: =SUMIFS($B$25:$B$46,$C$25:$C$46,">=20000",$C$25:$C$46,"<25000") -> 0
A41: $900 to $999 | C41: 39960 | D41: 999 | F41: ='Current Summary'!A23 -> $25,000 to $34,999 | G41: ='Current Summary'!B23 -> 0 | H41: =SUMIFS($B$25:$B$46,$C$25:$C$46,">=25000",$C$25:$C$46,"<35000") -> 0
A42: $1,000 to $1,249 | C42: 59003.39975 | D42: 1249 | F42: ='Current Summary'!A24 -> $35,000 to $49,999 | G42: ='Current Summary'!B24 -> 0 | H42: =SUMIFS($B$25:$B$46,$C$25:$C$46,">=35000",$C$25:$C$46,"<50000") -> 0
A43: $1,250 to $1,499 | C43: 87409.96489 | D43: 1499 | F43: ='Current Summary'!A25 -> $50,000 to $74,999 | G43: ='Current Summary'!B25 -> 0 | H43: =SUMIFS($B$25:$B$46,$C$25:$C$46,">=50000",$C$25:$C$46,"<75000") -> 0
A44: $1,500 to $1,999 | C44: 131864.3226 | D44: 1999 | F44: 75k <100k | G44: ='Current Summary'!B26 -> 0 | H44: =SUMIFS($B$25:$B$46,$C$25:$C$46,">=75000",$C$25:$C$46,"<100000") -> 0
A45: $2,000 or more | C45: 267201.8259 | D45: 2499 | F45: 100k <150k | G45: ='Current Summary'!B27 -> 0 | H45: =SUMIFS($B$25:$B$46,$C$25:$C$46,">=100000",$C$25:$C$46,"<150000") -> 0
A46: No cash rent | C46: 0 | D46: No cash rent | F46: 150k+ | G46: ='Current Summary'!B28 -> 0 | H46: =SUMIFS($B$25:$B$46,$C$25:$C$46,">=150000") -> 0
A48: B25070. GROSS RENT AS A PERCENTAGE OF HOUSEHOLD INCOME IN THE PAST 12 MONTHS - Universe: RENTER-OCCUPIED HOUSING UNITS | F48: ='Initial Inputs'!S21 -> South
B49: Estimate | F49: <15k | G49: =SUMIF('Current Summary'!$B$111:$E$111,'Current Rental'!$F$48,'Current Summary'!B112:E112) -> 0.530362441
A50: Total: | F50: 15k <35k | G50: =SUMIF('Current Summary'!$B$111:$E$111,'Current Rental'!$F$48,'Current Summary'!B113:E113) -> 0.437292749
A51: Less than 10% | F51: 35k <50k | G51: =SUMIF('Current Summary'!$B$111:$E$111,'Current Rental'!$F$48,'Current Summary'!B114:E114) -> 0.312736724
A52: 10 to 15% | F52: 50k <75k | G52: =SUMIF('Current Summary'!$B$111:$E$111,'Current Rental'!$F$48,'Current Summary'!B115:E115) -> 0.254019261
A53: 15 to 20% | F53: 75k <100k | G53: =SUMIF('Current Summary'!$B$111:$E$111,'Current Rental'!$F$48,'Current Summary'!B116:E116) -> 0.205788894
A54: 20 to 25% | F54: 100k <150k | G54: =SUMIF('Current Summary'!$B$111:$E$111,'Current Rental'!$F$48,'Current Summary'!B117:E117) -> 0.181914255
A55: 25 to 30% | F55: 150k+ | G55: =SUMIF('Current Summary'!$B$111:$E$111,'Current Rental'!$F$48,'Current Summary'!B118:E118) -> 0.112229772
A56: 30 to 35%
A57: 35 to 40%
A58: 40 to 50%
A59: 50% or more
A60: Not computed

Sheet Current Owner
A1: CURRENT OWNER AFFORDABILITY | C1: =IFERROR(IF(E1=0,"Worksheet complete",IF(E1=1,"Missing fields",IF(E1>1,"Missing fields"))),0) -> Missing fields | E1: =IFERROR(COUNTBLANK(B5:B27) +COUNTBLANK(B48:B76),0) -> 52
A3: B25091. MORTGAGE STATUS BY SELECTED MONTHLY OWNER COSTS AS A PERCENTAGE OF HOUSEHOLD INCOME IN THE PAST 12 MONTHS - Universe: OWNER-OCCUPIED HOUSING UNITS
B4: Estimate | E4: CD | F4: RD | G4: PCT
A5: Total: | D5: <15k | E5: =IFERROR(F6+D20,0) -> 0 | F5: =IFERROR(E5-(E21+F21),0) -> 0 | G5: =IFERROR(IF(F5/D20>1,1,IF(F5/D20<0,0,F5/D20)),0) -> 0 | H5: =IFERROR(IF(#REF!>1,1,#REF!),0) -> 0
A6: Housing units with a mortgage: | D6: 15k <35k | E6: =IFERROR(F7+D23,0) -> 0 | F6: =IFERROR(E6-(E24+F24),0) -> 0 | G6: =IFERROR(IF(F6/D23>1,1,IF(F6/D23<0,0,F6/D23)),0) -> 0 | H6: =IFERROR(IF(#REF!>1,1,#REF!),0) -> 0
A7: Less than 10.0 percent | D7: 35k <50k | E7: =IFERROR(F8+D26,0) -> 0 | F7: =IFERROR(E7-(E27+F27),0) -> 0 | G7: =IFERROR(IF(F7/D26>1,1,IF(F7/D26<0,0,F7/D26)),0) -> 0 | H7: =IFERROR(IF(#REF!>1,1,#REF!),0) -> 0
A8: 10.0 to 14.9 percent | D8: 50k <75k | E8: =IFERROR(F9+D29,0) -> 0 | F8: =IFERROR(E8-(E30+F30),0) -> 0 | G8: =IFERROR(IF(F8/D29>1,1,IF(F8/D29<0,0,F8/D29)),0) -> 0 | H8: =IFERROR(IF(#REF!>1,1,#REF!),0) -> 0
A9: 15.0 to 19.9 percent | D9: 75k <100k | E9: =IFERROR(F10+D32,0) -> 0 | F9: =IFERROR(E9-(E33+F33),0) -> 0 | G9: =IFERROR(IF(F9/D32>1,1,IF(F9/D32<0,0,F9/D32)),0) -> 0 | H9: =IFERROR(IF(#REF!>1,1,#REF!),0) -> 0
A10: 20.0 to 24.9 percent | D10: 100k <150k | E10: =IFERROR(F11+D35,0) -> 0 | F10: =IFERROR(E10-(E36+F36),0) -> 0 | G10: =IFERROR(IF(F10/D35>1,1,IF(F10/D35<0,0,F10/D35)),0) -> 0 | H10: =IFERROR(IF(#REF!>1,1,#REF!),0) -> 0
A11: 25.0 to 29.9 percent | D11: 150k+ | F11: =IFERROR(D38-(E39+F39),0) -> 0 | G11: =IFERROR(IF(F11/D38>1,1,IF(F11/D38<0,0,F11/D38)),0) -> 0 | H11: =IFERROR(IF(#REF!>1,1,#REF!),0) -> 0
A12: 30.0 to 34.9 percent
A13: 35.0 to 39.9 percent
A14: 40.0 to 49.9 percent
A15: 50.0 percent or more
A16: Not computed
A17: Housing units without a mortgage:
A18: Less than 10.0 percent | D18: Actual Households at Income Level | E18: Estimated Occupied Housing Units Affordable at Income Level (with mortgage) | F18: Estimated Occupied Housing Units Affordable at Income Level (without mortgage)
A19: 10.0 to 14.9 percent
A20: 15.0 to 19.9 percent | C20: <15k | D20: =IFERROR(SUM(B96:B98),0) -> 0
A21: 20.0 to 24.9 percent | E21: =IFERROR(SUM(C96:C98),0) -> 0 | F21: =IFERROR(SUM(D96:D98),0) -> 0
A22: 25.0 to 29.9 percent
A23: 30.0 to 34.9 percent | C23: 15k <35k | D23: =IFERROR(SUM(B99:B101),0) -> 0
A24: 35.0 to 39.9 percent | E24: =IFERROR(SUM(C99:C101),0) -> 0 | F24: =IFERROR(SUM(D99:D101),0) -> 0
A25: 40.0 to 49.9 percent
A26: 50.0 percent or more | C26: 35k <50k | D26: =IFERROR(B102,0) -> 0
A27: Not computed | E27: =IFERROR(C102,0) -> 0 | F27: =IFERROR(D102,0) -> 0
A29: Without Mortgages | C29: 50k <75k | D29: =IFERROR(B103,0) -> 0
A30: Less than 20% | B30: =IFERROR(SUM(B18,B19,B20),0) -> 0 | E30: =IFERROR(C103,0) -> 0 | F30: =IFERROR(D103,0) -> 0
A31: 20-30% | B31: =IFERROR(SUM(B21,B22),0) -> 0
A32: 30-50% | B32: =IFERROR(SUM(B23,B24,B25),0) -> 0 | C32: 75k <100k | D32: =IFERROR(B104,0) -> 0
A33: 50% or more | B33: =IFERROR(B26,0) -> 0 | E33: =IFERROR(C104,0) -> 0 | F33: =IFERROR(D104,0) -> 0
A35: With Mortgages | C35: 100k <150k | D35: =IFERROR(B105,0) -> 0
A36: Less than 20% | B36: =IFERROR(SUM(B7,B8,B9),0) -> 0 | E36: =IFERROR(C105,0) -> 0 | F36: =IFERROR(D105,0) -> 0
A37: 20-30% | B37: =IFERROR(SUM(B10,B11),0) -> 0
A38: 30-50% | B38: =IFERROR(SUM(B12,B13,B14),0) -> 0 | C38: 150k+ | D38: =IFERROR(B106,0) -> 0
A39: 50% or more | B39: =IFERROR(SUM(B15),0) -> 0 | E39: =IFERROR(C106,0) -> 0 | F39: =IFERROR(D106,0) -> 0
A41: Owner Housing Affordability
A42: Affordable | B42: =IFERROR(IFERROR((SUM($B$36,$B$37,$B$30,$B$31)/$B$5),0),0) -> 0
A43: Unaffordable | B43: =IFERROR(IFERROR((SUM($B$38,$B$32)/$B$5),0),0) -> 0
A44: Severely Unaffordable | B44: =IFERROR(IFERROR((SUM($B$39,$B$33)/$B$5),0),0) -> 0
A46: B25087. MORTGAGE STATUS AND SELECTED MONTHLY OWNER COSTS - Universe: OWNER-OCCUPIED HOUSING UNITS | D46: Underpayment Adjustment ◊ | G46: Override %
B47: Estimate | D47: 15k <35k | E47: =IFERROR(IF(G47>0,G47,IF(G6>0,G6,0)),0) -> 0
A48: Total: | D48: 35k <50k | E48: =IFERROR(IFERROR(IF(G48>0,G48,IF(G7>0,G7,0)),0),0) -> 0
A49: Housing units with a mortgage: | D49: 50k <75k | E49: =IFERROR(IFERROR(IF(G49>0,G49,IF(G8>0,G8,0)),0),0) -> 0
A50: Less than $200 | D50: 75k <100k | E50: =IFERROR(IFERROR(IF(G50>0,G50,IF(G9>0,G9,0)),0),0) -> 0
A51: $200 to $299 | D51: 100k <150k | E51: =IFERROR(IFERROR(IF(G51>0,G51,IF(G10>0,G10,0)),0),0) -> 0
A52: $300 to $399 | D52: 150k+ | E52: =IFERROR(IFERROR(IF(G52>0,G52,IF(G11>0,G11,0)),0),0) -> 0
A53: $400 to $499
A54: $500 to $599
A55: $600 to $699
A56: $700 to $799
A57: $800 to $899
A58: $900 to $999
A59: $1,000 to $1,249
A60: $1,250 to $1,499
A61: $1,500 to $1,999
A62: $2,000 to $2,499
A63: $2,500 to $2,999
A64: $3,000 or more
A65: Housing units without a mortgage:
A66: Less than $100
A67: $100 to $149
A68: $150 to $199
A69: $200 to $249
A70: $250 to $299
A71: $300 to $349
A72: $350 to $399
A73: $400 to $499
A74: $500 to $599
A75: $600 to $699
A76: $700 or more
B78: Estimate with Mortgage | C78: Estimate without Mortgage | D78: Total Est. Owner | E78: Annual Income for Affordability | F78: Housing Cost Midpoint
A79: Total: | B79: =IFERROR(B49,0) -> 0 | C79: =IFERROR(B65,0) -> 0 | D79: =IFERROR(SUM(B79:C79),0) -> 0
A80: Less than $100 | B80: 0 | C80: =IFERROR(B66,0) -> 0 | D80: =IFERROR(SUM(B80:C80),0) -> 0 | E80: =IF('Current Summary'!I31>0,(F80*12)/VLOOKUP(INDEX('Current Rental'!$A$9:$A$19,MATCH(0.3,'Current Rental'!$B$9:$B$19,-1)+'Current Summary'!I31),'Current Rental'!$A$9:$B$19,2),(F80*12)/0.3) -> 1960 | F80: 49
A81: $100 to $199 | B81: =IFERROR(B50,0) -> 0 | C81: =IFERROR(SUM(B67:B68),0) -> 0 | D81: =IFERROR(SUM(B81:C81),0) -> 0 | E81: =IF('Current Summary'!I32>0,(F81*12)/VLOOKUP(INDEX('Current Rental'!$A$9:$A$19,MATCH(0.3,'Current Rental'!$B$9:$B$19,-1)+'Current Summary'!I32),'Current Rental'!$A$9:$B$19,2),(F81*12)/0.3) -> 5960 | F81: 149
A82: $200 to $299 | B82: =IFERROR(B51,0) -> 0 | C82: =IFERROR(SUM(B69:B70),0) -> 0 | D82: =IFERROR(SUM(B82:C82),0) -> 0 | E82: =IF('Current Summary'!I33>0,(F82*12)/VLOOKUP(INDEX('Current Rental'!$A$9:$A$19,MATCH(0.3,'Current Rental'!$B$9:$B$19,-1)+'Current Summary'!I33),'Current Rental'!$A$9:$B$19,2),(F82*12)/0.3) -> 9960 | F82: 249
A83: $300 to $399 | B83: =IFERROR(B52,0) -> 0 | C83: =IFERROR(SUM(B71:B72),0) -> 0 | D83: =IFERROR(SUM(B83:C83),0) -> 0 | E83: =IF('Current Summary'!I34>0,(F83*12)/VLOOKUP(INDEX('Current Rental'!$A$9:$A$19,MATCH(0.3,'Current Rental'!$B$9:$B$19,-1)+'Current Summary'!I34),'Current Rental'!$A$9:$B$19,2),(F83*12)/0.3) -> 13960 | F83: 349
A84: $400 to $499 | B84: =IFERROR(B53,0) -> 0 | C84: =IFERROR(B73,0) -> 0 | D84: =IFERROR(SUM(B84:C84),0) -> 0 | E84: =IF('Current Summary'!I35>0,(F84*12)/VLOOKUP(INDEX('Current Rental'!$A$9:$A$19,MATCH(0.3,'Current Rental'!$B$9:$B$19,-1)+'Current Summary'!I35),'Current Rental'!$A$9:$B$19,2),(F84*12)/0.3) -> 17960 | F84: 449
A85: $500 to $599 | B85: =IFERROR(B54,0) -> 0 | C85: =IFERROR(B74,0) -> 0 | D85: =IFERROR(SUM(B85:C85),0) -> 0 | E85: =IF('Current Summary'!I36>0,(F85*12)/VLOOKUP(INDEX('Current Rental'!$A$9:$A$19,MATCH(0.3,'Current Rental'!$B$9:$B$19,-1)+'Current Summary'!I36),'Current Rental'!$A$9:$B$19,2),(F85*12)/0.3) -> 21960 | F85: 549
A86: $600 to $699 | B86: =IFERROR(B55,0) -> 0 | C86: =IFERROR(B75,0) -> 0 | D86: =IFERROR(SUM(B86:C86),0) -> 0 | E86: =IF('Current Summary'!I37>0,(F86*12)/VLOOKUP(INDEX('Current Rental'!$A$9:$A$19,MATCH(0.3,'Current Rental'!$B$9:$B$19,-1)+'Current Summary'!I37),'Current Rental'!$A$9:$B$19,2),(F86*12)/0.3) -> 25960 | F86: 649
A87: $700 to $799 | B87: =IFERROR(B56,0) -> 0 | C87: =IFERROR((0.3)*$B$76,0) -> 0 | D87: =IFERROR(SUM(B87:C87),0) -> 0 | E87: =IF('Current Summary'!I38>0,(F87*12)/VLOOKUP(INDEX('Current Rental'!$A$9:$A$19,MATCH(0.3,'Current Rental'!$B$9:$B$19,-1)+'Current Summary'!I38),'Current Rental'!$A$9:$B$19,2),(F87*12)/0.3) -> 29960 | F87: 749
A88: $800 to $899 | B88: =IFERROR(B57,0) -> 0 | C88: =IFERROR((0.2*$B$76),0) -> 0 | D88: =IFERROR(SUM(B88:C88),0) -> 0 | E88: =IF('Current Summary'!I39>0,(F88*12)/VLOOKUP(INDEX('Current Rental'!$A$9:$A$19,MATCH(0.3,'Current Rental'!$B$9:$B$19,-1)+'Current Summary'!I39),'Current Rental'!$A$9:$B$19,2),(F88*12)/0.3) -> 33960 | F88: 849
A89: $900 to $999 | B89: =IFERROR(B58,0) -> 0 | C89: =IFERROR((0.15*$B$76),0) -> 0 | D89: =IFERROR(SUM(B89:C89),0) -> 0 | E89: =IF('Current Summary'!I40>0,(F89*12)/VLOOKUP(INDEX('Current Rental'!$A$9:$A$19,MATCH(0.3,'Current Rental'!$B$9:$B$19,-1)+'Current Summary'!I40),'Current Rental'!$A$9:$B$19,2),(F89*12)/0.3) -> 44831.24608 | F89: 949
A90: $1,000 to $1,499 | B90: =IFERROR(SUM(B59:B60),0) -> 0 | C90: =IFERROR((0.25*$B$76),0) -> 0 | D90: =IFERROR(SUM(B90:C90),0) -> 0 | E90: =IF('Current Summary'!I41>0,(F90*12)/VLOOKUP(INDEX('Current Rental'!$A$9:$A$19,MATCH(0.3,'Current Rental'!$B$9:$B$19,-1)+'Current Summary'!I41),'Current Rental'!$A$9:$B$19,2),(F90*12)/0.3) -> 72831.91871 | F90: 1249
A91: $1,500 to $1,999 | B91: =IFERROR(B61,0) -> 0 | C91: =IFERROR((0.05*$B$76),0) -> 0 | D91: =IFERROR(SUM(B91:C91),0) -> 0 | E91: =IF('Current Summary'!I42>0,(F91*12)/VLOOKUP(INDEX('Current Rental'!$A$9:$A$19,MATCH(0.3,'Current Rental'!$B$9:$B$19,-1)+'Current Summary'!I42),'Current Rental'!$A$9:$B$19,2),(F91*12)/0.3) -> 115373.0366 | F91: 1749
A92: $2,000 or more | B92: =IFERROR(SUM(B62:B64),0) -> 0 | C92: =IFERROR((0.05*$B$76),0) -> 0 | D92: =IFERROR(SUM(B92:C92),0) -> 0 | E92: =IF('Current Summary'!I43>0,(F92*12)/VLOOKUP(INDEX('Current Rental'!$A$9:$A$19,MATCH(0.3,'Current Rental'!$B$9:$B$19,-1)+'Current Summary'!I43),'Current Rental'!$A$9:$B$19,2),(F92*12)/0.3) -> 267201.8259 | F92: 2499
B94: Incomes of Owners | C94: Occupied Units Affordable at Income Level with Mortgage | D94: Occupied Units Affordable at Income Level without Mortgage
A95: =IFERROR('Current Summary'!A5,0) -> Owner occupied: | B95: =IFERROR('Current Summary'!B5,0) -> 0
A96: =IFERROR('Current Summary'!A6,0) -> Less than $5,000 | B96: =IFERROR('Current Summary'!B6,0) -> 0 | C96: =SUMIFS($B$80:$B$92,$E$80:$E$92,">=0",$E$80:$E$92,"<5000") -> 0 | D96: =SUMIFS($C$80:$C$92,$E$80:$E$92,">=0",$E$80:$E$92,"<5000") -> 0
A97: =IFERROR('Current Summary'!A7,0) -> $5,000 to $9,999 | B97: =IFERROR('Current Summary'!B7,0) -> 0 | C97: =SUMIFS($B$80:$B$92,$E$80:$E$92,">=5000",$E$80:$E$92,"<10000") -> 0 | D97: =SUMIFS($C$80:$C$92,$E$80:$E$92,">=5000",$E$80:$E$92,"<10000") -> 0
A98: =IFERROR('Current Summary'!A8,0) -> $10,000 to $14,999 | B98: =IFERROR('Current Summary'!B8,0) -> 0 | C98: =SUMIFS($B$80:$B$92,$E$80:$E$92,">=10000",$E$80:$E$92,"<15000") -> 0 | D98: =SUMIFS($C$80:$C$92,$E$80:$E$92,">=10000",$E$80:$E$92,"<15000") -> 0
A99: =IFERROR('Current Summary'!A9,0) -> $15,000 to $19,999 | B99: =IFERROR('Current Summary'!B9,0) -> 0 | C99: =SUMIFS($B$80:$B$92,$E$80:$E$92,">=15000",$E$80:$E$92,"<20000") -> 0 | D99: =SUMIFS($C$80:$C$92,$E$80:$E$92,">=15000",$E$80:$E$92,"<20000") -> 0
A100: =IFERROR('Current Summary'!A10,0) -> $20,000 to $24,999 | B100: =IFERROR('Current Summary'!B10,0) -> 0 | C100: =SUMIFS($B$80:$B$92,$E$80:$E$92,">=20000",$E$80:$E$92,"<25000") -> 0 | D100: =SUMIFS($C$80:$C$92,$E$80:$E$92,">=20000",$E$80:$E$92,"<25000") -> 0
A101: =IFERROR('Current Summary'!A11,0) -> $25,000 to $34,999 | B101: =IFERROR('Current Summary'!B11,0) -> 0 | C101: =SUMIFS($B$80:$B$92,$E$80:$E$92,">=25000",$E$80:$E$92,"<35000") -> 0 | D101: =SUMIFS($C$80:$C$92,$E$80:$E$92,">=25000",$E$80:$E$92,"<35000") -> 0
A102: =IFERROR('Current Summary'!A12,0) -> $35,000 to $49,999 | B102: =IFERROR('Current Summary'!B12,0) -> 0 | C102: =SUMIFS($B$80:$B$92,$E$80:$E$92,">=35000",$E$80:$E$92,"<50000") -> 0 | D102: =SUMIFS($C$80:$C$92,$E$80:$E$92,">=35000",$E$80:$E$92,"<50000") -> 0
A103: =IFERROR('Current Summary'!A13,0) -> $50,000 to $74,999 | B103: =IFERROR('Current Summary'!B13,0) -> 0 | C103: =SUMIFS($B$80:$B$92,$E$80:$E$92,">=50000",$E$80:$E$92,"<75000")*0.5+SUMIFS($B$80:$B$92,$E$80:$E$92,">=75000",$E$80:$E$92,"<100000")*0.5 -> 0 | D103: =SUMIFS($C$80:$C$92,$E$80:$E$92,">=50000",$E$80:$E$92,"<75000")*0.5+SUMIFS($C$80:$C$92,$E$80:$E$92,">=75000",$E$80:$E$92,"<100000")*0.5 -> 0
A104: =IFERROR('Current Summary'!A14,0) -> $75,000 to $99,999 | B104: =IFERROR('Current Summary'!B14,0) -> 0 | C104: =SUMIFS($B$80:$B$92,$E$80:$E$92,">=50000",$E$80:$E$92,"<75000")*0.5+SUMIFS($B$80:$B$92,$E$80:$E$92,">=75000",$E$80:$E$92,"<100000")*0.5 -> 0 | D104: =SUMIFS($C$80:$C$92,$E$80:$E$92,">=50000",$E$80:$E$92,"<75000")*0.5+SUMIFS($C$80:$C$92,$E$80:$E$92,">=75000",$E$80:$E$92,"<100000")*0.5 -> 0
A105: =IFERROR('Current Summary'!A15,0) -> $100,000 to $149,999 | B105: =IFERROR('Current Summary'!B15,0) -> 0 | C105: =SUMIFS($B$80:$B$92,$E$80:$E$92,">=100000",$E$80:$E$92,"<150000") -> 0 | D105: =SUMIFS($C$80:$C$92,$E$80:$E$92,">=100000",$E$80:$E$92,"<150000") -> 0
A106: =IFERROR('Current Summary'!A16,0) -> $150,000 or more | B106: =IFERROR('Current Summary'!B16,0) -> 0 | C106: =SUMIFS($B$80:$B$92,$E$80:$E$92,">=150000") -> 0 | D106: =SUMIFS($C$80:$C$92,$E$80:$E$92,">=150000") -> 0

Sheet Current Age Income
A1: AGE/INCOME PARAMETERS | F1: =IF(I1=0,"Worksheet complete",IF(I1=1,"Missing fields",IF(I1>1,"Missing fields"))) -> Missing fields | I1: =COUNTBLANK(B5:B29) +COUNTBLANK(B33:B53) -> 46
A3: B25118. TENURE BY HOUSEHOLD INCOME IN THE PAST 12 MONTHS (IN 2007 INFLATION-ADJUSTED DOLLARS) - Universe: OCCUPIED HOUSING UNITS
B4: Estimate
A5: Total:
A6: Owner occupied: | C6: Own | D6: Rent
A7: Less than $5,000 | C7: =IFERROR((B7/SUM(B7,B19)),0) -> 0 | D7: =IFERROR((1-C7),0) -> 1
A8: $5,000 to $9,999 | C8: =IFERROR((B8/SUM(B8,B20)),0) -> 0 | D8: =IFERROR((1-C8),0) -> 1
A9: $10,000 to $14,999 | C9: =IFERROR((B9/SUM(B9,B21)),0) -> 0 | D9: =IFERROR((1-C9),0) -> 1
A10: $15,000 to $19,999 | C10: =IFERROR((B10/SUM(B10,B22)),0) -> 0 | D10: =IFERROR((1-C10),0) -> 1
A11: $20,000 to $24,999 | C11: =IFERROR((B11/SUM(B11,B23)),0) -> 0 | D11: =IFERROR((1-C11),0) -> 1
A12: $25,000 to $34,999 | C12: =IFERROR((B12/SUM(B12,B24)),0) -> 0 | D12: =IFERROR((1-C12),0) -> 1
A13: $35,000 to $49,999 | C13: =IFERROR((B13/SUM(B13,B25)),0) -> 0 | D13: =IFERROR((1-C13),0) -> 1
A14: $50,000 to $74,999 | C14: =IFERROR((B14/SUM(B14,B26)),0) -> 0 | D14: =IFERROR((1-C14),0) -> 1
A15: $75,000 to $99,999 | C15: =IFERROR((B15/SUM(B15,B27)),0) -> 0 | D15: =IFERROR((1-C15),0) -> 1
A16: $100,000 to $149,999 | C16: =IFERROR((B16/SUM(B16,B28)),0) -> 0 | D16: =IFERROR((1-C16),0) -> 1
A17: $150,000 or more | C17: =IFERROR((B17/SUM(B17,B29)),0) -> 0 | D17: =IFERROR((1-C17),0) -> 1
A18: Renter occupied:
A19: Less than $5,000
A20: $5,000 to $9,999
A21: $10,000 to $14,999
A22: $15,000 to $19,999
A23: $20,000 to $24,999
A24: $25,000 to $34,999
A25: $35,000 to $49,999 | F25: By Age | H25: Units | J25: By Income | L25: Adjustment Rate | N25: Adjusted Units | P25: Adjusted Percentages
A26: $50,000 to $74,999
A27: $75,000 to $99,999 | F27: Own | G27: Rent | H27: Own | I27: Rent | J27: Own | K27: Rent | L27: Own | M27: Rent | N27: Own | O27: Rent | P27: Own | Q27: Rent
A28: $100,000 to $149,999 | D28: <25 | E28: <15k | F28: =IFERROR(('Current Age Income'!B35/SUM('Current Age Income'!B35,'Current Age Income'!B45)),0) -> 0 | G28: =IFERROR((1-F28),0) -> 1 | H28: =IFERROR((SUM('Current Age Income'!B35)),0) -> 0 | I28: =IFERROR(('Current Age Income'!B45),0) -> 0 | J28: =IFERROR((J56),0) -> 0 | K28: =IFERROR((K56),0) -> 1 | L28: =IFERROR((H28/SUM(J28:J34)),0) -> 0 | M28: =IFERROR((I28/SUM(K28:K34)),0) -> 0 | N28: =IFERROR(($L$28*J28),0) -> 0 | O28: =IFERROR(($M$28*K28),0) -> 0 | P28: =IFERROR(('Current Age Income'!N28/SUM('Current Age Income'!N28:O28)),0) -> 0 | Q28: =IFERROR(('Current Age Income'!O28/SUM('Current Age Income'!N28:O28)),0) -> 0
A29: $150,000 or more | E29: 15k <35k | J29: =IFERROR((J57),0) -> 0 | K29: =IFERROR((K57),0) -> 1 | N29: =IFERROR(($L$28*J29),0) -> 0 | O29: =IFERROR(($M$28*K29),0) -> 0 | P29: =IFERROR(('Current Age Income'!N29/SUM('Current Age Income'!N29:O29)),0) -> 0 | Q29: =IFERROR(('Current Age Income'!O29/SUM('Current Age Income'!N29:O29)),0) -> 0
E30: 35k <50k | J30: =IFERROR((J58),0) -> 0 | K30: =IFERROR((K58),0) -> 1 | N30: =IFERROR(($L$28*J30),0) -> 0 | O30: =IFERROR(($M$28*K30),0) -> 0 | P30: =IFERROR(('Current Age Income'!N30/SUM('Current Age Income'!N30:O30)),0) -> 0 | Q30: =IFERROR(('Current Age Income'!O30/SUM('Current Age Income'!N30:O30)),0) -> 0
A31: B25007. TENURE BY AGE OF HOUSEHOLDER - Universe: OCCUPIED HOUSING UNITS | E31: 50k <75k | J31: =IFERROR((J59),0) -> 0 | K31: =IFERROR((K59),0) -> 1 | N31: =IFERROR(($L$28*J31),0) -> 0 | O31: =IFERROR(($M$28*K31),0) -> 0 | P31: =IFERROR(('Current Age Income'!N31/SUM('Current Age Income'!N31:O31)),0) -> 0 | Q31: =IFERROR(('Current Age Income'!O31/SUM('Current Age Income'!N31:O31)),0) -> 0
B32: Estimate | E32: 75k <100k | J32: =IFERROR((J60),0) -> 0 | K32: =IFERROR((K60),0) -> 1 | N32: =IFERROR(($L$28*J32),0) -> 0 | O32: =IFERROR(($M$28*K32),0) -> 0 | P32: =IFERROR(('Current Age Income'!N32/SUM('Current Age Income'!N32:O32)),0) -> 0 | Q32: =IFERROR(('Current Age Income'!O32/SUM('Current Age Income'!N32:O32)),0) -> 0
A33: Total: | E33: 100k <150k | J33: =IFERROR((J61),0) -> 0 | K33: =IFERROR((K61),0) -> 1 | N33: =IFERROR(($L$28*J33),0) -> 0 | O33: =IFERROR(($M$28*K33),0) -> 0 | P33: =IFERROR(('Current Age Income'!N33/SUM('Current Age Income'!N33:O33)),0) -> 0 | Q33: =IFERROR(('Current Age Income'!O33/SUM('Current Age Income'!N33:O33)),0) -> 0
A34: Owner occupied: | E34: 150k+ | J34: =IFERROR((J62),0) -> 0 | K34: =IFERROR((K62),0) -> 1 | N34: =IFERROR(($L$28*J34),0) -> 0 | O34: =IFERROR(($M$28*K34),0) -> 0 | P34: =IFERROR(('Current Age Income'!N34/SUM('Current Age Income'!N34:O34)),0) -> 0 | Q34: =IFERROR(('Current Age Income'!O34/SUM('Current Age Income'!N34:O34)),0) -> 0
A35: Householder 15 to 24 years | D35: 25-44 | E35: <15k | F35: =IFERROR(SUM('Current Age Income'!B36:B37)/SUM('Current Age Income'!B36:B37,'Current Age Income'!B46:B47),0) -> 0 | G35: =IFERROR((1-F35),0) -> 1 | H35: =IFERROR((SUM('Current Age Income'!B36:B37)),0) -> 0 | I35: =IFERROR((SUM('Current Age Income'!B46:B47)),0) -> 0 | J35: =IFERROR((J56),0) -> 0 | K35: =IFERROR((K56),0) -> 1 | L35: =IFERROR((H35/SUM(J35:J41)),0) -> 0 | M35: =IFERROR((I35/SUM(K35:K41)),0) -> 0 | N35: =IFERROR((J35*$L$35),0) -> 0 | O35: =IFERROR((K35*$M$35),0) -> 0 | P35: =IFERROR(('Current Age Income'!N35/SUM('Current Age Income'!N35:O35)),0) -> 0 | Q35: =IFERROR(('Current Age Income'!O35/SUM('Current Age Income'!N35:O35)),0) -> 0
A36: Householder 25 to 34 years | E36: 15k <35k | J36: =IFERROR((J57),0) -> 0 | K36: =IFERROR((K57),0) -> 1 | N36: =IFERROR((J36*$L$35),0) -> 0 | O36: =IFERROR((K36*$M$35),0) -> 0 | P36: =IFERROR(('Current Age Income'!N36/SUM('Current Age Income'!N36:O36)),0) -> 0 | Q36: =IFERROR(('Current Age Income'!O36/SUM('Current Age Income'!N36:O36)),0) -> 0
A37: Householder 35 to 44 years | E37: 35k <50k | J37: =IFERROR((J58),0) -> 0 | K37: =IFERROR((K58),0) -> 1 | N37: =IFERROR((J37*$L$35),0) -> 0 | O37: =IFERROR((K37*$M$35),0) -> 0 | P37: =IFERROR(('Current Age Income'!N37/SUM('Current Age Income'!N37:O37)),0) -> 0 | Q37: =IFERROR(('Current Age Income'!O37/SUM('Current Age Income'!N37:O37)),0) -> 0
A38: Householder 45 to 54 years | E38: 50k <75k | J38: =IFERROR((J59),0) -> 0 | K38: =IFERROR((K59),0) -> 1 | N38: =IFERROR((J38*$L$35),0) -> 0 | O38: =IFERROR((K38*$M$35),0) -> 0 | P38: =IFERROR(('Current Age Income'!N38/SUM('Current Age Income'!N38:O38)),0) -> 0 | Q38: =IFERROR(('Current Age Income'!O38/SUM('Current Age Income'!N38:O38)),0) -> 0
A39: Householder 55 to 59 years | E39: 75k <100k | J39: =IFERROR((J60),0) -> 0 | K39: =IFERROR((K60),0) -> 1 | N39: =IFERROR((J39*$L$35),0) -> 0 | O39: =IFERROR((K39*$M$35),0) -> 0 | P39: =IFERROR(('Current Age Income'!N39/SUM('Current Age Income'!N39:O39)),0) -> 0 | Q39: =IFERROR(('Current Age Income'!O39/SUM('Current Age Income'!N39:O39)),0) -> 0
A40: Householder 60 to 64 years | E40: 100k <150k | J40: =IFERROR((J61),0) -> 0 | K40: =IFERROR((K61),0) -> 1 | N40: =IFERROR((J40*$L$35),0) -> 0 | O40: =IFERROR((K40*$M$35),0) -> 0 | P40: =IFERROR(('Current Age Income'!N40/SUM('Current Age Income'!N40:O40)),0) -> 0 | Q40: =IFERROR(('Current Age Income'!O40/SUM('Current Age Income'!N40:O40)),0) -> 0
A41: Householder 65 to 74 years | E41: 150k+ | J41: =IFERROR((J62),0) -> 0 | K41: =IFERROR((K62),0) -> 1 | N41: =IFERROR((J41*$L$35),0) -> 0 | O41: =IFERROR((K41*$M$35),0) -> 0 | P41: =IFERROR(('Current Age Income'!N41/SUM('Current Age Income'!N41:O41)),0) -> 0 | Q41: =IFERROR(('Current Age Income'!O41/SUM('Current Age Income'!N41:O41)),0) -> 0
A42: Householder 75 to 84 years | D42: 45-64 | E42: <15k | F42: =IFERROR(SUM('Current Age Income'!B38,'Current Age Income'!B39,'Current Age Income'!B40)/SUM('Current Age Income'!B38, 'Current Age Income'!B39,'Current Age Income'!B40,'Current Age Income'!B48,'Current Age Income'!B49,'Current Age Income'!B50),0) -> 0 | G42: =IFERROR((1-F42),0) -> 1 | H42: =IFERROR((SUM('Current Age Income'!B38:B40)),0) -> 0 | I42: =IFERROR((SUM('Current Age Income'!B48:B50)),0) -> 0 | J42: =IFERROR((J56),0) -> 0 | K42: =IFERROR((K56),0) -> 1 | L42: =IFERROR((H42/SUM(J42:J48)),0) -> 0 | M42: =IFERROR((I42/SUM(K42:K48)),0) -> 0 | N42: =IFERROR(($L$42*J42),0) -> 0 | O42: =IFERROR(($M$42*K42),0) -> 0 | P42: =IFERROR(('Current Age Income'!N42/SUM('Current Age Income'!N42:O42)),0) -> 0 | Q42: =IFERROR(('Current Age Income'!O42/SUM('Current Age Income'!N42:O42)),0) -> 0
A43: Householder 85 years and over | E43: 15k <35k | J43: =IFERROR((J57),0) -> 0 | K43: =IFERROR((K57),0) -> 1 | N43: =IFERROR(($L$42*J43),0) -> 0 | O43: =IFERROR(($M$42*K43),0) -> 0 | P43: =IFERROR(('Current Age Income'!N43/SUM('Current Age Income'!N43:O43)),0) -> 0 | Q43: =IFERROR(('Current Age Income'!O43/SUM('Current Age Income'!N43:O43)),0) -> 0
A44: Renter occupied: | E44: 35k <50k | J44: =IFERROR((J58),0) -> 0 | K44: =IFERROR((K58),0) -> 1 | N44: =IFERROR(($L$42*J44),0) -> 0 | O44: =IFERROR(($M$42*K44),0) -> 0 | P44: =IFERROR(('Current Age Income'!N44/SUM('Current Age Income'!N44:O44)),0) -> 0 | Q44: =IFERROR(('Current Age Income'!O44/SUM('Current Age Income'!N44:O44)),0) -> 0
A45: Householder 15 to 24 years | E45: 50k <75k | J45: =IFERROR((J59),0) -> 0 | K45: =IFERROR((K59),0) -> 1 | N45: =IFERROR(($L$42*J45),0) -> 0 | O45: =IFERROR(($M$42*K45),0) -> 0 | P45: =IFERROR(('Current Age Income'!N45/SUM('Current Age Income'!N45:O45)),0) -> 0 | Q45: =IFERROR(('Current Age Income'!O45/SUM('Current Age Income'!N45:O45)),0) -> 0
A46: Householder 25 to 34 years | E46: 75k <100k | J46: =IFERROR((J60),0) -> 0 | K46: =IFERROR((K60),0) -> 1 | N46: =IFERROR(($L$42*J46),0) -> 0 | O46: =IFERROR(($M$42*K46),0) -> 0 | P46: =IFERROR(('Current Age Income'!N46/SUM('Current Age Income'!N46:O46)),0) -> 0 | Q46: =IFERROR(('Current Age Income'!O46/SUM('Current Age Income'!N46:O46)),0) -> 0
A47: Householder 35 to 44 years | E47: 100k <150k | J47: =IFERROR((J61),0) -> 0 | K47: =IFERROR((K61),0) -> 1 | N47: =IFERROR(($L$42*J47),0) -> 0 | O47: =IFERROR(($M$42*K47),0) -> 0 | P47: =IFERROR(('Current Age Income'!N47/SUM('Current Age Income'!N47:O47)),0) -> 0 | Q47: =IFERROR(('Current Age Income'!O47/SUM('Current Age Income'!N47:O47)),0) -> 0
A48: Householder 45 to 54 years | E48: 150k+ | J48: =IFERROR((J62),0) -> 0 | K48: =IFERROR((K62),0) -> 1 | N48: =IFERROR(($L$42*J48),0) -> 0 | O48: =IFERROR(($M$42*K48),0) -> 0 | P48: =IFERROR(('Current Age Income'!N48/SUM('Current Age Income'!N48:O48)),0) -> 0 | Q48: =IFERROR(('Current Age Income'!O48/SUM('Current Age Income'!N48:O48)),0) -> 0
A49: Householder 55 to 59 years | D49: 65+ | E49: <15k | F49: =IFERROR((SUM('Current Age Income'!B41:B43)/SUM('Current Age Income'!B41:B43,'Current Age Income'!B51:B53)),0) -> 0 | G49: =IFERROR((1-F49),0) -> 1 | H49: =IFERROR((SUM('Current Age Income'!B41:B43)),0) -> 0 | I49: =IFERROR((SUM('Current Age Income'!B51:B53)),0) -> 0 | J49: =IFERROR((J56),0) -> 0 | K49: =IFERROR((K56),0) -> 1 | L49: =IFERROR((H49/SUM(J49:J55)),0) -> 0 | M49: =IFERROR((I49/SUM(K49:K55)),0) -> 0 | N49: =IFERROR(($L$49*J49),0) -> 0 | O49: =IFERROR(($M$49*K49),0) -> 0 | P49: =IFERROR(('Current Age Income'!N49/SUM('Current Age Income'!N49:O49)),0) -> 0 | Q49: =IFERROR(('Current Age Income'!O49/SUM('Current Age Income'!N49:O49)),0) -> 0
A50: Householder 60 to 64 years | E50: 15k <35k | J50: =IFERROR((J57),0) -> 0 | K50: =IFERROR((K57),0) -> 1 | N50: =IFERROR(($L$49*J50),0) -> 0 | O50: =IFERROR(($M$49*K50),0) -> 0 | P50: =IFERROR(('Current Age Income'!N50/SUM('Current Age Income'!N50:O50)),0) -> 0 | Q50: =IFERROR(('Current Age Income'!O50/SUM('Current Age Income'!N50:O50)),0) -> 0
A51: Householder 65 to 74 years | E51: 35k <50k | J51: =IFERROR((J58),0) -> 0 | K51: =IFERROR((K58),0) -> 1 | N51: =IFERROR(($L$49*J51),0) -> 0 | O51: =IFERROR(($M$49*K51),0) -> 0 | P51: =IFERROR(('Current Age Income'!N51/SUM('Current Age Income'!N51:O51)),0) -> 0 | Q51: =IFERROR(('Current Age Income'!O51/SUM('Current Age Income'!N51:O51)),0) -> 0
A52: Householder 75 to 84 years | E52: 50k <75k | J52: =IFERROR((J59),0) -> 0 | K52: =IFERROR((K59),0) -> 1 | N52: =IFERROR(($L$49*J52),0) -> 0 | O52: =IFERROR(($M$49*K52),0) -> 0 | P52: =IFERROR(('Current Age Income'!N52/SUM('Current Age Income'!N52:O52)),0) -> 0 | Q52: =IFERROR(('Current Age Income'!O52/SUM('Current Age Income'!N52:O52)),0) -> 0
A53: Householder 85 years and over | E53: 75k <100k | J53: =IFERROR((J60),0) -> 0 | K53: =IFERROR((K60),0) -> 1 | N53: =IFERROR(($L$49*J53),0) -> 0 | O53: =IFERROR(($M$49*K53),0) -> 0 | P53: =IFERROR(('Current Age Income'!N53/SUM('Current Age Income'!N53:O53)),0) -> 0 | Q53: =IFERROR(('Current Age Income'!O53/SUM('Current Age Income'!N53:O53)),0) -> 0
E54: 100k <150k | J54: =IFERROR((J61),0) -> 0 | K54: =IFERROR((K61),0) -> 1 | N54: =IFERROR(($L$49*J54),0) -> 0 | O54: =IFERROR(($M$49*K54),0) -> 0 | P54: =IFERROR(('Current Age Income'!N54/SUM('Current Age Income'!N54:O54)),0) -> 0 | Q54: =IFERROR(('Current Age Income'!O54/SUM('Current Age Income'!N54:O54)),0) -> 0
E55: 150k+ | J55: =IFERROR((J62),0) -> 0 | K55: =IFERROR((K62),0) -> 1 | N55: =IFERROR(($L$49*J55),0) -> 0 | O55: =IFERROR(($M$49*K55),0) -> 0 | P55: =IFERROR(('Current Age Income'!N55/SUM('Current Age Income'!N55:O55)),0) -> 0 | Q55: =IFERROR(('Current Age Income'!O55/SUM('Current Age Income'!N55:O55)),0) -> 0
D56: All | E56: <15k | F56: - | G56: - | H56: - | I56: - | J56: =IFERROR((SUM('Current Age Income'!B7,'Current Age Income'!B8,'Current Age Income'!B9)/SUM('Current Age Income'!B7,'Current Age Income'!B8,'Current Age Income'!B9,'Current Age Income'!B19,'Current Age Income'!B20,'Current Age Income'!B21)),0) -> 0 | K56: =IFERROR((1-J56),0) -> 1 | L56: - | M56: - | N56: - | O56: - | P56: - | Q56: -
E57: 15k <35k | J57: =IFERROR((SUM('Current Age Income'!B10,'Current Age Income'!B11,'Current Age Income'!B12)/SUM('Current Age Income'!B10,'Current Age Income'!B11,'Current Age Income'!B12,'Current Age Income'!B22:B24)),0) -> 0 | K57: =IFERROR((1-J57),0) -> 1
E58: 35k <50k | J58: =IFERROR(('Current Age Income'!B13/SUM('Current Age Income'!B13,'Current Age Income'!B25)),0) -> 0 | K58: =IFERROR((1-J58),0) -> 1
E59: 50k <75k | J59: =IFERROR(('Current Age Income'!B14/SUM('Current Age Income'!B14,'Current Age Income'!B26)),0) -> 0 | K59: =IFERROR((1-J59),0) -> 1
E60: 75k <100k | J60: =IFERROR(('Current Age Income'!B15/SUM('Current Age Income'!B15,'Current Age Income'!B27)),0) -> 0 | K60: =IFERROR((1-J60),0) -> 1
E61: 100k <150k | J61: =IFERROR(('Current Age Income'!B16/SUM('Current Age Income'!B16,'Current Age Income'!B28)),0) -> 0 | K61: =IFERROR((1-J61),0) -> 1
E62: 150k+ | J62: =IFERROR(('Current Age Income'!B17/SUM('Current Age Income'!B17,'Current Age Income'!B29)),0) -> 0 | K62: =IFERROR((1-J62),0) -> 1
A562: <25 | B562: <15k
B563: 15k <35k
B564: 35k <50k
B565: 50k <75k
B566: 75k <100k
B567: 100k <150k
B568: 150k+
A569: 25-44 | B569: <15k
B570: 15k <35k
B571: 35k <50k
B572: 50k <75k
B573: 75k <100k
B574: 100k <150k
B575: 150k+
A576: 45-64 | B576: <15k
B577: 15k <35k
B578: 35k <50k
B579: 50k <75k
B580: 75k <100k
B581: 100k <150k
B582: 150k+
A583: 65+ | B583: <15k
B584: 15k <35k
B585: 35k <50k
B586: 50k <75k
B587: 75k <100k
B588: 100k <150k
B589: 150k+
A600: <25 | B600: <15k
B601: 15k <35k
B602: 35k <50k
B603: 50k <75k
B604: 75k <100k
B605: 100k <150k
B606: 150k+
A607: 25-44 | B607: <15k
B608: 15k <35k
B609: 35k <50k
B610: 50k <75k
B611: 75k <100k
B612: 100k <150k
B613: 150k+
A614: 45-64 | B614: <15k
B615: 15k <35k
B616: 35k <50k
B617: 50k <75k
B618: 75k <100k
B619: 100k <150k
B620: 150k+
A621: 65+ | B621: <15k
B622: 15k <35k
B623: 35k <50k
B624: 50k <75k
B625: 75k <100k
B626: 100k <150k
B627: 150k+

Sheet Future Cohorts
A1: FUTURE COHORT PROJECTIONS | C1: =IF(E1=0,"Worksheet complete",IF(E1=1,"Missing fields",IF(E1>1,"Missing fields"))) -> Missing fields | E1: =COUNTBLANK(B5:B73) +COUNTBLANK(G36:G37) + COUNTBLANK(E40) + COUNTBLANK(F56:G61) + COUNTBLANK(G4:G31) + COUNTBLANK(J4:J31) -> 69
A3: B19037. AGE OF HOUSEHOLDER BY HOUSEHOLD INCOME IN THE PAST 12 MONTHS (IN 2009 INFLATION-ADJUSTED DOLLARS) - Universe: HOUSEHOLDS | D3: Tenure Adjustments | F3: ="Renter % "&'Initial Inputs'!B6 -> Renter % 2013 | G3: ="Renter % "&'Initial Inputs'!B7 -> Renter % 2040 | H3: ="Renter % "&'Initial Inputs'!B7&" Override" -> Renter % 2040 Override | I3: ="Owner % "&'Initial Inputs'!B6 -> Owner % 2013 | J3: ="Owner % "&'Initial Inputs'!B7 -> Owner % 2040 | K3: ="Owner % "&'Initial Inputs'!B7&" Override" -> Owner % 2040 Override
B4: Estimate | D4: <25 | E4: <15k | F4: ='Current Age Income'!Q28 -> 0 | G4: =IFERROR(IF(H4>0,H4,F4+F$69),0) -> -0.00527731395 | I4: ='Current Age Income'!P28 -> 0 | J4: =IFERROR(1-G4,0) -> 1.005277314
A5: Total: | E5: 15k <35k | F5: ='Current Age Income'!Q29 -> 0 | G5: =IFERROR(IF(H5>0,H5,F5+F$69),0) -> -0.00527731395 | I5: ='Current Age Income'!P29 -> 0 | J5: =IFERROR(1-G5,0) -> 1.005277314
A6: Householder under 25 years: | E6: 35k <50k | F6: ='Current Age Income'!Q30 -> 0 | G6: =IFERROR(IF(H6>0,H6,F6+F$69),0) -> -0.00527731395 | I6: ='Current Age Income'!P30 -> 0 | J6: =IFERROR(1-G6,0) -> 1.005277314
A7: Less than $10,000 | E7: 50k <75k | F7: ='Current Age Income'!Q31 -> 0 | G7: =IFERROR(IF(H7>0,H7,F7+F$69),0) -> -0.00527731395 | I7: ='Current Age Income'!P31 -> 0 | J7: =IFERROR(1-G7,0) -> 1.005277314
A8: $10,000 to $14,999 | E8: 75k <100k | F8: ='Current Age Income'!Q32 -> 0 | G8: =IFERROR(IF(H8>0,H8,F8+F$69),0) -> -0.00527731395 | I8: ='Current Age Income'!P32 -> 0 | J8: =IFERROR(1-G8,0) -> 1.005277314
A9: $15,000 to $19,999 | E9: 100k <150k | F9: ='Current Age Income'!Q33 -> 0 | G9: =IFERROR(IF(H9>0,H9,F9+F$69),0) -> -0.00527731395 | I9: ='Current Age Income'!P33 -> 0 | J9: =IFERROR(1-G9,0) -> 1.005277314
A10: $20,000 to $24,999 | E10: 150k+ | F10: ='Current Age Income'!Q34 -> 0 | G10: =IFERROR(IF(H10>0,H10,F10+F$69),0) -> -0.00527731395 | I10: ='Current Age Income'!P34 -> 0 | J10: =IFERROR(1-G10,0) -> 1.005277314
A11: $25,000 to $29,999 | D11: 25-44 | E11: <15k | F11: ='Current Age Income'!Q35 -> 0 | G11: =IFERROR(IF(H11>0,H11,F11+G$69),0) -> 0.01094620819 | I11: ='Current Age Income'!P35 -> 0 | J11: =IFERROR(1-G11,0) -> 0.9890537918
A12: $30,000 to $34,999 | E12: 15k <35k | F12: ='Current Age Income'!Q36 -> 0 | G12: =IFERROR(IF(H12>0,H12,F12+G$69),0) -> 0.01094620819 | I12: ='Current Age Income'!P36 -> 0 | J12: =IFERROR(1-G12,0) -> 0.9890537918
A13: $35,000 to $39,999 | E13: 35k <50k | F13: ='Current Age Income'!Q37 -> 0 | G13: =IFERROR(IF(H13>0,H13,F13+G$69),0) -> 0.01094620819 | I13: ='Current Age Income'!P37 -> 0 | J13: =IFERROR(1-G13,0) -> 0.9890537918
A14: $40,000 to $44,999 | E14: 50k <75k | F14: ='Current Age Income'!Q38 -> 0 | G14: =IFERROR(IF(H14>0,H14,F14+G$69),0) -> 0.01094620819 | I14: ='Current Age Income'!P38 -> 0 | J14: =IFERROR(1-G14,0) -> 0.9890537918
A15: $45,000 to $49,999 | E15: 75k <100k | F15: ='Current Age Income'!Q39 -> 0 | G15: =IFERROR(IF(H15>0,H15,F15+G$69),0) -> 0.01094620819 | I15: ='Current Age Income'!P39 -> 0 | J15: =IFERROR(1-G15,0) -> 0.9890537918
A16: $50,000 to $59,999 | E16: 100k <150k | F16: ='Current Age Income'!Q40 -> 0 | G16: =IFERROR(IF(H16>0,H16,F16+G$69),0) -> 0.01094620819 | I16: ='Current Age Income'!P40 -> 0 | J16: =IFERROR(1-G16,0) -> 0.9890537918
A17: $60,000 to $74,999 | E17: 150k+ | F17: ='Current Age Income'!Q41 -> 0 | G17: =IFERROR(IF(H17>0,H17,F17+G$69),0) -> 0.01094620819 | I17: ='Current Age Income'!P41 -> 0 | J17: =IFERROR(1-G17,0) -> 0.9890537918
A18: $75,000 to $99,999 | D18: 45-64 | E18: <15k | F18: ='Current Age Income'!Q42 -> 0 | G18: =IFERROR(IF(H18>0,H18,F18+H$69),0) -> 0.05 | I18: ='Current Age Income'!P42 -> 0 | J18: =IFERROR(1-G18,0) -> 0.95
A19: $100,000 to $124,999 | E19: 15k <35k | F19: ='Current Age Income'!Q43 -> 0 | G19: =IFERROR(IF(H19>0,H19,F19+H$69),0) -> 0.05 | I19: ='Current Age Income'!P43 -> 0 | J19: =IFERROR(1-G19,0) -> 0.95
A20: $125,000 to $149,999 | E20: 35k <50k | F20: ='Current Age Income'!Q44 -> 0 | G20: =IFERROR(IF(H20>0,H20,F20+H$69),0) -> 0.05 | I20: ='Current Age Income'!P44 -> 0 | J20: =IFERROR(1-G20,0) -> 0.95
A21: $150,000 to $199,999 | E21: 50k <75k | F21: ='Current Age Income'!Q45 -> 0 | G21: =IFERROR(IF(H21>0,H21,F21+H$69),0) -> 0.05 | I21: ='Current Age Income'!P45 -> 0 | J21: =IFERROR(1-G21,0) -> 0.95
A22: $200,000 or more | E22: 75k <100k | F22: ='Current Age Income'!Q46 -> 0 | G22: =IFERROR(IF(H22>0,H22,F22+H$69),0) -> 0.05 | I22: ='Current Age Income'!P46 -> 0 | J22: =IFERROR(1-G22,0) -> 0.95
A23: Householder 25 to 44 years: | E23: 100k <150k | F23: ='Current Age Income'!Q47 -> 0 | G23: =IFERROR(IF(H23>0,H23,F23+H$69),0) -> 0.05 | I23: ='Current Age Income'!P47 -> 0 | J23: =IFERROR(1-G23,0) -> 0.95
A24: Less than $10,000 | E24: 150k+ | F24: ='Current Age Income'!Q48 -> 0 | G24: =IFERROR(IF(H24>0,H24,F24+H$69),0) -> 0.05 | I24: ='Current Age Income'!P48 -> 0 | J24: =IFERROR(1-G24,0) -> 0.95
A25: $10,000 to $14,999 | D25: 65+ | E25: <15k | F25: ='Current Age Income'!Q49 -> 0 | G25: =IFERROR(IF(H25>0,H25,F25+I$69),0) -> 0.03 | I25: ='Current Age Income'!P49 -> 0 | J25: =IFERROR(1-G25,0) -> 0.97
A26: $15,000 to $19,999 | E26: 15k <35k | F26: ='Current Age Income'!Q50 -> 0 | G26: =IFERROR(IF(H26>0,H26,F26+I$69),0) -> 0.03 | I26: ='Current Age Income'!P50 -> 0 | J26: =IFERROR(1-G26,0) -> 0.97
A27: $20,000 to $24,999 | E27: 35k <50k | F27: ='Current Age Income'!Q51 -> 0 | G27: =IFERROR(IF(H27>0,H27,F27+I$69),0) -> 0.03 | I27: ='Current Age Income'!P51 -> 0 | J27: =IFERROR(1-G27,0) -> 0.97
A28: $25,000 to $29,999 | E28: 50k <75k | F28: ='Current Age Income'!Q52 -> 0 | G28: =IFERROR(IF(H28>0,H28,F28+I$69),0) -> 0.03 | I28: ='Current Age Income'!P52 -> 0 | J28: =IFERROR(1-G28,0) -> 0.97
A29: $30,000 to $34,999 | E29: 75k <100k | F29: ='Current Age Income'!Q53 -> 0 | G29: =IFERROR(IF(H29>0,H29,F29+I$69),0) -> 0.03 | I29: ='Current Age Income'!P53 -> 0 | J29: =IFERROR(1-G29,0) -> 0.97
A30: $35,000 to $39,999 | E30: 100k <150k | F30: ='Current Age Income'!Q54 -> 0 | G30: =IFERROR(IF(H30>0,H30,F30+I$69),0) -> 0.03 | I30: ='Current Age Income'!P54 -> 0 | J30: =IFERROR(1-G30,0) -> 0.97
A31: $40,000 to $44,999 | E31: 150k+ | F31: ='Current Age Income'!Q55 -> 0 | G31: =IFERROR(IF(H31>0,H31,F31+I$69),0) -> 0.03 | I31: ='Current Age Income'!P55 -> 0 | J31: =IFERROR(1-G31,0) -> 0.97
A32: $45,000 to $49,999 | D32: Overall | F32: =IFERROR(SUM(F4:F31)/SUM(F4:F31,I4:I31),0) -> 0 | G32: =IFERROR(SUM(G4:G31)/SUM(G4:G31,J4:J31),0) -> 0.02141722356 | I32: =IFERROR(SUM(I4:I31)/SUM(I4:I31,F4:F31),0) -> 0 | J32: =IFERROR(1-G32,0) -> 0.9785827764
A33: $50,000 to $59,999
A34: $60,000 to $74,999 | D34: Vacancy Adjustment | F34: =IF('Initial Inputs'!B6>0,'Initial Inputs'!B6,0) -> 2013 | G34: =IF('Initial Inputs'!B7>0,'Initial Inputs'!B7,0) -> 2040
A35: $75,000 to $99,999 | D35: All | F35: ='Initial Inputs'!B14 -> 0.07 | V35: Future Unit Demand | W35: =SUM('Unit Projection'!P34:Q34) -> 0
A36: $100,000 to $124,999 | D36: Rental | G36: 0.06
A37: $125,000 to $149,999 | D37: Owner | G37: 0.02
A38: $150,000 to $199,999
A39: $200,000 or more | D39: Replacement Rate ◊
A40: Householder 45 to 64 years: | D40: Annual Rate | E40: -0.0026
A41: Less than $10,000
A42: $10,000 to $14,999 | D42: Age Cohort (Householders) Adjustments | G42: =IF('Initial Inputs'!B7>0,"Pop % in "&'Initial Inputs'!B7,0)&" ◊" -> Pop % in 2040 ◊ | H42: =IF('Initial Inputs'!B7>0,"Estimated Householders in "& 'Initial Inputs'!B7,0) -> Estimated Householders in 2040 | J42: Adjustment to Household Forecast
A43: $15,000 to $19,999 | D43: <25 | G43: ='Initial Inputs'!J5 -> 0.3699115702 | H43: =IF('Initial Inputs'!K12>0,'Initial Inputs'!K12,'Initial Inputs'!L12) -> 0 | J43: =IFERROR((H43/SUM(H$43:H$46)*'Initial Inputs'!B$20),0) -> 0
A44: $20,000 to $24,999 | D44: 25-44 | G44: ='Initial Inputs'!J6 -> 0.2632597813 | H44: =IF('Initial Inputs'!K13>0,'Initial Inputs'!K13,'Initial Inputs'!L13) -> 0 | J44: =IFERROR((H44/SUM(H$43:H$46)*'Initial Inputs'!B$20),0) -> 0
A45: $25,000 to $29,999 | D45: 45-64 | G45: ='Initial Inputs'!J7 -> 0.2111703001 | H45: =IF('Initial Inputs'!K14>0,'Initial Inputs'!K14,'Initial Inputs'!L14) -> 0 | J45: =IFERROR((H45/SUM(H$43:H$46)*'Initial Inputs'!B$20),0) -> 0
A46: $30,000 to $34,999 | D46: 65+ | G46: ='Initial Inputs'!J8 -> 0.1556583483 | H46: =IF('Initial Inputs'!K15>0,'Initial Inputs'!K15,'Initial Inputs'!L15) -> 0 | J46: =IFERROR((H46/SUM(H$43:H$46)*'Initial Inputs'!B$20),0) -> 0
A47: $35,000 to $39,999
A48: $40,000 to $44,999 | D48: Age Cohort (Householders) Adjustments | G48: =IF('Initial Inputs'!B6>0,'Initial Inputs'!B6,0) -> 2013 | H48: =IF('Initial Inputs'!B7>0,'Initial Inputs'!B7,0) -> 2040 | I48: % Change
A49: $45,000 to $49,999 | D49: <25 | G49: =IFERROR((B6/B5),0) -> 0 | H49: ='Initial Inputs'!J12 -> 0 | I49: =IFERROR(((H49-G49)/H49),0) -> 0
A50: $50,000 to $59,999 | D50: 25-44 | G50: =IFERROR((B23/B5),0) -> 0 | H50: ='Initial Inputs'!J13 -> 0 | I50: =IFERROR(((H50-G50)/H50),0) -> 0
A51: $60,000 to $74,999 | D51: 45-64 | G51: =IFERROR((B40/B5),0) -> 0 | H51: ='Initial Inputs'!J14 -> 0 | I51: =IFERROR(((H51-G51)/H51),0) -> 0
A52: $75,000 to $99,999 | D52: 65+ | G52: =IFERROR((B57/B5),0) -> 0 | H52: ='Initial Inputs'!J15 -> 0 | I52: =IFERROR(((H52-G52)/H52),0) -> 0
A53: $100,000 to $124,999
A54: $125,000 to $149,999 | D54: Underpayment Adjustment | F54: Renter | G54: Owner
A55: $150,000 to $199,999 | D55: <15k | F55: 0 | G55: 0
A56: $200,000 or more | D56: 15k <35k | F56: ='Current Rental'!G22 -> 0 | G56: ='Current Owner'!E47 -> 0
A57: Householder 65 years and over: | D57: 35k <50k | F57: ='Current Rental'!G23 -> 0 | G57: ='Current Owner'!E48 -> 0
A58: Less than $10,000 | D58: 50k <75k | F58: ='Current Rental'!G24 -> 0 | G58: ='Current Owner'!E49 -> 0
A59: $10,000 to $14,999 | D59: 75k <100k | F59: ='Current Rental'!G25 -> 0 | G59: ='Current Owner'!E50 -> 0
A60: $15,000 to $19,999 | D60: 100k <150k | F60: ='Current Rental'!G26 -> 0 | G60: ='Current Owner'!E51 -> 0
A61: $20,000 to $24,999 | D61: 150k+ | F61: ='Current Rental'!G27 -> 0 | G61: ='Current Owner'!E52 -> 0
A62: $25,000 to $29,999
A63: $30,000 to $34,999
A64: $35,000 to $39,999 | D64: National Tenure Projections ◊ | F64: <25 | G64: 25-44 | H64: 45-64 | I64: 65+
A65: $40,000 to $44,999 | D65: Rent 2010 | F65: 0.8389187188 | G65: 0.4699602528 | H65: 0.26 | I65: 0.23
A66: $45,000 to $49,999 | D66: Own 2010 | F66: 0.1610812812 | G66: 0.5300397472 | H66: 0.74 | I66: 0.77
A67: $50,000 to $59,999 | D67: Rent 2030 | F67: 0.8336414048 | G67: 0.4809064609 | H67: 0.31 | I67: 0.26
A68: $60,000 to $74,999 | D68: Own 2030 | F68: 0.1663585952 | G68: 0.5191176471 | H68: 0.69 | I68: 0.74
A69: $75,000 to $99,999 | D69: Rent Change | F69: =F67-F65 -> -0.00527731395 | G69: =G67-G65 -> 0.01094620819 | H69: =H67-H65 -> 0.05 | I69: =I67-I65 -> 0.03
A70: $100,000 to $124,999
A71: $125,000 to $149,999
A72: $150,000 to $199,999
A73: $200,000 or more

Sheet Tapestry Input
A1: ESRI Tapestry LifeMode Group Distribution 2014
A3: B25077. MEDIAN VALUE (DOLLARS) - Universe: OWNER OCCUPIED HOUSING UNITS
C4: Estimate
A5: Median value (dollars)
CD6: Future Housing Preferences ◊
A7: Segment Code | B7: Segment Name | C7: ="Housing Units ("&'Initial Inputs'!B4&")" -> Housing Units (City of Austin) | D7: LifeMode Code | E7: LifeMode Group | F7: Urbanization Code | G7: Urbanization Group | H7: Household Type | I7: Housing Units (USA) | J7: % (USA) | K7: Average HH Size | L7: Diversity Index | M7: Population Density | N7: Neighborhood Density Preference | O7: HH Size | P7: Median Age | Q7: Age < 18 | R7: Age 18- 44 | S7: Age 45- 64 | T7: Age 65+ | U7: Nursery/Preschool | V7: Kindergarten | W7: Grade 1-8 | X7: Grade 9-12 | Y7: College | Z7: Grad/Prof School | AA7: Not Enrolled in School | AB7: Male Public School | AC7: Male Private School | AD7: Female Public School | AE7: Female Private School | AF7: Ed Att: Less than 9th Grade | AG7: Ed Att: 9-12th Grade No Diploma | AH7: High School Diploma | AI7: GED/Alt Cred | AJ7: Some College/No Degree | AK7: Associate's Degree | AL7: Bachelor's Degree | AM7: Grad/Prof Degree | AN7: Median HH Inc | AO7: Labor Force Participation Rate | AP7: Unemployment Rate (%) | AQ7: Industry: Agriculture/Mining (%) | AR7: Industry: Construction (%) | AS7: Industry: Manufacturing (%) | AT7: Industry: Wholesale Trade (%) | AU7: Industry: Retail Trade (%) | AV7: Industry: Transportation/Utilities (%) | AW7: Industry: Information (%) | AX7: Industry: Real Estate/Finance/Ins. (%) | AY7: Industry: Service (%) | AZ7: Industry: Public Administration (%) | BA7: Occupation: Mgmnt/Bus/Financial (%) | BB7: Occupation: Professional (%) | BC7: Occupation: Sales (%) | BD7: Occupation: Admin. Support (%) | BE7: Occupation: Services (%) | BF7: Occupation: Farming/Forestry/Fishing (%) | BG7: Occupation: Construction/Extraction (%) | BH7: Occupation: Installation/Maint/Repair (%) | BI7: Occupation: Production (%) | BJ7: Occupation: Transport/Mat'l Moving (%) | BK7: Single Family % | BL7: Standard / Large Lot SF % | BM7: Small Lot SF % | BN7: Townhome % | BO7: Multifamily % | BP7: Mobile Home % | BQ7: Home Value | BR7: Home Ownership % | BS7: Rental % | BT7: Built 2010 or later | BU7: Built 2000 to 2009 | BV7: Built 1990 to 1999 | BW7: Built 1980 to 1989 | BX7: Built 1970 to 1979 | BY7: Built 1969 or Earlier | BZ7: ='Initial Inputs'!B4 &" Median HH Inc (Adjusted)" -> City of Austin Median HH Inc (Adjusted) | CA7: ='Initial Inputs'!B4 &" Home Value (Adjusted)" -> City of Austin Home Value (Adjusted) | CB7: ='Initial Inputs'!B4 &" Housing Units (Adjusted)" -> City of Austin Housing Units (Adjusted) | CC7: ="% ("&'Initial Inputs'!B4 &")" -> % (City of Austin) | CD7: National LQ | CE7: Single Family % | CF7: Standard / Large Lot SF % | CG7: Small Lot SF % | CH7: Townhome % | CI7: Multifamily % | CJ7: Mobile Home %
A8: - | B8: United States | C8: - | D8: - | E8: - | F8: - | G8: - | I8: 119862927 | J8: - | K8: 2.57 | L8: 62.6 | M8: 89.6 | N8: - | O8: 2.57 | P8: 37.7 | Q8: 0.23 | R8: 0.363 | S8: 0.263 | T8: 0.144 | U8: 0.017 | V8: 0.014 | W8: 0.11 | X8: 0.058 | Y8: 0.064 | Z8: 0.014 | AA8: 0.723 | AB8: 0.413 | AC8: 0.079 | AD8: 0.42 | AE8: 0.088 | AF8: 0.06 | AG8: 0.082 | AH8: 0.242 | AI8: 0.039 | AJ8: 0.213 | AK8: 0.077 | AL8: 0.18 | AM8: 0.107 | AN8: 52100 | AO8: 0.622 | AP8: 0.076 | AQ8: 0.019 | AR8: 0.061 | AS8: 0.106 | AT8: 0.025 | AU8: 0.112 | AV8: 0.05 | AW8: 0.018 | AX8: 0.068 | AY8: 0.494 | AZ8: 0.047 | BA8: 0.142 | BB8: 0.215 | BC8: 0.107 | BD8: 0.138 | BE8: 0.187 | BF8: 0.006 | BG8: 0.05 | BH8: 0.033 | BI8: 0.061 | BJ8: 0.061 | BK8: 0.617 | BL8: - | BM8: - | BN8: 0.096 | BO8: 0.221 | BP8: 0.066 | BQ8: 190800 | BR8: 0.633 | BS8: =1-BR8 -> 0.367 | BT8: 0.003 | BU8: 0.142 | BV8: 0.14 | BW8: 0.14 | BX8: 0.161 | BY8: 0.415 | BZ8: - | CA8: - | CB8: - | CC8: - | CD8: - | CE8: - | CF8: - | CG8: - | CH8: - | CI8: - | CJ8: -
A9: 1 | B9: Top Tier | D9: 1 | E9: Affluent Estates | F9: 4 | G9: Suburban Periphery | H9: Married Couples | I9: 2065756 | J9: =IFERROR(I9/$I$8,0) -> 0.01723431967 | K9: 2.81 | L9: 35.5 | M9: 969.6 | N9: =IF(M9<500,"LOW",IF(M9<1500,"MED","HIGH")) -> MED | O9: 2.81 | P9: 46.4 | Q9: 0.251 | R9: 0.226 | S9: 0.339 | T9: 0.183 | U9: 0.025 | V9: 0.015 | W9: 0.131 | X9: 0.071 | Y9: 0.046 | Z9: 0.015 | AA9: 0.698 | AB9: 0.337 | AC9: 0.168 | AD9: 0.324 | AE9: 0.171 | AF9: 0.01 | AG9: 0.014 | AH9: 0.086 | AI9: 0.007 | AJ9: 0.12 | AK9: 0.047 | AL9: 0.357 | AM9: 0.361 | AN9: 162900 | AO9: 0.615 | AP9: 0.043 | AQ9: 0.006 | AR9: 0.034 | AS9: 0.08 | AT9: 0.031 | AU9: 0.074 | AV9: 0.022 | AW9: 0.028 | AX9: 0.132 | AY9: 0.555 | AZ9: 0.038 | BA9: 0.301 | BB9: 0.359 | BC9: 0.133 | BD9: 0.083 | BE9: 0.073 | BF9: 0.001 | BG9: 0.015 | BH9: 0.009 | BI9: 0.012 | BJ9: 0.015 | BK9: 0.903 | BL9: =IF(N9="LOW",1,IF(N9="MED",0.5,0))*BK9 -> 0.4515 | BM9: =IF(N9="LOW",0,IF(N9="MED",0.5,1))*BK9 -> 0.4515 | BN9: 0.046 | BO9: 0.046 | BP9: 0.003 | BQ9: 720500 | BR9: 0.904 | BS9: =1-BR9 -> 0.096 | BT9: 0.002 | BU9: 0.099 | BV9: 0.121 | BW9: 0.139 | BX9: 0.131 | BY9: 0.508 | BZ9: ='Tapestry Input'!AN9*('Current Summary'!B$38/'Tapestry Input'!AN$8) -> 0 | CA9: ='Tapestry Input'!BQ9*($C$5/'Tapestry Input'!BQ$8) -> 0 | CB9: =IFERROR(C9*('Initial Inputs'!$B$11/SUM($C$9:$C$76)),0) -> 0 | CC9: =IFERROR(CB9/SUM($CB$9:$CB$76),0) -> 0 | CD9: =IFERROR('Tapestry Input'!CC9/'Tapestry Input'!J9,0) -> 0 | CE9: =IF((BK9-'Future Preferences'!$B$5+'Future Preferences'!$D$5)<0,0,(BK9-'Future Preferences'!$B$5+'Future Preferences'!$D$5)) -> 0.8958227889 | CF9: =IF((BL9-'Future Preferences'!$B$6+'Future Preferences'!$D$6)<0,0,(BL9-'Future Preferences'!$B$6+'Future Preferences'!$D$6)) -> 0.2484550059 | CG9: =CE9-CF9 -> 0.647367783 | CH9: =1-(CE9+CJ9+CI9) -> 0.05745374913 | CI9: =IF((BO9-'Future Preferences'!$B$9+'Future Preferences'!$D$9)<0,0,(BO9-'Future Preferences'!$B$9+'Future Preferences'!$D$9)) -> 0.04672346201 | CJ9: =IF((BP9-'Future Preferences'!$B$10+'Future Preferences'!$D$10)<0,0,(BP9-'Future Preferences'!$B$10+'Future Preferences'!$D$10)) -> 0
A10: 2 | B10: Professional Pride | D10: 1 | E10: Affluent Estates | F10: 4 | G10: Suburban Periphery | H10: Married Couples | I10: 1902928 | J10: =IFERROR(I10/$I$8,0) -> 0.01587586794 | K10: 3.11 | L10: 42.1 | M10: 918.8 | N10: MED | O10: 3.11 | P10: 40.6 | Q10: 0.283 | R10: 0.286 | S10: 0.337 | T10: 0.094 | U10: 0.025 | V10: 0.017 | W10: 0.158 | X10: 0.084 | Y10: 0.047 | Z10: 0.014 | AA10: 0.655 | AB10: 0.403 | AC10: 0.103 | AD10: 0.387 | AE10: 0.106 | AF10: 0.011 | AG10: 0.017 | AH10: 0.114 | AI10: 0.011 | AJ10: 0.162 | AK10: 0.072 | AL10: 0.365 | AM10: 0.248 | AN10: 129800 | AO10: 0.697 | AP10: 0.043 | AQ10: 0.01 | AR10: 0.039 | AS10: 0.117 | AT10: 0.033 | AU10: 0.094 | AV10: 0.038 | AW10: 0.025 | AX10: 0.107 | AY10: 0.497 | AZ10: 0.043 | BA10: 0.274 | BB10: 0.308 | BC10: 0.135 | BD10: 0.104 | BE10: 0.095 | BF10: 0.001 | BG10: 0.02 | BH10: 0.016 | BI10: 0.022 | BJ10: 0.025 | BK10: 0.916 | BL10: 0.458 | BM10: 0.458 | BN10: 0.05 | BO10: 0.027 | BP10: 0.006 | BQ10: 420800 | BR10: 0.919 | BS10: =1-BR10 -> 0.081 | BT10: 0.004 | BU10: 0.253 | BV10: 0.409 | BW10: 0.161 | BX10: 0.07 | BY10: 0.103 | BZ10: ='Tapestry Input'!AN10*('Current Summary'!B$38/'Tapestry Input'!AN$8) -> 0 | CA10: ='Tapestry Input'!BQ10*($C$5/'Tapestry Input'!BQ$8) -> 0 | CB10: =IFERROR(C10*('Initial Inputs'!$B$11/SUM($C$9:$C$76)),0) -> 0 | CC10: =IFERROR(CB10/SUM($CB$9:$CB$76),0) -> 0 | CD10: =IFERROR('Tapestry Input'!CC10/'Tapestry Input'!J10,0) -> 0 | CE10: =IF((BK10-'Future Preferences'!$B$5+'Future Preferences'!$D$5)<0,0,(BK10-'Future Preferences'!$B$5+'Future Preferences'!$D$5)) -> 0.9088227889 | CF10: =IF((BL10-'Future Preferences'!$B$6+'Future Preferences'!$D$6)<0,0,(BL10-'Future Preferences'!$B$6+'Future Preferences'!$D$6)) -> 0.2549550059 | CG10: =CE10-CF10 -> 0.653867783 | CH10: =1-(CE10+CJ10+CI10) -> 0.06345374913 | CI10: =IF((BO10-'Future Preferences'!$B$9+'Future Preferences'!$D$9)<0,0,(BO10-'Future Preferences'!$B$9+'Future Preferences'!$D$9)) -> 0.02772346201 | CJ10: =IF((BP10-'Future Preferences'!$B$10+'Future Preferences'!$D$10)<0,0,(BP10-'Future Preferences'!$B$10+'Future Preferences'!$D$10)) -> 0
A11: 3 | B11: Boomburbs | D11: 1 | E11: Affluent Estates | F11: 4 | G11: Suburban Periphery | H11: Married Couples | I11: 1761267 | J11: =IFERROR(I11/$I$8,0) -> 0.0146940096 | K11: 3.22 | L11: 61.6 | M11: 893.2 | N11: MED | O11: 3.22 | P11: 33.6 | Q11: 0.336 | R11: 0.374 | S11: 0.23 | T11: 0.06 | U11: 0.033 | V11: 0.023 | W11: 0.167 | X11: 0.066 | Y11: 0.049 | Z11: 0.017 | AA11: 0.645 | AB11: 0.411 | AC11: 0.092 | AD11: 0.402 | AE11: 0.095 | AF11: 0.018 | AG11: 0.026 | AH11: 0.124 | AI11: 0.015 | AJ11: 0.203 | AK11: 0.086 | AL11: 0.339 | AM11: 0.188 | AN11: 109600 | AO11: 0.716 | AP11: 0.045 | AQ11: 0.013 | AR11: 0.043 | AS11: 0.104 | AT11: 0.032 | AU11: 0.101 | AV11: 0.045 | AW11: 0.026 | AX11: 0.102 | AY11: 0.482 | AZ11: 0.053 | BA11: 0.24 | BB11: 0.292 | BC11: 0.128 | BD11: 0.117 | BE11: 0.115 | BF11: 0.001 | BG11: 0.023 | BH11: 0.023 | BI11: 0.028 | BJ11: 0.032 | BK11: 0.845 | BL11: 0.4225 | BM11: 0.4225 | BN11: 0.078 | BO11: 0.069 | BP11: 0.008 | BQ11: 325600 | BR11: 0.842 | BS11: 0.158 | BT11: 0.016 | BU11: 0.707 | BV11: 0.185 | BW11: 0.039 | BX11: 0.021 | BY11: 0.032 | BZ11: ='Tapestry Input'!AN11*('Current Summary'!B$38/'Tapestry Input'!AN$8) -> 0 | CA11: ='Tapestry Input'!BQ11*($C$5/'Tapestry Input'!BQ$8) -> 0 | CB11: =IFERROR(C11*('Initial Inputs'!$B$11/SUM($C$9:$C$76)),0) -> 0 | CC11: =IFERROR(CB11/SUM($CB$9:$CB$76),0) -> 0 | CD11: =IFERROR('Tapestry Input'!CC11/'Tapestry Input'!J11,0) -> 0 | CE11: =IF((BK11-'Future Preferences'!$B$5+'Future Preferences'!$D$5)<0,0,(BK11-'Future Preferences'!$B$5+'Future Preferences'!$D$5)) -> 0.8378227889 | CF11: =IF((BL11-'Future Preferences'!$B$6+'Future Preferences'!$D$6)<0,0,(BL11-'Future Preferences'!$B$6+'Future Preferences'!$D$6)) -> 0.2194550059 | CG11: 0.618367783 | CH11: 0.09245374913 | CI11: =IF((BO11-'Future Preferences'!$B$9+'Future Preferences'!$D$9)<0,0,(BO11-'Future Preferences'!$B$9+'Future Preferences'!$D$9)) -> 0.06972346201 | CJ11: =IF((BP11-'Future Preferences'!$B$10+'Future Preferences'!$D$10)<0,0,(BP11-'Future Preferences'!$B$10+'Future Preferences'!$D$10)) -> 0
A12: 4 | B12: Savvy Suburbanites | D12: 1 | E12: Affluent Estates | F12: 4 | G12: Suburban Periphery | H12: Married Couples | I12: 3570259 | J12: =IFERROR(I12/$I$8,0) -> 0.02978618234 | K12: 2.82 | L12: 34 | M12: 333.8 | N12: LOW | O12: 2.82 | P12: 44.4 | Q12: 0.232 | R12: 0.276 | S12: 0.34 | T12: 0.152 | U12: 0.019 | V12: 0.013 | W12: 0.119 | X12: 0.07 | Y12: 0.052 | Z12: 0.014 | AA12: 0.712 | AB12: 0.397 | AC12: 0.105 | AD12: 0.386 | AE12: 0.113 | AF12: 0.015 | AG12: 0.029 | AH12: 0.175 | AI12: 0.018 | AJ12: 0.197 | AK12: 0.084 | AL12: 0.291 | AM12: 0.191 | AN12: 109000 | AO12: 0.682 | AP12: 0.05 | AQ12: 0.009 | AR12: 0.054 | AS12: 0.103 | AT12: 0.03 | AU12: 0.099 | AV12: 0.042 | AW12: 0.021 | AX12: 0.09 | AY12: 0.503 | AZ12: 0.051 | BA12: 0.217 | BB12: 0.289 | BC12: 0.122 | BD12: 0.127 | BE12: 0.12 | BF12: 0.002 | BG12: 0.034 | BH12: 0.025 | BI12: 0.031 | BJ12: 0.034 | BK12: 0.918 | BL12: 0.918 | BM12: 0 | BN12: 0.047 | BO12: 0.024 | BP12: 0.011 | BQ12: 335100 | BR12: 0.909 | BS12: 0.091 | BT12: 0.003 | BU12: 0.127 | BV12: 0.178 | BW12: 0.219 | BX12: 0.204 | BY12: 0.269 | BZ12: ='Tapestry Input'!AN12*('Current Summary'!B$38/'Tapestry Input'!AN$8) -> 0 | CA12: ='Tapestry Input'!BQ12*($C$5/'Tapestry Input'!BQ$8) -> 0 | CB12: =IFERROR(C12*('Initial Inputs'!$B$11/SUM($C$9:$C$76)),0) -> 0 | CC12: =IFERROR(CB12/SUM($CB$9:$CB$76),0) -> 0 | CD12: =IFERROR('Tapestry Input'!CC12/'Tapestry Input'!J12,0) -> 0 | CE12: =IF((BK12-'Future Preferences'!$B$5+'Future Preferences'!$D$5)<0,0,(BK12-'Future Preferences'!$B$5+'Future Preferences'!$D$5)) -> 0.9108227889 | CF12: =IF((BL12-'Future Preferences'!$B$6+'Future Preferences'!$D$6)<0,0,(BL12-'Future Preferences'!$B$6+'Future Preferences'!$D$6)) -> 0.7149550059 | CG12: 0.195867783 | CH12: 0.06445374913 | CI12: =IF((BO12-'Future Preferences'!$B$9+'Future Preferences'!$D$9)<0,0,(BO12-'Future Preferences'!$B$9+'Future Preferences'!$D$9)) -> 0.02472346201 | CJ12: =IF((BP12-'Future Preferences'!$B$10+'Future Preferences'!$D$10)<0,0,(BP12-'Future Preferences'!$B$10+'Future Preferences'!$D$10)) -> 0
A13: 5 | B13: Exurbanites | D13: 1 | E13: Affluent Estates | F13: 4 | G13: Suburban Periphery | H13: Married Couples | I13: 2338332 | J13: =IFERROR(I13/$I$8,0) -> 0.01950838394 | K13: 2.47 | L13: 33.3 | M13: 277.7 | N13: LOW | O13: 2.47 | P13: 50 | Q13: 0.192 | R13: 0.238 | S13: 0.333 | T13: 0.237 | U13: 0.017 | V13: 0.011 | W13: 0.096 | X13: 0.057 | Y13: 0.05 | Z13: 0.014 | AA13: 0.755 | AB13: 0.366 | AC13: 0.134 | AD13: 0.358 | AE13: 0.141 | AF13: 0.015 | AG13: 0.026 | AH13: 0.148 | AI13: 0.015 | AJ13: 0.191 | AK13: 0.073 | AL13: 0.298 | AM13: 0.236 | AN13: 100100 | AO13: 0.586 | AP13: 0.048 | AQ13: 0.012 | AR13: 0.05 | AS13: 0.082 | AT13: 0.028 | AU13: 0.093 | AV13: 0.033 | AW13: 0.019 | AX13: 0.093 | AY13: 0.541 | AZ13: 0.048 | BA13: 0.23 | BB13: 0.318 | BC13: 0.127 | BD13: 0.112 | BE13: 0.114 | BF13: 0.003 | BG13: 0.028 | BH13: 0.018 | BI13: 0.023 | BJ13: 0.028 | BK13: 0.839 | BL13: 0.839 | BM13: 0 | BN13: 0.072 | BO13: 0.073 | BP13: 0.015 | BQ13: 375900 | BR13: 0.852 | BS13: 0.148 | BT13: 0.002 | BU13: 0.122 | BV13: 0.144 | BW13: 0.173 | BX13: 0.203 | BY13: 0.356 | BZ13: ='Tapestry Input'!AN13*('Current Summary'!B$38/'Tapestry Input'!AN$8) -> 0 | CA13: ='Tapestry Input'!BQ13*($C$5/'Tapestry Input'!BQ$8) -> 0 | CB13: =IFERROR(C13*('Initial Inputs'!$B$11/SUM($C$9:$C$76)),0) -> 0 | CC13: =IFERROR(CB13/SUM($CB$9:$CB$76),0) -> 0 | CD13: =IFERROR('Tapestry Input'!CC13/'Tapestry Input'!J13,0) -> 0 | CE13: =IF((BK13-'Future Preferences'!$B$5+'Future Preferences'!$D$5)<0,0,(BK13-'Future Preferences'!$B$5+'Future Preferences'!$D$5)) -> 0.8318227889 | CF13: =IF((BL13-'Future Preferences'!$B$6+'Future Preferences'!$D$6)<0,0,(BL13-'Future Preferences'!$B$6+'Future Preferences'!$D$6)) -> 0.6359550059 | CG13: 0.195867783 | CH13: 0.09445374913 | CI13: =IF((BO13-'Future Preferences'!$B$9+'Future Preferences'!$D$9)<0,0,(BO13-'Future Preferences'!$B$9+'Future Preferences'!$D$9)) -> 0.07372346201 | CJ13: =IF((BP13-'Future Preferences'!$B$10+'Future Preferences'!$D$10)<0,0,(BP13-'Future Preferences'!$B$10+'Future Preferences'!$D$10)) -> 0
A14: 6 | B14: Urban Chic | D14: 2 | E14: Upscale Avenues | F14: 4 | G14: Suburban Periphery | H14: Married Couples | I14: 1584131 | J14: =IFERROR(I14/$I$8,0) -> 0.01321618819 | K14: 2.37 | L14: 46 | M14: 479.8 | N14: LOW | O14: 2.37 | P14: 42.7 | Q14: 0.208 | R14: 0.324 | S14: 0.306 | T14: 0.162 | U14: 0.023 | V14: 0.013 | W14: 0.098 | X14: 0.048 | Y14: 0.057 | Z14: 0.023 | AA14: 0.737 | AB14: 0.327 | AC14: 0.16 | AD14: 0.334 | AE14: 0.179 | AF14: 0.017 | AG14: 0.022 | AH14: 0.107 | AI14: 0.011 | AJ14: 0.153 | AK14: 0.058 | AL14: 0.333 | AM14: 0.299 | AN14: 101900 | AO14: 0.686 | AP14: 0.047 | AQ14: 0.007 | AR14: 0.038 | AS14: 0.067 | AT14: 0.024 | AU14: 0.078 | AV14: 0.027 | AW14: 0.034 | AX14: 0.097 | AY14: 0.586 | AZ14: 0.042 | BA14: 0.244 | BB14: 0.361 | BC14: 0.112 | BD14: 0.096 | BE14: 0.112 | BF14: 0.002 | BG14: 0.022 | BH14: 0.013 | BI14: 0.017 | BJ14: 0.021 | BK14: 0.62 | BL14: 0.62 | BM14: 0 | BN14: 0.129 | BO14: 0.245 | BP14: 0.007 | BQ14: 515400 | BR14: 0.665 | BS14: 0.335 | BT14: 0.002 | BU14: 0.099 | BV14: 0.096 | BW14: 0.111 | BX14: 0.118 | BY14: 0.573 | BZ14: ='Tapestry Input'!AN14*('Current Summary'!B$38/'Tapestry Input'!AN$8) -> 0 | CA14: ='Tapestry Input'!BQ14*($C$5/'Tapestry Input'!BQ$8) -> 0 | CB14: =IFERROR(C14*('Initial Inputs'!$B$11/SUM($C$9:$C$76)),0) -> 0 | CC14: =IFERROR(CB14/SUM($CB$9:$CB$76),0) -> 0 | CD14: =IFERROR('Tapestry Input'!CC14/'Tapestry Input'!J14,0) -> 0 | CE14: =IF((BK14-'Future Preferences'!$B$5+'Future Preferences'!$D$5)<0,0,(BK14-'Future Preferences'!$B$5+'Future Preferences'!$D$5)) -> 0.6128227889 | CF14: =IF((BL14-'Future Preferences'!$B$6+'Future Preferences'!$D$6)<0,0,(BL14-'Future Preferences'!$B$6+'Future Preferences'!$D$6)) -> 0.4169550059 | CG14: 0.195867783 | CH14: 0.1414537491 | CI14: =IF((BO14-'Future Preferences'!$B$9+'Future Preferences'!$D$9)<0,0,(BO14-'Future Preferences'!$B$9+'Future Preferences'!$D$9)) -> 0.245723462 | CJ14: =IF((BP14-'Future Preferences'!$B$10+'Future Preferences'!$D$10)<0,0,(BP14-'Future Preferences'!$B$10+'Future Preferences'!$D$10)) -> 0
A15: 7 | B15: Pleasantville | D15: 2 | E15: Upscale Avenues | F15: 4 | G15: Suburban Periphery | H15: Married Couples | I15: 2686697 | J15: =IFERROR(I15/$I$8,0) -> 0.02241474547 | K15: 2.85 | L15: 58.9 | M15: 1389.9 | N15: MED | O15: 2.85 | P15: 42.1 | Q15: 0.217 | R15: 0.323 | S15: 0.302 | T15: 0.158 | U15: 0.018 | V15: 0.013 | W15: 0.105 | X15: 0.061 | Y15: 0.061 | Z15: 0.015 | AA15: 0.727 | AB15: 0.397 | AC15: 0.101 | AD15: 0.392 | AE15: 0.11 | AF15: 0.036 | AG15: 0.052 | AH15: 0.242 | AI15: 0.025 | AJ15: 0.214 | AK15: 0.088 | AL15: 0.217 | AM15: 0.127 | AN15: 87600 | AO15: 0.662 | AP15: 0.066 | AQ15: 0.004 | AR15: 0.062 | AS15: 0.081 | AT15: 0.028 | AU15: 0.11 | AV15: 0.055 | AW15: 0.024 | AX15: 0.079 | AY15: 0.501 | AZ15: 0.056 | BA15: 0.166 | BB15: 0.242 | BC15: 0.11 | BD15: 0.154 | BE15: 0.161 | BF15: 0.002 | BG15: 0.047 | BH15: 0.034 | BI15: 0.036 | BJ15: 0.048 | BK15: 0.846 | BL15: 0.423 | BM15: 0.423 | BN15: 0.084 | BO15: 0.059 | BP15: 0.01 | BQ15: 331300 | BR15: 0.835 | BS15: 0.165 | BT15: 0.001 | BU15: 0.051 | BV15: 0.059 | BW15: 0.091 | BX15: 0.136 | BY15: 0.663 | BZ15: ='Tapestry Input'!AN15*('Current Summary'!B$38/'Tapestry Input'!AN$8) -> 0 | CA15: ='Tapestry Input'!BQ15*($C$5/'Tapestry Input'!BQ$8) -> 0 | CB15: =IFERROR(C15*('Initial Inputs'!$B$11/SUM($C$9:$C$76)),0) -> 0 | CC15: =IFERROR(CB15/SUM($CB$9:$CB$76),0) -> 0 | CD15: =IFERROR('Tapestry Input'!CC15/'Tapestry Input'!J15,0) -> 0 | CE15: =IF((BK15-'Future Preferences'!$B$5+'Future Preferences'!$D$5)<0,0,(BK15-'Future Preferences'!$B$5+'Future Preferences'!$D$5)) -> 0.8388227889 | CF15: =IF((BL15-'Future Preferences'!$B$6+'Future Preferences'!$D$6)<0,0,(BL15-'Future Preferences'!$B$6+'Future Preferences'!$D$6)) -> 0.2199550059 | CG15: 0.618867783 | CH15: 0.1014537491 | CI15: =IF((BO15-'Future Preferences'!$B$9+'Future Preferences'!$D$9)<0,0,(BO15-'Future Preferences'!$B$9+'Future Preferences'!$D$9)) -> 0.05972346201 | CJ15: =IF((BP15-'Future Preferences'!$B$10+'Future Preferences'!$D$10)<0,0,(BP15-'Future Preferences'!$B$10+'Future Preferences'!$D$10)) -> 0
A16: 8 | B16: Pacific Heights | D16: 2 | E16: Upscale Avenues | F16: 2 | G16: Urban Periphery | H16: Married Couples | I16: 872157 | J16: =IFERROR(I16/$I$8,0) -> 0.00727628652 | K16: 3.13 | L16: 75.2 | M16: 3115.2 | N16: HIGH | O16: 3.13 | P16: 42.1 | Q16: 0.203 | R16: 0.337 | S16: 0.288 | T16: 0.173 | U16: 0.015 | V16: 0.012 | W16: 0.096 | X16: 0.058 | Y16: 0.072 | Z16: 0.016 | AA16: 0.73 | AB16: 0.397 | AC16: 0.106 | AD16: 0.388 | AE16: 0.11 | AF16: 0.063 | AG16: 0.059 | AH16: 0.207 | AI16: 0.018 | AJ16: 0.189 | AK16: 0.084 | AL16: 0.248 | AM16: 0.131 | AN16: 85700 | AO16: 0.62 | AP16: 0.065 | AQ16: 0.004 | AR16: 0.049 | AS16: 0.099 | AT16: 0.032 | AU16: 0.109 | AV16: 0.057 | AW16: 0.024 | AX16: 0.081 | AY16: 0.495 | AZ16: 0.051 | BA16: 0.164 | BB16: 0.247 | BC16: 0.115 | BD16: 0.146 | BE16: 0.169 | BF16: 0.002 | BG16: 0.037 | BH16: 0.028 | BI16: 0.044 | BJ16: 0.047 | BK16: 0.665 | BL16: 0 | BM16: 0.665 | BN16: 0.2 | BO16: 0.128 | BP16: 0.007 | BQ16: 503200 | BR16: 0.721 | BS16: 0.279 | BT16: 0.001 | BU16: 0.054 | BV16: 0.069 | BW16: 0.129 | BX16: 0.217 | BY16: 0.529 | BZ16: ='Tapestry Input'!AN16*('Current Summary'!B$38/'Tapestry Input'!AN$8) -> 0 | CA16: ='Tapestry Input'!BQ16*($C$5/'Tapestry Input'!BQ$8) -> 0 | CB16: =IFERROR(C16*('Initial Inputs'!$B$11/SUM($C$9:$C$76)),0) -> 0 | CC16: =IFERROR(CB16/SUM($CB$9:$CB$76),0) -> 0 | CD16: =IFERROR('Tapestry Input'!CC16/'Tapestry Input'!J16,0) -> 0 | CE16: =IF((BK16-'Future Preferences'!$B$5+'Future Preferences'!$D$5)<0,0,(BK16-'Future Preferences'!$B$5+'Future Preferences'!$D$5)) -> 0.6578227889 | CF16: =IF((BL16-'Future Preferences'!$B$6+'Future Preferences'!$D$6)<0,0,(BL16-'Future Preferences'!$B$6+'Future Preferences'!$D$6)) -> 0 | CG16: 0.6578227889 | CH16: 0.2134537491 | CI16: =IF((BO16-'Future Preferences'!$B$9+'Future Preferences'!$D$9)<0,0,(BO16-'Future Preferences'!$B$9+'Future Preferences'!$D$9)) -> 0.128723462 | CJ16: =IF((BP16-'Future Preferences'!$B$10+'Future Preferences'!$D$10)<0,0,(BP16-'Future Preferences'!$B$10+'Future Preferences'!$D$10)) -> 0
A17: 9 | B17: Enterprising Professionals | D17: 2 | E17: Upscale Avenues | F17: 4 | G17: Suburban Periphery | H17: Married Couples | I17: 1647068 | J17: =IFERROR(I17/$I$8,0) -> 0.01374126297 | K17: 2.46 | L17: 71.8 | M17: 1363 | N17: MED | O17: 2.46 | P17: 34.9 | Q17: 0.234 | R17: 0.439 | S17: 0.242 | T17: 0.084 | U17: 0.022 | V17: 0.015 | W17: 0.1 | X17: 0.049 | Y17: 0.062 | Z17: 0.026 | AA17: 0.726 | AB17: 0.387 | AC17: 0.101 | AD17: 0.404 | AE17: 0.108 | AF17: 0.028 | AG17: 0.034 | AH17: 0.141 | AI17: 0.017 | AJ17: 0.189 | AK17: 0.074 | AL17: 0.313 | AM17: 0.204 | AN17: 80000 | AO17: 0.75 | AP17: 0.054 | AQ17: 0.005 | AR17: 0.039 | AS17: 0.097 | AT17: 0.024 | AU17: 0.099 | AV17: 0.039 | AW17: 0.029 | AX17: 0.091 | AY17: 0.522 | AZ17: 0.055 | BA17: 0.207 | BB17: 0.31 | BC17: 0.108 | BD17: 0.129 | BE17: 0.135 | BF17: 0.001 | BG17: 0.026 | BH17: 0.022 | BI17: 0.03 | BJ17: 0.033 | BK17: 0.304 | BL17: 0.152 | BM17: 0.152 | BN17: 0.245 | BO17: 0.443 | BP17: 0.01 | BQ17: 318800 | BR17: 0.519 | BS17: 0.481 | BT17: 0.005 | BU17: 0.227 | BV17: 0.259 | BW17: 0.231 | BX17: 0.145 | BY17: 0.133 | BZ17: ='Tapestry Input'!AN17*('Current Summary'!B$38/'Tapestry Input'!AN$8) -> 0 | CA17: ='Tapestry Input'!BQ17*($C$5/'Tapestry Input'!BQ$8) -> 0 | CB17: =IFERROR(C17*('Initial Inputs'!$B$11/SUM($C$9:$C$76)),0) -> 0 | CC17: =IFERROR(CB17/SUM($CB$9:$CB$76),0) -> 0 | CD17: =IFERROR('Tapestry Input'!CC17/'Tapestry Input'!J17,0) -> 0 | CE17: =IF((BK17-'Future Preferences'!$B$5+'Future Preferences'!$D$5)<0,0,(BK17-'Future Preferences'!$B$5+'Future Preferences'!$D$5)) -> 0.2968227889 | CF17: =IF((BL17-'Future Preferences'!$B$6+'Future Preferences'!$D$6)<0,0,(BL17-'Future Preferences'!$B$6+'Future Preferences'!$D$6)) -> 0 | CG17: 0.2968227889 | CH17: 0.2594537491 | CI17: =IF((BO17-'Future Preferences'!$B$9+'Future Preferences'!$D$9)<0,0,(BO17-'Future Preferences'!$B$9+'Future Preferences'!$D$9)) -> 0.443723462 | CJ17: =IF((BP17-'Future Preferences'!$B$10+'Future Preferences'!$D$10)<0,0,(BP17-'Future Preferences'!$B$10+'Future Preferences'!$D$10)) -> 0
A18: 10 | B18: Laptops and Lattes | D18: 3 | E18: Uptown Individuals | F18: 1 | G18: Principal Urban Center | H18: Singles | I18: 1256400 | J18: =IFERROR(I18/$I$8,0) -> 0.0104819733 | K18: 1.85 | L18: 48.1 | M18: 10039.6 | N18: HIGH | O18: 1.85 | P18: 37 | Q18: 0.124 | R18: 0.509 | S18: 0.238 | T18: 0.129 | U18: 0.017 | V18: 0.008 | W18: 0.046 | X18: 0.019 | Y18: 0.055 | Z18: 0.051 | AA18: 0.804 | AB18: 0.221 | AC18: 0.246 | AD18: 0.238 | AE18: 0.295 | AF18: 0.016 | AG18: 0.018 | AH18: 0.063 | AI18: 0.008 | AJ18: 0.099 | AK18: 0.034 | AL18: 0.386 | AM18: 0.376 | AN18: 100100 | AO18: 0.76 | AP18: 0.046 | AQ18: 0.003 | AR18: 0.018 | AS18: 0.049 | AT18: 0.02 | AU18: 0.063 | AV18: 0.017 | AW18: 0.053 | AX18: 0.136 | AY18: 0.595 | AZ18: 0.045 | BA18: 0.289 | BB18: 0.402 | BC18: 0.109 | BD18: 0.078 | BE18: 0.083 | BF18: 0 | BG18: 0.01 | BH18: 0.006 | BI18: 0.01 | BJ18: 0.012 | BK18: 0.118 | BL18: 0 | BM18: 0.118 | BN18: 0.14 | BO18: 0.74 | BP18: 0.002 | BQ18: 662200 | BR18: 0.378 | BS18: 0.622 | BT18: 0.003 | BU18: 0.114 | BV18: 0.064 | BW18: 0.075 | BX18: 0.087 | BY18: 0.657 | BZ18: ='Tapestry Input'!AN18*('Current Summary'!B$38/'Tapestry Input'!AN$8) -> 0 | CA18: ='Tapestry Input'!BQ18*($C$5/'Tapestry Input'!BQ$8) -> 0 | CB18: =IFERROR(C18*('Initial Inputs'!$B$11/SUM($C$9:$C$76)),0) -> 0 | CC18: =IFERROR(CB18/SUM($CB$9:$CB$76),0) -> 0 | CD18: =IFERROR('Tapestry Input'!CC18/'Tapestry Input'!J18,0) -> 0 | CE18: =IF((BK18-'Future Preferences'!$B$5+'Future Preferences'!$D$5)<0,0,(BK18-'Future Preferences'!$B$5+'Future Preferences'!$D$5)) -> 0.1108227889 | CF18: =IF((BL18-'Future Preferences'!$B$6+'Future Preferences'!$D$6)<0,0,(BL18-'Future Preferences'!$B$6+'Future Preferences'!$D$6)) -> 0 | CG18: 0.1108227889 | CH18: 0.1484537491 | CI18: =IF((BO18-'Future Preferences'!$B$9+'Future Preferences'!$D$9)<0,0,(BO18-'Future Preferences'!$B$9+'Future Preferences'!$D$9)) -> 0.740723462 | CJ18: =IF((BP18-'Future Preferences'!$B$10+'Future Preferences'!$D$10)<0,0,(BP18-'Future Preferences'!$B$10+'Future Preferences'!$D$10)) -> 0
A19: 11 | B19: Metro Renters | D19: 3 | E19: Uptown Individuals | F19: 1 | G19: Principal Urban Center | H19: Singles | I19: 1777025 | J19: =IFERROR(I19/$I$8,0) -> 0.01482547644 | K19: 1.66 | L19: 60.1 | M19: 4953.5 | N19: HIGH | O19: 1.66 | P19: 32 | Q19: 0.086 | R19: 0.659 | S19: 0.177 | T19: 0.078 | U19: 0.009 | V19: 0.005 | W19: 0.028 | X19: 0.014 | Y19: 0.094 | Z19: 0.08 | AA19: 0.768 | AB19: 0.282 | AC19: 0.193 | AD19: 0.296 | AE19: 0.229 | AF19: 0.021 | AG19: 0.029 | AH19: 0.084 | AI19: 0.016 | AJ19: 0.142 | AK19: 0.05 | AL19: 0.378 | AM19: 0.281 | AN19: 56900 | AO19: 0.754 | AP19: 0.05 | AQ19: 0.006 | AR19: 0.024 | AS19: 0.06 | AT19: 0.019 | AU19: 0.079 | AV19: 0.027 | AW19: 0.034 | AX19: 0.104 | AY19: 0.604 | AZ19: 0.043 | BA19: 0.228 | BB19: 0.369 | BC19: 0.105 | BD19: 0.101 | BE19: 0.132 | BF19: 0.001 | BG19: 0.015 | BH19: 0.011 | BI19: 0.017 | BJ19: 0.022 | BK19: 0.076 | BL19: 0 | BM19: 0.076 | BN19: 0.084 | BO19: 0.839 | BP19: 0.003 | BQ19: 331400 | BR19: 0.206 | BS19: 0.794 | BT19: 0.005 | BU19: 0.221 | BV19: 0.128 | BW19: 0.106 | BX19: 0.102 | BY19: 0.438 | BZ19: ='Tapestry Input'!AN19*('Current Summary'!B$38/'Tapestry Input'!AN$8) -> 0 | CA19: ='Tapestry Input'!BQ19*($C$5/'Tapestry Input'!BQ$8) -> 0 | CB19: =IFERROR(C19*('Initial Inputs'!$B$11/SUM($C$9:$C$76)),0) -> 0 | CC19: =IFERROR(CB19/SUM($CB$9:$CB$76),0) -> 0 | CD19: =IFERROR('Tapestry Input'!CC19/'Tapestry Input'!J19,0) -> 0 | CE19: =IF((BK19-'Future Preferences'!$B$5+'Future Preferences'!$D$5)<0,0,(BK19-'Future Preferences'!$B$5+'Future Preferences'!$D$5)) -> 0.06882278886 | CF19: =IF((BL19-'Future Preferences'!$B$6+'Future Preferences'!$D$6)<0,0,(BL19-'Future Preferences'!$B$6+'Future Preferences'!$D$6)) -> 0 | CG19: 0.06882278886 | CH19: 0.09145374913 | CI19: =IF((BO19-'Future Preferences'!$B$9+'Future Preferences'!$D$9)<0,0,(BO19-'Future Preferences'!$B$9+'Future Preferences'!$D$9)) -> 0.839723462 | CJ19: =IF((BP19-'Future Preferences'!$B$10+'Future Preferences'!$D$10)<0,0,(BP19-'Future Preferences'!$B$10+'Future Preferences'!$D$10)) -> 0
A20: 12 | B20: Trendsetters | D20: 3 | E20: Uptown Individuals | F20: 1 | G20: Principal Urban Center | H20: Singles | I20: 1279093 | J20: =IFERROR(I20/$I$8,0) -> 0.01067129789 | K20: 2.1 | L20: 75.7 | M20: 9963.5 | N20: HIGH | O20: 2.1 | P20: 35.7 | Q20: 0.152 | R20: 0.506 | S20: 0.234 | T20: 0.108 | U20: 0.014 | V20: 0.009 | W20: 0.058 | X20: 0.033 | Y20: 0.071 | Z20: 0.039 | AA20: 0.775 | AB20: 0.346 | AC20: 0.135 | AD20: 0.361 | AE20: 0.159 | AF20: 0.065 | AG20: 0.057 | AH20: 0.143 | AI20: 0.019 | AJ20: 0.168 | AK20: 0.061 | AL20: 0.298 | AM20: 0.189 | AN20: 55100 | AO20: 0.722 | AP20: 0.072 | AQ20: 0.002 | AR20: 0.039 | AS20: 0.054 | AT20: 0.018 | AU20: 0.089 | AV20: 0.036 | AW20: 0.048 | AX20: 0.076 | AY20: 0.605 | AZ20: 0.033 | BA20: 0.17 | BB20: 0.306 | BC20: 0.098 | BD20: 0.12 | BE20: 0.195 | BF20: 0.001 | BG20: 0.032 | BH20: 0.016 | BI20: 0.026 | BJ20: 0.037 | BK20: 0.129 | BL20: 0 | BM20: 0.129 | BN20: 0.151 | BO20: 0.715 | BP20: 0.004 | BQ20: 456100 | BR20: 0.247 | BS20: 0.753 | BT20: 0.003 | BU20: 0.076 | BV20: 0.045 | BW20: 0.075 | BX20: 0.118 | BY20: 0.683 | BZ20: ='Tapestry Input'!AN20*('Current Summary'!B$38/'Tapestry Input'!AN$8) -> 0 | CA20: ='Tapestry Input'!BQ20*($C$5/'Tapestry Input'!BQ$8) -> 0 | CB20: =IFERROR(C20*('Initial Inputs'!$B$11/SUM($C$9:$C$76)),0) -> 0 | CC20: =IFERROR(CB20/SUM($CB$9:$CB$76),0) -> 0 | CD20: =IFERROR('Tapestry Input'!CC20/'Tapestry Input'!J20,0) -> 0 | CE20: =IF((BK20-'Future Preferences'!$B$5+'Future Preferences'!$D$5)<0,0,(BK20-'Future Preferences'!$B$5+'Future Preferences'!$D$5)) -> 0.1218227889 | CF20: =IF((BL20-'Future Preferences'!$B$6+'Future Preferences'!$D$6)<0,0,(BL20-'Future Preferences'!$B$6+'Future Preferences'!$D$6)) -> 0 | CG20: 0.1218227889 | CH20: 0.1624537491 | CI20: =IF((BO20-'Future Preferences'!$B$9+'Future Preferences'!$D$9)<0,0,(BO20-'Future Preferences'!$B$9+'Future Preferences'!$D$9)) -> 0.715723462 | CJ20: =IF((BP20-'Future Preferences'!$B$10+'Future Preferences'!$D$10)<0,0,(BP20-'Future Preferences'!$B$10+'Future Preferences'!$D$10)) -> 0
A21: 13 | B21: Soccer Moms | D21: 4 | E21: Family Landscapes | F21: 4 | G21: Suburban Periphery | H21: Married Couples | I21: 3371397 | J21: =IFERROR(I21/$I$8,0) -> 0.02812710389 | K21: 2.95 | L21: 48.9 | M21: 495.1 | N21: LOW | O21: 2.95 | P21: 36.7 | Q21: 0.272 | R21: 0.353 | S21: 0.282 | T21: 0.093 | U21: 0.023 | V21: 0.017 | W21: 0.142 | X21: 0.071 | Y21: 0.056 | Z21: 0.014 | AA21: 0.678 | AB21: 0.415 | AC21: 0.082 | AD21: 0.413 | AE21: 0.09 | AF21: 0.021 | AG21: 0.039 | AH21: 0.199 | AI21: 0.026 | AJ21: 0.236 | AK21: 0.099 | AL21: 0.253 | AM21: 0.127 | AN21: 86900 | AO21: 0.713 | AP21: 0.051 | AQ21: 0.011 | AR21: 0.054 | AS21: 0.109 | AT21: 0.029 | AU21: 0.11 | AV21: 0.053 | AW21: 0.02 | AX21: 0.082 | AY21: 0.472 | AZ21: 0.058 | BA21: 0.185 | BB21: 0.251 | BC21: 0.117 | BD21: 0.141 | BE21: 0.141 | BF21: 0.002 | BG21: 0.037 | BH21: 0.034 | BI21: 0.045 | BJ21: 0.047 | BK21: 0.866 | BL21: 0.866 | BM21: 0 | BN21: 0.067 | BO21: 0.047 | BP21: 0.021 | BQ21: 243000 | BR21: 0.853 | BS21: 0.147 | BT21: 0.005 | BU21: 0.313 | BV21: 0.349 | BW21: 0.147 | BX21: 0.087 | BY21: 0.099 | BZ21: ='Tapestry Input'!AN21*('Current Summary'!B$38/'Tapestry Input'!AN$8) -> 0 | CA21: ='Tapestry Input'!BQ21*($C$5/'Tapestry Input'!BQ$8) -> 0 | CB21: =IFERROR(C21*('Initial Inputs'!$B$11/SUM($C$9:$C$76)),0) -> 0 | CC21: =IFERROR(CB21/SUM($CB$9:$CB$76),0) -> 0 | CD21: =IFERROR('Tapestry Input'!CC21/'Tapestry Input'!J21,0) -> 0 | CE21: =IF((BK21-'Future Preferences'!$B$5+'Future Preferences'!$D$5)<0,0,(BK21-'Future Preferences'!$B$5+'Future Preferences'!$D$5)) -> 0.8588227889 | CF21: =IF((BL21-'Future Preferences'!$B$6+'Future Preferences'!$D$6)<0,0,(BL21-'Future Preferences'!$B$6+'Future Preferences'!$D$6)) -> 0.6629550059 | CG21: 0.195867783 | CH21: 0.09345374913 | CI21: =IF((BO21-'Future Preferences'!$B$9+'Future Preferences'!$D$9)<0,0,(BO21-'Future Preferences'!$B$9+'Future Preferences'!$D$9)) -> 0.04772346201 | CJ21: =IF((BP21-'Future Preferences'!$B$10+'Future Preferences'!$D$10)<0,0,(BP21-'Future Preferences'!$B$10+'Future Preferences'!$D$10)) -> 0
A22: 14 | B22: Home Improvement | D22: 4 | E22: Family Landscapes | F22: 4 | G22: Suburban Periphery | H22: Married Couples | I22: 2064842 | J22: =IFERROR(I22/$I$8,0) -> 0.01722669429 | K22: 2.85 | L22: 64 | M22: 408 | N22: LOW | O22: 2.85 | P22: 37.2 | Q22: 0.24 | R22: 0.366 | S22: 0.284 | T22: 0.11 | U22: 0.017 | V22: 0.014 | W22: 0.121 | X22: 0.069 | Y22: 0.064 | Z22: 0.013 | AA22: 0.703 | AB22: 0.425 | AC22: 0.067 | AD22: 0.431 | AE22: 0.077 | AF22: 0.033 | AG22: 0.058 | AH22: 0.235 | AI22: 0.036 | AJ22: 0.271 | AK22: 0.099 | AL22: 0.186 | AM22: 0.081 | AN22: 67700 | AO22: 0.714 | AP22: 0.066 | AQ22: 0.009 | AR22: 0.059 | AS22: 0.095 | AT22: 0.027 | AU22: 0.121 | AV22: 0.06 | AW22: 0.02 | AX22: 0.075 | AY22: 0.477 | AZ22: 0.055 | BA22: 0.141 | BB22: 0.21 | BC22: 0.113 | BD22: 0.164 | BE22: 0.172 | BF22: 0.002 | BG22: 0.046 | BH22: 0.042 | BI22: 0.052 | BJ22: 0.059 | BK22: 0.845 | BL22: 0.845 | BM22: 0 | BN22: 0.079 | BO22: 0.061 | BP22: 0.015 | BQ22: 186300 | BR22: 0.799 | BS22: 0.201 | BT22: 0.001 | BU22: 0.08 | BV22: 0.165 | BW22: 0.326 | BX22: 0.284 | BY22: 0.144 | BZ22: ='Tapestry Input'!AN22*('Current Summary'!B$38/'Tapestry Input'!AN$8) -> 0 | CA22: ='Tapestry Input'!BQ22*($C$5/'Tapestry Input'!BQ$8) -> 0 | CB22: =IFERROR(C22*('Initial Inputs'!$B$11/SUM($C$9:$C$76)),0) -> 0 | CC22: =IFERROR(CB22/SUM($CB$9:$CB$76),0) -> 0 | CD22: =IFERROR('Tapestry Input'!CC22/'Tapestry Input'!J22,0) -> 0 | CE22: =IF((BK22-'Future Preferences'!$B$5+'Future Preferences'!$D$5)<0,0,(BK22-'Future Preferences'!$B$5+'Future Preferences'!$D$5)) -> 0.8378227889 | CF22: =IF((BL22-'Future Preferences'!$B$6+'Future Preferences'!$D$6)<0,0,(BL22-'Future Preferences'!$B$6+'Future Preferences'!$D$6)) -> 0.6419550059 | CG22: 0.195867783 | CH22: 0.1004537491 | CI22: =IF((BO22-'Future Preferences'!$B$9+'Future Preferences'!$D$9)<0,0,(BO22-'Future Preferences'!$B$9+'Future Preferences'!$D$9)) -> 0.06172346201 | CJ22: =IF((BP22-'Future Preferences'!$B$10+'Future Preferences'!$D$10)<0,0,(BP22-'Future Preferences'!$B$10+'Future Preferences'!$D$10)) -> 0
A23: 15 | B23: Middleburg | D23: 4 | E23: Family Landscapes | F23: 5 | G23: Semirural | H23: Married Couples | I23: 3354878 | J23: =IFERROR(I23/$I$8,0) -> 0.02798928813 | K23: 2.73 | L23: 46.8 | M23: 167.6 | N23: LOW | O23: 2.73 | P23: 35.5 | Q23: 0.267 | R23: 0.369 | S23: 0.251 | T23: 0.113 | U23: 0.02 | V23: 0.017 | W23: 0.13 | X23: 0.063 | Y23: 0.05 | Z23: 0.011 | AA23: 0.709 | AB23: 0.425 | AC23: 0.066 | AD23: 0.438 | AE23: 0.072 | AF23: 0.037 | AG23: 0.073 | AH23: 0.265 | AI23: 0.047 | AJ23: 0.252 | AK23: 0.094 | AL23: 0.159 | AM23: 0.072 | AN23: 56000 | AO23: 0.663 | AP23: 0.064 | AQ23: 0.021 | AR23: 0.069 | AS23: 0.123 | AT23: 0.027 | AU23: 0.121 | AV23: 0.055 | AW23: 0.016 | AX23: 0.062 | AY23: 0.449 | AZ23: 0.056 | BA23: 0.131 | BB23: 0.198 | BC23: 0.106 | BD23: 0.144 | BE23: 0.174 | BF23: 0.005 | BG23: 0.057 | BH23: 0.045 | BI23: 0.073 | BJ23: 0.067 | BK23: 0.752 | BL23: 0.752 | BM23: 0 | BN23: 0.062 | BO23: 0.088 | BP23: 0.097 | BQ23: 168700 | BR23: 0.741 | BS23: 0.259 | BT23: 0.006 | BU23: 0.312 | BV23: 0.233 | BW23: 0.138 | BX23: 0.134 | BY23: 0.177 | BZ23: ='Tapestry Input'!AN23*('Current Summary'!B$38/'Tapestry Input'!AN$8) -> 0 | CA23: ='Tapestry Input'!BQ23*($C$5/'Tapestry Input'!BQ$8) -> 0 | CB23: =IFERROR(C23*('Initial Inputs'!$B$11/SUM($C$9:$C$76)),0) -> 0 | CC23: =IFERROR(CB23/SUM($CB$9:$CB$76),0) -> 0 | CD23: =IFERROR('Tapestry Input'!CC23/'Tapestry Input'!J23,0) -> 0 | CE23: =IF((BK23-'Future Preferences'!$B$5+'Future Preferences'!$D$5)<0,0,(BK23-'Future Preferences'!$B$5+'Future Preferences'!$D$5)) -> 0.7448227889 | CF23: =IF((BL23-'Future Preferences'!$B$6+'Future Preferences'!$D$6)<0,0,(BL23-'Future Preferences'!$B$6+'Future Preferences'!$D$6)) -> 0.5489550059 | CG23: 0.195867783 | CH23: 0.1373538763 | CI23: =IF((BO23-'Future Preferences'!$B$9+'Future Preferences'!$D$9)<0,0,(BO23-'Future Preferences'!$B$9+'Future Preferences'!$D$9)) -> 0.08872346201 | CJ23: =IF((BP23-'Future Preferences'!$B$10+'Future Preferences'!$D$10)<0,0,(BP23-'Future Preferences'!$B$10+'Future Preferences'!$D$10)) -> 0.02909987286
A24: 16 | B24: Comfortable Empty Nesters | D24: 5 | E24: GenXurban | F24: 4 | G24: Suburban Periphery | H24: Married Couples | I24: 2984654 | J24: =IFERROR(I24/$I$8,0) -> 0.02490055995 | K24: 2.5 | L24: 31.2 | M24: 277 | N24: LOW | O24: 2.5 | P24: 47.1 | Q24: 0.196 | R24: 0.276 | S24: 0.313 | T24: 0.216 | U24: 0.015 | V24: 0.011 | W24: 0.097 | X24: 0.057 | Y24: 0.049 | Z24: 0.012 | AA24: 0.76 | AB24: 0.397 | AC24: 0.096 | AD24: 0.402 | AE24: 0.104 | AF24: 0.022 | AG24: 0.045 | AH24: 0.242 | AI24: 0.03 | AJ24: 0.229 | AK24: 0.092 | AL24: 0.213 | AM24: 0.127 | AN24: 67700 | AO24: 0.607 | AP24: 0.057 | AQ24: 0.012 | AR24: 0.053 | AS24: 0.109 | AT24: 0.027 | AU24: 0.109 | AV24: 0.049 | AW24: 0.016 | AX24: 0.074 | AY24: 0.495 | AZ24: 0.056 | BA24: 0.162 | BB24: 0.254 | BC24: 0.113 | BD24: 0.15 | BE24: 0.147 | BF24: 0.002 | BG24: 0.039 | BH24: 0.033 | BI24: 0.052 | BJ24: 0.048 | BK24: 0.891 | BL24: 0.891 | BM24: 0 | BN24: 0.049 | BO24: 0.037 | BP24: 0.022 | BQ24: 197800 | BR24: 0.873 | BS24: 0.127 | BT24: 0.002 | BU24: 0.099 | BV24: 0.122 | BW24: 0.142 | BX24: 0.223 | BY24: 0.411 | BZ24: ='Tapestry Input'!AN24*('Current Summary'!B$38/'Tapestry Input'!AN$8) -> 0 | CA24: ='Tapestry Input'!BQ24*($C$5/'Tapestry Input'!BQ$8) -> 0 | CB24: =IFERROR(C24*('Initial Inputs'!$B$11/SUM($C$9:$C$76)),0) -> 0 | CC24: =IFERROR(CB24/SUM($CB$9:$CB$76),0) -> 0 | CD24: =IFERROR('Tapestry Input'!CC24/'Tapestry Input'!J24,0) -> 0 | CE24: =IF((BK24-'Future Preferences'!$B$5+'Future Preferences'!$D$5)<0,0,(BK24-'Future Preferences'!$B$5+'Future Preferences'!$D$5)) -> 0.8838227889 | CF24: =IF((BL24-'Future Preferences'!$B$6+'Future Preferences'!$D$6)<0,0,(BL24-'Future Preferences'!$B$6+'Future Preferences'!$D$6)) -> 0.6879550059 | CG24: 0.195867783 | CH24: 0.07845374913 | CI24: =IF((BO24-'Future Preferences'!$B$9+'Future Preferences'!$D$9)<0,0,(BO24-'Future Preferences'!$B$9+'Future Preferences'!$D$9)) -> 0.03772346201 | CJ24: =IF((BP24-'Future Preferences'!$B$10+'Future Preferences'!$D$10)<0,0,(BP24-'Future Preferences'!$B$10+'Future Preferences'!$D$10)) -> 0
A25: 17 | B25: In Style | D25: 5 | E25: GenXurban | F25: 3 | G25: Metro Cities | H25: Married Couples w/No Kids | I25: 2698133 | J25: =IFERROR(I25/$I$8,0) -> 0.02251015445 | K25: 2.33 | L25: 37.7 | M25: 352.9 | N25: LOW | O25: 2.33 | P25: 41.4 | Q25: 0.202 | R25: 0.344 | S25: 0.286 | T25: 0.168 | U25: 0.018 | V25: 0.012 | W25: 0.096 | X25: 0.052 | Y25: 0.069 | Z25: 0.02 | AA25: 0.732 | AB25: 0.382 | AC25: 0.109 | AD25: 0.388 | AE25: 0.121 | AF25: 0.018 | AG25: 0.034 | AH25: 0.174 | AI25: 0.023 | AJ25: 0.211 | AK25: 0.083 | AL25: 0.273 | AM25: 0.185 | AN25: 65900 | AO25: 0.677 | AP25: 0.049 | AQ25: 0.012 | AR25: 0.044 | AS25: 0.077 | AT25: 0.024 | AU25: 0.105 | AV25: 0.038 | AW25: 0.018 | AX25: 0.081 | AY25: 0.551 | AZ25: 0.05 | BA25: 0.18 | BB25: 0.299 | BC25: 0.115 | BD25: 0.132 | BE25: 0.149 | BF25: 0.002 | BG25: 0.031 | BH25: 0.023 | BI25: 0.034 | BJ25: 0.035 | BK25: 0.666 | BL25: 0.666 | BM25: 0 | BN25: 0.108 | BO25: 0.207 | BP25: 0.018 | BQ25: 232000 | BR25: 0.685 | BS25: 0.315 | BT25: 0.003 | BU25: 0.138 | BV25: 0.147 | BW25: 0.162 | BX25: 0.175 | BY25: 0.376 | BZ25: ='Tapestry Input'!AN25*('Current Summary'!B$38/'Tapestry Input'!AN$8) -> 0 | CA25: ='Tapestry Input'!BQ25*($C$5/'Tapestry Input'!BQ$8) -> 0 | CB25: =IFERROR(C25*('Initial Inputs'!$B$11/SUM($C$9:$C$76)),0) -> 0 | CC25: =IFERROR(CB25/SUM($CB$9:$CB$76),0) -> 0 | CD25: =IFERROR('Tapestry Input'!CC25/'Tapestry Input'!J25,0) -> 0 | CE25: =IF((BK25-'Future Preferences'!$B$5+'Future Preferences'!$D$5)<0,0,(BK25-'Future Preferences'!$B$5+'Future Preferences'!$D$5)) -> 0.6588227889 | CF25: =IF((BL25-'Future Preferences'!$B$6+'Future Preferences'!$D$6)<0,0,(BL25-'Future Preferences'!$B$6+'Future Preferences'!$D$6)) -> 0.4629550059 | CG25: 0.195867783 | CH25: 0.1334537491 | CI25: =IF((BO25-'Future Preferences'!$B$9+'Future Preferences'!$D$9)<0,0,(BO25-'Future Preferences'!$B$9+'Future Preferences'!$D$9)) -> 0.207723462 | CJ25: =IF((BP25-'Future Preferences'!$B$10+'Future Preferences'!$D$10)<0,0,(BP25-'Future Preferences'!$B$10+'Future Preferences'!$D$10)) -> 0
A26: 18 | B26: Parks and Rec | D26: 5 | E26: GenXurban | F26: 4 | G26: Suburban Periphery | H26: Married Couples | I26: 2420004 | J26: =IFERROR(I26/$I$8,0) -> 0.02018976226 | K26: 2.49 | L26: 48.4 | M26: 1218.6 | N26: MED | O26: 2.49 | P26: 40.4 | Q26: 0.211 | R26: 0.349 | S26: 0.282 | T26: 0.158 | U26: 0.016 | V26: 0.012 | W26: 0.1 | X26: 0.056 | Y26: 0.054 | Z26: 0.012 | AA26: 0.751 | AB26: 0.408 | AC26: 0.081 | AD26: 0.418 | AE26: 0.093 | AF26: 0.038 | AG26: 0.074 | AH26: 0.292 | AI26: 0.042 | AJ26: 0.232 | AK26: 0.088 | AL26: 0.158 | AM26: 0.077 | AN26: 55700 | AO26: 0.664 | AP26: 0.075 | AQ26: 0.007 | AR26: 0.065 | AS26: 0.111 | AT26: 0.026 | AU26: 0.124 | AV26: 0.054 | AW26: 0.017 | AX26: 0.069 | AY26: 0.474 | AZ26: 0.052 | BA26: 0.125 | BB26: 0.197 | BC26: 0.104 | BD26: 0.161 | BE26: 0.187 | BF26: 0.003 | BG26: 0.054 | BH26: 0.04 | BI26: 0.065 | BJ26: 0.065 | BK26: 0.679 | BL26: 0.3395 | BM26: 0.3395 | BN26: 0.144 | BO26: 0.158 | BP26: 0.02 | BQ26: 188500 | BR26: 0.706 | BS26: 0.294 | BT26: 0.001 | BU26: 0.063 | BV26: 0.073 | BW26: 0.107 | BX26: 0.155 | BY26: 0.601 | BZ26: ='Tapestry Input'!AN26*('Current Summary'!B$38/'Tapestry Input'!AN$8) -> 0 | CA26: ='Tapestry Input'!BQ26*($C$5/'Tapestry Input'!BQ$8) -> 0 | CB26: =IFERROR(C26*('Initial Inputs'!$B$11/SUM($C$9:$C$76)),0) -> 0 | CC26: =IFERROR(CB26/SUM($CB$9:$CB$76),0) -> 0 | CD26: =IFERROR('Tapestry Input'!CC26/'Tapestry Input'!J26,0) -> 0 | CE26: =IF((BK26-'Future Preferences'!$B$5+'Future Preferences'!$D$5)<0,0,(BK26-'Future Preferences'!$B$5+'Future Preferences'!$D$5)) -> 0.6718227889 | CF26: =IF((BL26-'Future Preferences'!$B$6+'Future Preferences'!$D$6)<0,0,(BL26-'Future Preferences'!$B$6+'Future Preferences'!$D$6)) -> 0.1364550059 | CG26: 0.535367783 | CH26: 0.1694537491 | CI26: =IF((BO26-'Future Preferences'!$B$9+'Future Preferences'!$D$9)<0,0,(BO26-'Future Preferences'!$B$9+'Future Preferences'!$D$9)) -> 0.158723462 | CJ26: =IF((BP26-'Future Preferences'!$B$10+'Future Preferences'!$D$10)<0,0,(BP26-'Future Preferences'!$B$10+'Future Preferences'!$D$10)) -> 0
A27: 19 | B27: Rustbelt Traditions | D27: 5 | E27: GenXurban | F27: 2 | G27: Urban Periphery | H27: Married Couples | I27: 2690125 | J27: =IFERROR(I27/$I$8,0) -> 0.02244334481 | K27: 2.45 | L27: 44.8 | M27: 650.3 | N27: MED | O27: 2.45 | P27: 38.5 | Q27: 0.226 | R27: 0.358 | S27: 0.266 | T27: 0.149 | U27: 0.016 | V27: 0.014 | W27: 0.108 | X27: 0.056 | Y27: 0.057 | Z27: 0.011 | AA27: 0.739 | AB27: 0.419 | AC27: 0.074 | AD27: 0.426 | AE27: 0.081 | AF27: 0.035 | AG27: 0.073 | AH27: 0.288 | AI27: 0.047 | AJ27: 0.253 | AK27: 0.095 | AL27: 0.144 | AM27: 0.066 | AN27: 50100 | AO27: 0.67 | AP27: 0.069 | AQ27: 0.01 | AR27: 0.059 | AS27: 0.126 | AT27: 0.025 | AU27: 0.121 | AV27: 0.052 | AW27: 0.016 | AX27: 0.062 | AY27: 0.482 | AZ27: 0.047 | BA27: 0.11 | BB27: 0.193 | BC27: 0.102 | BD27: 0.161 | BE27: 0.195 | BF27: 0.003 | BG27: 0.05 | BH27: 0.04 | BI27: 0.079 | BJ27: 0.067 | BK27: 0.811 | BL27: 0.4055 | BM27: 0.4055 | BN27: 0.074 | BO27: 0.095 | BP27: 0.019 | BQ27: 122500 | BR27: 0.719 | BS27: 0.281 | BT27: 0.001 | BU27: 0.048 | BV27: 0.057 | BW27: 0.079 | BX27: 0.143 | BY27: 0.671 | BZ27: ='Tapestry Input'!AN27*('Current Summary'!B$38/'Tapestry Input'!AN$8) -> 0 | CA27: ='Tapestry Input'!BQ27*($C$5/'Tapestry Input'!BQ$8) -> 0 | CB27: =IFERROR(C27*('Initial Inputs'!$B$11/SUM($C$9:$C$76)),0) -> 0 | CC27: =IFERROR(CB27/SUM($CB$9:$CB$76),0) -> 0 | CD27: =IFERROR('Tapestry Input'!CC27/'Tapestry Input'!J27,0) -> 0 | CE27: =IF((BK27-'Future Preferences'!$B$5+'Future Preferences'!$D$5)<0,0,(BK27-'Future Preferences'!$B$5+'Future Preferences'!$D$5)) -> 0.8038227889 | CF27: =IF((BL27-'Future Preferences'!$B$6+'Future Preferences'!$D$6)<0,0,(BL27-'Future Preferences'!$B$6+'Future Preferences'!$D$6)) -> 0.2024550059 | CG27: 0.601367783 | CH27: 0.1004537491 | CI27: =IF((BO27-'Future Preferences'!$B$9+'Future Preferences'!$D$9)<0,0,(BO27-'Future Preferences'!$B$9+'Future Preferences'!$D$9)) -> 0.09572346201 | CJ27: =IF((BP27-'Future Preferences'!$B$10+'Future Preferences'!$D$10)<0,0,(BP27-'Future Preferences'!$B$10+'Future Preferences'!$D$10)) -> 0
A28: 20 | B28: Midlife Constants | D28: 5 | E28: GenXurban | F28: 4 | G28: Suburban Periphery | H28: Married Couples w/No Kids | I28: 3050602 | J28: =IFERROR(I28/$I$8,0) -> 0.02545075509 | K28: 2.29 | L28: 34.4 | M28: 302.3 | N28: LOW | O28: 2.29 | P28: 46.2 | Q28: 0.188 | R28: 0.298 | S28: 0.278 | T28: 0.237 | U28: 0.013 | V28: 0.011 | W28: 0.089 | X28: 0.049 | Y28: 0.055 | Z28: 0.01 | AA28: 0.772 | AB28: 0.407 | AC28: 0.084 | AD28: 0.414 | AE28: 0.095 | AF28: 0.038 | AG28: 0.067 | AH28: 0.283 | AI28: 0.04 | AJ28: 0.23 | AK28: 0.088 | AL28: 0.161 | AM28: 0.092 | AN28: 47000 | AO28: 0.553 | AP28: 0.065 | AQ28: 0.015 | AR28: 0.053 | AS28: 0.108 | AT28: 0.023 | AU28: 0.121 | AV28: 0.047 | AW28: 0.015 | AX28: 0.061 | AY28: 0.502 | AZ28: 0.054 | BA28: 0.13 | BB28: 0.226 | BC28: 0.108 | BD28: 0.152 | BE28: 0.183 | BF28: 0.004 | BG28: 0.043 | BH28: 0.034 | BI28: 0.064 | BJ28: 0.057 | BK28: 0.764 | BL28: 0.764 | BM28: 0 | BN28: 0.072 | BO28: 0.126 | BP28: 0.037 | BQ28: 147400 | BR28: 0.733 | BS28: 0.267 | BT28: 0.002 | BU28: 0.096 | BV28: 0.113 | BW28: 0.118 | BX28: 0.177 | BY28: 0.495 | BZ28: ='Tapestry Input'!AN28*('Current Summary'!B$38/'Tapestry Input'!AN$8) -> 0 | CA28: ='Tapestry Input'!BQ28*($C$5/'Tapestry Input'!BQ$8) -> 0 | CB28: =IFERROR(C28*('Initial Inputs'!$B$11/SUM($C$9:$C$76)),0) -> 0 | CC28: =IFERROR(CB28/SUM($CB$9:$CB$76),0) -> 0 | CD28: =IFERROR('Tapestry Input'!CC28/'Tapestry Input'!J28,0) -> 0 | CE28: =IF((BK28-'Future Preferences'!$B$5+'Future Preferences'!$D$5)<0,0,(BK28-'Future Preferences'!$B$5+'Future Preferences'!$D$5)) -> 0.7568227889 | CF28: =IF((BL28-'Future Preferences'!$B$6+'Future Preferences'!$D$6)<0,0,(BL28-'Future Preferences'!$B$6+'Future Preferences'!$D$6)) -> 0.5609550059 | CG28: 0.195867783 | CH28: 0.1164537491 | CI28: =IF((BO28-'Future Preferences'!$B$9+'Future Preferences'!$D$9)<0,0,(BO28-'Future Preferences'!$B$9+'Future Preferences'!$D$9)) -> 0.126723462 | CJ28: =IF((BP28-'Future Preferences'!$B$10+'Future Preferences'!$D$10)<0,0,(BP28-'Future Preferences'!$B$10+'Future Preferences'!$D$10)) -> 0
A29: 21 | B29: Green Acres | D29: 6 | E29: Cozy Country Living | F29: 6 | G29: Rural | H29: Married Couples | I29: 3826275 | J29: =IFERROR(I29/$I$8,0) -> 0.0319220888 | K29: 2.68 | L29: 24.4 | M29: 68.3 | N29: LOW | O29: 2.68 | P29: 43.2 | Q29: 0.226 | R29: 0.299 | S29: 0.326 | T29: 0.149 | U29: 0.016 | V29: 0.013 | W29: 0.116 | X29: 0.064 | Y29: 0.045 | Z29: 0.01 | AA29: 0.735 | AB29: 0.417 | AC29: 0.082 | AD29: 0.413 | AE29: 0.088 | AF29: 0.025 | AG29: 0.054 | AH29: 0.275 | AI29: 0.036 | AJ29: 0.234 | AK29: 0.097 | AL29: 0.183 | AM29: 0.096 | AN29: 75600 | AO29: 0.672 | AP29: 0.052 | AQ29: 0.026 | AR29: 0.078 | AS29: 0.137 | AT29: 0.027 | AU29: 0.109 | AV29: 0.055 | AW29: 0.015 | AX29: 0.064 | AY29: 0.44 | AZ29: 0.05 | BA29: 0.155 | BB29: 0.213 | BC29: 0.103 | BD29: 0.142 | BE29: 0.147 | BF29: 0.006 | BG29: 0.059 | BH29: 0.044 | BI29: 0.07 | BJ29: 0.062 | BK29: 0.872 | BL29: 0.872 | BM29: 0 | BN29: 0.033 | BO29: 0.026 | BP29: 0.069 | BQ29: 212600 | BR29: 0.865 | BS29: 0.135 | BT29: 0.004 | BU29: 0.197 | BV29: 0.21 | BW29: 0.154 | BX29: 0.171 | BY29: 0.264 | BZ29: ='Tapestry Input'!AN29*('Current Summary'!B$38/'Tapestry Input'!AN$8) -> 0 | CA29: ='Tapestry Input'!BQ29*($C$5/'Tapestry Input'!BQ$8) -> 0 | CB29: =IFERROR(C29*('Initial Inputs'!$B$11/SUM($C$9:$C$76)),0) -> 0 | CC29: =IFERROR(CB29/SUM($CB$9:$CB$76),0) -> 0 | CD29: =IFERROR('Tapestry Input'!CC29/'Tapestry Input'!J29,0) -> 0 | CE29: =IF((BK29-'Future Preferences'!$B$5+'Future Preferences'!$D$5)<0,0,(BK29-'Future Preferences'!$B$5+'Future Preferences'!$D$5)) -> 0.8648227889 | CF29: =IF((BL29-'Future Preferences'!$B$6+'Future Preferences'!$D$6)<0,0,(BL29-'Future Preferences'!$B$6+'Future Preferences'!$D$6)) -> 0.6689550059 | CG29: 0.195867783 | CH29: 0.1073538763 | CI29: =IF((BO29-'Future Preferences'!$B$9+'Future Preferences'!$D$9)<0,0,(BO29-'Future Preferences'!$B$9+'Future Preferences'!$D$9)) -> 0.02672346201 | CJ29: =IF((BP29-'Future Preferences'!$B$10+'Future Preferences'!$D$10)<0,0,(BP29-'Future Preferences'!$B$10+'Future Preferences'!$D$10)) -> 0.001099872858
A30: 22 | B30: Salt of the Earth | D30: 6 | E30: Cozy Country Living | F30: 6 | G30: Rural | H30: Married Couples | I30: 3530413 | J30: =IFERROR(I30/$I$8,0) -> 0.02945375262 | K30: 2.57 | L30: 18.5 | M30: 57.7 | N30: LOW | O30: 2.57 | P30: 43.4 | Q30: 0.216 | R30: 0.305 | S30: 0.311 | T30: 0.168 | U30: 0.014 | V30: 0.013 | W30: 0.11 | X30: 0.06 | Y30: 0.04 | Z30: 0.007 | AA30: 0.757 | AB30: 0.43 | AC30: 0.066 | AD30: 0.431 | AE30: 0.073 | AF30: 0.04 | AG30: 0.082 | AH30: 0.361 | AI30: 0.049 | AJ30: 0.21 | AK30: 0.087 | AL30: 0.114 | AM30: 0.056 | AN30: 53400 | AO30: 0.631 | AP30: 0.063 | AQ30: 0.034 | AR30: 0.076 | AS30: 0.202 | AT30: 0.025 | AU30: 0.113 | AV30: 0.059 | AW30: 0.011 | AX30: 0.046 | AY30: 0.394 | AZ30: 0.04 | BA30: 0.114 | BB30: 0.167 | BC30: 0.091 | BD30: 0.135 | BE30: 0.161 | BF30: 0.009 | BG30: 0.065 | BH30: 0.053 | BI30: 0.117 | BJ30: 0.089 | BK30: 0.841 | BL30: 0.841 | BM30: 0 | BN30: 0.027 | BO30: 0.025 | BP30: 0.107 | BQ30: 137100 | BR30: 0.836 | BS30: 0.164 | BT30: 0.002 | BU30: 0.126 | BV30: 0.16 | BW30: 0.122 | BX30: 0.175 | BY30: 0.415 | BZ30: ='Tapestry Input'!AN30*('Current Summary'!B$38/'Tapestry Input'!AN$8) -> 0 | CA30: ='Tapestry Input'!BQ30*($C$5/'Tapestry Input'!BQ$8) -> 0 | CB30: =IFERROR(C30*('Initial Inputs'!$B$11/SUM($C$9:$C$76)),0) -> 0 | CC30: =IFERROR(CB30/SUM($CB$9:$CB$76),0) -> 0 | CD30: =IFERROR('Tapestry Input'!CC30/'Tapestry Input'!J30,0) -> 0 | CE30: =IF((BK30-'Future Preferences'!$B$5+'Future Preferences'!$D$5)<0,0,(BK30-'Future Preferences'!$B$5+'Future Preferences'!$D$5)) -> 0.8338227889 | CF30: =IF((BL30-'Future Preferences'!$B$6+'Future Preferences'!$D$6)<0,0,(BL30-'Future Preferences'!$B$6+'Future Preferences'!$D$6)) -> 0.6379550059 | CG30: 0.195867783 | CH30: 0.1013538763 | CI30: =IF((BO30-'Future Preferences'!$B$9+'Future Preferences'!$D$9)<0,0,(BO30-'Future Preferences'!$B$9+'Future Preferences'!$D$9)) -> 0.02572346201 | CJ30: =IF((BP30-'Future Preferences'!$B$10+'Future Preferences'!$D$10)<0,0,(BP30-'Future Preferences'!$B$10+'Future Preferences'!$D$10)) -> 0.03909987286
A31: 23 | B31: The Great Outdoors | D31: 6 | E31: Cozy Country Living | F31: 6 | G31: Rural | H31: Married Couples | I31: 1869673 | J31: =IFERROR(I31/$I$8,0) -> 0.01559842603 | K31: 2.42 | L31: 34 | M31: 17.1 | N31: LOW | O31: 2.42 | P31: 46.6 | Q31: 0.192 | R31: 0.286 | S31: 0.332 | T31: 0.19 | U31: 0.013 | V31: 0.011 | W31: 0.096 | X31: 0.056 | Y31: 0.04 | Z31: 0.008 | AA31: 0.776 | AB31: 0.421 | AC31: 0.074 | AD31: 0.426 | AE31: 0.08 | AF31: 0.033 | AG31: 0.072 | AH31: 0.268 | AI31: 0.045 | AJ31: 0.247 | AK31: 0.09 | AL31: 0.156 | AM31: 0.089 | AN31: 52600 | AO31: 0.599 | AP31: 0.067 | AQ31: 0.038 | AR31: 0.09 | AS31: 0.075 | AT31: 0.021 | AU31: 0.114 | AV31: 0.048 | AW31: 0.014 | AX31: 0.053 | AY31: 0.49 | AZ31: 0.057 | BA31: 0.138 | BB31: 0.2 | BC31: 0.102 | BD31: 0.132 | BE31: 0.193 | BF31: 0.012 | BG31: 0.072 | BH31: 0.042 | BI31: 0.051 | BJ31: 0.056 | BK31: 0.759 | BL31: 0.759 | BM31: 0 | BN31: 0.037 | BO31: 0.048 | BP31: 0.156 | BQ31: 200900 | BR31: 0.778 | BS31: 0.222 | BT31: 0.003 | BU31: 0.163 | BV31: 0.177 | BW31: 0.179 | BX31: 0.18 | BY31: 0.298 | BZ31: ='Tapestry Input'!AN31*('Current Summary'!B$38/'Tapestry Input'!AN$8) -> 0 | CA31: ='Tapestry Input'!BQ31*($C$5/'Tapestry Input'!BQ$8) -> 0 | CB31: =IFERROR(C31*('Initial Inputs'!$B$11/SUM($C$9:$C$76)),0) -> 0 | CC31: =IFERROR(CB31/SUM($CB$9:$CB$76),0) -> 0 | CD31: =IFERROR('Tapestry Input'!CC31/'Tapestry Input'!J31,0) -> 0 | CE31: =IF((BK31-'Future Preferences'!$B$5+'Future Preferences'!$D$5)<0,0,(BK31-'Future Preferences'!$B$5+'Future Preferences'!$D$5)) -> 0.7518227889 | CF31: =IF((BL31-'Future Preferences'!$B$6+'Future Preferences'!$D$6)<0,0,(BL31-'Future Preferences'!$B$6+'Future Preferences'!$D$6)) -> 0.5559550059 | CG31: 0.195867783 | CH31: 0.1113538763 | CI31: =IF((BO31-'Future Preferences'!$B$9+'Future Preferences'!$D$9)<0,0,(BO31-'Future Preferences'!$B$9+'Future Preferences'!$D$9)) -> 0.04872346201 | CJ31: =IF((BP31-'Future Preferences'!$B$10+'Future Preferences'!$D$10)<0,0,(BP31-'Future Preferences'!$B$10+'Future Preferences'!$D$10)) -> 0.08809987286
A32: 24 | B32: Prairie Living | D32: 6 | E32: Cozy Country Living | F32: 6 | G32: Rural | H32: Married Couples | I32: 1315858 | J32: =IFERROR(I32/$I$8,0) -> 0.01097802325 | K32: 2.49 | L32: 22.6 | M32: 4.8 | N32: LOW | O32: 2.49 | P32: 43.7 | Q32: 0.229 | R32: 0.286 | S32: 0.303 | T32: 0.182 | U32: 0.015 | V32: 0.013 | W32: 0.113 | X32: 0.062 | Y32: 0.031 | Z32: 0.006 | AA32: 0.76 | AB32: 0.438 | AC32: 0.063 | AD32: 0.43 | AE32: 0.069 | AF32: 0.054 | AG32: 0.064 | AH32: 0.333 | AI32: 0.039 | AJ32: 0.231 | AK32: 0.097 | AL32: 0.133 | AM32: 0.05 | AN32: 51600 | AO32: 0.662 | AP32: 0.037 | AQ32: 0.153 | AR32: 0.077 | AS32: 0.12 | AT32: 0.028 | AU32: 0.101 | AV32: 0.061 | AW32: 0.011 | AX32: 0.045 | AY32: 0.363 | AZ32: 0.041 | BA32: 0.171 | BB32: 0.154 | BC32: 0.08 | BD32: 0.128 | BE32: 0.149 | BF32: 0.039 | BG32: 0.068 | BH32: 0.047 | BI32: 0.083 | BJ32: 0.081 | BK32: 0.856 | BL32: 0.856 | BM32: 0 | BN32: 0.019 | BO32: 0.029 | BP32: 0.096 | BQ32: 124000 | BR32: 0.796 | BS32: 0.204 | BT32: 0.003 | BU32: 0.091 | BV32: 0.103 | BW32: 0.094 | BX32: 0.157 | BY32: 0.552 | BZ32: ='Tapestry Input'!AN32*('Current Summary'!B$38/'Tapestry Input'!AN$8) -> 0 | CA32: ='Tapestry Input'!BQ32*($C$5/'Tapestry Input'!BQ$8) -> 0 | CB32: =IFERROR(C32*('Initial Inputs'!$B$11/SUM($C$9:$C$76)),0) -> 0 | CC32: =IFERROR(CB32/SUM($CB$9:$CB$76),0) -> 0 | CD32: =IFERROR('Tapestry Input'!CC32/'Tapestry Input'!J32,0) -> 0 | CE32: =IF((BK32-'Future Preferences'!$B$5+'Future Preferences'!$D$5)<0,0,(BK32-'Future Preferences'!$B$5+'Future Preferences'!$D$5)) -> 0.8488227889 | CF32: =IF((BL32-'Future Preferences'!$B$6+'Future Preferences'!$D$6)<0,0,(BL32-'Future Preferences'!$B$6+'Future Preferences'!$D$6)) -> 0.6529550059 | CG32: 0.195867783 | CH32: 0.09335387627 | CI32: =IF((BO32-'Future Preferences'!$B$9+'Future Preferences'!$D$9)<0,0,(BO32-'Future Preferences'!$B$9+'Future Preferences'!$D$9)) -> 0.02972346201 | CJ32: =IF((BP32-'Future Preferences'!$B$10+'Future Preferences'!$D$10)<0,0,(BP32-'Future Preferences'!$B$10+'Future Preferences'!$D$10)) -> 0.02809987286
A33: 25 | B33: Rural Resort Dwellers | D33: 6 | E33: Cozy Country Living | F33: 6 | G33: Rural | H33: Married Couples w/No Kids | I33: 1229984 | J33: =IFERROR(I33/$I$8,0) -> 0.01026158822 | K33: 2.2 | L33: 22 | M33: 7.2 | N33: LOW | O33: 2.2 | P33: 52.8 | Q33: 0.158 | R33: 0.231 | S33: 0.349 | T33: 0.262 | U33: 0.01 | V33: 0.009 | W33: 0.077 | X33: 0.044 | Y33: 0.03 | Z33: 0.006 | AA33: 0.824 | AB33: 0.433 | AC33: 0.064 | AD33: 0.431 | AE33: 0.072 | AF33: 0.032 | AG33: 0.073 | AH33: 0.293 | AI33: 0.045 | AJ33: 0.24 | AK33: 0.082 | AL33: 0.147 | AM33: 0.087 | AN33: 46000 | AO33: 0.518 | AP33: 0.07 | AQ33: 0.05 | AR33: 0.09 | AS33: 0.097 | AT33: 0.019 | AU33: 0.116 | AV33: 0.051 | AW33: 0.012 | AX33: 0.056 | AY33: 0.457 | AZ33: 0.052 | BA33: 0.14 | BB33: 0.179 | BC33: 0.107 | BD33: 0.125 | BE33: 0.187 | BF33: 0.016 | BG33: 0.073 | BH33: 0.04 | BI33: 0.067 | BJ33: 0.065 | BK33: 0.78 | BL33: 0.78 | BM33: 0 | BN33: 0.029 | BO33: 0.055 | BP33: 0.137 | BQ33: 169600 | BR33: 0.816 | BS33: 0.184 | BT33: 0.002 | BU33: 0.154 | BV33: 0.181 | BW33: 0.172 | BX33: 0.173 | BY33: 0.318 | BZ33: ='Tapestry Input'!AN33*('Current Summary'!B$38/'Tapestry Input'!AN$8) -> 0 | CA33: ='Tapestry Input'!BQ33*($C$5/'Tapestry Input'!BQ$8) -> 0 | CB33: =IFERROR(C33*('Initial Inputs'!$B$11/SUM($C$9:$C$76)),0) -> 0 | CC33: =IFERROR(CB33/SUM($CB$9:$CB$76),0) -> 0 | CD33: =IFERROR('Tapestry Input'!CC33/'Tapestry Input'!J33,0) -> 0 | CE33: =IF((BK33-'Future Preferences'!$B$5+'Future Preferences'!$D$5)<0,0,(BK33-'Future Preferences'!$B$5+'Future Preferences'!$D$5)) -> 0.7728227889 | CF33: =IF((BL33-'Future Preferences'!$B$6+'Future Preferences'!$D$6)<0,0,(BL33-'Future Preferences'!$B$6+'Future Preferences'!$D$6)) -> 0.5769550059 | CG33: 0.195867783 | CH33: 0.1023538763 | CI33: =IF((BO33-'Future Preferences'!$B$9+'Future Preferences'!$D$9)<0,0,(BO33-'Future Preferences'!$B$9+'Future Preferences'!$D$9)) -> 0.05572346201 | CJ33: =IF((BP33-'Future Preferences'!$B$10+'Future Preferences'!$D$10)<0,0,(BP33-'Future Preferences'!$B$10+'Future Preferences'!$D$10)) -> 0.06909987286
A34: 26 | B34: Heartland Communities | D34: 6 | E34: Cozy Country Living | F34: 5 | G34: Semirural | H34: Married Couples | I34: 2868295 | J34: =IFERROR(I34/$I$8,0) -> 0.02392979274 | K34: 2.37 | L34: 29.9 | M34: 93.1 | N34: LOW | O34: 2.37 | P34: 41.7 | Q34: 0.219 | R34: 0.321 | S34: 0.271 | T34: 0.188 | U34: 0.015 | V34: 0.013 | W34: 0.105 | X34: 0.056 | Y34: 0.039 | Z34: 0.006 | AA34: 0.764 | AB34: 0.442 | AC34: 0.051 | AD34: 0.45 | AE34: 0.057 | AF34: 0.052 | AG34: 0.098 | AH34: 0.35 | AI34: 0.057 | AJ34: 0.216 | AK34: 0.081 | AL34: 0.098 | AM34: 0.046 | AN34: 40300 | AO34: 0.583 | AP34: 0.075 | AQ34: 0.029 | AR34: 0.063 | AS34: 0.18 | AT34: 0.023 | AU34: 0.124 | AV34: 0.056 | AW34: 0.012 | AX34: 0.044 | AY34: 0.423 | AZ34: 0.045 | BA34: 0.094 | BB34: 0.16 | BC34: 0.092 | BD34: 0.135 | BE34: 0.198 | BF34: 0.009 | BG34: 0.059 | BH34: 0.045 | BI34: 0.115 | BJ34: 0.093 | BK34: 0.774 | BL34: 0.774 | BM34: 0 | BN34: 0.057 | BO34: 0.095 | BP34: 0.073 | BQ34: 89900 | BR34: 0.701 | BS34: 0.299 | BT34: 0.001 | BU34: 0.064 | BV34: 0.087 | BW34: 0.09 | BX34: 0.151 | BY34: 0.608 | BZ34: ='Tapestry Input'!AN34*('Current Summary'!B$38/'Tapestry Input'!AN$8) -> 0 | CA34: ='Tapestry Input'!BQ34*($C$5/'Tapestry Input'!BQ$8) -> 0 | CB34: =IFERROR(C34*('Initial Inputs'!$B$11/SUM($C$9:$C$76)),0) -> 0 | CC34: =IFERROR(CB34/SUM($CB$9:$CB$76),0) -> 0 | CD34: =IFERROR('Tapestry Input'!CC34/'Tapestry Input'!J34,0) -> 0 | CE34: =IF((BK34-'Future Preferences'!$B$5+'Future Preferences'!$D$5)<0,0,(BK34-'Future Preferences'!$B$5+'Future Preferences'!$D$5)) -> 0.7668227889 | CF34: =IF((BL34-'Future Preferences'!$B$6+'Future Preferences'!$D$6)<0,0,(BL34-'Future Preferences'!$B$6+'Future Preferences'!$D$6)) -> 0.5709550059 | CG34: 0.195867783 | CH34: 0.1323538763 | CI34: =IF((BO34-'Future Preferences'!$B$9+'Future Preferences'!$D$9)<0,0,(BO34-'Future Preferences'!$B$9+'Future Preferences'!$D$9)) -> 0.09572346201 | CJ34: =IF((BP34-'Future Preferences'!$B$10+'Future Preferences'!$D$10)<0,0,(BP34-'Future Preferences'!$B$10+'Future Preferences'!$D$10)) -> 0.005099872858
A35: 27 | B35: Up and Coming Families | D35: 7 | E35: Ethnic Enclaves | F35: 4 | G35: Suburban Periphery | H35: Married Couples | I35: 2636887 | J35: =IFERROR(I35/$I$8,0) -> 0.02199918746 | K35: 3.1 | L35: 72.8 | M35: 888.2 | N35: MED | O35: 3.1 | P35: 30.9 | Q35: 0.316 | R35: 0.43 | S35: 0.197 | T35: 0.057 | U35: 0.024 | V35: 0.021 | W35: 0.154 | X35: 0.066 | Y35: 0.066 | Z35: 0.016 | AA35: 0.653 | AB35: 0.43 | AC35: 0.064 | AD35: 0.434 | AE35: 0.071 | AF35: 0.041 | AG35: 0.056 | AH35: 0.2 | AI35: 0.033 | AJ35: 0.268 | AK35: 0.101 | AL35: 0.214 | AM35: 0.087 | AN35: 65100 | AO35: 0.709 | AP35: 0.061 | AQ35: 0.013 | AR35: 0.056 | AS35: 0.092 | AT35: 0.027 | AU35: 0.117 | AV35: 0.061 | AW35: 0.019 | AX35: 0.079 | AY35: 0.473 | AZ35: 0.062 | BA35: 0.152 | BB35: 0.218 | BC35: 0.112 | BD35: 0.15 | BE35: 0.173 | BF35: 0.003 | BG35: 0.043 | BH35: 0.039 | BI35: 0.05 | BJ35: 0.06 | BK35: 0.814 | BL35: 0.407 | BM35: 0.407 | BN35: 0.065 | BO35: 0.091 | BP35: 0.03 | BQ35: 187700 | BR35: 0.746 | BS35: 0.254 | BT35: 0.012 | BU35: 0.662 | BV35: 0.184 | BW35: 0.061 | BX35: 0.038 | BY35: 0.042 | BZ35: ='Tapestry Input'!AN35*('Current Summary'!B$38/'Tapestry Input'!AN$8) -> 0 | CA35: ='Tapestry Input'!BQ35*($C$5/'Tapestry Input'!BQ$8) -> 0 | CB35: =IFERROR(C35*('Initial Inputs'!$B$11/SUM($C$9:$C$76)),0) -> 0 | CC35: =IFERROR(CB35/SUM($CB$9:$CB$76),0) -> 0 | CD35: =IFERROR('Tapestry Input'!CC35/'Tapestry Input'!J35,0) -> 0 | CE35: =IF((BK35-'Future Preferences'!$B$5+'Future Preferences'!$D$5)<0,0,(BK35-'Future Preferences'!$B$5+'Future Preferences'!$D$5)) -> 0.8068227889 | CF35: =IF((BL35-'Future Preferences'!$B$6+'Future Preferences'!$D$6)<0,0,(BL35-'Future Preferences'!$B$6+'Future Preferences'!$D$6)) -> 0.2039550059 | CG35: 0.602867783 | CH35: 0.1014537491 | CI35: =IF((BO35-'Future Preferences'!$B$9+'Future Preferences'!$D$9)<0,0,(BO35-'Future Preferences'!$B$9+'Future Preferences'!$D$9)) -> 0.09172346201 | CJ35: =IF((BP35-'Future Preferences'!$B$10+'Future Preferences'!$D$10)<0,0,(BP35-'Future Preferences'!$B$10+'Future Preferences'!$D$10)) -> 0
A36: 28 | B36: Urban Villages | D36: 7 | E36: Ethnic Enclaves | F36: 2 | G36: Urban Periphery | H36: Married Couples | I36: 1294980 | J36: =IFERROR(I36/$I$8,0) -> 0.01080384096 | K36: 3.75 | L36: 85.7 | M36: 329.3 | N36: LOW | O36: 3.75 | P36: 33.4 | Q36: 0.263 | R36: 0.392 | S36: 0.241 | T36: 0.104 | U36: 0.015 | V36: 0.015 | W36: 0.126 | X36: 0.075 | Y36: 0.07 | Z36: 0.009 | AA36: 0.69 | AB36: 0.45 | AC36: 0.049 | AD36: 0.446 | AE36: 0.055 | AF36: 0.166 | AG36: 0.126 | AH36: 0.252 | AI36: 0.029 | AJ36: 0.206 | AK36: 0.068 | AL36: 0.112 | AM36: 0.041 | AN36: 57300 | AO36: 0.632 | AP36: 0.092 | AQ36: 0.017 | AR36: 0.075 | AS36: 0.125 | AT36: 0.033 | AU36: 0.121 | AV36: 0.065 | AW36: 0.016 | AX36: 0.05 | AY36: 0.462 | AZ36: 0.035 | BA36: 0.089 | BB36: 0.133 | BC36: 0.1 | BD36: 0.153 | BE36: 0.226 | BF36: 0.011 | BG36: 0.067 | BH36: 0.043 | BI36: 0.087 | BJ36: 0.091 | BK36: 0.811 | BL36: 0.811 | BM36: 0 | BN36: 0.073 | BO36: 0.088 | BP36: 0.028 | BQ36: 248800 | BR36: 0.7 | BS36: 0.3 | BT36: 0.001 | BU36: 0.061 | BV36: 0.076 | BW36: 0.112 | BX36: 0.149 | BY36: 0.601 | BZ36: ='Tapestry Input'!AN36*('Current Summary'!B$38/'Tapestry Input'!AN$8) -> 0 | CA36: ='Tapestry Input'!BQ36*($C$5/'Tapestry Input'!BQ$8) -> 0 | CB36: =IFERROR(C36*('Initial Inputs'!$B$11/SUM($C$9:$C$76)),0) -> 0 | CC36: =IFERROR(CB36/SUM($CB$9:$CB$76),0) -> 0 | CD36: =IFERROR('Tapestry Input'!CC36/'Tapestry Input'!J36,0) -> 0 | CE36: =IF((BK36-'Future Preferences'!$B$5+'Future Preferences'!$D$5)<0,0,(BK36-'Future Preferences'!$B$5+'Future Preferences'!$D$5)) -> 0.8038227889 | CF36: =IF((BL36-'Future Preferences'!$B$6+'Future Preferences'!$D$6)<0,0,(BL36-'Future Preferences'!$B$6+'Future Preferences'!$D$6)) -> 0.6079550059 | CG36: 0.195867783 | CH36: 0.1074537491 | CI36: =IF((BO36-'Future Preferences'!$B$9+'Future Preferences'!$D$9)<0,0,(BO36-'Future Preferences'!$B$9+'Future Preferences'!$D$9)) -> 0.08872346201 | CJ36: =IF((BP36-'Future Preferences'!$B$10+'Future Preferences'!$D$10)<0,0,(BP36-'Future Preferences'!$B$10+'Future Preferences'!$D$10)) -> 0
A37: 29 | B37: American Dreamers | D37: 7 | E37: Ethnic Enclaves | F37: 2 | G37: Urban Periphery | H37: Married Couples | I37: 1758511 | J37: =IFERROR(I37/$I$8,0) -> 0.01467101667 | K37: 3.17 | L37: 83.5 | M37: 45.9 | N37: LOW | O37: 3.17 | P37: 31.9 | Q37: 0.283 | R37: 0.398 | S37: 0.232 | T37: 0.087 | U37: 0.017 | V37: 0.018 | W37: 0.141 | X37: 0.073 | Y37: 0.061 | Z37: 0.009 | AA37: 0.68 | AB37: 0.445 | AC37: 0.047 | AD37: 0.453 | AE37: 0.056 | AF37: 0.099 | AG37: 0.112 | AH37: 0.265 | AI37: 0.045 | AJ37: 0.243 | AK37: 0.079 | AL37: 0.113 | AM37: 0.044 | AN37: 48500 | AO37: 0.662 | AP37: 0.094 | AQ37: 0.013 | AR37: 0.078 | AS37: 0.087 | AT37: 0.026 | AU37: 0.129 | AV37: 0.064 | AW37: 0.016 | AX37: 0.059 | AY37: 0.484 | AZ37: 0.044 | BA37: 0.093 | BB37: 0.143 | BC37: 0.106 | BD37: 0.162 | BE37: 0.233 | BF37: 0.006 | BG37: 0.069 | BH37: 0.043 | BI37: 0.065 | BJ37: 0.079 | BK37: 0.728 | BL37: 0.728 | BM37: 0 | BN37: 0.098 | BO37: 0.141 | BP37: 0.033 | BQ37: 138800 | BR37: 0.643 | BS37: 0.357 | BT37: 0.002 | BU37: 0.15 | BV37: 0.15 | BW37: 0.229 | BX37: 0.224 | BY37: 0.246 | BZ37: ='Tapestry Input'!AN37*('Current Summary'!B$38/'Tapestry Input'!AN$8) -> 0 | CA37: ='Tapestry Input'!BQ37*($C$5/'Tapestry Input'!BQ$8) -> 0 | CB37: =IFERROR(C37*('Initial Inputs'!$B$11/SUM($C$9:$C$76)),0) -> 0 | CC37: =IFERROR(CB37/SUM($CB$9:$CB$76),0) -> 0 | CD37: =IFERROR('Tapestry Input'!CC37/'Tapestry Input'!J37,0) -> 0 | CE37: =IF((BK37-'Future Preferences'!$B$5+'Future Preferences'!$D$5)<0,0,(BK37-'Future Preferences'!$B$5+'Future Preferences'!$D$5)) -> 0.7208227889 | CF37: =IF((BL37-'Future Preferences'!$B$6+'Future Preferences'!$D$6)<0,0,(BL37-'Future Preferences'!$B$6+'Future Preferences'!$D$6)) -> 0.5249550059 | CG37: 0.195867783 | CH37: 0.1374537491 | CI37: =IF((BO37-'Future Preferences'!$B$9+'Future Preferences'!$D$9)<0,0,(BO37-'Future Preferences'!$B$9+'Future Preferences'!$D$9)) -> 0.141723462 | CJ37: =IF((BP37-'Future Preferences'!$B$10+'Future Preferences'!$D$10)<0,0,(BP37-'Future Preferences'!$B$10+'Future Preferences'!$D$10)) -> 0
A38: 30 | B38: Barrios Urbanos | D38: 7 | E38: Ethnic Enclaves | F38: 2 | G38: Urban Periphery | H38: Married Couples | I38: 1248495 | J38: =IFERROR(I38/$I$8,0) -> 0.01041602296 | K38: 3.59 | L38: 80.4 | M38: 502.2 | N38: MED | O38: 3.59 | P38: 28.4 | Q38: 0.331 | R38: 0.396 | S38: 0.197 | T38: 0.075 | U38: 0.017 | V38: 0.021 | W38: 0.16 | X38: 0.077 | Y38: 0.042 | Z38: 0.004 | AA38: 0.679 | AB38: 0.472 | AC38: 0.026 | AD38: 0.473 | AE38: 0.028 | AF38: 0.249 | AG38: 0.187 | AH38: 0.24 | AI38: 0.05 | AJ38: 0.164 | AK38: 0.042 | AL38: 0.051 | AM38: 0.018 | AN38: 36100 | AO38: 0.606 | AP38: 0.106 | AQ38: 0.038 | AR38: 0.13 | AS38: 0.147 | AT38: 0.029 | AU38: 0.118 | AV38: 0.056 | AW38: 0.009 | AX38: 0.034 | AY38: 0.412 | AZ38: 0.028 | BA38: 0.054 | BB38: 0.082 | BC38: 0.086 | BD38: 0.124 | BE38: 0.237 | BF38: 0.019 | BG38: 0.125 | BH38: 0.048 | BI38: 0.119 | BJ38: 0.106 | BK38: 0.741 | BL38: 0.3705 | BM38: 0.3705 | BN38: 0.058 | BO38: 0.102 | BP38: 0.098 | BQ38: 98300 | BR38: 0.602 | BS38: 0.398 | BT38: 0.002 | BU38: 0.127 | BV38: 0.102 | BW38: 0.122 | BX38: 0.156 | BY38: 0.49 | BZ38: ='Tapestry Input'!AN38*('Current Summary'!B$38/'Tapestry Input'!AN$8) -> 0 | CA38: ='Tapestry Input'!BQ38*($C$5/'Tapestry Input'!BQ$8) -> 0 | CB38: =IFERROR(C38*('Initial Inputs'!$B$11/SUM($C$9:$C$76)),0) -> 0 | CC38: =IFERROR(CB38/SUM($CB$9:$CB$76),0) -> 0 | CD38: =IFERROR('Tapestry Input'!CC38/'Tapestry Input'!J38,0) -> 0 | CE38: =IF((BK38-'Future Preferences'!$B$5+'Future Preferences'!$D$5)<0,0,(BK38-'Future Preferences'!$B$5+'Future Preferences'!$D$5)) -> 0.7338227889 | CF38: =IF((BL38-'Future Preferences'!$B$6+'Future Preferences'!$D$6)<0,0,(BL38-'Future Preferences'!$B$6+'Future Preferences'!$D$6)) -> 0.1674550059 | CG38: 0.566367783 | CH38: 0.1333538763 | CI38: =IF((BO38-'Future Preferences'!$B$9+'Future Preferences'!$D$9)<0,0,(BO38-'Future Preferences'!$B$9+'Future Preferences'!$D$9)) -> 0.102723462 | CJ38: =IF((BP38-'Future Preferences'!$B$10+'Future Preferences'!$D$10)<0,0,(BP38-'Future Preferences'!$B$10+'Future Preferences'!$D$10)) -> 0.03009987286
A39: 31 | B39: Valley Growers | D39: 7 | E39: Ethnic Enclaves | F39: 5 | G39: Semirural | H39: Married Couples | I39: 293481 | J39: =IFERROR(I39/$I$8,0) -> 0.002448471828 | K39: 3.96 | L39: 84.6 | M39: 86.2 | N39: LOW | O39: 3.96 | P39: 26.7 | Q39: 0.344 | R39: 0.41 | S39: 0.178 | T39: 0.068 | U39: 0.018 | V39: 0.022 | W39: 0.158 | X39: 0.078 | Y39: 0.041 | Z39: 0.002 | AA39: 0.68 | AB39: 0.479 | AC39: 0.018 | AD39: 0.481 | AE39: 0.022 | AF39: 0.388 | AG39: 0.167 | AH39: 0.186 | AI39: 0.033 | AJ39: 0.136 | AK39: 0.037 | AL39: 0.038 | AM39: 0.015 | AN39: 33100 | AO39: 0.596 | AP39: 0.131 | AQ39: 0.369 | AR39: 0.053 | AS39: 0.075 | AT39: 0.039 | AU39: 0.083 | AV39: 0.038 | AW39: 0.005 | AX39: 0.019 | AY39: 0.295 | AZ39: 0.025 | BA39: 0.044 | BB39: 0.06 | BC39: 0.061 | BD39: 0.077 | BE39: 0.182 | BF39: 0.341 | BG39: 0.049 | BH39: 0.03 | BI39: 0.062 | BJ39: 0.094 | BK39: 0.585 | BL39: 0.585 | BM39: 0 | BN39: 0.082 | BO39: 0.191 | BP39: 0.144 | BQ39: 126600 | BR39: 0.434 | BS39: 0.566 | BT39: 0.002 | BU39: 0.128 | BV39: 0.139 | BW39: 0.139 | BX39: 0.186 | BY39: 0.406 | BZ39: ='Tapestry Input'!AN39*('Current Summary'!B$38/'Tapestry Input'!AN$8) -> 0 | CA39: ='Tapestry Input'!BQ39*($C$5/'Tapestry Input'!BQ$8) -> 0 | CB39: =IFERROR(C39*('Initial Inputs'!$B$11/SUM($C$9:$C$76)),0) -> 0 | CC39: =IFERROR(CB39/SUM($CB$9:$CB$76),0) -> 0 | CD39: =IFERROR('Tapestry Input'!CC39/'Tapestry Input'!J39,0) -> 0 | CE39: =IF((BK39-'Future Preferences'!$B$5+'Future Preferences'!$D$5)<0,0,(BK39-'Future Preferences'!$B$5+'Future Preferences'!$D$5)) -> 0.5778227889 | CF39: =IF((BL39-'Future Preferences'!$B$6+'Future Preferences'!$D$6)<0,0,(BL39-'Future Preferences'!$B$6+'Future Preferences'!$D$6)) -> 0.3819550059 | CG39: 0.195867783 | CH39: 0.1543538763 | CI39: =IF((BO39-'Future Preferences'!$B$9+'Future Preferences'!$D$9)<0,0,(BO39-'Future Preferences'!$B$9+'Future Preferences'!$D$9)) -> 0.191723462 | CJ39: =IF((BP39-'Future Preferences'!$B$10+'Future Preferences'!$D$10)<0,0,(BP39-'Future Preferences'!$B$10+'Future Preferences'!$D$10)) -> 0.07609987286
A40: 32 | B40: Southwestern Families | D40: 7 | E40: Ethnic Enclaves | F40: 2 | G40: Urban Periphery | H40: Married Couples | I40: 1001696 | J40: =IFERROR(I40/$I$8,0) -> 0.008357012673 | K40: 3.17 | L40: 65.2 | M40: 66.3 | N40: LOW | O40: 3.17 | P40: 34 | Q40: 0.273 | R40: 0.358 | S40: 0.229 | T40: 0.14 | U40: 0.017 | V40: 0.017 | W40: 0.128 | X40: 0.069 | Y40: 0.05 | Z40: 0.005 | AA40: 0.715 | AB40: 0.468 | AC40: 0.026 | AD40: 0.475 | AE40: 0.031 | AF40: 0.252 | AG40: 0.163 | AH40: 0.24 | AI40: 0.049 | AJ40: 0.157 | AK40: 0.048 | AL40: 0.066 | AM40: 0.024 | AN40: 26800 | AO40: 0.513 | AP40: 0.105 | AQ40: 0.029 | AR40: 0.096 | AS40: 0.069 | AT40: 0.028 | AU40: 0.126 | AV40: 0.059 | AW40: 0.01 | AX40: 0.04 | AY40: 0.501 | AZ40: 0.041 | BA40: 0.063 | BB40: 0.11 | BC40: 0.101 | BD40: 0.139 | BE40: 0.284 | BF40: 0.011 | BG40: 0.094 | BH40: 0.043 | BI40: 0.066 | BJ40: 0.09 | BK40: 0.649 | BL40: 0.649 | BM40: 0 | BN40: 0.086 | BO40: 0.197 | BP40: 0.068 | BQ40: 100000 | BR40: 0.546 | BS40: 0.454 | BT40: 0.002 | BU40: 0.078 | BV40: 0.09 | BW40: 0.131 | BX40: 0.177 | BY40: 0.522 | BZ40: ='Tapestry Input'!AN40*('Current Summary'!B$38/'Tapestry Input'!AN$8) -> 0 | CA40: ='Tapestry Input'!BQ40*($C$5/'Tapestry Input'!BQ$8) -> 0 | CB40: =IFERROR(C40*('Initial Inputs'!$B$11/SUM($C$9:$C$76)),0) -> 0 | CC40: =IFERROR(CB40/SUM($CB$9:$CB$76),0) -> 0 | CD40: =IFERROR('Tapestry Input'!CC40/'Tapestry Input'!J40,0) -> 0 | CE40: =IF((BK40-'Future Preferences'!$B$5+'Future Preferences'!$D$5)<0,0,(BK40-'Future Preferences'!$B$5+'Future Preferences'!$D$5)) -> 0.6418227889 | CF40: =IF((BL40-'Future Preferences'!$B$6+'Future Preferences'!$D$6)<0,0,(BL40-'Future Preferences'!$B$6+'Future Preferences'!$D$6)) -> 0.4459550059 | CG40: 0.195867783 | CH40: 0.1603538763 | CI40: =IF((BO40-'Future Preferences'!$B$9+'Future Preferences'!$D$9)<0,0,(BO40-'Future Preferences'!$B$9+'Future Preferences'!$D$9)) -> 0.197723462 | CJ40: =IF((BP40-'Future Preferences'!$B$10+'Future Preferences'!$D$10)<0,0,(BP40-'Future Preferences'!$B$10+'Future Preferences'!$D$10)) -> 9.987285789e-05
A41: 33 | B41: City Lights | D41: 8 | E41: Middle Ground | F41: 2 | G41: Urban Periphery | H41: Married Couples | I41: 1770561 | J41: =IFERROR(I41/$I$8,0) -> 0.01477154817 | K41: 2.56 | L41: 74.2 | M41: 3234.3 | N41: =IF(M41<500,"LOW",IF(M41<1500,"MED","HIGH")) -> HIGH | O41: 2.56 | P41: 38.8 | Q41: 0.208 | R41: 0.381 | S41: 0.275 | T41: 0.137 | U41: 0.017 | V41: 0.012 | W41: 0.094 | X41: 0.054 | Y41: 0.065 | Z41: 0.017 | AA41: 0.741 | AB41: 0.39 | AC41: 0.102 | AD41: 0.392 | AE41: 0.116 | AF41: 0.06 | AG41: 0.066 | AH41: 0.235 | AI41: 0.026 | AJ41: 0.204 | AK41: 0.079 | AL41: 0.21 | AM41: 0.118 | AN41: 61400 | AO41: 0.671 | AP41: 0.075 | AQ41: 0.004 | AR41: 0.059 | AS41: 0.074 | AT41: 0.025 | AU41: 0.11 | AV41: 0.054 | AW41: 0.025 | AX41: 0.075 | AY41: 0.528 | AZ41: 0.045 | BA41: 0.145 | BB41: 0.229 | BC41: 0.106 | BD41: 0.15 | BE41: 0.2 | BF41: 0.002 | BG41: 0.049 | BH41: 0.029 | BI41: 0.039 | BJ41: 0.052 | BK41: 0.412 | BL41: =IF(N41="LOW",1,IF(N41="MED",0.5,0))*BK41 -> 0 | BM41: =IF(N41="LOW",0,IF(N41="MED",0.5,1))*BK41 -> 0.412 | BN41: 0.222 | BO41: 0.355 | BP41: 0.011 | BQ41: 345700 | BR41: 0.524 | BS41: 0.476 | BT41: 0.001 | BU41: 0.05 | BV41: 0.051 | BW41: 0.097 | BX41: 0.142 | BY41: 0.659 | BZ41: ='Tapestry Input'!AN41*('Current Summary'!B$38/'Tapestry Input'!AN$8) -> 0 | CA41: ='Tapestry Input'!BQ41*($C$5/'Tapestry Input'!BQ$8) -> 0 | CB41: =IFERROR(C41*('Initial Inputs'!$B$11/SUM($C$9:$C$76)),0) -> 0 | CC41: =IFERROR(CB41/SUM($CB$9:$CB$76),0) -> 0 | CD41: =IFERROR('Tapestry Input'!CC41/'Tapestry Input'!J41,0) -> 0 | CE41: =IF((BK41-'Future Preferences'!$B$5+'Future Preferences'!$D$5)<0,0,(BK41-'Future Preferences'!$B$5+'Future Preferences'!$D$5)) -> 0.4048227889 | CF41: =IF((BL41-'Future Preferences'!$B$6+'Future Preferences'!$D$6)<0,0,(BL41-'Future Preferences'!$B$6+'Future Preferences'!$D$6)) -> 0 | CG41: 0.4048227889 | CH41: 0.2394537491 | CI41: =IF((BO41-'Future Preferences'!$B$9+'Future Preferences'!$D$9)<0,0,(BO41-'Future Preferences'!$B$9+'Future Preferences'!$D$9)) -> 0.355723462 | CJ41: =IF((BP41-'Future Preferences'!$B$10+'Future Preferences'!$D$10)<0,0,(BP41-'Future Preferences'!$B$10+'Future Preferences'!$D$10)) -> 0
A42: 34 | B42: Emerald City | D42: 8 | E42: Middle Ground | F42: 3 | G42: Metro Cities | H42: Singles | I42: 1690588 | J42: =IFERROR(I42/$I$8,0) -> 0.01410434437 | K42: 2.04 | L42: 48.7 | M42: 380.2 | N42: LOW | O42: 2.04 | P42: 36.8 | Q42: 0.162 | R42: 0.456 | S42: 0.258 | T42: 0.124 | U42: 0.016 | V42: 0.01 | W42: 0.068 | X42: 0.035 | Y42: 0.084 | Z42: 0.037 | AA42: 0.751 | AB42: 0.357 | AC42: 0.127 | AD42: 0.376 | AE42: 0.14 | AF42: 0.023 | AG42: 0.04 | AH42: 0.145 | AI42: 0.024 | AJ42: 0.198 | AK42: 0.069 | AL42: 0.297 | AM42: 0.203 | AN42: 52700 | AO42: 0.724 | AP42: 0.055 | AQ42: 0.007 | AR42: 0.041 | AS42: 0.062 | AT42: 0.02 | AU42: 0.096 | AV42: 0.032 | AW42: 0.023 | AX42: 0.076 | AY42: 0.598 | AZ42: 0.044 | BA42: 0.174 | BB42: 0.317 | BC42: 0.104 | BD42: 0.121 | BE42: 0.17 | BF42: 0.002 | BG42: 0.03 | BH42: 0.018 | BI42: 0.029 | BJ42: 0.034 | BK42: 0.467 | BL42: 0.467 | BM42: 0 | BN42: 0.164 | BO42: 0.36 | BP42: 0.009 | BQ42: 235800 | BR42: 0.492 | BS42: 0.508 | BT42: 0.002 | BU42: 0.086 | BV42: 0.077 | BW42: 0.101 | BX42: 0.13 | BY42: 0.604 | BZ42: ='Tapestry Input'!AN42*('Current Summary'!B$38/'Tapestry Input'!AN$8) -> 0 | CA42: ='Tapestry Input'!BQ42*($C$5/'Tapestry Input'!BQ$8) -> 0 | CB42: =IFERROR(C42*('Initial Inputs'!$B$11/SUM($C$9:$C$76)),0) -> 0 | CC42: =IFERROR(CB42/SUM($CB$9:$CB$76),0) -> 0 | CD42: =IFERROR('Tapestry Input'!CC42/'Tapestry Input'!J42,0) -> 0 | CE42: =IF((BK42-'Future Preferences'!$B$5+'Future Preferences'!$D$5)<0,0,(BK42-'Future Preferences'!$B$5+'Future Preferences'!$D$5)) -> 0.4598227889 | CF42: =IF((BL42-'Future Preferences'!$B$6+'Future Preferences'!$D$6)<0,0,(BL42-'Future Preferences'!$B$6+'Future Preferences'!$D$6)) -> 0.2639550059 | CG42: 0.195867783 | CH42: 0.1794537491 | CI42: =IF((BO42-'Future Preferences'!$B$9+'Future Preferences'!$D$9)<0,0,(BO42-'Future Preferences'!$B$9+'Future Preferences'!$D$9)) -> 0.360723462 | CJ42: =IF((BP42-'Future Preferences'!$B$10+'Future Preferences'!$D$10)<0,0,(BP42-'Future Preferences'!$B$10+'Future Preferences'!$D$10)) -> 0
A43: 35 | B43: Bright Young Professionals | D43: 8 | E43: Middle Ground | F43: 2 | G43: Urban Periphery | H43: Married Couples | I43: 2636339 | J43: =IFERROR(I43/$I$8,0) -> 0.02199461557 | K43: 2.39 | L43: 66 | M43: 736.3 | N43: MED | O43: 2.39 | P43: 32.4 | Q43: 0.241 | R43: 0.447 | S43: 0.22 | T43: 0.092 | U43: 0.018 | V43: 0.015 | W43: 0.107 | X43: 0.051 | Y43: 0.078 | Z43: 0.019 | AA43: 0.713 | AB43: 0.413 | AC43: 0.071 | AD43: 0.435 | AE43: 0.082 | AF43: 0.032 | AG43: 0.055 | AH43: 0.215 | AI43: 0.036 | AJ43: 0.263 | AK43: 0.095 | AL43: 0.208 | AM43: 0.095 | AN43: 52300 | AO43: 0.725 | AP43: 0.063 | AQ43: 0.012 | AR43: 0.052 | AS43: 0.087 | AT43: 0.024 | AU43: 0.126 | AV43: 0.05 | AW43: 0.02 | AX43: 0.076 | AY43: 0.501 | AZ43: 0.052 | BA43: 0.138 | BB43: 0.216 | BC43: 0.115 | BD43: 0.156 | BE43: 0.191 | BF43: 0.002 | BG43: 0.042 | BH43: 0.034 | BI43: 0.05 | BJ43: 0.056 | BK43: 0.4 | BL43: 0.2 | BM43: 0.2 | BN43: 0.131 | BO43: 0.441 | BP43: 0.03 | BQ43: 184100 | BR43: 0.436 | BS43: 0.564 | BT43: 0.004 | BU43: 0.219 | BV43: 0.215 | BW43: 0.22 | BX43: 0.183 | BY43: 0.159 | BZ43: ='Tapestry Input'!AN43*('Current Summary'!B$38/'Tapestry Input'!AN$8) -> 0 | CA43: ='Tapestry Input'!BQ43*($C$5/'Tapestry Input'!BQ$8) -> 0 | CB43: =IFERROR(C43*('Initial Inputs'!$B$11/SUM($C$9:$C$76)),0) -> 0 | CC43: =IFERROR(CB43/SUM($CB$9:$CB$76),0) -> 0 | CD43: =IFERROR('Tapestry Input'!CC43/'Tapestry Input'!J43,0) -> 0 | CE43: =IF((BK43-'Future Preferences'!$B$5+'Future Preferences'!$D$5)<0,0,(BK43-'Future Preferences'!$B$5+'Future Preferences'!$D$5)) -> 0.3928227889 | CF43: =IF((BL43-'Future Preferences'!$B$6+'Future Preferences'!$D$6)<0,0,(BL43-'Future Preferences'!$B$6+'Future Preferences'!$D$6)) -> 0 | CG43: 0.3928227889 | CH43: 0.1654537491 | CI43: =IF((BO43-'Future Preferences'!$B$9+'Future Preferences'!$D$9)<0,0,(BO43-'Future Preferences'!$B$9+'Future Preferences'!$D$9)) -> 0.441723462 | CJ43: =IF((BP43-'Future Preferences'!$B$10+'Future Preferences'!$D$10)<0,0,(BP43-'Future Preferences'!$B$10+'Future Preferences'!$D$10)) -> 0
A44: 36 | B44: Downtown Melting Pot | D44: 8 | E44: Middle Ground | F44: 1 | G44: Principal Urban Center | H44: Married Couples | I44: 789907 | J44: =IFERROR(I44/$I$8,0) -> 0.006590086024 | K44: 2.9 | L44: 77.2 | M44: 24975.8 | N44: HIGH | O44: 2.9 | P44: 37.2 | Q44: 0.216 | R44: 0.389 | S44: 0.255 | T44: 0.139 | U44: 0.015 | V44: 0.014 | W44: 0.096 | X44: 0.054 | Y44: 0.068 | Z44: 0.017 | AA44: 0.736 | AB44: 0.357 | AC44: 0.14 | AD44: 0.362 | AE44: 0.141 | AF44: 0.143 | AG44: 0.106 | AH44: 0.245 | AI44: 0.028 | AJ44: 0.135 | AK44: 0.065 | AL44: 0.188 | AM44: 0.089 | AN44: 44900 | AO44: 0.597 | AP44: 0.088 | AQ44: 0.002 | AR44: 0.062 | AS44: 0.066 | AT44: 0.03 | AU44: 0.112 | AV44: 0.063 | AW44: 0.019 | AX44: 0.078 | AY44: 0.539 | AZ44: 0.029 | BA44: 0.114 | BB44: 0.184 | BC44: 0.11 | BD44: 0.138 | BE44: 0.258 | BF44: 0.001 | BG44: 0.055 | BH44: 0.023 | BI44: 0.052 | BJ44: 0.065 | BK44: 0.13 | BL44: 0 | BM44: 0.13 | BN44: 0.282 | BO44: 0.584 | BP44: 0.003 | BQ44: 563100 | BR44: 0.315 | BS44: 0.685 | BT44: 0.001 | BU44: 0.047 | BV44: 0.037 | BW44: 0.056 | BX44: 0.087 | BY44: 0.771 | BZ44: ='Tapestry Input'!AN44*('Current Summary'!B$38/'Tapestry Input'!AN$8) -> 0 | CA44: ='Tapestry Input'!BQ44*($C$5/'Tapestry Input'!BQ$8) -> 0 | CB44: =IFERROR(C44*('Initial Inputs'!$B$11/SUM($C$9:$C$76)),0) -> 0 | CC44: =IFERROR(CB44/SUM($CB$9:$CB$76),0) -> 0 | CD44: =IFERROR('Tapestry Input'!CC44/'Tapestry Input'!J44,0) -> 0 | CE44: =IF((BK44-'Future Preferences'!$B$5+'Future Preferences'!$D$5)<0,0,(BK44-'Future Preferences'!$B$5+'Future Preferences'!$D$5)) -> 0.1228227889 | CF44: =IF((BL44-'Future Preferences'!$B$6+'Future Preferences'!$D$6)<0,0,(BL44-'Future Preferences'!$B$6+'Future Preferences'!$D$6)) -> 0 | CG44: 0.1228227889 | CH44: 0.2924537491 | CI44: =IF((BO44-'Future Preferences'!$B$9+'Future Preferences'!$D$9)<0,0,(BO44-'Future Preferences'!$B$9+'Future Preferences'!$D$9)) -> 0.584723462 | CJ44: =IF((BP44-'Future Preferences'!$B$10+'Future Preferences'!$D$10)<0,0,(BP44-'Future Preferences'!$B$10+'Future Preferences'!$D$10)) -> 0
A45: 37 | B45: Front Porches | D45: 8 | E45: Middle Ground | F45: 3 | G45: Metro Cities | H45: Married Couples | I45: 1915790 | J45: =IFERROR(I45/$I$8,0) -> 0.01598317385 | K45: 2.54 | L45: 71 | M45: 1998.4 | N45: HIGH | O45: 2.54 | P45: 34.4 | Q45: 0.247 | R45: 0.394 | S45: 0.243 | T45: 0.116 | U45: 0.016 | V45: 0.015 | W45: 0.114 | X45: 0.058 | Y45: 0.056 | Z45: 0.01 | AA45: 0.73 | AB45: 0.429 | AC45: 0.058 | AD45: 0.441 | AE45: 0.071 | AF45: 0.075 | AG45: 0.111 | AH45: 0.282 | AI45: 0.053 | AJ45: 0.233 | AK45: 0.076 | AL45: 0.117 | AM45: 0.052 | AN45: 40500 | AO45: 0.633 | AP45: 0.099 | AQ45: 0.012 | AR45: 0.066 | AS45: 0.113 | AT45: 0.025 | AU45: 0.127 | AV45: 0.053 | AW45: 0.015 | AX45: 0.056 | AY45: 0.491 | AZ45: 0.042 | BA45: 0.094 | BB45: 0.154 | BC45: 0.099 | BD45: 0.152 | BE45: 0.24 | BF45: 0.006 | BG45: 0.059 | BH45: 0.038 | BI45: 0.08 | BJ45: 0.078 | BK45: 0.472 | BL45: 0 | BM45: 0.472 | BN45: 0.187 | BO45: 0.313 | BP45: 0.028 | BQ45: 160200 | BR45: 0.474 | BS45: 0.526 | BT45: 0.002 | BU45: 0.071 | BV45: 0.075 | BW45: 0.106 | BX45: 0.168 | BY45: 0.578 | BZ45: ='Tapestry Input'!AN45*('Current Summary'!B$38/'Tapestry Input'!AN$8) -> 0 | CA45: ='Tapestry Input'!BQ45*($C$5/'Tapestry Input'!BQ$8) -> 0 | CB45: =IFERROR(C45*('Initial Inputs'!$B$11/SUM($C$9:$C$76)),0) -> 0 | CC45: =IFERROR(CB45/SUM($CB$9:$CB$76),0) -> 0 | CD45: =IFERROR('Tapestry Input'!CC45/'Tapestry Input'!J45,0) -> 0 | CE45: =IF((BK45-'Future Preferences'!$B$5+'Future Preferences'!$D$5)<0,0,(BK45-'Future Preferences'!$B$5+'Future Preferences'!$D$5)) -> 0.4648227889 | CF45: =IF((BL45-'Future Preferences'!$B$6+'Future Preferences'!$D$6)<0,0,(BL45-'Future Preferences'!$B$6+'Future Preferences'!$D$6)) -> 0 | CG45: 0.4648227889 | CH45: 0.2214537491 | CI45: =IF((BO45-'Future Preferences'!$B$9+'Future Preferences'!$D$9)<0,0,(BO45-'Future Preferences'!$B$9+'Future Preferences'!$D$9)) -> 0.313723462 | CJ45: =IF((BP45-'Future Preferences'!$B$10+'Future Preferences'!$D$10)<0,0,(BP45-'Future Preferences'!$B$10+'Future Preferences'!$D$10)) -> 0
A46: 38 | B46: Old and Newcomers | D46: 8 | E46: Middle Ground | F46: 3 | G46: Metro Cities | H46: Singles | I46: 2788171 | J46: =IFERROR(I46/$I$8,0) -> 0.02326132917 | K46: 2.1 | L46: 50.7 | M46: 839.5 | N46: MED | O46: 2.1 | P46: 38.8 | Q46: 0.189 | R46: 0.381 | S46: 0.247 | T46: 0.182 | U46: 0.014 | V46: 0.012 | W46: 0.083 | X46: 0.043 | Y46: 0.08 | Z46: 0.017 | AA46: 0.75 | AB46: 0.4 | AC46: 0.085 | AD46: 0.416 | AE46: 0.098 | AF46: 0.035 | AG46: 0.067 | AH46: 0.243 | AI46: 0.04 | AJ46: 0.247 | AK46: 0.087 | AL46: 0.18 | AM46: 0.102 | AN46: 39200 | AO46: 0.622 | AP46: 0.069 | AQ46: 0.012 | AR46: 0.049 | AS46: 0.085 | AT46: 0.023 | AU46: 0.126 | AV46: 0.042 | AW46: 0.018 | AX46: 0.066 | AY46: 0.53 | AZ46: 0.048 | BA46: 0.124 | BB46: 0.221 | BC46: 0.114 | BD46: 0.151 | BE46: 0.21 | BF46: 0.003 | BG46: 0.041 | BH46: 0.029 | BI46: 0.053 | BJ46: 0.054 | BK46: 0.432 | BL46: 0.216 | BM46: 0.216 | BN46: 0.116 | BO46: 0.418 | BP46: 0.035 | BQ46: 161700 | BR46: 0.459 | BS46: 0.541 | BT46: 0.002 | BU46: 0.104 | BV46: 0.12 | BW46: 0.167 | BX46: 0.218 | BY46: 0.388 | BZ46: ='Tapestry Input'!AN46*('Current Summary'!B$38/'Tapestry Input'!AN$8) -> 0 | CA46: ='Tapestry Input'!BQ46*($C$5/'Tapestry Input'!BQ$8) -> 0 | CB46: =IFERROR(C46*('Initial Inputs'!$B$11/SUM($C$9:$C$76)),0) -> 0 | CC46: =IFERROR(CB46/SUM($CB$9:$CB$76),0) -> 0 | CD46: =IFERROR('Tapestry Input'!CC46/'Tapestry Input'!J46,0) -> 0 | CE46: =IF((BK46-'Future Preferences'!$B$5+'Future Preferences'!$D$5)<0,0,(BK46-'Future Preferences'!$B$5+'Future Preferences'!$D$5)) -> 0.4248227889 | CF46: =IF((BL46-'Future Preferences'!$B$6+'Future Preferences'!$D$6)<0,0,(BL46-'Future Preferences'!$B$6+'Future Preferences'!$D$6)) -> 0.0129550059 | CG46: 0.411867783 | CH46: 0.1564537491 | CI46: =IF((BO46-'Future Preferences'!$B$9+'Future Preferences'!$D$9)<0,0,(BO46-'Future Preferences'!$B$9+'Future Preferences'!$D$9)) -> 0.418723462 | CJ46: =IF((BP46-'Future Preferences'!$B$10+'Future Preferences'!$D$10)<0,0,(BP46-'Future Preferences'!$B$10+'Future Preferences'!$D$10)) -> 0
A47: 39 | B47: Hardscrabble Road | D47: 8 | E47: Middle Ground | F47: 3 | G47: Metro Cities | H47: Singles | I47: 1490056 | J47: =IFERROR(I47/$I$8,0) -> 0.01243133333 | K47: 2.64 | L47: 74.5 | M47: 74.9 | N47: LOW | O47: 2.64 | P47: 31.8 | Q47: 0.283 | R47: 0.387 | S47: 0.232 | T47: 0.098 | U47: 0.018 | V47: 0.019 | W47: 0.131 | X47: 0.063 | Y47: 0.049 | Z47: 0.005 | AA47: 0.715 | AB47: 0.445 | AC47: 0.041 | AD47: 0.463 | AE47: 0.051 | AF47: 0.104 | AG47: 0.179 | AH47: 0.299 | AI47: 0.077 | AJ47: 0.203 | AK47: 0.056 | AL47: 0.06 | AM47: 0.023 | AN47: 27200 | AO47: 0.567 | AP47: 0.148 | AQ47: 0.014 | AR47: 0.069 | AS47: 0.166 | AT47: 0.023 | AU47: 0.128 | AV47: 0.05 | AW47: 0.012 | AX47: 0.037 | AY47: 0.469 | AZ47: 0.032 | BA47: 0.057 | BB47: 0.101 | BC47: 0.094 | BD47: 0.131 | BE47: 0.274 | BF47: 0.007 | BG47: 0.068 | BH47: 0.035 | BI47: 0.126 | BJ47: 0.107 | BK47: 0.586 | BL47: 0.586 | BM47: 0 | BN47: 0.17 | BO47: 0.211 | BP47: 0.033 | BQ47: 74600 | BR47: 0.408 | BS47: 0.592 | BT47: 0.001 | BU47: 0.045 | BV47: 0.047 | BW47: 0.063 | BX47: 0.108 | BY47: 0.736 | BZ47: ='Tapestry Input'!AN47*('Current Summary'!B$38/'Tapestry Input'!AN$8) -> 0 | CA47: ='Tapestry Input'!BQ47*($C$5/'Tapestry Input'!BQ$8) -> 0 | CB47: =IFERROR(C47*('Initial Inputs'!$B$11/SUM($C$9:$C$76)),0) -> 0 | CC47: =IFERROR(CB47/SUM($CB$9:$CB$76),0) -> 0 | CD47: =IFERROR('Tapestry Input'!CC47/'Tapestry Input'!J47,0) -> 0 | CE47: =IF((BK47-'Future Preferences'!$B$5+'Future Preferences'!$D$5)<0,0,(BK47-'Future Preferences'!$B$5+'Future Preferences'!$D$5)) -> 0.5788227889 | CF47: =IF((BL47-'Future Preferences'!$B$6+'Future Preferences'!$D$6)<0,0,(BL47-'Future Preferences'!$B$6+'Future Preferences'!$D$6)) -> 0.3829550059 | CG47: 0.195867783 | CH47: 0.2094537491 | CI47: =IF((BO47-'Future Preferences'!$B$9+'Future Preferences'!$D$9)<0,0,(BO47-'Future Preferences'!$B$9+'Future Preferences'!$D$9)) -> 0.211723462 | CJ47: =IF((BP47-'Future Preferences'!$B$10+'Future Preferences'!$D$10)<0,0,(BP47-'Future Preferences'!$B$10+'Future Preferences'!$D$10)) -> 0
A48: 40 | B48: Silver & Gold | D48: 9 | E48: Senior Styles | F48: 4 | G48: Suburban Periphery | H48: Married Couples w/No Kids | I48: 899668 | J48: =IFERROR(I48/$I$8,0) -> 0.007505807029 | K48: 2.02 | L48: 22.8 | M48: 101 | N48: LOW | O48: 2.02 | P48: 65 | Q48: 0.098 | R48: 0.152 | S48: 0.32 | T48: 0.43 | U48: 0.007 | V48: 0.006 | W48: 0.05 | X48: 0.029 | Y48: 0.029 | Z48: 0.009 | AA48: 0.87 | AB48: 0.378 | AC48: 0.11 | AD48: 0.39 | AE48: 0.122 | AF48: 0.015 | AG48: 0.034 | AH48: 0.192 | AI48: 0.022 | AJ48: 0.223 | AK48: 0.076 | AL48: 0.254 | AM48: 0.184 | AN48: 64800 | AO48: 0.411 | AP48: 0.063 | AQ48: 0.012 | AR48: 0.057 | AS48: 0.057 | AT48: 0.025 | AU48: 0.119 | AV48: 0.035 | AW48: 0.016 | AX48: 0.104 | AY48: 0.532 | AZ48: 0.042 | BA48: 0.206 | BB48: 0.245 | BC48: 0.157 | BD48: 0.121 | BE48: 0.154 | BF48: 0.004 | BG48: 0.034 | BH48: 0.021 | BI48: 0.025 | BJ48: 0.033 | BK48: 0.648 | BL48: 0.648 | BM48: 0 | BN48: 0.09 | BO48: 0.219 | BP48: 0.043 | BQ48: 320500 | BR48: 0.835 | BS48: 0.165 | BT48: 0.002 | BU48: 0.24 | BV48: 0.219 | BW48: 0.211 | BX48: 0.156 | BY48: 0.171 | BZ48: ='Tapestry Input'!AN48*('Current Summary'!B$38/'Tapestry Input'!AN$8) -> 0 | CA48: ='Tapestry Input'!BQ48*($C$5/'Tapestry Input'!BQ$8) -> 0 | CB48: =IFERROR(C48*('Initial Inputs'!$B$11/SUM($C$9:$C$76)),0) -> 0 | CC48: =IFERROR(CB48/SUM($CB$9:$CB$76),0) -> 0 | CD48: =IFERROR('Tapestry Input'!CC48/'Tapestry Input'!J48,0) -> 0 | CE48: =IF((BK48-'Future Preferences'!$B$5+'Future Preferences'!$D$5)<0,0,(BK48-'Future Preferences'!$B$5+'Future Preferences'!$D$5)) -> 0.6408227889 | CF48: =IF((BL48-'Future Preferences'!$B$6+'Future Preferences'!$D$6)<0,0,(BL48-'Future Preferences'!$B$6+'Future Preferences'!$D$6)) -> 0.4449550059 | CG48: 0.195867783 | CH48: 0.1394537491 | CI48: =IF((BO48-'Future Preferences'!$B$9+'Future Preferences'!$D$9)<0,0,(BO48-'Future Preferences'!$B$9+'Future Preferences'!$D$9)) -> 0.219723462 | CJ48: =IF((BP48-'Future Preferences'!$B$10+'Future Preferences'!$D$10)<0,0,(BP48-'Future Preferences'!$B$10+'Future Preferences'!$D$10)) -> 0
A49: 41 | B49: Golden Years | D49: 9 | E49: Senior Styles | F49: 4 | G49: Suburban Periphery | H49: Singles | I49: 1609443 | J49: =IFERROR(I49/$I$8,0) -> 0.01342736274 | K49: 2.04 | L49: 41.5 | M49: 1017.8 | N49: MED | O49: 2.04 | P49: 51.3 | Q49: 0.152 | R49: 0.27 | S49: 0.281 | T49: 0.297 | U49: 0.014 | V49: 0.009 | W49: 0.073 | X49: 0.04 | Y49: 0.054 | Z49: 0.018 | AA49: 0.793 | AB49: 0.348 | AC49: 0.139 | AD49: 0.357 | AE49: 0.156 | AF49: 0.026 | AG49: 0.042 | AH49: 0.191 | AI49: 0.019 | AJ49: 0.19 | AK49: 0.069 | AL49: 0.261 | AM49: 0.202 | AN49: 62700 | AO49: 0.547 | AP49: 0.057 | AQ49: 0.007 | AR49: 0.042 | AS49: 0.073 | AT49: 0.026 | AU49: 0.099 | AV49: 0.037 | AW49: 0.023 | AX49: 0.097 | AY49: 0.55 | AZ49: 0.047 | BA49: 0.205 | BB49: 0.302 | BC49: 0.122 | BD49: 0.128 | BE49: 0.137 | BF49: 0.002 | BG49: 0.027 | BH49: 0.019 | BI49: 0.024 | BJ49: 0.033 | BK49: 0.41 | BL49: 0.205 | BM49: 0.205 | BN49: 0.158 | BO49: 0.414 | BP49: 0.017 | BQ49: 304700 | BR49: 0.633 | BS49: 0.367 | BT49: 0.002 | BU49: 0.115 | BV49: 0.136 | BW49: 0.18 | BX49: 0.195 | BY49: 0.371 | BZ49: ='Tapestry Input'!AN49*('Current Summary'!B$38/'Tapestry Input'!AN$8) -> 0 | CA49: ='Tapestry Input'!BQ49*($C$5/'Tapestry Input'!BQ$8) -> 0 | CB49: =IFERROR(C49*('Initial Inputs'!$B$11/SUM($C$9:$C$76)),0) -> 0 | CC49: =IFERROR(CB49/SUM($CB$9:$CB$76),0) -> 0 | CD49: =IFERROR('Tapestry Input'!CC49/'Tapestry Input'!J49,0) -> 0 | CE49: =IF((BK49-'Future Preferences'!$B$5+'Future Preferences'!$D$5)<0,0,(BK49-'Future Preferences'!$B$5+'Future Preferences'!$D$5)) -> 0.4028227889 | CF49: =IF((BL49-'Future Preferences'!$B$6+'Future Preferences'!$D$6)<0,0,(BL49-'Future Preferences'!$B$6+'Future Preferences'!$D$6)) -> 0.001955005905 | CG49: 0.400867783 | CH49: 0.1824537491 | CI49: =IF((BO49-'Future Preferences'!$B$9+'Future Preferences'!$D$9)<0,0,(BO49-'Future Preferences'!$B$9+'Future Preferences'!$D$9)) -> 0.414723462 | CJ49: =IF((BP49-'Future Preferences'!$B$10+'Future Preferences'!$D$10)<0,0,(BP49-'Future Preferences'!$B$10+'Future Preferences'!$D$10)) -> 0
A50: 42 | B50: The Elders | D50: 9 | E50: Senior Styles | F50: 4 | G50: Suburban Periphery | H50: Married Couples w/No Kids | I50: 877517 | J50: =IFERROR(I50/$I$8,0) -> 0.007321004267 | K50: 1.67 | L50: 20.9 | M50: 456 | N50: LOW | O50: 1.67 | P50: 71.8 | Q50: 0.033 | R50: 0.067 | S50: 0.196 | T50: 0.705 | U50: 0.002 | V50: 0.002 | W50: 0.015 | X50: 0.01 | Y50: 0.016 | Z50: 0.004 | AA50: 0.951 | AB50: 0.362 | AC50: 0.106 | AD50: 0.402 | AE50: 0.13 | AF50: 0.028 | AG50: 0.066 | AH50: 0.292 | AI50: 0.03 | AJ50: 0.241 | AK50: 0.065 | AL50: 0.166 | AM50: 0.113 | AN50: 37200 | AO50: 0.212 | AP50: 0.092 | AQ50: 0.007 | AR50: 0.045 | AS50: 0.053 | AT50: 0.024 | AU50: 0.156 | AV50: 0.043 | AW50: 0.015 | AX50: 0.096 | AY50: 0.52 | AZ50: 0.039 | BA50: 0.145 | BB50: 0.195 | BC50: 0.161 | BD50: 0.169 | BE50: 0.193 | BF50: 0.003 | BG50: 0.031 | BH50: 0.022 | BI50: 0.029 | BJ50: 0.051 | BK50: 0.388 | BL50: 0.388 | BM50: 0 | BN50: 0.125 | BO50: 0.299 | BP50: 0.187 | BQ50: 167000 | BR50: 0.818 | BS50: 0.182 | BT50: 0.003 | BU50: 0.17 | BV50: 0.216 | BW50: 0.261 | BX50: 0.237 | BY50: 0.114 | BZ50: ='Tapestry Input'!AN50*('Current Summary'!B$38/'Tapestry Input'!AN$8) -> 0 | CA50: ='Tapestry Input'!BQ50*($C$5/'Tapestry Input'!BQ$8) -> 0 | CB50: =IFERROR(C50*('Initial Inputs'!$B$11/SUM($C$9:$C$76)),0) -> 0 | CC50: =IFERROR(CB50/SUM($CB$9:$CB$76),0) -> 0 | CD50: =IFERROR('Tapestry Input'!CC50/'Tapestry Input'!J50,0) -> 0 | CE50: =IF((BK50-'Future Preferences'!$B$5+'Future Preferences'!$D$5)<0,0,(BK50-'Future Preferences'!$B$5+'Future Preferences'!$D$5)) -> 0.3808227889 | CF50: =IF((BL50-'Future Preferences'!$B$6+'Future Preferences'!$D$6)<0,0,(BL50-'Future Preferences'!$B$6+'Future Preferences'!$D$6)) -> 0.1849550059 | CG50: 0.195867783 | CH50: 0.2003538763 | CI50: =IF((BO50-'Future Preferences'!$B$9+'Future Preferences'!$D$9)<0,0,(BO50-'Future Preferences'!$B$9+'Future Preferences'!$D$9)) -> 0.299723462 | CJ50: =IF((BP50-'Future Preferences'!$B$10+'Future Preferences'!$D$10)<0,0,(BP50-'Future Preferences'!$B$10+'Future Preferences'!$D$10)) -> 0.1190998729
A51: 43 | B51: Senior Escapes | D51: 9 | E51: Senior Styles | F51: 5 | G51: Semirural | H51: Married Couples w/No Kids | I51: 1092719 | J51: =IFERROR(I51/$I$8,0) -> 0.009116405108 | K51: 2.18 | L51: 43 | M51: 18.9 | N51: LOW | O51: 2.18 | P51: 53 | Q51: 0.157 | R51: 0.243 | S51: 0.3 | T51: 0.3 | U51: 0.009 | V51: 0.009 | W51: 0.075 | X51: 0.042 | Y51: 0.034 | Z51: 0.005 | AA51: 0.826 | AB51: 0.44 | AC51: 0.056 | AD51: 0.44 | AE51: 0.063 | AF51: 0.053 | AG51: 0.112 | AH51: 0.301 | AI51: 0.06 | AJ51: 0.252 | AK51: 0.073 | AL51: 0.097 | AM51: 0.05 | AN51: 36400 | AO51: 0.419 | AP51: 0.106 | AQ51: 0.028 | AR51: 0.077 | AS51: 0.069 | AT51: 0.019 | AU51: 0.139 | AV51: 0.052 | AW51: 0.013 | AX51: 0.053 | AY51: 0.497 | AZ51: 0.054 | BA51: 0.104 | BB51: 0.155 | BC51: 0.115 | BD51: 0.147 | BE51: 0.242 | BF51: 0.012 | BG51: 0.063 | BH51: 0.042 | BI51: 0.054 | BJ51: 0.066 | BK51: 0.492 | BL51: 0.492 | BM51: 0 | BN51: 0.034 | BO51: 0.072 | BP51: 0.402 | BQ51: 110100 | BR51: 0.756 | BS51: 0.244 | BT51: 0.003 | BU51: 0.157 | BV51: 0.179 | BW51: 0.225 | BX51: 0.231 | BY51: 0.206 | BZ51: ='Tapestry Input'!AN51*('Current Summary'!B$38/'Tapestry Input'!AN$8) -> 0 | CA51: ='Tapestry Input'!BQ51*($C$5/'Tapestry Input'!BQ$8) -> 0 | CB51: =IFERROR(C51*('Initial Inputs'!$B$11/SUM($C$9:$C$76)),0) -> 0 | CC51: =IFERROR(CB51/SUM($CB$9:$CB$76),0) -> 0 | CD51: =IFERROR('Tapestry Input'!CC51/'Tapestry Input'!J51,0) -> 0 | CE51: =IF((BK51-'Future Preferences'!$B$5+'Future Preferences'!$D$5)<0,0,(BK51-'Future Preferences'!$B$5+'Future Preferences'!$D$5)) -> 0.4848227889 | CF51: =IF((BL51-'Future Preferences'!$B$6+'Future Preferences'!$D$6)<0,0,(BL51-'Future Preferences'!$B$6+'Future Preferences'!$D$6)) -> 0.2889550059 | CG51: 0.195867783 | CH51: 0.1083538763 | CI51: =IF((BO51-'Future Preferences'!$B$9+'Future Preferences'!$D$9)<0,0,(BO51-'Future Preferences'!$B$9+'Future Preferences'!$D$9)) -> 0.07272346201 | CJ51: =IF((BP51-'Future Preferences'!$B$10+'Future Preferences'!$D$10)<0,0,(BP51-'Future Preferences'!$B$10+'Future Preferences'!$D$10)) -> 0.3340998729
A52: 44 | B52: Retirement Communities | D52: 9 | E52: Senior Styles | F52: 3 | G52: Metro Cities | H52: Singles | I52: 1453508 | J52: =IFERROR(I52/$I$8,0) -> 0.01212641837 | K52: 1.86 | L52: 47.1 | M52: 404.3 | N52: LOW | O52: 1.86 | P52: 52.5 | Q52: 0.138 | R52: 0.285 | S52: 0.233 | T52: 0.344 | U52: 0.011 | V52: 0.008 | W52: 0.062 | X52: 0.035 | Y52: 0.06 | Z52: 0.013 | AA52: 0.812 | AB52: 0.374 | AC52: 0.109 | AD52: 0.395 | AE52: 0.122 | AF52: 0.053 | AG52: 0.075 | AH52: 0.272 | AI52: 0.034 | AJ52: 0.217 | AK52: 0.073 | AL52: 0.173 | AM52: 0.104 | AN52: 35600 | AO52: 0.475 | AP52: 0.074 | AQ52: 0.009 | AR52: 0.049 | AS52: 0.09 | AT52: 0.024 | AU52: 0.121 | AV52: 0.044 | AW52: 0.018 | AX52: 0.074 | AY52: 0.525 | AZ52: 0.044 | BA52: 0.133 | BB52: 0.222 | BC52: 0.113 | BD52: 0.157 | BE52: 0.198 | BF52: 0.003 | BG52: 0.039 | BH52: 0.027 | BI52: 0.053 | BJ52: 0.055 | BK52: 0.316 | BL52: 0.316 | BM52: 0 | BN52: 0.121 | BO52: 0.529 | BP52: 0.034 | BQ52: 166100 | BR52: 0.458 | BS52: 0.542 | BT52: 0.002 | BU52: 0.104 | BV52: 0.13 | BW52: 0.187 | BX52: 0.229 | BY52: 0.348 | BZ52: ='Tapestry Input'!AN52*('Current Summary'!B$38/'Tapestry Input'!AN$8) -> 0 | CA52: ='Tapestry Input'!BQ52*($C$5/'Tapestry Input'!BQ$8) -> 0 | CB52: =IFERROR(C52*('Initial Inputs'!$B$11/SUM($C$9:$C$76)),0) -> 0 | CC52: =IFERROR(CB52/SUM($CB$9:$CB$76),0) -> 0 | CD52: =IFERROR('Tapestry Input'!CC52/'Tapestry Input'!J52,0) -> 0 | CE52: =IF((BK52-'Future Preferences'!$B$5+'Future Preferences'!$D$5)<0,0,(BK52-'Future Preferences'!$B$5+'Future Preferences'!$D$5)) -> 0.3088227889 | CF52: =IF((BL52-'Future Preferences'!$B$6+'Future Preferences'!$D$6)<0,0,(BL52-'Future Preferences'!$B$6+'Future Preferences'!$D$6)) -> 0.1129550059 | CG52: 0.195867783 | CH52: 0.1614537491 | CI52: =IF((BO52-'Future Preferences'!$B$9+'Future Preferences'!$D$9)<0,0,(BO52-'Future Preferences'!$B$9+'Future Preferences'!$D$9)) -> 0.529723462 | CJ52: =IF((BP52-'Future Preferences'!$B$10+'Future Preferences'!$D$10)<0,0,(BP52-'Future Preferences'!$B$10+'Future Preferences'!$D$10)) -> 0
A53: 45 | B53: Social Security Set | D53: 9 | E53: Senior Styles | F53: 3 | G53: Metro Cities | H53: Singles | I53: 965358 | J53: =IFERROR(I53/$I$8,0) -> 0.008053849711 | K53: 1.72 | L53: 74.5 | M53: 1192.8 | N53: MED | O53: 1.72 | P53: 44.5 | Q53: 0.14 | R53: 0.365 | S53: 0.259 | T53: 0.236 | U53: 0.01 | V53: 0.009 | W53: 0.062 | X53: 0.037 | Y53: 0.074 | Z53: 0.015 | AA53: 0.794 | AB53: 0.386 | AC53: 0.098 | AD53: 0.399 | AE53: 0.117 | AF53: 0.118 | AG53: 0.152 | AH53: 0.245 | AI53: 0.057 | AJ53: 0.196 | AK53: 0.056 | AL53: 0.111 | AM53: 0.065 | AN53: 16300 | AO53: 0.416 | AP53: 0.136 | AQ53: 0.008 | AR53: 0.043 | AS53: 0.075 | AT53: 0.017 | AU53: 0.112 | AV53: 0.043 | AW53: 0.018 | AX53: 0.057 | AY53: 0.588 | AZ53: 0.039 | BA53: 0.096 | BB53: 0.183 | BC53: 0.098 | BD53: 0.139 | BE53: 0.294 | BF53: 0.004 | BG53: 0.038 | BH53: 0.023 | BI53: 0.059 | BJ53: 0.066 | BK53: 0.127 | BL53: 0.0635 | BM53: 0.0635 | BN53: 0.099 | BO53: 0.755 | BP53: 0.019 | BQ53: 137100 | BR53: 0.142 | BS53: 0.858 | BT53: 0.002 | BU53: 0.079 | BV53: 0.062 | BW53: 0.114 | BX53: 0.193 | BY53: 0.549 | BZ53: ='Tapestry Input'!AN53*('Current Summary'!B$38/'Tapestry Input'!AN$8) -> 0 | CA53: ='Tapestry Input'!BQ53*($C$5/'Tapestry Input'!BQ$8) -> 0 | CB53: =IFERROR(C53*('Initial Inputs'!$B$11/SUM($C$9:$C$76)),0) -> 0 | CC53: =IFERROR(CB53/SUM($CB$9:$CB$76),0) -> 0 | CD53: =IFERROR('Tapestry Input'!CC53/'Tapestry Input'!J53,0) -> 0 | CE53: =IF((BK53-'Future Preferences'!$B$5+'Future Preferences'!$D$5)<0,0,(BK53-'Future Preferences'!$B$5+'Future Preferences'!$D$5)) -> 0.1198227889 | CF53: =IF((BL53-'Future Preferences'!$B$6+'Future Preferences'!$D$6)<0,0,(BL53-'Future Preferences'!$B$6+'Future Preferences'!$D$6)) -> 0 | CG53: 0.1198227889 | CH53: 0.1244537491 | CI53: =IF((BO53-'Future Preferences'!$B$9+'Future Preferences'!$D$9)<0,0,(BO53-'Future Preferences'!$B$9+'Future Preferences'!$D$9)) -> 0.755723462 | CJ53: =IF((BP53-'Future Preferences'!$B$10+'Future Preferences'!$D$10)<0,0,(BP53-'Future Preferences'!$B$10+'Future Preferences'!$D$10)) -> 0
A54: 46 | B54: Southern Satellites | D54: 10 | E54: Rustic Outposts | F54: 6 | G54: Rural | H54: Married Couples | I54: 3797357 | J54: =IFERROR(I54/$I$8,0) -> 0.03168082989 | K54: 2.65 | L54: 38.8 | M54: 50.1 | N54: LOW | O54: 2.65 | P54: 39.9 | Q54: 0.234 | R54: 0.336 | S54: 0.288 | T54: 0.143 | U54: 0.014 | V54: 0.014 | W54: 0.118 | X54: 0.061 | Y54: 0.04 | Z54: 0.006 | AA54: 0.747 | AB54: 0.44 | AC54: 0.053 | AD54: 0.448 | AE54: 0.059 | AF54: 0.068 | AG54: 0.124 | AH54: 0.316 | AI54: 0.071 | AJ54: 0.214 | AK54: 0.074 | AL54: 0.09 | AM54: 0.042 | AN54: 44400 | AO54: 0.59 | AP54: 0.08 | AQ54: 0.037 | AR54: 0.092 | AS54: 0.152 | AT54: 0.024 | AU54: 0.121 | AV54: 0.063 | AW54: 0.011 | AX54: 0.043 | AY54: 0.406 | AZ54: 0.05 | BA54: 0.102 | BB54: 0.152 | BC54: 0.096 | BD54: 0.137 | BE54: 0.178 | BF54: 0.012 | BG54: 0.079 | BH54: 0.057 | BI54: 0.102 | BJ54: 0.085 | BK54: 0.643 | BL54: 0.643 | BM54: 0 | BN54: 0.015 | BO54: 0.02 | BP54: 0.321 | BQ54: 121400 | BR54: 0.783 | BS54: 0.217 | BT54: 0.004 | BU54: 0.175 | BV54: 0.237 | BW54: 0.177 | BX54: 0.166 | BY54: 0.241 | BZ54: ='Tapestry Input'!AN54*('Current Summary'!B$38/'Tapestry Input'!AN$8) -> 0 | CA54: ='Tapestry Input'!BQ54*($C$5/'Tapestry Input'!BQ$8) -> 0 | CB54: =IFERROR(C54*('Initial Inputs'!$B$11/SUM($C$9:$C$76)),0) -> 0 | CC54: =IFERROR(CB54/SUM($CB$9:$CB$76),0) -> 0 | CD54: =IFERROR('Tapestry Input'!CC54/'Tapestry Input'!J54,0) -> 0 | CE54: =IF((BK54-'Future Preferences'!$B$5+'Future Preferences'!$D$5)<0,0,(BK54-'Future Preferences'!$B$5+'Future Preferences'!$D$5)) -> 0.6358227889 | CF54: =IF((BL54-'Future Preferences'!$B$6+'Future Preferences'!$D$6)<0,0,(BL54-'Future Preferences'!$B$6+'Future Preferences'!$D$6)) -> 0.4399550059 | CG54: 0.195867783 | CH54: 0.09035387627 | CI54: =IF((BO54-'Future Preferences'!$B$9+'Future Preferences'!$D$9)<0,0,(BO54-'Future Preferences'!$B$9+'Future Preferences'!$D$9)) -> 0.02072346201 | CJ54: =IF((BP54-'Future Preferences'!$B$10+'Future Preferences'!$D$10)<0,0,(BP54-'Future Preferences'!$B$10+'Future Preferences'!$D$10)) -> 0.2530998729
A55: 47 | B55: Rooted Rural | D55: 10 | E55: Rustic Outposts | F55: 6 | G55: Rural | H55: Married Couples | I55: 2437560 | J55: =IFERROR(I55/$I$8,0) -> 0.02033622957 | K55: 2.46 | L55: 28.2 | M55: 21.1 | N55: LOW | O55: 2.46 | P55: 44.4 | Q55: 0.203 | R55: 0.305 | S55: 0.303 | T55: 0.19 | U55: 0.012 | V55: 0.012 | W55: 0.099 | X55: 0.055 | Y55: 0.033 | Z55: 0.005 | AA55: 0.785 | AB55: 0.446 | AC55: 0.054 | AD55: 0.444 | AE55: 0.056 | AF55: 0.077 | AG55: 0.126 | AH55: 0.338 | AI55: 0.07 | AJ55: 0.196 | AK55: 0.068 | AL55: 0.083 | AM55: 0.042 | AN55: 39200 | AO55: 0.507 | AP55: 0.083 | AQ55: 0.058 | AR55: 0.085 | AS55: 0.165 | AT55: 0.02 | AU55: 0.115 | AV55: 0.064 | AW55: 0.01 | AX55: 0.038 | AY55: 0.393 | AZ55: 0.052 | BA55: 0.1 | BB55: 0.154 | BC55: 0.09 | BD55: 0.127 | BE55: 0.174 | BF55: 0.022 | BG55: 0.079 | BH55: 0.052 | BI55: 0.109 | BJ55: 0.093 | BK55: 0.721 | BL55: 0.721 | BM55: 0 | BN55: 0.014 | BO55: 0.015 | BP55: 0.248 | BQ55: 109500 | BR55: 0.802 | BS55: 0.198 | BT55: 0.003 | BU55: 0.127 | BV55: 0.186 | BW55: 0.158 | BX55: 0.181 | BY55: 0.345 | BZ55: ='Tapestry Input'!AN55*('Current Summary'!B$38/'Tapestry Input'!AN$8) -> 0 | CA55: ='Tapestry Input'!BQ55*($C$5/'Tapestry Input'!BQ$8) -> 0 | CB55: =IFERROR(C55*('Initial Inputs'!$B$11/SUM($C$9:$C$76)),0) -> 0 | CC55: =IFERROR(CB55/SUM($CB$9:$CB$76),0) -> 0 | CD55: =IFERROR('Tapestry Input'!CC55/'Tapestry Input'!J55,0) -> 0 | CE55: =IF((BK55-'Future Preferences'!$B$5+'Future Preferences'!$D$5)<0,0,(BK55-'Future Preferences'!$B$5+'Future Preferences'!$D$5)) -> 0.7138227889 | CF55: =IF((BL55-'Future Preferences'!$B$6+'Future Preferences'!$D$6)<0,0,(BL55-'Future Preferences'!$B$6+'Future Preferences'!$D$6)) -> 0.5179550059 | CG55: 0.195867783 | CH55: 0.09035387627 | CI55: =IF((BO55-'Future Preferences'!$B$9+'Future Preferences'!$D$9)<0,0,(BO55-'Future Preferences'!$B$9+'Future Preferences'!$D$9)) -> 0.01572346201 | CJ55: =IF((BP55-'Future Preferences'!$B$10+'Future Preferences'!$D$10)<0,0,(BP55-'Future Preferences'!$B$10+'Future Preferences'!$D$10)) -> 0.1800998729
A56: 48 | B56: Diners & Miners | D56: 10 | E56: Rustic Outposts | F56: 6 | G56: Rural | H56: Married Couples | I56: 813235 | J56: =IFERROR(I56/$I$8,0) -> 0.006784708336 | K56: 2.52 | L56: 41.6 | M56: 12.2 | N56: LOW | O56: 2.52 | P56: 40.7 | Q56: 0.225 | R56: 0.329 | S56: 0.284 | T56: 0.162 | U56: 0.014 | V56: 0.014 | W56: 0.11 | X56: 0.056 | Y56: 0.031 | Z56: 0.005 | AA56: 0.77 | AB56: 0.461 | AC56: 0.04 | AD56: 0.454 | AE56: 0.044 | AF56: 0.102 | AG56: 0.139 | AH56: 0.329 | AI56: 0.07 | AJ56: 0.193 | AK56: 0.058 | AL56: 0.074 | AM56: 0.036 | AN56: 38700 | AO56: 0.49 | AP56: 0.08 | AQ56: 0.225 | AR56: 0.068 | AS56: 0.062 | AT56: 0.018 | AU56: 0.105 | AV56: 0.056 | AW56: 0.009 | AX56: 0.036 | AY56: 0.37 | AZ56: 0.051 | BA56: 0.092 | BB56: 0.155 | BC56: 0.087 | BD56: 0.126 | BE56: 0.175 | BF56: 0.012 | BG56: 0.137 | BH56: 0.053 | BI56: 0.068 | BJ56: 0.095 | BK56: 0.699 | BL56: 0.699 | BM56: 0 | BN56: 0.019 | BO56: 0.033 | BP56: 0.25 | BQ56: 93700 | BR56: 0.76 | BS56: 0.24 | BT56: 0.004 | BU56: 0.103 | BV56: 0.145 | BW56: 0.158 | BX56: 0.197 | BY56: 0.394 | BZ56: ='Tapestry Input'!AN56*('Current Summary'!B$38/'Tapestry Input'!AN$8) -> 0 | CA56: ='Tapestry Input'!BQ56*($C$5/'Tapestry Input'!BQ$8) -> 0 | CB56: =IFERROR(C56*('Initial Inputs'!$B$11/SUM($C$9:$C$76)),0) -> 0 | CC56: =IFERROR(CB56/SUM($CB$9:$CB$76),0) -> 0 | CD56: =IFERROR('Tapestry Input'!CC56/'Tapestry Input'!J56,0) -> 0 | CE56: =IF((BK56-'Future Preferences'!$B$5+'Future Preferences'!$D$5)<0,0,(BK56-'Future Preferences'!$B$5+'Future Preferences'!$D$5)) -> 0.6918227889 | CF56: =IF((BL56-'Future Preferences'!$B$6+'Future Preferences'!$D$6)<0,0,(BL56-'Future Preferences'!$B$6+'Future Preferences'!$D$6)) -> 0.4959550059 | CG56: 0.195867783 | CH56: 0.09235387627 | CI56: =IF((BO56-'Future Preferences'!$B$9+'Future Preferences'!$D$9)<0,0,(BO56-'Future Preferences'!$B$9+'Future Preferences'!$D$9)) -> 0.03372346201 | CJ56: =IF((BP56-'Future Preferences'!$B$10+'Future Preferences'!$D$10)<0,0,(BP56-'Future Preferences'!$B$10+'Future Preferences'!$D$10)) -> 0.1820998729
A57: 49 | B57: Down the Road | D57: 10 | E57: Rustic Outposts | F57: 5 | G57: Semirural | H57: Married Couples | I57: 1363912 | J57: =IFERROR(I57/$I$8,0) -> 0.0113789312 | K57: 2.73 | L57: 70.7 | M57: 30.6 | N57: LOW | O57: 2.73 | P57: 34.4 | Q57: 0.264 | R57: 0.371 | S57: 0.247 | T57: 0.117 | U57: 0.016 | V57: 0.017 | W57: 0.129 | X57: 0.062 | Y57: 0.042 | Z57: 0.005 | AA57: 0.73 | AB57: 0.449 | AC57: 0.039 | AD57: 0.466 | AE57: 0.046 | AF57: 0.098 | AG57: 0.152 | AH57: 0.292 | AI57: 0.07 | AJ57: 0.219 | AK57: 0.068 | AL57: 0.072 | AM57: 0.03 | AN57: 37100 | AO57: 0.59 | AP57: 0.102 | AQ57: 0.034 | AR57: 0.093 | AS57: 0.124 | AT57: 0.024 | AU57: 0.128 | AV57: 0.057 | AW57: 0.012 | AX57: 0.042 | AY57: 0.442 | AZ57: 0.044 | BA57: 0.081 | BB57: 0.119 | BC57: 0.099 | BD57: 0.138 | BE57: 0.237 | BF57: 0.014 | BG57: 0.085 | BH57: 0.05 | BI57: 0.091 | BJ57: 0.086 | BK57: 0.412 | BL57: 0.412 | BM57: 0 | BN57: 0.032 | BO57: 0.076 | BP57: 0.48 | BQ57: 102800 | BR57: 0.659 | BS57: 0.341 | BT57: 0.004 | BU57: 0.16 | BV57: 0.229 | BW57: 0.201 | BX57: 0.201 | BY57: 0.204 | BZ57: ='Tapestry Input'!AN57*('Current Summary'!B$38/'Tapestry Input'!AN$8) -> 0 | CA57: ='Tapestry Input'!BQ57*($C$5/'Tapestry Input'!BQ$8) -> 0 | CB57: =IFERROR(C57*('Initial Inputs'!$B$11/SUM($C$9:$C$76)),0) -> 0 | CC57: =IFERROR(CB57/SUM($CB$9:$CB$76),0) -> 0 | CD57: =IFERROR('Tapestry Input'!CC57/'Tapestry Input'!J57,0) -> 0 | CE57: =IF((BK57-'Future Preferences'!$B$5+'Future Preferences'!$D$5)<0,0,(BK57-'Future Preferences'!$B$5+'Future Preferences'!$D$5)) -> 0.4048227889 | CF57: =IF((BL57-'Future Preferences'!$B$6+'Future Preferences'!$D$6)<0,0,(BL57-'Future Preferences'!$B$6+'Future Preferences'!$D$6)) -> 0.2089550059 | CG57: 0.195867783 | CH57: 0.1063538763 | CI57: =IF((BO57-'Future Preferences'!$B$9+'Future Preferences'!$D$9)<0,0,(BO57-'Future Preferences'!$B$9+'Future Preferences'!$D$9)) -> 0.07672346201 | CJ57: =IF((BP57-'Future Preferences'!$B$10+'Future Preferences'!$D$10)<0,0,(BP57-'Future Preferences'!$B$10+'Future Preferences'!$D$10)) -> 0.4120998729
A58: 50 | B58: Rural Bypasses | D58: 10 | E58: Rustic Outposts | F58: 6 | G58: Rural | H58: Married Couples | I58: 1666945 | J58: =IFERROR(I58/$I$8,0) -> 0.01390709406 | K58: 2.53 | L58: 60 | M58: 33.2 | N58: LOW | O58: 2.53 | P58: 39.9 | Q58: 0.219 | R58: 0.346 | S58: 0.28 | T58: 0.154 | U58: 0.014 | V58: 0.014 | W58: 0.108 | X58: 0.06 | Y58: 0.038 | Z58: 0.004 | AA58: 0.761 | AB58: 0.453 | AC58: 0.044 | AD58: 0.457 | AE58: 0.047 | AF58: 0.109 | AG58: 0.173 | AH58: 0.313 | AI58: 0.075 | AJ58: 0.18 | AK58: 0.057 | AL58: 0.062 | AM58: 0.031 | AN58: 29100 | AO58: 0.454 | AP58: 0.124 | AQ58: 0.04 | AR58: 0.074 | AS58: 0.178 | AT58: 0.02 | AU58: 0.117 | AV58: 0.057 | AW58: 0.009 | AX58: 0.036 | AY58: 0.408 | AZ58: 0.06 | BA58: 0.079 | BB58: 0.138 | BC58: 0.09 | BD58: 0.126 | BE58: 0.215 | BF58: 0.017 | BG58: 0.069 | BH58: 0.045 | BI58: 0.126 | BJ58: 0.096 | BK58: 0.63 | BL58: 0.63 | BM58: 0 | BN58: 0.025 | BO58: 0.044 | BP58: 0.301 | BQ58: 88600 | BR58: 0.705 | BS58: 0.295 | BT58: 0.003 | BU58: 0.102 | BV58: 0.186 | BW58: 0.174 | BX58: 0.195 | BY58: 0.341 | BZ58: ='Tapestry Input'!AN58*('Current Summary'!B$38/'Tapestry Input'!AN$8) -> 0 | CA58: ='Tapestry Input'!BQ58*($C$5/'Tapestry Input'!BQ$8) -> 0 | CB58: =IFERROR(C58*('Initial Inputs'!$B$11/SUM($C$9:$C$76)),0) -> 0 | CC58: =IFERROR(CB58/SUM($CB$9:$CB$76),0) -> 0 | CD58: =IFERROR('Tapestry Input'!CC58/'Tapestry Input'!J58,0) -> 0 | CE58: =IF((BK58-'Future Preferences'!$B$5+'Future Preferences'!$D$5)<0,0,(BK58-'Future Preferences'!$B$5+'Future Preferences'!$D$5)) -> 0.6228227889 | CF58: =IF((BL58-'Future Preferences'!$B$6+'Future Preferences'!$D$6)<0,0,(BL58-'Future Preferences'!$B$6+'Future Preferences'!$D$6)) -> 0.4269550059 | CG58: 0.195867783 | CH58: 0.09935387627 | CI58: =IF((BO58-'Future Preferences'!$B$9+'Future Preferences'!$D$9)<0,0,(BO58-'Future Preferences'!$B$9+'Future Preferences'!$D$9)) -> 0.04472346201 | CJ58: =IF((BP58-'Future Preferences'!$B$10+'Future Preferences'!$D$10)<0,0,(BP58-'Future Preferences'!$B$10+'Future Preferences'!$D$10)) -> 0.2330998729
A59: 51 | B59: City Strivers | D59: 11 | E59: Midtown Singles | F59: 1 | G59: Principal Urban Center | H59: Singles | I59: 938206 | J59: =IFERROR(I59/$I$8,0) -> 0.00782732429 | K59: 2.75 | L59: 62.5 | M59: 12530.2 | N59: HIGH | O59: 2.75 | P59: 34.6 | Q59: 0.249 | R59: 0.389 | S59: 0.253 | T59: 0.109 | U59: 0.019 | V59: 0.015 | W59: 0.119 | X59: 0.071 | Y59: 0.068 | Z59: 0.014 | AA59: 0.694 | AB59: 0.399 | AC59: 0.074 | AD59: 0.427 | AE59: 0.1 | AF59: 0.078 | AG59: 0.115 | AH59: 0.277 | AI59: 0.046 | AJ59: 0.216 | AK59: 0.074 | AL59: 0.129 | AM59: 0.066 | AN59: 40600 | AO59: 0.638 | AP59: 0.13 | AQ59: 0.001 | AR59: 0.043 | AS59: 0.037 | AT59: 0.014 | AU59: 0.102 | AV59: 0.083 | AW59: 0.019 | AX59: 0.066 | AY59: 0.576 | AZ59: 0.06 | BA59: 0.092 | BB59: 0.182 | BC59: 0.089 | BD59: 0.164 | BE59: 0.299 | BF59: 0.001 | BG59: 0.039 | BH59: 0.024 | BI59: 0.032 | BJ59: 0.077 | BK59: 0.158 | BL59: 0 | BM59: 0.158 | BN59: 0.317 | BO59: 0.523 | BP59: 0.002 | BQ59: 336600 | BR59: 0.326 | BS59: 0.674 | BT59: 0.001 | BU59: 0.057 | BV59: 0.04 | BW59: 0.04 | BX59: 0.071 | BY59: 0.791 | BZ59: ='Tapestry Input'!AN59*('Current Summary'!B$38/'Tapestry Input'!AN$8) -> 0 | CA59: ='Tapestry Input'!BQ59*($C$5/'Tapestry Input'!BQ$8) -> 0 | CB59: =IFERROR(C59*('Initial Inputs'!$B$11/SUM($C$9:$C$76)),0) -> 0 | CC59: =IFERROR(CB59/SUM($CB$9:$CB$76),0) -> 0 | CD59: =IFERROR('Tapestry Input'!CC59/'Tapestry Input'!J59,0) -> 0 | CE59: =IF((BK59-'Future Preferences'!$B$5+'Future Preferences'!$D$5)<0,0,(BK59-'Future Preferences'!$B$5+'Future Preferences'!$D$5)) -> 0.1508227889 | CF59: =IF((BL59-'Future Preferences'!$B$6+'Future Preferences'!$D$6)<0,0,(BL59-'Future Preferences'!$B$6+'Future Preferences'!$D$6)) -> 0 | CG59: 0.1508227889 | CH59: 0.3254537491 | CI59: =IF((BO59-'Future Preferences'!$B$9+'Future Preferences'!$D$9)<0,0,(BO59-'Future Preferences'!$B$9+'Future Preferences'!$D$9)) -> 0.523723462 | CJ59: =IF((BP59-'Future Preferences'!$B$10+'Future Preferences'!$D$10)<0,0,(BP59-'Future Preferences'!$B$10+'Future Preferences'!$D$10)) -> 0
A60: 52 | B60: Young and Restless | D60: 11 | E60: Midtown Singles | F60: 3 | G60: Metro Cities | H60: Singles | I60: 2025140 | J60: =IFERROR(I60/$I$8,0) -> 0.01689546594 | K60: 2.02 | L60: 76.4 | M60: 3108.2 | N60: HIGH | O60: 2.02 | P60: 29.5 | Q60: 0.204 | R60: 0.561 | S60: 0.17 | T60: 0.065 | U60: 0.016 | V60: 0.013 | W60: 0.081 | X60: 0.037 | Y60: 0.109 | Z60: 0.032 | AA60: 0.712 | AB60: 0.397 | AC60: 0.074 | AD60: 0.442 | AE60: 0.087 | AF60: 0.043 | AG60: 0.062 | AH60: 0.193 | AI60: 0.033 | AJ60: 0.261 | AK60: 0.086 | AL60: 0.218 | AM60: 0.105 | AN60: 36800 | AO60: 0.749 | AP60: 0.069 | AQ60: 0.007 | AR60: 0.048 | AS60: 0.075 | AT60: 0.021 | AU60: 0.13 | AV60: 0.046 | AW60: 0.022 | AX60: 0.078 | AY60: 0.531 | AZ60: 0.042 | BA60: 0.122 | BB60: 0.212 | BC60: 0.115 | BD60: 0.159 | BE60: 0.221 | BF60: 0.002 | BG60: 0.04 | BH60: 0.029 | BI60: 0.046 | BJ60: 0.054 | BK60: 0.105 | BL60: 0 | BM60: 0.105 | BN60: 0.077 | BO60: 0.805 | BP60: 0.012 | BQ60: 166900 | BR60: 0.134 | BS60: 0.866 | BT60: 0.003 | BU60: 0.157 | BV60: 0.185 | BW60: 0.268 | BX60: 0.223 | BY60: 0.164 | BZ60: ='Tapestry Input'!AN60*('Current Summary'!B$38/'Tapestry Input'!AN$8) -> 0 | CA60: ='Tapestry Input'!BQ60*($C$5/'Tapestry Input'!BQ$8) -> 0 | CB60: =IFERROR(C60*('Initial Inputs'!$B$11/SUM($C$9:$C$76)),0) -> 0 | CC60: =IFERROR(CB60/SUM($CB$9:$CB$76),0) -> 0 | CD60: =IFERROR('Tapestry Input'!CC60/'Tapestry Input'!J60,0) -> 0 | CE60: =IF((BK60-'Future Preferences'!$B$5+'Future Preferences'!$D$5)<0,0,(BK60-'Future Preferences'!$B$5+'Future Preferences'!$D$5)) -> 0.09782278886 | CF60: =IF((BL60-'Future Preferences'!$B$6+'Future Preferences'!$D$6)<0,0,(BL60-'Future Preferences'!$B$6+'Future Preferences'!$D$6)) -> 0 | CG60: 0.09782278886 | CH60: 0.09645374913 | CI60: =IF((BO60-'Future Preferences'!$B$9+'Future Preferences'!$D$9)<0,0,(BO60-'Future Preferences'!$B$9+'Future Preferences'!$D$9)) -> 0.805723462 | CJ60: =IF((BP60-'Future Preferences'!$B$10+'Future Preferences'!$D$10)<0,0,(BP60-'Future Preferences'!$B$10+'Future Preferences'!$D$10)) -> 0
A61: 53 | B61: Metro Fusion | D61: 11 | E61: Midtown Singles | F61: 2 | G61: Urban Periphery | H61: Singles | I61: 1674652 | J61: =IFERROR(I61/$I$8,0) -> 0.01397139251 | K61: 2.63 | L61: 84.2 | M61: 2538.4 | N61: HIGH | O61: 2.63 | P61: 28.9 | Q61: 0.292 | R61: 0.451 | S61: 0.19 | T61: 0.066 | U61: 0.019 | V61: 0.019 | W61: 0.131 | X61: 0.059 | Y61: 0.069 | Z61: 0.011 | AA61: 0.692 | AB61: 0.434 | AC61: 0.046 | AD61: 0.459 | AE61: 0.061 | AF61: 0.091 | AG61: 0.119 | AH61: 0.264 | AI61: 0.047 | AJ61: 0.245 | AK61: 0.076 | AL61: 0.113 | AM61: 0.044 | AN61: 32600 | AO61: 0.686 | AP61: 0.102 | AQ61: 0.009 | AR61: 0.068 | AS61: 0.084 | AT61: 0.023 | AU61: 0.134 | AV61: 0.056 | AW61: 0.016 | AX61: 0.058 | AY61: 0.513 | AZ61: 0.039 | BA61: 0.082 | BB61: 0.136 | BC61: 0.106 | BD61: 0.154 | BE61: 0.27 | BF61: 0.004 | BG61: 0.063 | BH61: 0.034 | BI61: 0.067 | BJ61: 0.083 | BK61: 0.231 | BL61: 0 | BM61: 0.231 | BN61: 0.126 | BO61: 0.609 | BP61: 0.034 | BQ61: 140200 | BR61: 0.246 | BS61: 0.754 | BT61: 0.002 | BU61: 0.115 | BV61: 0.121 | BW61: 0.21 | BX61: 0.261 | BY61: 0.289 | BZ61: ='Tapestry Input'!AN61*('Current Summary'!B$38/'Tapestry Input'!AN$8) -> 0 | CA61: ='Tapestry Input'!BQ61*($C$5/'Tapestry Input'!BQ$8) -> 0 | CB61: =IFERROR(C61*('Initial Inputs'!$B$11/SUM($C$9:$C$76)),0) -> 0 | CC61: =IFERROR(CB61/SUM($CB$9:$CB$76),0) -> 0 | CD61: =IFERROR('Tapestry Input'!CC61/'Tapestry Input'!J61,0) -> 0 | CE61: =IF((BK61-'Future Preferences'!$B$5+'Future Preferences'!$D$5)<0,0,(BK61-'Future Preferences'!$B$5+'Future Preferences'!$D$5)) -> 0.2238227889 | CF61: =IF((BL61-'Future Preferences'!$B$6+'Future Preferences'!$D$6)<0,0,(BL61-'Future Preferences'!$B$6+'Future Preferences'!$D$6)) -> 0 | CG61: 0.2238227889 | CH61: 0.1664537491 | CI61: =IF((BO61-'Future Preferences'!$B$9+'Future Preferences'!$D$9)<0,0,(BO61-'Future Preferences'!$B$9+'Future Preferences'!$D$9)) -> 0.609723462 | CJ61: =IF((BP61-'Future Preferences'!$B$10+'Future Preferences'!$D$10)<0,0,(BP61-'Future Preferences'!$B$10+'Future Preferences'!$D$10)) -> 0
A62: 54 | B62: Set to Impress | D62: 11 | E62: Midtown Singles | F62: 3 | G62: Metro Cities | H62: Singles | I62: 1661551 | J62: =IFERROR(I62/$I$8,0) -> 0.01386209266 | K62: 2.1 | L62: 65.4 | M62: 2628.4 | N62: HIGH | O62: 2.1 | P62: 33.3 | Q62: 0.204 | R62: 0.448 | S62: 0.232 | T62: 0.116 | U62: 0.014 | V62: 0.013 | W62: 0.085 | X62: 0.043 | Y62: 0.094 | Z62: 0.019 | AA62: 0.732 | AB62: 0.409 | AC62: 0.078 | AD62: 0.422 | AE62: 0.091 | AF62: 0.06 | AG62: 0.101 | AH62: 0.246 | AI62: 0.056 | AJ62: 0.245 | AK62: 0.076 | AL62: 0.142 | AM62: 0.074 | AN62: 28600 | AO62: 0.629 | AP62: 0.1 | AQ62: 0.009 | AR62: 0.053 | AS62: 0.089 | AT62: 0.02 | AU62: 0.13 | AV62: 0.041 | AW62: 0.017 | AX62: 0.053 | AY62: 0.55 | AZ62: 0.038 | BA62: 0.095 | BB62: 0.181 | BC62: 0.105 | BD62: 0.142 | BE62: 0.265 | BF62: 0.004 | BG62: 0.049 | BH62: 0.028 | BI62: 0.065 | BJ62: 0.066 | BK62: 0.315 | BL62: 0 | BM62: 0.315 | BN62: 0.159 | BO62: 0.504 | BP62: 0.023 | BQ62: 126700 | BR62: 0.283 | BS62: 0.717 | BT62: 0.002 | BU62: 0.068 | BV62: 0.073 | BW62: 0.113 | BX62: 0.166 | BY62: 0.579 | BZ62: ='Tapestry Input'!AN62*('Current Summary'!B$38/'Tapestry Input'!AN$8) -> 0 | CA62: ='Tapestry Input'!BQ62*($C$5/'Tapestry Input'!BQ$8) -> 0 | CB62: =IFERROR(C62*('Initial Inputs'!$B$11/SUM($C$9:$C$76)),0) -> 0 | CC62: =IFERROR(CB62/SUM($CB$9:$CB$76),0) -> 0 | CD62: =IFERROR('Tapestry Input'!CC62/'Tapestry Input'!J62,0) -> 0 | CE62: =IF((BK62-'Future Preferences'!$B$5+'Future Preferences'!$D$5)<0,0,(BK62-'Future Preferences'!$B$5+'Future Preferences'!$D$5)) -> 0.3078227889 | CF62: =IF((BL62-'Future Preferences'!$B$6+'Future Preferences'!$D$6)<0,0,(BL62-'Future Preferences'!$B$6+'Future Preferences'!$D$6)) -> 0 | CG62: 0.3078227889 | CH62: 0.1874537491 | CI62: =IF((BO62-'Future Preferences'!$B$9+'Future Preferences'!$D$9)<0,0,(BO62-'Future Preferences'!$B$9+'Future Preferences'!$D$9)) -> 0.504723462 | CJ62: =IF((BP62-'Future Preferences'!$B$10+'Future Preferences'!$D$10)<0,0,(BP62-'Future Preferences'!$B$10+'Future Preferences'!$D$10)) -> 0
A63: 55 | B63: City Commons | D63: 11 | E63: Midtown Singles | F63: 3 | G63: Metro Cities | H63: Single Parents | I63: 1084232 | J63: =IFERROR(I63/$I$8,0) -> 0.009045599229 | K63: 2.65 | L63: 49.5 | M63: 917.5 | N63: MED | O63: 2.65 | P63: 27.8 | Q63: 0.332 | R63: 0.379 | S63: 0.204 | T63: 0.086 | U63: 0.028 | V63: 0.024 | W63: 0.156 | X63: 0.076 | Y63: 0.064 | Z63: 0.007 | AA63: 0.645 | AB63: 0.422 | AC63: 0.039 | AD63: 0.481 | AE63: 0.058 | AF63: 0.086 | AG63: 0.196 | AH63: 0.296 | AI63: 0.061 | AJ63: 0.219 | AK63: 0.054 | AL63: 0.061 | AM63: 0.027 | AN63: 17600 | AO63: 0.524 | AP63: 0.211 | AQ63: 0.006 | AR63: 0.038 | AS63: 0.079 | AT63: 0.015 | AU63: 0.118 | AV63: 0.051 | AW63: 0.012 | AX63: 0.045 | AY63: 0.593 | AZ63: 0.042 | BA63: 0.061 | BB63: 0.13 | BC63: 0.101 | BD63: 0.148 | BE63: 0.347 | BF63: 0.003 | BG63: 0.038 | BH63: 0.021 | BI63: 0.07 | BJ63: 0.081 | BK63: 0.326 | BL63: 0.163 | BM63: 0.163 | BN63: 0.223 | BO63: 0.431 | BP63: 0.019 | BQ63: 83400 | BR63: 0.237 | BS63: 0.763 | BT63: 0.002 | BU63: 0.096 | BV63: 0.065 | BW63: 0.077 | BX63: 0.144 | BY63: 0.617 | BZ63: ='Tapestry Input'!AN63*('Current Summary'!B$38/'Tapestry Input'!AN$8) -> 0 | CA63: ='Tapestry Input'!BQ63*($C$5/'Tapestry Input'!BQ$8) -> 0 | CB63: =IFERROR(C63*('Initial Inputs'!$B$11/SUM($C$9:$C$76)),0) -> 0 | CC63: =IFERROR(CB63/SUM($CB$9:$CB$76),0) -> 0 | CD63: =IFERROR('Tapestry Input'!CC63/'Tapestry Input'!J63,0) -> 0 | CE63: =IF((BK63-'Future Preferences'!$B$5+'Future Preferences'!$D$5)<0,0,(BK63-'Future Preferences'!$B$5+'Future Preferences'!$D$5)) -> 0.3188227889 | CF63: =IF((BL63-'Future Preferences'!$B$6+'Future Preferences'!$D$6)<0,0,(BL63-'Future Preferences'!$B$6+'Future Preferences'!$D$6)) -> 0 | CG63: 0.3188227889 | CH63: 0.2494537491 | CI63: =IF((BO63-'Future Preferences'!$B$9+'Future Preferences'!$D$9)<0,0,(BO63-'Future Preferences'!$B$9+'Future Preferences'!$D$9)) -> 0.431723462 | CJ63: =IF((BP63-'Future Preferences'!$B$10+'Future Preferences'!$D$10)<0,0,(BP63-'Future Preferences'!$B$10+'Future Preferences'!$D$10)) -> 0
A64: 56 | B64: Family Foundations | D64: 12 | E64: Hometown | F64: 2 | G64: Urban Periphery | H64: Singles | I64: 1285554 | J64: =IFERROR(I64/$I$8,0) -> 0.01072520113 | K64: 2.69 | L64: 42.9 | M64: 1333.6 | N64: MED | O64: 2.69 | P64: 39 | Q64: 0.236 | R64: 0.336 | S64: 0.272 | T64: 0.157 | U64: 0.017 | V64: 0.013 | W64: 0.114 | X64: 0.068 | Y64: 0.065 | Z64: 0.012 | AA64: 0.712 | AB64: 0.404 | AC64: 0.061 | AD64: 0.452 | AE64: 0.083 | AF64: 0.052 | AG64: 0.111 | AH64: 0.284 | AI64: 0.041 | AJ64: 0.264 | AK64: 0.073 | AL64: 0.114 | AM64: 0.061 | AN64: 40600 | AO64: 0.594 | AP64: 0.136 | AQ64: 0.004 | AR64: 0.039 | AS64: 0.08 | AT64: 0.017 | AU64: 0.103 | AV64: 0.082 | AW64: 0.019 | AX64: 0.061 | AY64: 0.524 | AZ64: 0.07 | BA64: 0.094 | BB64: 0.176 | BC64: 0.09 | BD64: 0.173 | BE64: 0.248 | BF64: 0.001 | BG64: 0.037 | BH64: 0.028 | BI64: 0.06 | BJ64: 0.093 | BK64: 0.74 | BL64: 0.37 | BM64: 0.37 | BN64: 0.121 | BO64: 0.121 | BP64: 0.016 | BQ64: 121100 | BR64: 0.665 | BS64: 0.335 | BT64: 0.001 | BU64: 0.049 | BV64: 0.04 | BW64: 0.067 | BX64: 0.153 | BY64: 0.69 | BZ64: ='Tapestry Input'!AN64*('Current Summary'!B$38/'Tapestry Input'!AN$8) -> 0 | CA64: ='Tapestry Input'!BQ64*($C$5/'Tapestry Input'!BQ$8) -> 0 | CB64: =IFERROR(C64*('Initial Inputs'!$B$11/SUM($C$9:$C$76)),0) -> 0 | CC64: =IFERROR(CB64/SUM($CB$9:$CB$76),0) -> 0 | CD64: =IFERROR('Tapestry Input'!CC64/'Tapestry Input'!J64,0) -> 0 | CE64: =IF((BK64-'Future Preferences'!$B$5+'Future Preferences'!$D$5)<0,0,(BK64-'Future Preferences'!$B$5+'Future Preferences'!$D$5)) -> 0.7328227889 | CF64: =IF((BL64-'Future Preferences'!$B$6+'Future Preferences'!$D$6)<0,0,(BL64-'Future Preferences'!$B$6+'Future Preferences'!$D$6)) -> 0.1669550059 | CG64: 0.565867783 | CH64: 0.1454537491 | CI64: =IF((BO64-'Future Preferences'!$B$9+'Future Preferences'!$D$9)<0,0,(BO64-'Future Preferences'!$B$9+'Future Preferences'!$D$9)) -> 0.121723462 | CJ64: =IF((BP64-'Future Preferences'!$B$10+'Future Preferences'!$D$10)<0,0,(BP64-'Future Preferences'!$B$10+'Future Preferences'!$D$10)) -> 0
A65: 57 | B65: Traditional Living | D65: 12 | E65: Hometown | F65: 3 | G65: Metro Cities | H65: Married Couples | I65: 2371416 | J65: =IFERROR(I65/$I$8,0) -> 0.01978439922 | K65: 2.49 | L65: 53.6 | M65: 227.7 | N65: LOW | O65: 2.49 | P65: 34.9 | Q65: 0.251 | R65: 0.379 | S65: 0.249 | T65: 0.121 | U65: 0.017 | V65: 0.016 | W65: 0.118 | X65: 0.06 | Y65: 0.055 | Z65: 0.008 | AA65: 0.728 | AB65: 0.433 | AC65: 0.055 | AD65: 0.447 | AE65: 0.064 | AF65: 0.051 | AG65: 0.111 | AH65: 0.318 | AI65: 0.067 | AJ65: 0.241 | AK65: 0.082 | AL65: 0.092 | AM65: 0.038 | AN65: 37700 | AO65: 0.644 | AP65: 0.097 | AQ65: 0.012 | AR65: 0.059 | AS65: 0.163 | AT65: 0.024 | AU65: 0.13 | AV65: 0.053 | AW65: 0.014 | AX65: 0.048 | AY65: 0.458 | AZ65: 0.04 | BA65: 0.08 | BB65: 0.141 | BC65: 0.098 | BD65: 0.15 | BE65: 0.23 | BF65: 0.004 | BG65: 0.055 | BH65: 0.042 | BI65: 0.113 | BJ65: 0.089 | BK65: 0.76 | BL65: 0.76 | BM65: 0 | BN65: 0.096 | BO65: 0.12 | BP65: 0.024 | BQ65: 82300 | BR65: 0.597 | BS65: 0.403 | BT65: 0.001 | BU65: 0.038 | BV65: 0.04 | BW65: 0.053 | BX65: 0.1 | BY65: 0.768 | BZ65: ='Tapestry Input'!AN65*('Current Summary'!B$38/'Tapestry Input'!AN$8) -> 0 | CA65: ='Tapestry Input'!BQ65*($C$5/'Tapestry Input'!BQ$8) -> 0 | CB65: =IFERROR(C65*('Initial Inputs'!$B$11/SUM($C$9:$C$76)),0) -> 0 | CC65: =IFERROR(CB65/SUM($CB$9:$CB$76),0) -> 0 | CD65: =IFERROR('Tapestry Input'!CC65/'Tapestry Input'!J65,0) -> 0 | CE65: =IF((BK65-'Future Preferences'!$B$5+'Future Preferences'!$D$5)<0,0,(BK65-'Future Preferences'!$B$5+'Future Preferences'!$D$5)) -> 0.7528227889 | CF65: =IF((BL65-'Future Preferences'!$B$6+'Future Preferences'!$D$6)<0,0,(BL65-'Future Preferences'!$B$6+'Future Preferences'!$D$6)) -> 0.5569550059 | CG65: 0.195867783 | CH65: 0.1264537491 | CI65: =IF((BO65-'Future Preferences'!$B$9+'Future Preferences'!$D$9)<0,0,(BO65-'Future Preferences'!$B$9+'Future Preferences'!$D$9)) -> 0.120723462 | CJ65: =IF((BP65-'Future Preferences'!$B$10+'Future Preferences'!$D$10)<0,0,(BP65-'Future Preferences'!$B$10+'Future Preferences'!$D$10)) -> 0
A66: 58 | B66: Small Town Simplicity | D66: 12 | E66: Hometown | F66: 5 | G66: Semirural | H66: Singles | I66: 2304764 | J66: =IFERROR(I66/$I$8,0) -> 0.01922833071 | K66: 2.25 | L66: 49.3 | M66: 87.2 | N66: LOW | O66: 2.25 | P66: 40.2 | Q66: 0.217 | R66: 0.337 | S66: 0.254 | T66: 0.191 | U66: 0.015 | V66: 0.014 | W66: 0.1 | X66: 0.052 | Y66: 0.048 | Z66: 0.006 | AA66: 0.766 | AB66: 0.434 | AC66: 0.05 | AD66: 0.455 | AE66: 0.06 | AF66: 0.08 | AG66: 0.132 | AH66: 0.311 | AI66: 0.067 | AJ66: 0.21 | AK66: 0.068 | AL66: 0.088 | AM66: 0.044 | AN66: 27900 | AO66: 0.504 | AP66: 0.106 | AQ66: 0.022 | AR66: 0.061 | AS66: 0.131 | AT66: 0.02 | AU66: 0.132 | AV66: 0.047 | AW66: 0.013 | AX66: 0.043 | AY66: 0.483 | AZ66: 0.047 | BA66: 0.083 | BB66: 0.158 | BC66: 0.104 | BD66: 0.139 | BE66: 0.241 | BF66: 0.007 | BG66: 0.058 | BH66: 0.037 | BI66: 0.094 | BJ66: 0.079 | BK66: 0.605 | BL66: 0.605 | BM66: 0 | BN66: 0.097 | BO66: 0.226 | BP66: 0.072 | BQ66: 89300 | BR66: 0.504 | BS66: 0.496 | BT66: 0.001 | BU66: 0.065 | BV66: 0.083 | BW66: 0.107 | BX66: 0.168 | BY66: 0.575 | BZ66: ='Tapestry Input'!AN66*('Current Summary'!B$38/'Tapestry Input'!AN$8) -> 0 | CA66: ='Tapestry Input'!BQ66*($C$5/'Tapestry Input'!BQ$8) -> 0 | CB66: =IFERROR(C66*('Initial Inputs'!$B$11/SUM($C$9:$C$76)),0) -> 0 | CC66: =IFERROR(CB66/SUM($CB$9:$CB$76),0) -> 0 | CD66: =IFERROR('Tapestry Input'!CC66/'Tapestry Input'!J66,0) -> 0 | CE66: =IF((BK66-'Future Preferences'!$B$5+'Future Preferences'!$D$5)<0,0,(BK66-'Future Preferences'!$B$5+'Future Preferences'!$D$5)) -> 0.5978227889 | CF66: =IF((BL66-'Future Preferences'!$B$6+'Future Preferences'!$D$6)<0,0,(BL66-'Future Preferences'!$B$6+'Future Preferences'!$D$6)) -> 0.4019550059 | CG66: 0.195867783 | CH66: 0.1713538763 | CI66: =IF((BO66-'Future Preferences'!$B$9+'Future Preferences'!$D$9)<0,0,(BO66-'Future Preferences'!$B$9+'Future Preferences'!$D$9)) -> 0.226723462 | CJ66: =IF((BP66-'Future Preferences'!$B$10+'Future Preferences'!$D$10)<0,0,(BP66-'Future Preferences'!$B$10+'Future Preferences'!$D$10)) -> 0.004099872858
A67: 59 | B67: Modest Income Homes | D67: 12 | E67: Hometown | F67: 2 | G67: Urban Periphery | H67: Singles | I67: 1629821 | J67: =IFERROR(I67/$I$8,0) -> 0.01359737361 | K67: 2.55 | L67: 33.3 | M67: 739.3 | N67: MED | O67: 2.55 | P67: 36.4 | Q67: 0.254 | R67: 0.342 | S67: 0.261 | T67: 0.143 | U67: 0.018 | V67: 0.015 | W67: 0.119 | X67: 0.072 | Y67: 0.056 | Z67: 0.006 | AA67: 0.713 | AB67: 0.429 | AC67: 0.043 | AD67: 0.472 | AE67: 0.056 | AF67: 0.082 | AG67: 0.186 | AH67: 0.311 | AI67: 0.057 | AJ67: 0.218 | AK67: 0.055 | AL67: 0.062 | AM67: 0.029 | AN67: 21700 | AO67: 0.493 | AP67: 0.198 | AQ67: 0.008 | AR67: 0.042 | AS67: 0.097 | AT67: 0.016 | AU67: 0.106 | AV67: 0.06 | AW67: 0.012 | AX67: 0.041 | AY67: 0.566 | AZ67: 0.051 | BA67: 0.059 | BB67: 0.126 | BC67: 0.09 | BD67: 0.147 | BE67: 0.33 | BF67: 0.004 | BG67: 0.041 | BH67: 0.023 | BI67: 0.081 | BJ67: 0.097 | BK67: 0.617 | BL67: 0.3085 | BM67: 0.3085 | BN67: 0.193 | BO67: 0.165 | BP67: 0.024 | BQ67: 73400 | BR67: 0.458 | BS67: 0.542 | BT67: 0.002 | BU67: 0.05 | BV67: 0.043 | BW67: 0.055 | BX67: 0.106 | BY67: 0.745 | BZ67: ='Tapestry Input'!AN67*('Current Summary'!B$38/'Tapestry Input'!AN$8) -> 0 | CA67: ='Tapestry Input'!BQ67*($C$5/'Tapestry Input'!BQ$8) -> 0 | CB67: =IFERROR(C67*('Initial Inputs'!$B$11/SUM($C$9:$C$76)),0) -> 0 | CC67: =IFERROR(CB67/SUM($CB$9:$CB$76),0) -> 0 | CD67: =IFERROR('Tapestry Input'!CC67/'Tapestry Input'!J67,0) -> 0 | CE67: =IF((BK67-'Future Preferences'!$B$5+'Future Preferences'!$D$5)<0,0,(BK67-'Future Preferences'!$B$5+'Future Preferences'!$D$5)) -> 0.6098227889 | CF67: =IF((BL67-'Future Preferences'!$B$6+'Future Preferences'!$D$6)<0,0,(BL67-'Future Preferences'!$B$6+'Future Preferences'!$D$6)) -> 0.1054550059 | CG67: 0.504367783 | CH67: 0.2244537491 | CI67: =IF((BO67-'Future Preferences'!$B$9+'Future Preferences'!$D$9)<0,0,(BO67-'Future Preferences'!$B$9+'Future Preferences'!$D$9)) -> 0.165723462 | CJ67: =IF((BP67-'Future Preferences'!$B$10+'Future Preferences'!$D$10)<0,0,(BP67-'Future Preferences'!$B$10+'Future Preferences'!$D$10)) -> 0
A68: 60 | B68: International Marketplace | D68: 13 | E68: Next Wave | F68: 2 | G68: Urban Periphery | H68: Married Couples w/ Kids | I68: 1475947 | J68: =IFERROR(I68/$I$8,0) -> 0.01231362388 | K68: 3.04 | L68: 88.5 | M68: 8583.3 | N68: HIGH | O68: 3.04 | P68: 32.4 | Q68: 0.257 | R68: 0.436 | S68: 0.222 | T68: 0.085 | U68: 0.018 | V68: 0.016 | W68: 0.116 | X68: 0.062 | Y68: 0.061 | Z68: 0.011 | AA68: 0.715 | AB68: 0.435 | AC68: 0.06 | AD68: 0.439 | AE68: 0.067 | AF68: 0.167 | AG68: 0.124 | AH68: 0.256 | AI68: 0.029 | AJ68: 0.178 | AK68: 0.059 | AL68: 0.133 | AM68: 0.055 | AN68: 41700 | AO68: 0.674 | AP68: 0.095 | AQ68: 0.005 | AR68: 0.079 | AS68: 0.093 | AT68: 0.027 | AU68: 0.114 | AV68: 0.059 | AW68: 0.018 | AX68: 0.053 | AY68: 0.528 | AZ68: 0.025 | BA68: 0.084 | BB68: 0.134 | BC68: 0.096 | BD68: 0.132 | BE68: 0.292 | BF68: 0.004 | BG68: 0.073 | BH68: 0.03 | BI68: 0.072 | BJ68: 0.084 | BK68: 0.226 | BL68: 0 | BM68: 0.226 | BN68: 0.212 | BO68: 0.554 | BP68: 0.01 | BQ68: 309000 | BR68: 0.28 | BS68: 0.72 | BT68: 0.002 | BU68: 0.061 | BV68: 0.051 | BW68: 0.086 | BX68: 0.125 | BY68: 0.675 | BZ68: ='Tapestry Input'!AN68*('Current Summary'!B$38/'Tapestry Input'!AN$8) -> 0 | CA68: ='Tapestry Input'!BQ68*($C$5/'Tapestry Input'!BQ$8) -> 0 | CB68: =IFERROR(C68*('Initial Inputs'!$B$11/SUM($C$9:$C$76)),0) -> 0 | CC68: =IFERROR(CB68/SUM($CB$9:$CB$76),0) -> 0 | CD68: =IFERROR('Tapestry Input'!CC68/'Tapestry Input'!J68,0) -> 0 | CE68: =IF((BK68-'Future Preferences'!$B$5+'Future Preferences'!$D$5)<0,0,(BK68-'Future Preferences'!$B$5+'Future Preferences'!$D$5)) -> 0.2188227889 | CF68: =IF((BL68-'Future Preferences'!$B$6+'Future Preferences'!$D$6)<0,0,(BL68-'Future Preferences'!$B$6+'Future Preferences'!$D$6)) -> 0 | CG68: 0.2188227889 | CH68: 0.2264537491 | CI68: =IF((BO68-'Future Preferences'!$B$9+'Future Preferences'!$D$9)<0,0,(BO68-'Future Preferences'!$B$9+'Future Preferences'!$D$9)) -> 0.554723462 | CJ68: =IF((BP68-'Future Preferences'!$B$10+'Future Preferences'!$D$10)<0,0,(BP68-'Future Preferences'!$B$10+'Future Preferences'!$D$10)) -> 0
A69: 61 | B69: Las Casas | D69: 13 | E69: Next Wave | F69: 2 | G69: Urban Periphery | H69: Married Couples | I69: 889764 | J69: =IFERROR(I69/$I$8,0) -> 0.007423179312 | K69: 4.09 | L69: 85.5 | M69: 7272.5 | N69: HIGH | O69: 4.09 | P69: 27.8 | Q69: 0.323 | R69: 0.426 | S69: 0.188 | T69: 0.063 | U69: 0.019 | V69: 0.02 | W69: 0.152 | X69: 0.085 | Y69: 0.053 | Z69: 0.004 | AA69: 0.667 | AB69: 0.47 | AC69: 0.025 | AD69: 0.477 | AE69: 0.028 | AF69: 0.316 | AG69: 0.188 | AH69: 0.229 | AI69: 0.025 | AJ69: 0.136 | AK69: 0.038 | AL69: 0.052 | AM69: 0.015 | AN69: 36500 | AO69: 0.613 | AP69: 0.11 | AQ69: 0.017 | AR69: 0.091 | AS69: 0.173 | AT69: 0.037 | AU69: 0.116 | AV69: 0.061 | AW69: 0.011 | AX69: 0.035 | AY69: 0.441 | AZ69: 0.019 | BA69: 0.048 | BB69: 0.072 | BC69: 0.091 | BD69: 0.125 | BE69: 0.265 | BF69: 0.014 | BG69: 0.086 | BH69: 0.037 | BI69: 0.139 | BJ69: 0.123 | BK69: 0.454 | BL69: 0 | BM69: 0.454 | BN69: 0.192 | BO69: 0.328 | BP69: 0.027 | BQ69: 221600 | BR69: 0.356 | BS69: 0.644 | BT69: 0.001 | BU69: 0.055 | BV69: 0.06 | BW69: 0.09 | BX69: 0.111 | BY69: 0.683 | BZ69: ='Tapestry Input'!AN69*('Current Summary'!B$38/'Tapestry Input'!AN$8) -> 0 | CA69: ='Tapestry Input'!BQ69*($C$5/'Tapestry Input'!BQ$8) -> 0 | CB69: =IFERROR(C69*('Initial Inputs'!$B$11/SUM($C$9:$C$76)),0) -> 0 | CC69: =IFERROR(CB69/SUM($CB$9:$CB$76),0) -> 0 | CD69: =IFERROR('Tapestry Input'!CC69/'Tapestry Input'!J69,0) -> 0 | CE69: =IF((BK69-'Future Preferences'!$B$5+'Future Preferences'!$D$5)<0,0,(BK69-'Future Preferences'!$B$5+'Future Preferences'!$D$5)) -> 0.4468227889 | CF69: =IF((BL69-'Future Preferences'!$B$6+'Future Preferences'!$D$6)<0,0,(BL69-'Future Preferences'!$B$6+'Future Preferences'!$D$6)) -> 0 | CG69: 0.4468227889 | CH69: 0.2244537491 | CI69: =IF((BO69-'Future Preferences'!$B$9+'Future Preferences'!$D$9)<0,0,(BO69-'Future Preferences'!$B$9+'Future Preferences'!$D$9)) -> 0.328723462 | CJ69: =IF((BP69-'Future Preferences'!$B$10+'Future Preferences'!$D$10)<0,0,(BP69-'Future Preferences'!$B$10+'Future Preferences'!$D$10)) -> 0
A70: 62 | B70: NeWest Residents | D70: 13 | E70: Next Wave | F70: 1 | G70: Principal Urban Center | H70: Married Couples w/ Kids | I70: 917041 | J70: =IFERROR(I70/$I$8,0) -> 0.007650747591 | K70: 3.32 | L70: 87.1 | M70: 2392 | N70: HIGH | O70: 3.32 | P70: 27 | Q70: 0.332 | R70: 0.463 | S70: 0.159 | T70: 0.046 | U70: 0.019 | V70: 0.023 | W70: 0.147 | X70: 0.062 | Y70: 0.039 | Z70: 0.005 | AA70: 0.705 | AB70: 0.469 | AC70: 0.034 | AD70: 0.462 | AE70: 0.035 | AF70: 0.291 | AG70: 0.183 | AH70: 0.23 | AI70: 0.034 | AJ70: 0.136 | AK70: 0.037 | AL70: 0.065 | AM70: 0.024 | AN70: 29700 | AO70: 0.68 | AP70: 0.099 | AQ70: 0.017 | AR70: 0.16 | AS70: 0.108 | AT70: 0.023 | AU70: 0.104 | AV70: 0.039 | AW70: 0.009 | AX70: 0.036 | AY70: 0.489 | AZ70: 0.015 | BA70: 0.046 | BB70: 0.069 | BC70: 0.079 | BD70: 0.098 | BE70: 0.32 | BF70: 0.012 | BG70: 0.155 | BH70: 0.035 | BI70: 0.101 | BJ70: 0.085 | BK70: 0.17 | BL70: 0 | BM70: 0.17 | BN70: 0.099 | BO70: 0.681 | BP70: 0.05 | BQ70: 129200 | BR70: 0.17 | BS70: 0.83 | BT70: 0.002 | BU70: 0.081 | BV70: 0.079 | BW70: 0.165 | BX70: 0.262 | BY70: 0.41 | BZ70: ='Tapestry Input'!AN70*('Current Summary'!B$38/'Tapestry Input'!AN$8) -> 0 | CA70: ='Tapestry Input'!BQ70*($C$5/'Tapestry Input'!BQ$8) -> 0 | CB70: =IFERROR(C70*('Initial Inputs'!$B$11/SUM($C$9:$C$76)),0) -> 0 | CC70: =IFERROR(CB70/SUM($CB$9:$CB$76),0) -> 0 | CD70: =IFERROR('Tapestry Input'!CC70/'Tapestry Input'!J70,0) -> 0 | CE70: =IF((BK70-'Future Preferences'!$B$5+'Future Preferences'!$D$5)<0,0,(BK70-'Future Preferences'!$B$5+'Future Preferences'!$D$5)) -> 0.1628227889 | CF70: =IF((BL70-'Future Preferences'!$B$6+'Future Preferences'!$D$6)<0,0,(BL70-'Future Preferences'!$B$6+'Future Preferences'!$D$6)) -> 0 | CG70: 0.1628227889 | CH70: 0.1554537491 | CI70: =IF((BO70-'Future Preferences'!$B$9+'Future Preferences'!$D$9)<0,0,(BO70-'Future Preferences'!$B$9+'Future Preferences'!$D$9)) -> 0.681723462 | CJ70: =IF((BP70-'Future Preferences'!$B$10+'Future Preferences'!$D$10)<0,0,(BP70-'Future Preferences'!$B$10+'Future Preferences'!$D$10)) -> 0
A71: 63 | B71: Fresh Ambitions | D71: 13 | E71: Next Wave | F71: 1 | G71: Principal Urban Center | H71: Single Parents | I71: 778200 | J71: =IFERROR(I71/$I$8,0) -> 0.006492416125 | K71: 3.13 | L71: 90.2 | M71: 2004 | N71: HIGH | O71: 3.13 | P71: 28.1 | Q71: 0.319 | R71: 0.411 | S71: 0.198 | T71: 0.072 | U71: 0.021 | V71: 0.021 | W71: 0.151 | X71: 0.079 | Y71: 0.052 | Z71: 0.005 | AA71: 0.671 | AB71: 0.449 | AC71: 0.041 | AD71: 0.46 | AE71: 0.05 | AF71: 0.191 | AG71: 0.19 | AH71: 0.264 | AI71: 0.051 | AJ71: 0.174 | AK71: 0.049 | AL71: 0.059 | AM71: 0.022 | AN71: 26500 | AO71: 0.549 | AP71: 0.174 | AQ71: 0.015 | AR71: 0.07 | AS71: 0.115 | AT71: 0.026 | AU71: 0.122 | AV71: 0.052 | AW71: 0.012 | AX71: 0.04 | AY71: 0.517 | AZ71: 0.03 | BA71: 0.054 | BB71: 0.102 | BC71: 0.094 | BD71: 0.13 | BE71: 0.317 | BF71: 0.011 | BG71: 0.066 | BH71: 0.029 | BI71: 0.096 | BJ71: 0.1 | BK71: 0.25 | BL71: 0 | BM71: 0.25 | BN71: 0.313 | BO71: 0.421 | BP71: 0.017 | BQ71: 121500 | BR71: 0.277 | BS71: 0.723 | BT71: 0.001 | BU71: 0.062 | BV71: 0.051 | BW71: 0.075 | BX71: 0.106 | BY71: 0.706 | BZ71: ='Tapestry Input'!AN71*('Current Summary'!B$38/'Tapestry Input'!AN$8) -> 0 | CA71: ='Tapestry Input'!BQ71*($C$5/'Tapestry Input'!BQ$8) -> 0 | CB71: =IFERROR(C71*('Initial Inputs'!$B$11/SUM($C$9:$C$76)),0) -> 0 | CC71: =IFERROR(CB71/SUM($CB$9:$CB$76),0) -> 0 | CD71: =IFERROR('Tapestry Input'!CC71/'Tapestry Input'!J71,0) -> 0 | CE71: =IF((BK71-'Future Preferences'!$B$5+'Future Preferences'!$D$5)<0,0,(BK71-'Future Preferences'!$B$5+'Future Preferences'!$D$5)) -> 0.2428227889 | CF71: =IF((BL71-'Future Preferences'!$B$6+'Future Preferences'!$D$6)<0,0,(BL71-'Future Preferences'!$B$6+'Future Preferences'!$D$6)) -> 0 | CG71: 0.2428227889 | CH71: 0.3354537491 | CI71: =IF((BO71-'Future Preferences'!$B$9+'Future Preferences'!$D$9)<0,0,(BO71-'Future Preferences'!$B$9+'Future Preferences'!$D$9)) -> 0.421723462 | CJ71: =IF((BP71-'Future Preferences'!$B$10+'Future Preferences'!$D$10)<0,0,(BP71-'Future Preferences'!$B$10+'Future Preferences'!$D$10)) -> 0
A72: 64 | B72: High Rise Renters | D72: 13 | E72: Next Wave | F72: 1 | G72: Principal Urban Center | H72: Single Parents | I72: 596305 | J72: =IFERROR(I72/$I$8,0) -> 0.004974891027 | K72: 2.78 | L72: 90 | M72: 7163.1 | N72: HIGH | O72: 2.78 | P72: 31.5 | Q72: 0.272 | R72: 0.404 | S72: 0.221 | T72: 0.103 | U72: 0.018 | V72: 0.016 | W72: 0.13 | X72: 0.078 | Y72: 0.064 | Z72: 0.009 | AA72: 0.685 | AB72: 0.43 | AC72: 0.054 | AD72: 0.445 | AE72: 0.072 | AF72: 0.193 | AG72: 0.184 | AH72: 0.227 | AI72: 0.052 | AJ72: 0.162 | AK72: 0.057 | AL72: 0.089 | AM72: 0.037 | AN72: 21900 | AO72: 0.546 | AP72: 0.165 | AQ72: 0.002 | AR72: 0.043 | AS72: 0.047 | AT72: 0.018 | AU72: 0.129 | AV72: 0.062 | AW72: 0.016 | AX72: 0.059 | AY72: 0.591 | AZ72: 0.032 | BA72: 0.058 | BB72: 0.125 | BC72: 0.106 | BD72: 0.142 | BE72: 0.381 | BF72: 0.002 | BG72: 0.04 | BH72: 0.021 | BI72: 0.043 | BJ72: 0.082 | BK72: 0.016 | BL72: 0 | BM72: 0.016 | BN72: 0.06 | BO72: 0.921 | BP72: 0.004 | BQ72: 329900 | BR72: 0.038 | BS72: 0.962 | BT72: 0.001 | BU72: 0.045 | BV72: 0.039 | BW72: 0.049 | BX72: 0.114 | BY72: 0.752 | BZ72: ='Tapestry Input'!AN72*('Current Summary'!B$38/'Tapestry Input'!AN$8) -> 0 | CA72: ='Tapestry Input'!BQ72*($C$5/'Tapestry Input'!BQ$8) -> 0 | CB72: =IFERROR(C72*('Initial Inputs'!$B$11/SUM($C$9:$C$76)),0) -> 0 | CC72: =IFERROR(CB72/SUM($CB$9:$CB$76),0) -> 0 | CD72: =IFERROR('Tapestry Input'!CC72/'Tapestry Input'!J72,0) -> 0 | CE72: =IF((BK72-'Future Preferences'!$B$5+'Future Preferences'!$D$5)<0,0,(BK72-'Future Preferences'!$B$5+'Future Preferences'!$D$5)) -> 0.008822788858 | CF72: =IF((BL72-'Future Preferences'!$B$6+'Future Preferences'!$D$6)<0,0,(BL72-'Future Preferences'!$B$6+'Future Preferences'!$D$6)) -> 0 | CG72: 0.008822788858 | CH72: 0.06945374913 | CI72: =IF((BO72-'Future Preferences'!$B$9+'Future Preferences'!$D$9)<0,0,(BO72-'Future Preferences'!$B$9+'Future Preferences'!$D$9)) -> 0.921723462 | CJ72: =IF((BP72-'Future Preferences'!$B$10+'Future Preferences'!$D$10)<0,0,(BP72-'Future Preferences'!$B$10+'Future Preferences'!$D$10)) -> 0
A73: 65 | B73: Military Proximity | D73: 14 | E73: Scholars and Patriots | F73: 4 | G73: Suburban Periphery | H73: Married Couples | I73: 184462 | J73: =IFERROR(I73/$I$8,0) -> 0.001538941227 | K73: 3.33 | L73: 66.1 | M73: 81.5 | N73: =IF(M73<500,"LOW",IF(M73<1500,"MED","HIGH")) -> LOW | O73: 3.33 | P73: 22.4 | Q73: 0.278 | R73: 0.687 | S73: 0.031 | T73: 0.004 | U73: 0.024 | V73: 0.021 | W73: 0.119 | X73: 0.036 | Y73: 0.116 | Z73: 0.014 | AA73: 0.67 | AB73: 0.468 | AC73: 0.087 | AD73: 0.382 | AE73: 0.063 | AF73: 0.01 | AG73: 0.028 | AH73: 0.177 | AI73: 0.038 | AJ73: 0.386 | AK73: 0.124 | AL73: 0.163 | AM73: 0.074 | AN73: 42500 | AO73: 0.253 | AP73: 0.118 | AQ73: 0.009 | AR73: 0.036 | AS73: 0.037 | AT73: 0.01 | AU73: 0.121 | AV73: 0.035 | AW73: 0.011 | AX73: 0.042 | AY73: 0.463 | AZ73: 0.236 | BA73: 0.114 | BB73: 0.209 | BC73: 0.099 | BD73: 0.158 | BE73: 0.229 | BF73: 0.004 | BG73: 0.039 | BH73: 0.063 | BI73: 0.033 | BJ73: 0.052 | BK73: 0.24 | BL73: =IF(N73="LOW",1,IF(N73="MED",0.5,0))*BK73 -> 0.24 | BM73: 0 | BN73: 0.546 | BO73: 0.207 | BP73: 0.008 | BQ73: 165300 | BR73: 0.029 | BS73: 0.971 | BT73: 0.019 | BU73: 0.319 | BV73: 0.136 | BW73: 0.108 | BX73: 0.131 | BY73: 0.287 | BZ73: ='Tapestry Input'!AN73*('Current Summary'!B$38/'Tapestry Input'!AN$8) -> 0 | CA73: ='Tapestry Input'!BQ73*($C$5/'Tapestry Input'!BQ$8) -> 0 | CB73: =IFERROR(C73*('Initial Inputs'!$B$11/SUM($C$9:$C$76)),0) -> 0 | CC73: =IFERROR(CB73/SUM($CB$9:$CB$76),0) -> 0 | CD73: =IFERROR('Tapestry Input'!CC73/'Tapestry Input'!J73,0) -> 0 | CE73: =IF((BK73-'Future Preferences'!$B$5+'Future Preferences'!$D$5)<0,0,(BK73-'Future Preferences'!$B$5+'Future Preferences'!$D$5)) -> 0.2328227889 | CF73: =IF((BL73-'Future Preferences'!$B$6+'Future Preferences'!$D$6)<0,0,(BL73-'Future Preferences'!$B$6+'Future Preferences'!$D$6)) -> 0.0369550059 | CG73: 0.195867783 | CH73: 0.5594537491 | CI73: =IF((BO73-'Future Preferences'!$B$9+'Future Preferences'!$D$9)<0,0,(BO73-'Future Preferences'!$B$9+'Future Preferences'!$D$9)) -> 0.207723462 | CJ73: =IF((BP73-'Future Preferences'!$B$10+'Future Preferences'!$D$10)<0,0,(BP73-'Future Preferences'!$B$10+'Future Preferences'!$D$10)) -> 0
A74: 66 | B74: College Towns | D74: 14 | E74: Scholars and Patriots | F74: 3 | G74: Metro Cities | H74: Singles | I74: 1129580 | J74: =IFERROR(I74/$I$8,0) -> 0.009423931388 | K74: 2.12 | L74: 54.2 | M74: 1420.6 | N74: MED | O74: 2.12 | P74: 24.3 | Q74: 0.112 | R74: 0.673 | S74: 0.135 | T74: 0.08 | U74: 0.01 | V74: 0.007 | W74: 0.046 | X74: 0.025 | Y74: 0.386 | Z74: 0.065 | AA74: 0.461 | AB74: 0.386 | AC74: 0.109 | AD74: 0.386 | AE74: 0.119 | AF74: 0.034 | AG74: 0.059 | AH74: 0.16 | AI74: 0.031 | AJ74: 0.205 | AK74: 0.066 | AL74: 0.249 | AM74: 0.196 | AN74: 29100 | AO74: 0.592 | AP74: 0.084 | AQ74: 0.01 | AR74: 0.033 | AS74: 0.056 | AT74: 0.013 | AU74: 0.124 | AV74: 0.023 | AW74: 0.017 | AX74: 0.047 | AY74: 0.648 | AZ74: 0.029 | BA74: 0.099 | BB74: 0.279 | BC74: 0.109 | BD74: 0.139 | BE74: 0.245 | BF74: 0.004 | BG74: 0.028 | BH74: 0.018 | BI74: 0.038 | BJ74: 0.041 | BK74: 0.315 | BL74: 0.1575 | BM74: 0.1575 | BN74: 0.129 | BO74: 0.533 | BP74: 0.023 | BQ74: 180700 | BR74: 0.251 | BS74: =1-BR74 -> 0.749 | BT74: 0.004 | BU74: 0.134 | BV74: 0.115 | BW74: 0.122 | BX74: 0.161 | BY74: 0.464 | BZ74: ='Tapestry Input'!AN74*('Current Summary'!B$38/'Tapestry Input'!AN$8) -> 0 | CA74: ='Tapestry Input'!BQ74*($C$5/'Tapestry Input'!BQ$8) -> 0 | CB74: =IFERROR(C74*('Initial Inputs'!$B$11/SUM($C$9:$C$76)),0) -> 0 | CC74: =IFERROR(CB74/SUM($CB$9:$CB$76),0) -> 0 | CD74: =IFERROR('Tapestry Input'!CC74/'Tapestry Input'!J74,0) -> 0 | CE74: =IF((BK74-'Future Preferences'!$B$5+'Future Preferences'!$D$5)<0,0,(BK74-'Future Preferences'!$B$5+'Future Preferences'!$D$5)) -> 0.3078227889 | CF74: =IF((BL74-'Future Preferences'!$B$6+'Future Preferences'!$D$6)<0,0,(BL74-'Future Preferences'!$B$6+'Future Preferences'!$D$6)) -> 0 | CG74: =CE74-CF74 -> 0.3078227889 | CH74: =1-(CE74+CJ74+CI74) -> 0.1584537491 | CI74: =IF((BO74-'Future Preferences'!$B$9+'Future Preferences'!$D$9)<0,0,(BO74-'Future Preferences'!$B$9+'Future Preferences'!$D$9)) -> 0.533723462 | CJ74: =IF((BP74-'Future Preferences'!$B$10+'Future Preferences'!$D$10)<0,0,(BP74-'Future Preferences'!$B$10+'Future Preferences'!$D$10)) -> 0
A75: 67 | B75: Dorms to Diplomas | D75: 14 | E75: Scholars and Patriots | F75: 3 | G75: Metro Cities | H75: Nonfam HHs w/ 2+ Persons | I75: 605731 | J75: =IFERROR(I75/$I$8,0) -> 0.005053530855 | K75: 2.2 | L75: 53.5 | M75: 5063.2 | N75: HIGH | O75: 2.2 | P75: 21.6 | Q75: 0.035 | R75: 0.917 | S75: 0.031 | T75: 0.017 | U75: 0.002 | V75: 0.002 | W75: 0.01 | X75: 0.006 | Y75: 0.775 | Z75: 0.064 | AA75: 0.14 | AB75: 0.398 | AC75: 0.088 | AD75: 0.411 | AE75: 0.102 | AF75: 0.029 | AG75: 0.046 | AH75: 0.115 | AI75: 0.025 | AJ75: 0.189 | AK75: 0.058 | AL75: 0.276 | AM75: 0.261 | AN75: 17600 | AO75: 0.452 | AP75: 0.113 | AQ75: 0.007 | AR75: 0.02 | AS75: 0.032 | AT75: 0.009 | AU75: 0.129 | AV75: 0.013 | AW75: 0.016 | AX75: 0.033 | AY75: 0.722 | AZ75: 0.019 | BA75: 0.068 | BB75: 0.268 | BC75: 0.119 | BD75: 0.16 | BE75: 0.294 | BF75: 0.004 | BG75: 0.017 | BH75: 0.014 | BI75: 0.023 | BJ75: 0.033 | BK75: 0.141 | BL75: 0 | BM75: 0.141 | BN75: 0.093 | BO75: 0.754 | BP75: 0.011 | BQ75: 186300 | BR75: 0.078 | BS75: 0.922 | BT75: 0.005 | BU75: 0.167 | BV75: 0.134 | BW75: 0.145 | BX75: 0.176 | BY75: 0.372 | BZ75: ='Tapestry Input'!AN75*('Current Summary'!B$38/'Tapestry Input'!AN$8) -> 0 | CA75: ='Tapestry Input'!BQ75*($C$5/'Tapestry Input'!BQ$8) -> 0 | CB75: =IFERROR(C75*('Initial Inputs'!$B$11/SUM($C$9:$C$76)),0) -> 0 | CC75: =IFERROR(CB75/SUM($CB$9:$CB$76),0) -> 0 | CD75: =IFERROR('Tapestry Input'!CC75/'Tapestry Input'!J75,0) -> 0 | CE75: =IF((BK75-'Future Preferences'!$B$5+'Future Preferences'!$D$5)<0,0,(BK75-'Future Preferences'!$B$5+'Future Preferences'!$D$5)) -> 0.1338227889 | CF75: =IF((BL75-'Future Preferences'!$B$6+'Future Preferences'!$D$6)<0,0,(BL75-'Future Preferences'!$B$6+'Future Preferences'!$D$6)) -> 0 | CG75: 0.1338227889 | CH75: 0.1114537491 | CI75: =IF((BO75-'Future Preferences'!$B$9+'Future Preferences'!$D$9)<0,0,(BO75-'Future Preferences'!$B$9+'Future Preferences'!$D$9)) -> 0.754723462 | CJ75: =IF((BP75-'Future Preferences'!$B$10+'Future Preferences'!$D$10)<0,0,(BP75-'Future Preferences'!$B$10+'Future Preferences'!$D$10)) -> 0
A76: 68 | B76: Undefined | CB76: =IFERROR(C76*('Initial Inputs'!$B$11/SUM($C$9:$C$76)),0) -> 0

Sheet Unit Projection
A1: HOUSEHOLD AND UNIT PROJECTIONS
C3: CURRENT HOUSEHOLDS | F3: FUTURE HOUSEHOLDS | N3: FUTURE UNITS
F4: Age Cohort Adjustment | H4: Tenure Adjustment | J4: Underpayment Adjustment | N4: Vacancy Adjustment | P4: Total Future Units ◊
C5: TOTAL HH | D5: RENTAL HH | E5: OWNER HH | F5: RENTAL HH | G5: OWNER HH | H5: RENTAL HH | I5: OWNER HH | J5: UNDERPAYING RENTAL HH | K5: ADJUSTED TOTAL RENTAL HH | L5: UNDERPAYING OWNER HH | M5: ADJUSTED TOTAL OWNER HH | N5: RENTAL UNITS | O5: OWNER UNITS | P5: RENTAL UNITS | Q5: OWNER UNITS
A6: <25 | B6: <15k | C6: =IFERROR(IFERROR((SUM('Future Cohorts'!B7:B8)),0),0) -> 0 | D6: =IFERROR(IFERROR('Future Cohorts'!F4*C6,0),0) -> 0 | E6: =IFERROR(IFERROR('Future Cohorts'!I4*C6,0),0) -> 0 | F6: =IFERROR(IFERROR('Future Cohorts'!$H$49*'Initial Inputs'!$B$20*(D6/SUM($D$6:$E$12)),0),0) -> 0 | G6: =IFERROR('Future Cohorts'!$H$49*'Initial Inputs'!$B$20*(E6/SUM($D$6:$E$12)),0) -> 0 | H6: =IFERROR('Future Cohorts'!G4*SUM(F6:G6),0) -> 0 | I6: =IFERROR('Future Cohorts'!J4*SUM(F6:G6),0) -> 0 | J6: =IFERROR(H6*'Future Cohorts'!$F$55,0) -> 0 | K6: =IFERROR((H6-J6)+J7,0) -> 0 | L6: =IFERROR(I6*'Future Cohorts'!$G$55,0) -> 0 | M6: =IFERROR((I6-L6)+L7,0) -> 0 | N6: =IFERROR(K6*(1+'Future Cohorts'!$G$36),0) -> 0 | O6: =IFERROR(M6*(1+'Future Cohorts'!$G$37),0) -> 0 | P6: =IFERROR(ROUNDDOWN(N6*(1-'Future Cohorts'!$E$40*('Initial Inputs'!$B$7-'Initial Inputs'!$B$6)),0),0) -> 0 | Q6: =IFERROR(ROUNDDOWN(O6*(1-'Future Cohorts'!$E$40*('Initial Inputs'!$B$7-'Initial Inputs'!$B$6)),0),0) -> 0
B7: 15k <35k | C7: =IFERROR(SUM('Future Cohorts'!B9:B12),0) -> 0 | D7: =IFERROR(IFERROR('Future Cohorts'!F5*C7,0),0) -> 0 | E7: =IFERROR(IFERROR('Future Cohorts'!I5*C7,0),0) -> 0 | F7: =IFERROR(IFERROR('Future Cohorts'!$H$49*'Initial Inputs'!$B$20*(D7/SUM($D$6:$E$12)),0),0) -> 0 | G7: =IFERROR('Future Cohorts'!$H$49*'Initial Inputs'!$B$20*(E7/SUM($D$6:$E$12)),0) -> 0 | H7: =IFERROR('Future Cohorts'!G5*SUM(F7:G7),0) -> 0 | I7: =IFERROR('Future Cohorts'!J5*SUM(F7:G7),0) -> 0 | J7: =IFERROR(H7*'Future Cohorts'!$F$56,0) -> 0 | K7: =IFERROR((H7-J7)+J8,0) -> 0 | L7: =IFERROR(I7*'Future Cohorts'!$G$56,0) -> 0 | M7: =IFERROR((I7-L7)+L8,0) -> 0 | N7: =IFERROR(K7*(1+'Future Cohorts'!$G$36),0) -> 0 | O7: =IFERROR(M7*(1+'Future Cohorts'!$G$37),0) -> 0 | P7: =IFERROR(ROUNDDOWN(N7*(1-'Future Cohorts'!$E$40*('Initial Inputs'!$B$7-'Initial Inputs'!$B$6)),0),0) -> 0 | Q7: =IFERROR(ROUNDDOWN(O7*(1-'Future Cohorts'!$E$40*('Initial Inputs'!$B$7-'Initial Inputs'!$B$6)),0),0) -> 0
B8: 35k <50k | C8: =IFERROR(SUM('Future Cohorts'!B13:B15),0) -> 0 | D8: =IFERROR(IFERROR('Future Cohorts'!F6*C8,0),0) -> 0 | E8: =IFERROR(IFERROR('Future Cohorts'!I6*C8,0),0) -> 0 | F8: =IFERROR(IFERROR('Future Cohorts'!$H$49*'Initial Inputs'!$B$20*(D8/SUM($D$6:$E$12)),0),0) -> 0 | G8: =IFERROR('Future Cohorts'!$H$49*'Initial Inputs'!$B$20*(E8/SUM($D$6:$E$12)),0) -> 0 | H8: =IFERROR('Future Cohorts'!G6*SUM(F8:G8),0) -> 0 | I8: =IFERROR('Future Cohorts'!J6*SUM(F8:G8),0) -> 0 | J8: =IFERROR(H8*'Future Cohorts'!$F$57,0) -> 0 | K8: =IFERROR((H8-J8)+J9,0) -> 0 | L8: =IFERROR(I8*'Future Cohorts'!$G$57,0) -> 0 | M8: =IFERROR((I8-L8)+L9,0) -> 0 | N8: =IFERROR(K8*(1+'Future Cohorts'!$G$36),0) -> 0 | O8: =IFERROR(M8*(1+'Future Cohorts'!$G$37),0) -> 0 | P8: =IFERROR(ROUNDDOWN(N8*(1-'Future Cohorts'!$E$40*('Initial Inputs'!$B$7-'Initial Inputs'!$B$6)),0),0) -> 0 | Q8: =IFERROR(ROUNDDOWN(O8*(1-'Future Cohorts'!$E$40*('Initial Inputs'!$B$7-'Initial Inputs'!$B$6)),0),0) -> 0
B9: 50k <75k | C9: =IFERROR(SUM('Future Cohorts'!B16:B17),0) -> 0 | D9: =IFERROR(IFERROR('Future Cohorts'!F7*C9,0),0) -> 0 | E9: =IFERROR(IFERROR('Future Cohorts'!I7*C9,0),0) -> 0 | F9: =IFERROR('Future Cohorts'!$H$49*'Initial Inputs'!$B$20*(D9/SUM($D$6:$E$12)),0) -> 0 | G9: =IFERROR('Future Cohorts'!$H$49*'Initial Inputs'!$B$20*(E9/SUM($D$6:$E$12)),0) -> 0 | H9: =IFERROR('Future Cohorts'!G7*SUM(F9:G9),0) -> 0 | I9: =IFERROR('Future Cohorts'!J7*SUM(F9:G9),0) -> 0 | J9: =IFERROR(H9*'Future Cohorts'!$F$58,0) -> 0 | K9: =IFERROR((H9-J9)+J10,0) -> 0 | L9: =IFERROR(I9*'Future Cohorts'!$G$58,0) -> 0 | M9: =IFERROR((I9-L9)+L10,0) -> 0 | N9: =IFERROR(K9*(1+'Future Cohorts'!$G$36),0) -> 0 | O9: =IFERROR(M9*(1+'Future Cohorts'!$G$37),0) -> 0 | P9: =IFERROR(ROUNDDOWN(N9*(1-'Future Cohorts'!$E$40*('Initial Inputs'!$B$7-'Initial Inputs'!$B$6)),0),0) -> 0 | Q9: =IFERROR(ROUNDDOWN(O9*(1-'Future Cohorts'!$E$40*('Initial Inputs'!$B$7-'Initial Inputs'!$B$6)),0),0) -> 0
B10: 75k <100k | C10: =IFERROR(SUM('Future Cohorts'!B18),0) -> 0 | D10: =IFERROR(IFERROR('Future Cohorts'!F8*C10,0),0) -> 0 | E10: =IFERROR(IFERROR('Future Cohorts'!I8*C10,0),0) -> 0 | F10: =IFERROR('Future Cohorts'!$H$49*'Initial Inputs'!$B$20*(D10/SUM($D$6:$E$12)),0) -> 0 | G10: =IFERROR('Future Cohorts'!$H$49*'Initial Inputs'!$B$20*(E10/SUM($D$6:$E$12)),0) -> 0 | H10: =IFERROR('Future Cohorts'!G8*SUM(F10:G10),0) -> 0 | I10: =IFERROR('Future Cohorts'!J8*SUM(F10:G10),0) -> 0 | J10: =IFERROR(H10*'Future Cohorts'!$F$59,0) -> 0 | K10: =IFERROR((H10-J10)+J11,0) -> 0 | L10: =IFERROR(I10*'Future Cohorts'!$G$59,0) -> 0 | M10: =IFERROR((I10-L10)+L11,0) -> 0 | N10: =IFERROR(K10*(1+'Future Cohorts'!$G$36),0) -> 0 | O10: =IFERROR(M10*(1+'Future Cohorts'!$G$37),0) -> 0 | P10: =IFERROR(ROUNDDOWN(N10*(1-'Future Cohorts'!$E$40*('Initial Inputs'!$B$7-'Initial Inputs'!$B$6)),0),0) -> 0 | Q10: =IFERROR(ROUNDDOWN(O10*(1-'Future Cohorts'!$E$40*('Initial Inputs'!$B$7-'Initial Inputs'!$B$6)),0),0) -> 0
B11: 100k <150k | C11: =IFERROR(SUM('Future Cohorts'!B19:B20),0) -> 0 | D11: =IFERROR(IFERROR('Future Cohorts'!F9*C11,0),0) -> 0 | E11: =IFERROR(IFERROR('Future Cohorts'!I9*C11,0),0) -> 0 | F11: =IFERROR('Future Cohorts'!$H$49*'Initial Inputs'!$B$20*(D11/SUM($D$6:$E$12)),0) -> 0 | G11: =IFERROR('Future Cohorts'!$H$49*'Initial Inputs'!$B$20*(E11/SUM($D$6:$E$12)),0) -> 0 | H11: =IFERROR('Future Cohorts'!G9*SUM(F11:G11),0) -> 0 | I11: =IFERROR('Future Cohorts'!J9*SUM(F11:G11),0) -> 0 | J11: =IFERROR(H11*'Future Cohorts'!$F$60,0) -> 0 | K11: =IFERROR((H11-J11)+J12,0) -> 0 | L11: =IFERROR(I11*'Future Cohorts'!$G$60,0) -> 0 | M11: =IFERROR((I11-L11)+L12,0) -> 0 | N11: =IFERROR(K11*(1+'Future Cohorts'!$G$36),0) -> 0 | O11: =IFERROR(M11*(1+'Future Cohorts'!$G$37),0) -> 0 | P11: =IFERROR(ROUNDDOWN(N11*(1-'Future Cohorts'!$E$40*('Initial Inputs'!$B$7-'Initial Inputs'!$B$6)),0),0) -> 0 | Q11: =IFERROR(ROUNDDOWN(O11*(1-'Future Cohorts'!$E$40*('Initial Inputs'!$B$7-'Initial Inputs'!$B$6)),0),0) -> 0
B12: 150k+ | C12: =IFERROR(SUM('Future Cohorts'!B21:B22),0) -> 0 | D12: =IFERROR(IFERROR('Future Cohorts'!F10*C12,0),0) -> 0 | E12: =IFERROR(IFERROR('Future Cohorts'!I10*C12,0),0) -> 0 | F12: =IFERROR('Future Cohorts'!$H$49*'Initial Inputs'!$B$20*(D12/SUM($D$6:$E$12)),0) -> 0 | G12: =IFERROR('Future Cohorts'!$H$49*'Initial Inputs'!$B$20*(E12/SUM($D$6:$E$12)),0) -> 0 | H12: =IFERROR('Future Cohorts'!G10*SUM(F12:G12),0) -> 0 | I12: =IFERROR('Future Cohorts'!J10*SUM(F12:G12),0) -> 0 | J12: =IFERROR(H12*'Future Cohorts'!$F$61,0) -> 0 | K12: =IFERROR(H12-J12,0) -> 0 | L12: =IFERROR(I12*'Future Cohorts'!$G$61,0) -> 0 | M12: =IFERROR(I12-L12,0) -> 0 | N12: =IFERROR(K12*(1+'Future Cohorts'!$G$36),0) -> 0 | O12: =IFERROR(M12*(1+'Future Cohorts'!$G$37),0) -> 0 | P12: =IFERROR(ROUNDDOWN(N12*(1-'Future Cohorts'!$E$40*('Initial Inputs'!$B$7-'Initial Inputs'!$B$6)),0),0) -> 0 | Q12: =IFERROR(ROUNDDOWN(O12*(1-'Future Cohorts'!$E$40*('Initial Inputs'!$B$7-'Initial Inputs'!$B$6)),0),0) -> 0
A13: 25-44 | B13: <15k | C13: =IFERROR(SUM('Future Cohorts'!B24:B25),0) -> 0 | D13: =IFERROR(IFERROR('Future Cohorts'!F11*C13,0),0) -> 0 | E13: =IFERROR(IFERROR('Future Cohorts'!I11*C13,0),0) -> 0 | F13: =IFERROR('Future Cohorts'!$H$50*'Initial Inputs'!$B$20*(D13/SUM($D$13:$E$19)),0) -> 0 | G13: =IFERROR('Future Cohorts'!$H$50*'Initial Inputs'!$B$20*(E13/SUM($D$13:$E$19)),0) -> 0 | H13: =IFERROR('Future Cohorts'!G11*SUM(F13:G13),0) -> 0 | I13: =IFERROR('Future Cohorts'!J11*SUM(F13:G13),0) -> 0 | J13: =IFERROR(H13*'Future Cohorts'!$F$55,0) -> 0 | K13: =IFERROR((H13-J13)+J14,0) -> 0 | L13: =IFERROR(I13*'Future Cohorts'!$G$55,0) -> 0 | M13: =IFERROR((I13-L13)+L14,0) -> 0 | N13: =IFERROR(K13*(1+'Future Cohorts'!$G$36),0) -> 0 | O13: =IFERROR(M13*(1+'Future Cohorts'!$G$37),0) -> 0 | P13: =IFERROR(ROUNDDOWN(N13*(1-'Future Cohorts'!$E$40*('Initial Inputs'!$B$7-'Initial Inputs'!$B$6)),0),0) -> 0 | Q13: =IFERROR(ROUNDDOWN(O13*(1-'Future Cohorts'!$E$40*('Initial Inputs'!$B$7-'Initial Inputs'!$B$6)),0),0) -> 0
B14: 15k <35k | C14: =IFERROR(SUM('Future Cohorts'!B26:B29),0) -> 0 | D14: =IFERROR(IFERROR('Future Cohorts'!F12*C14,0),0) -> 0 | E14: =IFERROR(IFERROR('Future Cohorts'!I12*C14,0),0) -> 0 | F14: =IFERROR('Future Cohorts'!$H$50*'Initial Inputs'!$B$20*(D14/SUM($D$13:$E$19)),0) -> 0 | G14: =IFERROR('Future Cohorts'!$H$50*'Initial Inputs'!$B$20*(E14/SUM($D$13:$E$19)),0) -> 0 | H14: =IFERROR('Future Cohorts'!G12*SUM(F14:G14),0) -> 0 | I14: =IFERROR('Future Cohorts'!J12*SUM(F14:G14),0) -> 0 | J14: =IFERROR(H14*'Future Cohorts'!$F$56,0) -> 0 | K14: =IFERROR((H14-J14)+J15,0) -> 0 | L14: =IFERROR(I14*'Future Cohorts'!$G$56,0) -> 0 | M14: =IFERROR((I14-L14)+L15,0) -> 0 | N14: =IFERROR(K14*(1+'Future Cohorts'!$G$36),0) -> 0 | O14: =IFERROR(M14*(1+'Future Cohorts'!$G$37),0) -> 0 | P14: =IFERROR(ROUNDDOWN(N14*(1-'Future Cohorts'!$E$40*('Initial Inputs'!$B$7-'Initial Inputs'!$B$6)),0),0) -> 0 | Q14: =IFERROR(ROUNDDOWN(O14*(1-'Future Cohorts'!$E$40*('Initial Inputs'!$B$7-'Initial Inputs'!$B$6)),0),0) -> 0
B15: 35k <50k | C15: =IFERROR(SUM('Future Cohorts'!B30:B32),0) -> 0 | D15: =IFERROR(IFERROR('Future Cohorts'!F13*C15,0),0) -> 0 | E15: =IFERROR(IFERROR('Future Cohorts'!I13*C15,0),0) -> 0 | F15: =IFERROR('Future Cohorts'!$H$50*'Initial Inputs'!$B$20*(D15/SUM($D$13:$E$19)),0) -> 0 | G15: =IFERROR('Future Cohorts'!$H$50*'Initial Inputs'!$B$20*(E15/SUM($D$13:$E$19)),0) -> 0 | H15: =IFERROR('Future Cohorts'!G13*SUM(F15:G15),0) -> 0 | I15: =IFERROR('Future Cohorts'!J13*SUM(F15:G15),0) -> 0 | J15: =IFERROR(H15*'Future Cohorts'!$F$57,0) -> 0 | K15: =IFERROR((H15-J15)+J16,0) -> 0 | L15: =IFERROR(I15*'Future Cohorts'!$G$57,0) -> 0 | M15: =IFERROR((I15-L15)+L16,0) -> 0 | N15: =IFERROR(K15*(1+'Future Cohorts'!$G$36),0) -> 0 | O15: =IFERROR(M15*(1+'Future Cohorts'!$G$37),0) -> 0 | P15: =IFERROR(ROUNDDOWN(N15*(1-'Future Cohorts'!$E$40*('Initial Inputs'!$B$7-'Initial Inputs'!$B$6)),0),0) -> 0 | Q15: =IFERROR(ROUNDDOWN(O15*(1-'Future Cohorts'!$E$40*('Initial Inputs'!$B$7-'Initial Inputs'!$B$6)),0),0) -> 0
B16: 50k <75k | C16: =IFERROR(SUM('Future Cohorts'!B33:B34),0) -> 0 | D16: =IFERROR(IFERROR('Future Cohorts'!F14*C16,0),0) -> 0 | E16: =IFERROR(IFERROR('Future Cohorts'!I14*C16,0),0) -> 0 | F16: =IFERROR('Future Cohorts'!$H$50*'Initial Inputs'!$B$20*(D16/SUM($D$13:$E$19)),0) -> 0 | G16: =IFERROR('Future Cohorts'!$H$50*'Initial Inputs'!$B$20*(E16/SUM($D$13:$E$19)),0) -> 0 | H16: =IFERROR('Future Cohorts'!G14*SUM(F16:G16),0) -> 0 | I16: =IFERROR('Future Cohorts'!J14*SUM(F16:G16),0) -> 0 | J16: =IFERROR(H16*'Future Cohorts'!$F$58,0) -> 0 | K16: =IFERROR((H16-J16)+J17,0) -> 0 | L16: =IFERROR(I16*'Future Cohorts'!$G$58,0) -> 0 | M16: =IFERROR((I16-L16)+L17,0) -> 0 | N16: =IFERROR(K16*(1+'Future Cohorts'!$G$36),0) -> 0 | O16: =IFERROR(M16*(1+'Future Cohorts'!$G$37),0) -> 0 | P16: =IFERROR(ROUNDDOWN(N16*(1-'Future Cohorts'!$E$40*('Initial Inputs'!$B$7-'Initial Inputs'!$B$6)),0),0) -> 0 | Q16: =IFERROR(ROUNDDOWN(O16*(1-'Future Cohorts'!$E$40*('Initial Inputs'!$B$7-'Initial Inputs'!$B$6)),0),0) -> 0
B17: 75k <100k | C17: =IFERROR(SUM('Future Cohorts'!B35),0) -> 0 | D17: =IFERROR(IFERROR('Future Cohorts'!F15*C17,0),0) -> 0 | E17: =IFERROR(IFERROR('Future Cohorts'!I15*C17,0),0) -> 0 | F17: =IFERROR('Future Cohorts'!$H$50*'Initial Inputs'!$B$20*(D17/SUM($D$13:$E$19)),0) -> 0 | G17: =IFERROR('Future Cohorts'!$H$50*'Initial Inputs'!$B$20*(E17/SUM($D$13:$E$19)),0) -> 0 | H17: =IFERROR('Future Cohorts'!G15*SUM(F17:G17),0) -> 0 | I17: =IFERROR('Future Cohorts'!J15*SUM(F17:G17),0) -> 0 | J17: =IFERROR(H17*'Future Cohorts'!$F$59,0) -> 0 | K17: =IFERROR((H17-J17)+J18,0) -> 0 | L17: =IFERROR(I17*'Future Cohorts'!$G$59,0) -> 0 | M17: =IFERROR((I17-L17)+L18,0) -> 0 | N17: =IFERROR(K17*(1+'Future Cohorts'!$G$36),0) -> 0 | O17: =IFERROR(M17*(1+'Future Cohorts'!$G$37),0) -> 0 | P17: =IFERROR(ROUNDDOWN(N17*(1-'Future Cohorts'!$E$40*('Initial Inputs'!$B$7-'Initial Inputs'!$B$6)),0),0) -> 0 | Q17: =IFERROR(ROUNDDOWN(O17*(1-'Future Cohorts'!$E$40*('Initial Inputs'!$B$7-'Initial Inputs'!$B$6)),0),0) -> 0
B18: 100k <150k | C18: =IFERROR(SUM('Future Cohorts'!B36:B37),0) -> 0 | D18: =IFERROR(IFERROR('Future Cohorts'!F16*C18,0),0) -> 0 | E18: =IFERROR(IFERROR('Future Cohorts'!I16*C18,0),0) -> 0 | F18: =IFERROR('Future Cohorts'!$H$50*'Initial Inputs'!$B$20*(D18/SUM($D$13:$E$19)),0) -> 0 | G18: =IFERROR('Future Cohorts'!$H$50*'Initial Inputs'!$B$20*(E18/SUM($D$13:$E$19)),0) -> 0 | H18: =IFERROR('Future Cohorts'!G16*SUM(F18:G18),0) -> 0 | I18: =IFERROR('Future Cohorts'!J16*SUM(F18:G18),0) -> 0 | J18: =IFERROR(H18*'Future Cohorts'!$F$60,0) -> 0 | K18: =IFERROR((H18-J18)+J19,0) -> 0 | L18: =IFERROR(I18*'Future Cohorts'!$G$60,0) -> 0 | M18: =IFERROR((I18-L18)+L19,0) -> 0 | N18: =IFERROR(K18*(1+'Future Cohorts'!$G$36),0) -> 0 | O18: =IFERROR(M18*(1+'Future Cohorts'!$G$37),0) -> 0 | P18: =IFERROR(ROUNDDOWN(N18*(1-'Future Cohorts'!$E$40*('Initial Inputs'!$B$7-'Initial Inputs'!$B$6)),0),0) -> 0 | Q18: =IFERROR(ROUNDDOWN(O18*(1-'Future Cohorts'!$E$40*('Initial Inputs'!$B$7-'Initial Inputs'!$B$6)),0),0) -> 0
B19: 150k+ | C19: =IFERROR(SUM('Future Cohorts'!B38:B39),0) -> 0 | D19: =IFERROR(IFERROR('Future Cohorts'!F17*C19,0),0) -> 0 | E19: =IFERROR(IFERROR('Future Cohorts'!I17*C19,0),0) -> 0 | F19: =IFERROR('Future Cohorts'!$H$50*'Initial Inputs'!$B$20*(D19/SUM($D$13:$E$19)),0) -> 0 | G19: =IFERROR('Future Cohorts'!$H$50*'Initial Inputs'!$B$20*(E19/SUM($D$13:$E$19)),0) -> 0 | H19: =IFERROR('Future Cohorts'!G17*SUM(F19:G19),0) -> 0 | I19: =IFERROR('Future Cohorts'!J17*SUM(F19:G19),0) -> 0 | J19: =IFERROR(H19*'Future Cohorts'!$F$61,0) -> 0 | K19: =IFERROR(H19-J19,0) -> 0 | L19: =IFERROR(I19*'Future Cohorts'!$G$61,0) -> 0 | M19: =IFERROR(I19-L19,0) -> 0 | N19: =IFERROR(K19*(1+'Future Cohorts'!$G$36),0) -> 0 | O19: =IFERROR(M19*(1+'Future Cohorts'!$G$37),0) -> 0 | P19: =IFERROR(ROUNDDOWN(N19*(1-'Future Cohorts'!$E$40*('Initial Inputs'!$B$7-'Initial Inputs'!$B$6)),0),0) -> 0 | Q19: =IFERROR(ROUNDDOWN(O19*(1-'Future Cohorts'!$E$40*('Initial Inputs'!$B$7-'Initial Inputs'!$B$6)),0),0) -> 0
A20: 45-64 | B20: <15k | C20: =IFERROR(SUM('Future Cohorts'!B41:B42),0) -> 0 | D20: =IFERROR(IFERROR('Future Cohorts'!F18*C20,0),0) -> 0 | E20: =IFERROR(IFERROR('Future Cohorts'!I18*C20,0),0) -> 0 | F20: =IFERROR('Future Cohorts'!$H$51*'Initial Inputs'!$B$20*(D20/SUM($D$20:$E$26)),0) -> 0 | G20: =IFERROR('Future Cohorts'!$H$51*'Initial Inputs'!$B$20*(E20/SUM($D$20:$E$26)),0) -> 0 | H20: =IFERROR('Future Cohorts'!G18*SUM(F20:G20),0) -> 0 | I20: =IFERROR('Future Cohorts'!J18*SUM(F20:G20),0) -> 0 | J20: =IFERROR(H20*'Future Cohorts'!$F$55,0) -> 0 | K20: =IFERROR((H20-J20)+J21,0) -> 0 | L20: =IFERROR(I20*'Future Cohorts'!$G$55,0) -> 0 | M20: =IFERROR((I20-L20)+L21,0) -> 0 | N20: =IFERROR(K20*(1+'Future Cohorts'!$G$36),0) -> 0 | O20: =IFERROR(M20*(1+'Future Cohorts'!$G$37),0) -> 0 | P20: =IFERROR(ROUNDDOWN(N20*(1-'Future Cohorts'!$E$40*('Initial Inputs'!$B$7-'Initial Inputs'!$B$6)),0),0) -> 0 | Q20: =IFERROR(ROUNDDOWN(O20*(1-'Future Cohorts'!$E$40*('Initial Inputs'!$B$7-'Initial Inputs'!$B$6)),0),0) -> 0
B21: 15k <35k | C21: =IFERROR(SUM('Future Cohorts'!B43:B46),0) -> 0 | D21: =IFERROR(IFERROR('Future Cohorts'!F19*C21,0),0) -> 0 | E21: =IFERROR(IFERROR('Future Cohorts'!I19*C21,0),0) -> 0 | F21: =IFERROR('Future Cohorts'!$H$51*'Initial Inputs'!$B$20*(D21/SUM($D$20:$E$26)),0) -> 0 | G21: =IFERROR('Future Cohorts'!$H$51*'Initial Inputs'!$B$20*(E21/SUM($D$20:$E$26)),0) -> 0 | H21: =IFERROR('Future Cohorts'!G19*SUM(F21:G21),0) -> 0 | I21: =IFERROR('Future Cohorts'!J19*SUM(F21:G21),0) -> 0 | J21: =IFERROR(H21*'Future Cohorts'!$F$56,0) -> 0 | K21: =IFERROR((H21-J21)+J22,0) -> 0 | L21: =IFERROR(I21*'Future Cohorts'!$G$56,0) -> 0 | M21: =IFERROR((I21-L21)+L22,0) -> 0 | N21: =IFERROR(K21*(1+'Future Cohorts'!$G$36),0) -> 0 | O21: =IFERROR(M21*(1+'Future Cohorts'!$G$37),0) -> 0 | P21: =IFERROR(ROUNDDOWN(N21*(1-'Future Cohorts'!$E$40*('Initial Inputs'!$B$7-'Initial Inputs'!$B$6)),0),0) -> 0 | Q21: =IFERROR(ROUNDDOWN(O21*(1-'Future Cohorts'!$E$40*('Initial Inputs'!$B$7-'Initial Inputs'!$B$6)),0),0) -> 0
B22: 35k <50k | C22: =IFERROR(SUM('Future Cohorts'!B47:B49),0) -> 0 | D22: =IFERROR(IFERROR('Future Cohorts'!F20*C22,0),0) -> 0 | E22: =IFERROR(IFERROR('Future Cohorts'!I20*C22,0),0) -> 0 | F22: =IFERROR('Future Cohorts'!$H$51*'Initial Inputs'!$B$20*(D22/SUM($D$20:$E$26)),0) -> 0 | G22: =IFERROR('Future Cohorts'!$H$51*'Initial Inputs'!$B$20*(E22/SUM($D$20:$E$26)),0) -> 0 | H22: =IFERROR('Future Cohorts'!G20*SUM(F22:G22),0) -> 0 | I22: =IFERROR('Future Cohorts'!J20*SUM(F22:G22),0) -> 0 | J22: =IFERROR(H22*'Future Cohorts'!$F$57,0) -> 0 | K22: =IFERROR((H22-J22)+J23,0) -> 0 | L22: =IFERROR(I22*'Future Cohorts'!$G$57,0) -> 0 | M22: =IFERROR((I22-L22)+L23,0) -> 0 | N22: =IFERROR(K22*(1+'Future Cohorts'!$G$36),0) -> 0 | O22: =IFERROR(M22*(1+'Future Cohorts'!$G$37),0) -> 0 | P22: =IFERROR(ROUNDDOWN(N22*(1-'Future Cohorts'!$E$40*('Initial Inputs'!$B$7-'Initial Inputs'!$B$6)),0),0) -> 0 | Q22: =IFERROR(ROUNDDOWN(O22*(1-'Future Cohorts'!$E$40*('Initial Inputs'!$B$7-'Initial Inputs'!$B$6)),0),0) -> 0
B23: 50k <75k | C23: =IFERROR(SUM('Future Cohorts'!B50:B51),0) -> 0 | D23: =IFERROR(IFERROR('Future Cohorts'!F21*C23,0),0) -> 0 | E23: =IFERROR(IFERROR('Future Cohorts'!I21*C23,0),0) -> 0 | F23: =IFERROR('Future Cohorts'!$H$51*'Initial Inputs'!$B$20*(D23/SUM($D$20:$E$26)),0) -> 0 | G23: =IFERROR('Future Cohorts'!$H$51*'Initial Inputs'!$B$20*(E23/SUM($D$20:$E$26)),0) -> 0 | H23: =IFERROR('Future Cohorts'!G21*SUM(F23:G23),0) -> 0 | I23: =IFERROR('Future Cohorts'!J21*SUM(F23:G23),0) -> 0 | J23: =IFERROR(H23*'Future Cohorts'!$F$58,0) -> 0 | K23: =IFERROR((H23-J23)+J24,0) -> 0 | L23: =IFERROR(I23*'Future Cohorts'!$G$58,0) -> 0 | M23: =IFERROR((I23-L23)+L24,0) -> 0 | N23: =IFERROR(K23*(1+'Future Cohorts'!$G$36),0) -> 0 | O23: =IFERROR(M23*(1+'Future Cohorts'!$G$37),0) -> 0 | P23: =IFERROR(ROUNDDOWN(N23*(1-'Future Cohorts'!$E$40*('Initial Inputs'!$B$7-'Initial Inputs'!$B$6)),0),0) -> 0 | Q23: =IFERROR(ROUNDDOWN(O23*(1-'Future Cohorts'!$E$40*('Initial Inputs'!$B$7-'Initial Inputs'!$B$6)),0),0) -> 0
B24: 75k <100k | C24: =IFERROR(SUM('Future Cohorts'!B52),0) -> 0 | D24: =IFERROR(IFERROR('Future Cohorts'!F22*C24,0),0) -> 0 | E24: =IFERROR(IFERROR('Future Cohorts'!I22*C24,0),0) -> 0 | F24: =IFERROR('Future Cohorts'!$H$51*'Initial Inputs'!$B$20*(D24/SUM($D$20:$E$26)),0) -> 0 | G24: =IFERROR('Future Cohorts'!$H$51*'Initial Inputs'!$B$20*(E24/SUM($D$20:$E$26)),0) -> 0 | H24: =IFERROR('Future Cohorts'!G22*SUM(F24:G24),0) -> 0 | I24: =IFERROR('Future Cohorts'!J22*SUM(F24:G24),0) -> 0 | J24: =IFERROR(H24*'Future Cohorts'!$F$59,0) -> 0 | K24: =IFERROR((H24-J24)+J25,0) -> 0 | L24: =IFERROR(I24*'Future Cohorts'!$G$59,0) -> 0 | M24: =IFERROR((I24-L24)+L25,0) -> 0 | N24: =IFERROR(K24*(1+'Future Cohorts'!$G$36),0) -> 0 | O24: =IFERROR(M24*(1+'Future Cohorts'!$G$37),0) -> 0 | P24: =IFERROR(ROUNDDOWN(N24*(1-'Future Cohorts'!$E$40*('Initial Inputs'!$B$7-'Initial Inputs'!$B$6)),0),0) -> 0 | Q24: =IFERROR(ROUNDDOWN(O24*(1-'Future Cohorts'!$E$40*('Initial Inputs'!$B$7-'Initial Inputs'!$B$6)),0),0) -> 0
B25: 100k <150k | C25: =IFERROR(SUM('Future Cohorts'!B53:B54),0) -> 0 | D25: =IFERROR(IFERROR('Future Cohorts'!F23*C25,0),0) -> 0 | E25: =IFERROR(IFERROR('Future Cohorts'!I23*C25,0),0) -> 0 | F25: =IFERROR('Future Cohorts'!$H$51*'Initial Inputs'!$B$20*(D25/SUM($D$20:$E$26)),0) -> 0 | G25: =IFERROR('Future Cohorts'!$H$51*'Initial Inputs'!$B$20*(E25/SUM($D$20:$E$26)),0) -> 0 | H25: =IFERROR('Future Cohorts'!G23*SUM(F25:G25),0) -> 0 | I25: =IFERROR('Future Cohorts'!J23*SUM(F25:G25),0) -> 0 | J25: =IFERROR(H25*'Future Cohorts'!$F$60,0) -> 0 | K25: =IFERROR((H25-J25)+J26,0) -> 0 | L25: =IFERROR(I25*'Future Cohorts'!$G$60,0) -> 0 | M25: =IFERROR((I25-L25)+L26,0) -> 0 | N25: =IFERROR(K25*(1+'Future Cohorts'!$G$36),0) -> 0 | O25: =IFERROR(M25*(1+'Future Cohorts'!$G$37),0) -> 0 | P25: =IFERROR(ROUNDDOWN(N25*(1-'Future Cohorts'!$E$40*('Initial Inputs'!$B$7-'Initial Inputs'!$B$6)),0),0) -> 0 | Q25: =IFERROR(ROUNDDOWN(O25*(1-'Future Cohorts'!$E$40*('Initial Inputs'!$B$7-'Initial Inputs'!$B$6)),0),0) -> 0
B26: 150k+ | C26: =IFERROR(SUM('Future Cohorts'!B55:B56),0) -> 0 | D26: =IFERROR(IFERROR('Future Cohorts'!F24*C26,0),0) -> 0 | E26: =IFERROR(IFERROR('Future Cohorts'!I24*C26,0),0) -> 0 | F26: =IFERROR('Future Cohorts'!$H$51*'Initial Inputs'!$B$20*(D26/SUM($D$20:$E$26)),0) -> 0 | G26: =IFERROR('Future Cohorts'!$H$51*'Initial Inputs'!$B$20*(E26/SUM($D$20:$E$26)),0) -> 0 | H26: =IFERROR('Future Cohorts'!G24*SUM(F26:G26),0) -> 0 | I26: =IFERROR('Future Cohorts'!J24*SUM(F26:G26),0) -> 0 | J26: =IFERROR(H26*'Future Cohorts'!$F$61,0) -> 0 | K26: =IFERROR(H26-J26,0) -> 0 | L26: =IFERROR(I26*'Future Cohorts'!$G$61,0) -> 0 | M26: =IFERROR(I26-L26,0) -> 0 | N26: =IFERROR(K26*(1+'Future Cohorts'!$G$36),0) -> 0 | O26: =IFERROR(M26*(1+'Future Cohorts'!$G$37),0) -> 0 | P26: =IFERROR(ROUNDDOWN(N26*(1-'Future Cohorts'!$E$40*('Initial Inputs'!$B$7-'Initial Inputs'!$B$6)),0),0) -> 0 | Q26: =IFERROR(ROUNDDOWN(O26*(1-'Future Cohorts'!$E$40*('Initial Inputs'!$B$7-'Initial Inputs'!$B$6)),0),0) -> 0
A27: 65+ | B27: <15k | C27: =IFERROR(SUM('Future Cohorts'!B58:B59),0) -> 0 | D27: =IFERROR(IFERROR('Future Cohorts'!F25*C27,0),0) -> 0 | E27: =IFERROR(IFERROR('Future Cohorts'!I25*C27,0),0) -> 0 | F27: =IFERROR('Future Cohorts'!$H$52*'Initial Inputs'!$B$20*(D27/SUM($D$27:$E$33)),0) -> 0 | G27: =IFERROR('Future Cohorts'!$H$52*'Initial Inputs'!$B$20*(E27/SUM($D$27:$E$33)),0) -> 0 | H27: =IFERROR('Future Cohorts'!G25*SUM(F27:G27),0) -> 0 | I27: =IFERROR('Future Cohorts'!J25*SUM(F27:G27),0) -> 0 | J27: =IFERROR(H27*'Future Cohorts'!$F$55,0) -> 0 | K27: =IFERROR((H27-J27)+J28,0) -> 0 | L27: =IFERROR(I27*'Future Cohorts'!$G$55,0) -> 0 | M27: =IFERROR((I27-L27)+L28,0) -> 0 | N27: =IFERROR(K27*(1+'Future Cohorts'!$G$36),0) -> 0 | O27: =IFERROR(M27*(1+'Future Cohorts'!$G$37),0) -> 0 | P27: =IFERROR(ROUNDDOWN(N27*(1-'Future Cohorts'!$E$40*('Initial Inputs'!$B$7-'Initial Inputs'!$B$6)),0),0) -> 0 | Q27: =IFERROR(ROUNDDOWN(O27*(1-'Future Cohorts'!$E$40*('Initial Inputs'!$B$7-'Initial Inputs'!$B$6)),0),0) -> 0
B28: 15k <35k | C28: =IFERROR(SUM('Future Cohorts'!B60:B63),0) -> 0 | D28: =IFERROR(IFERROR('Future Cohorts'!F26*C28,0),0) -> 0 | E28: =IFERROR(IFERROR('Future Cohorts'!I26*C28,0),0) -> 0 | F28: =IFERROR('Future Cohorts'!$H$52*'Initial Inputs'!$B$20*(D28/SUM($D$27:$E$33)),0) -> 0 | G28: =IFERROR('Future Cohorts'!$H$52*'Initial Inputs'!$B$20*(E28/SUM($D$27:$E$33)),0) -> 0 | H28: =IFERROR('Future Cohorts'!G26*SUM(F28:G28),0) -> 0 | I28: =IFERROR('Future Cohorts'!J26*SUM(F28:G28),0) -> 0 | J28: =IFERROR(H28*'Future Cohorts'!$F$56,0) -> 0 | K28: =IFERROR((H28-J28)+J29,0) -> 0 | L28: =IFERROR(I28*'Future Cohorts'!$G$56,0) -> 0 | M28: =IFERROR((I28-L28)+L29,0) -> 0 | N28: =IFERROR(K28*(1+'Future Cohorts'!$G$36),0) -> 0 | O28: =IFERROR(M28*(1+'Future Cohorts'!$G$37),0) -> 0 | P28: =IFERROR(ROUNDDOWN(N28*(1-'Future Cohorts'!$E$40*('Initial Inputs'!$B$7-'Initial Inputs'!$B$6)),0),0) -> 0 | Q28: =IFERROR(ROUNDDOWN(O28*(1-'Future Cohorts'!$E$40*('Initial Inputs'!$B$7-'Initial Inputs'!$B$6)),0),0) -> 0
B29: 35k <50k | C29: =IFERROR(SUM('Future Cohorts'!B64:B66),0) -> 0 | D29: =IFERROR(IFERROR('Future Cohorts'!F27*C29,0),0) -> 0 | E29: =IFERROR(IFERROR('Future Cohorts'!I27*C29,0),0) -> 0 | F29: =IFERROR('Future Cohorts'!$H$52*'Initial Inputs'!$B$20*(D29/SUM($D$27:$E$33)),0) -> 0 | G29: =IFERROR('Future Cohorts'!$H$52*'Initial Inputs'!$B$20*(E29/SUM($D$27:$E$33)),0) -> 0 | H29: =IFERROR('Future Cohorts'!G27*SUM(F29:G29),0) -> 0 | I29: =IFERROR('Future Cohorts'!J27*SUM(F29:G29),0) -> 0 | J29: =IFERROR(H29*'Future Cohorts'!$F$57,0) -> 0 | K29: =IFERROR((H29-J29)+J30,0) -> 0 | L29: =IFERROR(I29*'Future Cohorts'!$G$57,0) -> 0 | M29: =IFERROR((I29-L29)+L30,0) -> 0 | N29: =IFERROR(K29*(1+'Future Cohorts'!$G$36),0) -> 0 | O29: =IFERROR(M29*(1+'Future Cohorts'!$G$37),0) -> 0 | P29: =IFERROR(ROUNDDOWN(N29*(1-'Future Cohorts'!$E$40*('Initial Inputs'!$B$7-'Initial Inputs'!$B$6)),0),0) -> 0 | Q29: =IFERROR(ROUNDDOWN(O29*(1-'Future Cohorts'!$E$40*('Initial Inputs'!$B$7-'Initial Inputs'!$B$6)),0),0) -> 0
B30: 50k <75k | C30: =IFERROR(SUM('Future Cohorts'!B67:B68),0) -> 0 | D30: =IFERROR(IFERROR('Future Cohorts'!F28*C30,0),0) -> 0 | E30: =IFERROR(IFERROR('Future Cohorts'!I28*C30,0),0) -> 0 | F30: =IFERROR('Future Cohorts'!$H$52*'Initial Inputs'!$B$20*(D30/SUM($D$27:$E$33)),0) -> 0 | G30: =IFERROR('Future Cohorts'!$H$52*'Initial Inputs'!$B$20*(E30/SUM($D$27:$E$33)),0) -> 0 | H30: =IFERROR('Future Cohorts'!G28*SUM(F30:G30),0) -> 0 | I30: =IFERROR('Future Cohorts'!J28*SUM(F30:G30),0) -> 0 | J30: =IFERROR(H30*'Future Cohorts'!$F$58,0) -> 0 | K30: =IFERROR((H30-J30)+J31,0) -> 0 | L30: =IFERROR(I30*'Future Cohorts'!$G$58,0) -> 0 | M30: =IFERROR((I30-L30)+L31,0) -> 0 | N30: =IFERROR(K30*(1+'Future Cohorts'!$G$36),0) -> 0 | O30: =IFERROR(M30*(1+'Future Cohorts'!$G$37),0) -> 0 | P30: =IFERROR(ROUNDDOWN(N30*(1-'Future Cohorts'!$E$40*('Initial Inputs'!$B$7-'Initial Inputs'!$B$6)),0),0) -> 0 | Q30: =IFERROR(ROUNDDOWN(O30*(1-'Future Cohorts'!$E$40*('Initial Inputs'!$B$7-'Initial Inputs'!$B$6)),0),0) -> 0
B31: 75k <100k | C31: =IFERROR(SUM('Future Cohorts'!B69),0) -> 0 | D31: =IFERROR(IFERROR('Future Cohorts'!F29*C31,0),0) -> 0 | E31: =IFERROR(IFERROR('Future Cohorts'!I29*C31,0),0) -> 0 | F31: =IFERROR('Future Cohorts'!$H$52*'Initial Inputs'!$B$20*(D31/SUM($D$27:$E$33)),0) -> 0 | G31: =IFERROR('Future Cohorts'!$H$52*'Initial Inputs'!$B$20*(E31/SUM($D$27:$E$33)),0) -> 0 | H31: =IFERROR('Future Cohorts'!G29*SUM(F31:G31),0) -> 0 | I31: =IFERROR('Future Cohorts'!J29*SUM(F31:G31),0) -> 0 | J31: =IFERROR(H31*'Future Cohorts'!$F$59,0) -> 0 | K31: =IFERROR((H31-J31)+J32,0) -> 0 | L31: =IFERROR(I31*'Future Cohorts'!$G$59,0) -> 0 | M31: =IFERROR((I31-L31)+L32,0) -> 0 | N31: =IFERROR(K31*(1+'Future Cohorts'!$G$36),0) -> 0 | O31: =IFERROR(M31*(1+'Future Cohorts'!$G$37),0) -> 0 | P31: =IFERROR(ROUNDDOWN(N31*(1-'Future Cohorts'!$E$40*('Initial Inputs'!$B$7-'Initial Inputs'!$B$6)),0),0) -> 0 | Q31: =IFERROR(ROUNDDOWN(O31*(1-'Future Cohorts'!$E$40*('Initial Inputs'!$B$7-'Initial Inputs'!$B$6)),0),0) -> 0
B32: 100k <150k | C32: =IFERROR(SUM('Future Cohorts'!B70:B71),0) -> 0 | D32: =IFERROR(IFERROR('Future Cohorts'!F30*C32,0),0) -> 0 | E32: =IFERROR(IFERROR('Future Cohorts'!I30*C32,0),0) -> 0 | F32: =IFERROR('Future Cohorts'!$H$52*'Initial Inputs'!$B$20*(D32/SUM($D$27:$E$33)),0) -> 0 | G32: =IFERROR('Future Cohorts'!$H$52*'Initial Inputs'!$B$20*(E32/SUM($D$27:$E$33)),0) -> 0 | H32: =IFERROR('Future Cohorts'!G30*SUM(F32:G32),0) -> 0 | I32: =IFERROR('Future Cohorts'!J30*SUM(F32:G32),0) -> 0 | J32: =IFERROR(H32*'Future Cohorts'!$F$60,0) -> 0 | K32: =IFERROR((H32-J32)+J33,0) -> 0 | L32: =IFERROR(I32*'Future Cohorts'!$G$60,0) -> 0 | M32: =IFERROR((I32-L32)+L33,0) -> 0 | N32: =IFERROR(K32*(1+'Future Cohorts'!$G$36),0) -> 0 | O32: =IFERROR(M32*(1+'Future Cohorts'!$G$37),0) -> 0 | P32: =IFERROR(ROUNDDOWN(N32*(1-'Future Cohorts'!$E$40*('Initial Inputs'!$B$7-'Initial Inputs'!$B$6)),0),0) -> 0 | Q32: =IFERROR(ROUNDDOWN(O32*(1-'Future Cohorts'!$E$40*('Initial Inputs'!$B$7-'Initial Inputs'!$B$6)),0),0) -> 0
B33: 150k+ | C33: =IFERROR(SUM('Future Cohorts'!B72:B73),0) -> 0 | D33: =IFERROR(IFERROR('Future Cohorts'!F31*C33,0),0) -> 0 | E33: =IFERROR(IFERROR('Future Cohorts'!I31*C33,0),0) -> 0 | F33: =IFERROR('Future Cohorts'!$H$52*'Initial Inputs'!$B$20*(D33/SUM($D$27:$E$33)),0) -> 0 | G33: =IFERROR('Future Cohorts'!$H$52*'Initial Inputs'!$B$20*(E33/SUM($D$27:$E$33)),0) -> 0 | H33: =IFERROR('Future Cohorts'!G31*SUM(F33:G33),0) -> 0 | I33: =IFERROR('Future Cohorts'!J31*SUM(F33:G33),0) -> 0 | J33: =IFERROR(H33*'Future Cohorts'!$F$61,0) -> 0 | K33: =IFERROR(H33-J33,0) -> 0 | L33: =IFERROR(I33*'Future Cohorts'!$G$61,0) -> 0 | M33: =IFERROR(I33-L33,0) -> 0 | N33: =IFERROR(K33*(1+'Future Cohorts'!$G$36),0) -> 0 | O33: =IFERROR(M33*(1+'Future Cohorts'!$G$37),0) -> 0 | P33: =IFERROR(ROUNDDOWN(N33*(1-'Future Cohorts'!$E$40*('Initial Inputs'!$B$7-'Initial Inputs'!$B$6)),0),0) -> 0 | Q33: =IFERROR(ROUNDDOWN(O33*(1-'Future Cohorts'!$E$40*('Initial Inputs'!$B$7-'Initial Inputs'!$B$6)),0),0) -> 0
A34: Total | C34: =IFERROR(SUM(C6:C33),0) -> 0 | D34: =IFERROR(SUM(D6:D33),0) -> 0 | E34: =IFERROR(SUM(E6:E33),0) -> 0 | F34: =IFERROR(SUM(F6:F33),0) -> 0 | G34: =IFERROR(SUM(G6:G33),0) -> 0 | H34: =IFERROR(SUM(H6:H33),0) -> 0 | I34: =IFERROR(SUM(I6:I33),0) -> 0 | J34: =IFERROR(SUM(J6:J33),0) -> 0 | K34: =IFERROR(SUM(K6:K33),0) -> 0 | L34: =IFERROR(SUM(L6:L33),0) -> 0 | M34: =IFERROR(SUM(M6:M33),0) -> 0 | N34: =IFERROR(SUM(N6:N33),0) -> 0 | O34: =IFERROR(SUM(O6:O33),0) -> 0 | P34: =IFERROR(SUM(P6:P33),0) -> 0 | Q34: =IFERROR(SUM(Q6:Q33),0) -> 0

Sheet Tapestry Projection
A1: ESRI TAPESTRY PROJECTIONS
B3: ESRI Tapestry Segments
B4: Top Tier | C4: Professional Pride | D4: Boomburbs | E4: Savvy Suburbanites | F4: Exurbanites | G4: Urban Chic | H4: Pleasantville | I4: Pacific Heights | J4: Enterprising Professionals | K4: Laptops and Lattes | L4: Metro Renters | M4: Trendsetters | N4: Soccer Moms | O4: Home Improvement | P4: Middleburg | Q4: Comfortable Empty Nesters | R4: In Style | S4: Parks and Rec | T4: Rustbelt Traditions | U4: Midlife Constants | V4: Green Acres | W4: Salt of the Earth | X4: The Great Outdoors | Y4: Prairie Living | Z4: Rural Resort Dwellers | AA4: Heartland Communities | AB4: Up and Coming Families | AC4: Urban Villages | AD4: American Dreamers | AE4: Barrios Urbanos | AF4: Valley Growers | AG4: Southwestern Families | AH4: City Lights | AI4: Emerald City | AJ4: Bright Young Professionals | AK4: Downtown Melting Pot | AL4: Front Porches | AM4: Old and Newcomers | AN4: Hardscrabble Road | AO4: Silver & Gold | AP4: Golden Years | AQ4: The Elders | AR4: Senior Escapes | AS4: Retirement Communities | AT4: Social Security Set | AU4: Southern Satellites | AV4: Rooted Rural | AW4: Diners & Miners | AX4: Down the Road | AY4: Rural Bypasses | AZ4: City Strivers | BA4: Young and Restless | BB4: Metro Fusion | BC4: Set to Impress | BD4: City Commons | BE4: Family Foundations | BF4: Traditional Living | BG4: Small Town Simplicity | BH4: Modest Income Homes | BI4: International Marketplace | BJ4: Las Casas | BK4: NeWest Residents | BL4: Fresh Ambitions | BM4: High Rise Renters | BN4: Military Proximity | BO4: College Towns | BP4: Dorms to Diplomas
A5: Segment Character
A6: Median Age | B6: =TRANSPOSE(ESRI_MAge) -> 46.4 | C6: 40.6 | D6: 33.6 | E6: 44.4 | F6: 50 | G6: 42.7 | H6: 42.1 | I6: 42.1 | J6: 34.9 | K6: 37 | L6: 32 | M6: 35.7 | N6: 36.7 | O6: 37.2 | P6: 35.5 | Q6: 47.1 | R6: 41.4 | S6: 40.4 | T6: 38.5 | U6: 46.2 | V6: 43.2 | W6: 43.4 | X6: 46.6 | Y6: 43.7 | Z6: 52.8 | AA6: 41.7 | AB6: 30.9 | AC6: 33.4 | AD6: 31.9 | AE6: 28.4 | AF6: 26.7 | AG6: 34 | AH6: 38.8 | AI6: 36.8 | AJ6: 32.4 | AK6: 37.2 | AL6: 34.4 | AM6: 38.8 | AN6: 31.8 | AO6: 65 | AP6: 51.3 | AQ6: 71.8 | AR6: 53 | AS6: 52.5 | AT6: 44.5 | AU6: 39.9 | AV6: 44.4 | AW6: 40.7 | AX6: 34.4 | AY6: 39.9 | AZ6: 34.6 | BA6: 29.5 | BB6: 28.9 | BC6: 33.3 | BD6: 27.8 | BE6: 39 | BF6: 34.9 | BG6: 40.2 | BH6: 36.4 | BI6: 32.4 | BJ6: 27.8 | BK6: 27 | BL6: 28.1 | BM6: 31.5 | BN6: 22.4 | BO6: 24.3 | BP6: 21.6
A7: Median HH Inc (Adjusted) | B7: =TRANSPOSE(ESRI_MInc) -> 0 | C7: 0 | D7: 0 | E7: 0 | F7: 0 | G7: 0 | H7: 0 | I7: 0 | J7: 0 | K7: 0 | L7: 0 | M7: 0 | N7: 0 | O7: 0 | P7: 0 | Q7: 0 | R7: 0 | S7: 0 | T7: 0 | U7: 0 | V7: 0 | W7: 0 | X7: 0 | Y7: 0 | Z7: 0 | AA7: 0 | AB7: 0 | AC7: 0 | AD7: 0 | AE7: 0 | AF7: 0 | AG7: 0 | AH7: 0 | AI7: 0 | AJ7: 0 | AK7: 0 | AL7: 0 | AM7: 0 | AN7: 0 | AO7: 0 | AP7: 0 | AQ7: 0 | AR7: 0 | AS7: 0 | AT7: 0 | AU7: 0 | AV7: 0 | AW7: 0 | AX7: 0 | AY7: 0 | AZ7: 0 | BA7: 0 | BB7: 0 | BC7: 0 | BD7: 0 | BE7: 0 | BF7: 0 | BG7: 0 | BH7: 0 | BI7: 0 | BJ7: 0 | BK7: 0 | BL7: 0 | BM7: 0 | BN7: 0 | BO7: 0 | BP7: 0
A8: Home Ownership Rate | B8: =TRANSPOSE(ESRI_HOwnPct) -> 0.904 | C8: 0.919 | D8: 0.842 | E8: 0.909 | F8: 0.852 | G8: 0.665 | H8: 0.835 | I8: 0.721 | J8: 0.519 | K8: 0.378 | L8: 0.206 | M8: 0.247 | N8: 0.853 | O8: 0.799 | P8: 0.741 | Q8: 0.873 | R8: 0.685 | S8: 0.706 | T8: 0.719 | U8: 0.733 | V8: 0.865 | W8: 0.836 | X8: 0.778 | Y8: 0.796 | Z8: 0.816 | AA8: 0.701 | AB8: 0.746 | AC8: 0.7 | AD8: 0.643 | AE8: 0.602 | AF8: 0.434 | AG8: 0.546 | AH8: 0.524 | AI8: 0.492 | AJ8: 0.436 | AK8: 0.315 | AL8: 0.474 | AM8: 0.459 | AN8: 0.408 | AO8: 0.835 | AP8: 0.633 | AQ8: 0.818 | AR8: 0.756 | AS8: 0.458 | AT8: 0.142 | AU8: 0.783 | AV8: 0.802 | AW8: 0.76 | AX8: 0.659 | AY8: 0.705 | AZ8: 0.326 | BA8: 0.134 | BB8: 0.246 | BC8: 0.283 | BD8: 0.237 | BE8: 0.665 | BF8: 0.597 | BG8: 0.504 | BH8: 0.458 | BI8: 0.28 | BJ8: 0.356 | BK8: 0.17 | BL8: 0.277 | BM8: 0.038 | BN8: 0.029 | BO8: 0.251 | BP8: 0.078
A9: Households (Adjusted) | B9: =IFERROR(TRANSPOSE(ESRI_LocalHH_adj),0) -> 0 | C9: 0 | D9: 0 | E9: 0 | F9: 0 | G9: 0 | H9: 0 | I9: 0 | J9: 0 | K9: 0 | L9: 0 | M9: 0 | N9: 0 | O9: 0 | P9: 0 | Q9: 0 | R9: 0 | S9: 0 | T9: 0 | U9: 0 | V9: 0 | W9: 0 | X9: 0 | Y9: 0 | Z9: 0 | AA9: 0 | AB9: 0 | AC9: 0 | AD9: 0 | AE9: 0 | AF9: 0 | AG9: 0 | AH9: 0 | AI9: 0 | AJ9: 0 | AK9: 0 | AL9: 0 | AM9: 0 | AN9: 0 | AO9: 0 | AP9: 0 | AQ9: 0 | AR9: 0 | AS9: 0 | AT9: 0 | AU9: 0 | AV9: 0 | AW9: 0 | AX9: 0 | AY9: 0 | AZ9: 0 | BA9: 0 | BB9: 0 | BC9: 0 | BD9: 0 | BE9: 0 | BF9: 0 | BG9: 0 | BH9: 0 | BI9: 0 | BJ9: 0 | BK9: 0 | BL9: 0 | BM9: 0 | BN9: 0 | BO9: 0 | BP9: 0
B11: ESRI Tapestry Segments
B12: Top Tier | C12: Professional Pride | D12: Boomburbs | E12: Savvy Suburbanites | F12: Exurbanites | G12: Urban Chic | H12: Pleasantville | I12: Pacific Heights | J12: Enterprising Professionals | K12: Laptops and Lattes | L12: Metro Renters | M12: Trendsetters | N12: Soccer Moms | O12: Home Improvement | P12: Middleburg | Q12: Comfortable Empty Nesters | R12: In Style | S12: Parks and Rec | T12: Rustbelt Traditions | U12: Midlife Constants | V12: Green Acres | W12: Salt of the Earth | X12: The Great Outdoors | Y12: Prairie Living | Z12: Rural Resort Dwellers | AA12: Heartland Communities | AB12: Up and Coming Families | AC12: Urban Villages | AD12: American Dreamers | AE12: Barrios Urbanos | AF12: Valley Growers | AG12: Southwestern Families | AH12: City Lights | AI12: Emerald City | AJ12: Bright Young Professionals | AK12: Downtown Melting Pot | AL12: Front Porches | AM12: Old and Newcomers | AN12: Hardscrabble Road | AO12: Silver & Gold | AP12: Golden Years | AQ12: The Elders | AR12: Senior Escapes | AS12: Retirement Communities | AT12: Social Security Set | AU12: Southern Satellites | AV12: Rooted Rural | AW12: Diners & Miners | AX12: Down the Road | AY12: Rural Bypasses | AZ12: City Strivers | BA12: Young and Restless | BB12: Metro Fusion | BC12: Set to Impress | BD12: City Commons | BE12: Family Foundations | BF12: Traditional Living | BG12: Small Town Simplicity | BH12: Modest Income Homes | BI12: International Marketplace | BJ12: Las Casas | BK12: NeWest Residents | BL12: Fresh Ambitions | BM12: High Rise Renters | BN12: Military Proximity | BO12: College Towns | BP12: Dorms to Diplomas
A14: ="Current Owner HH - "&'Initial Inputs'!B4 -> Current Owner HH - City of Austin
A15: <25 | B15: =IFERROR(IF(B$6<25,B$9*B$8*0.75,IF(B$6<45,B$9*B$8*0.25,IF(B$6<65,B$9*B$8*0,IF(B$6>=65,B$9*B$8*0,0)))),0) -> 0 | C15: =IFERROR(IF(C$6<25,C$9*C$8*0.75,IF(C$6<45,C$9*C$8*0.25,IF(C$6<65,C$9*C$8*0,IF(C$6>=65,C$9*C$8*0,0)))),0) -> 0 | D15: =IFERROR(IF(D$6<25,D$9*D$8*0.75,IF(D$6<45,D$9*D$8*0.25,IF(D$6<65,D$9*D$8*0,IF(D$6>=65,D$9*D$8*0,0)))),0) -> 0 | E15: =IFERROR(IF(E$6<25,E$9*E$8*0.75,IF(E$6<45,E$9*E$8*0.25,IF(E$6<65,E$9*E$8*0,IF(E$6>=65,E$9*E$8*0,0)))),0) -> 0 | F15: =IFERROR(IF(F$6<25,F$9*F$8*0.75,IF(F$6<45,F$9*F$8*0.25,IF(F$6<65,F$9*F$8*0,IF(F$6>=65,F$9*F$8*0,0)))),0) -> 0 | G15: =IFERROR(IF(G$6<25,G$9*G$8*0.75,IF(G$6<45,G$9*G$8*0.25,IF(G$6<65,G$9*G$8*0,IF(G$6>=65,G$9*G$8*0,0)))),0) -> 0 | H15: =IFERROR(IF(H$6<25,H$9*H$8*0.75,IF(H$6<45,H$9*H$8*0.25,IF(H$6<65,H$9*H$8*0,IF(H$6>=65,H$9*H$8*0,0)))),0) -> 0 | I15: =IFERROR(IF(I$6<25,I$9*I$8*0.75,IF(I$6<45,I$9*I$8*0.25,IF(I$6<65,I$9*I$8*0,IF(I$6>=65,I$9*I$8*0,0)))),0) -> 0 | J15: =IFERROR(IF(J$6<25,J$9*J$8*0.75,IF(J$6<45,J$9*J$8*0.25,IF(J$6<65,J$9*J$8*0,IF(J$6>=65,J$9*J$8*0,0)))),0) -> 0 | K15: =IFERROR(IF(K$6<25,K$9*K$8*0.75,IF(K$6<45,K$9*K$8*0.25,IF(K$6<65,K$9*K$8*0,IF(K$6>=65,K$9*K$8*0,0)))),0) -> 0 | L15: =IFERROR(IF(L$6<25,L$9*L$8*0.75,IF(L$6<45,L$9*L$8*0.25,IF(L$6<65,L$9*L$8*0,IF(L$6>=65,L$9*L$8*0,0)))),0) -> 0 | M15: =IFERROR(IF(M$6<25,M$9*M$8*0.75,IF(M$6<45,M$9*M$8*0.25,IF(M$6<65,M$9*M$8*0,IF(M$6>=65,M$9*M$8*0,0)))),0) -> 0 | N15: =IFERROR(IF(N$6<25,N$9*N$8*0.75,IF(N$6<45,N$9*N$8*0.25,IF(N$6<65,N$9*N$8*0,IF(N$6>=65,N$9*N$8*0,0)))),0) -> 0 | O15: =IFERROR(IF(O$6<25,O$9*O$8*0.75,IF(O$6<45,O$9*O$8*0.25,IF(O$6<65,O$9*O$8*0,IF(O$6>=65,O$9*O$8*0,0)))),0) -> 0 | P15: =IFERROR(IF(P$6<25,P$9*P$8*0.75,IF(P$6<45,P$9*P$8*0.25,IF(P$6<65,P$9*P$8*0,IF(P$6>=65,P$9*P$8*0,0)))),0) -> 0 | Q15: =IFERROR(IF(Q$6<25,Q$9*Q$8*0.75,IF(Q$6<45,Q$9*Q$8*0.25,IF(Q$6<65,Q$9*Q$8*0,IF(Q$6>=65,Q$9*Q$8*0,0)))),0) -> 0 | R15: =IFERROR(IF(R$6<25,R$9*R$8*0.75,IF(R$6<45,R$9*R$8*0.25,IF(R$6<65,R$9*R$8*0,IF(R$6>=65,R$9*R$8*0,0)))),0) -> 0 | S15: =IFERROR(IF(S$6<25,S$9*S$8*0.75,IF(S$6<45,S$9*S$8*0.25,IF(S$6<65,S$9*S$8*0,IF(S$6>=65,S$9*S$8*0,0)))),0) -> 0 | T15: =IFERROR(IF(T$6<25,T$9*T$8*0.75,IF(T$6<45,T$9*T$8*0.25,IF(T$6<65,T$9*T$8*0,IF(T$6>=65,T$9*T$8*0,0)))),0) -> 0 | U15: =IFERROR(IF(U$6<25,U$9*U$8*0.75,IF(U$6<45,U$9*U$8*0.25,IF(U$6<65,U$9*U$8*0,IF(U$6>=65,U$9*U$8*0,0)))),0) -> 0 | V15: =IFERROR(IF(V$6<25,V$9*V$8*0.75,IF(V$6<45,V$9*V$8*0.25,IF(V$6<65,V$9*V$8*0,IF(V$6>=65,V$9*V$8*0,0)))),0) -> 0 | W15: =IFERROR(IF(W$6<25,W$9*W$8*0.75,IF(W$6<45,W$9*W$8*0.25,IF(W$6<65,W$9*W$8*0,IF(W$6>=65,W$9*W$8*0,0)))),0) -> 0 | X15: =IFERROR(IF(X$6<25,X$9*X$8*0.75,IF(X$6<45,X$9*X$8*0.25,IF(X$6<65,X$9*X$8*0,IF(X$6>=65,X$9*X$8*0,0)))),0) -> 0 | Y15: =IFERROR(IF(Y$6<25,Y$9*Y$8*0.75,IF(Y$6<45,Y$9*Y$8*0.25,IF(Y$6<65,Y$9*Y$8*0,IF(Y$6>=65,Y$9*Y$8*0,0)))),0) -> 0 | Z15: =IFERROR(IF(Z$6<25,Z$9*Z$8*0.75,IF(Z$6<45,Z$9*Z$8*0.25,IF(Z$6<65,Z$9*Z$8*0,IF(Z$6>=65,Z$9*Z$8*0,0)))),0) -> 0 | AA15: =IFERROR(IF(AA$6<25,AA$9*AA$8*0.75,IF(AA$6<45,AA$9*AA$8*0.25,IF(AA$6<65,AA$9*AA$8*0,IF(AA$6>=65,AA$9*AA$8*0,0)))),0) -> 0 | AB15: =IFERROR(IF(AB$6<25,AB$9*AB$8*0.75,IF(AB$6<45,AB$9*AB$8*0.25,IF(AB$6<65,AB$9*AB$8*0,IF(AB$6>=65,AB$9*AB$8*0,0)))),0) -> 0 | AC15: =IFERROR(IF(AC$6<25,AC$9*AC$8*0.75,IF(AC$6<45,AC$9*AC$8*0.25,IF(AC$6<65,AC$9*AC$8*0,IF(AC$6>=65,AC$9*AC$8*0,0)))),0) -> 0 | AD15: =IFERROR(IF(AD$6<25,AD$9*AD$8*0.75,IF(AD$6<45,AD$9*AD$8*0.25,IF(AD$6<65,AD$9*AD$8*0,IF(AD$6>=65,AD$9*AD$8*0,0)))),0) -> 0 | AE15: =IFERROR(IF(AE$6<25,AE$9*AE$8*0.75,IF(AE$6<45,AE$9*AE$8*0.25,IF(AE$6<65,AE$9*AE$8*0,IF(AE$6>=65,AE$9*AE$8*0,0)))),0) -> 0 | AF15: =IFERROR(IF(AF$6<25,AF$9*AF$8*0.75,IF(AF$6<45,AF$9*AF$8*0.25,IF(AF$6<65,AF$9*AF$8*0,IF(AF$6>=65,AF$9*AF$8*0,0)))),0) -> 0 | AG15: =IFERROR(IF(AG$6<25,AG$9*AG$8*0.75,IF(AG$6<45,AG$9*AG$8*0.25,IF(AG$6<65,AG$9*AG$8*0,IF(AG$6>=65,AG$9*AG$8*0,0)))),0) -> 0 | AH15: =IFERROR(IF(AH$6<25,AH$9*AH$8*0.75,IF(AH$6<45,AH$9*AH$8*0.25,IF(AH$6<65,AH$9*AH$8*0,IF(AH$6>=65,AH$9*AH$8*0,0)))),0) -> 0 | AI15: =IFERROR(IF(AI$6<25,AI$9*AI$8*0.75,IF(AI$6<45,AI$9*AI$8*0.25,IF(AI$6<65,AI$9*AI$8*0,IF(AI$6>=65,AI$9*AI$8*0,0)))),0) -> 0 | AJ15: =IFERROR(IF(AJ$6<25,AJ$9*AJ$8*0.75,IF(AJ$6<45,AJ$9*AJ$8*0.25,IF(AJ$6<65,AJ$9*AJ$8*0,IF(AJ$6>=65,AJ$9*AJ$8*0,0)))),0) -> 0 | AK15: =IFERROR(IF(AK$6<25,AK$9*AK$8*0.75,IF(AK$6<45,AK$9*AK$8*0.25,IF(AK$6<65,AK$9*AK$8*0,IF(AK$6>=65,AK$9*AK$8*0,0)))),0) -> 0 | AL15: =IFERROR(IF(AL$6<25,AL$9*AL$8*0.75,IF(AL$6<45,AL$9*AL$8*0.25,IF(AL$6<65,AL$9*AL$8*0,IF(AL$6>=65,AL$9*AL$8*0,0)))),0) -> 0 | AM15: =IFERROR(IF(AM$6<25,AM$9*AM$8*0.75,IF(AM$6<45,AM$9*AM$8*0.25,IF(AM$6<65,AM$9*AM$8*0,IF(AM$6>=65,AM$9*AM$8*0,0)))),0) -> 0 | AN15: =IFERROR(IF(AN$6<25,AN$9*AN$8*0.75,IF(AN$6<45,AN$9*AN$8*0.25,IF(AN$6<65,AN$9*AN$8*0,IF(AN$6>=65,AN$9*AN$8*0,0)))),0) -> 0 | AO15: =IFERROR(IF(AO$6<25,AO$9*AO$8*0.75,IF(AO$6<45,AO$9*AO$8*0.25,IF(AO$6<65,AO$9*AO$8*0,IF(AO$6>=65,AO$9*AO$8*0,0)))),0) -> 0 | AP15: =IFERROR(IF(AP$6<25,AP$9*AP$8*0.75,IF(AP$6<45,AP$9*AP$8*0.25,IF(AP$6<65,AP$9*AP$8*0,IF(AP$6>=65,AP$9*AP$8*0,0)))),0) -> 0 | AQ15: =IFERROR(IF(AQ$6<25,AQ$9*AQ$8*0.75,IF(AQ$6<45,AQ$9*AQ$8*0.25,IF(AQ$6<65,AQ$9*AQ$8*0,IF(AQ$6>=65,AQ$9*AQ$8*0,0)))),0) -> 0 | AR15: =IFERROR(IF(AR$6<25,AR$9*AR$8*0.75,IF(AR$6<45,AR$9*AR$8*0.25,IF(AR$6<65,AR$9*AR$8*0,IF(AR$6>=65,AR$9*AR$8*0,0)))),0) -> 0 | AS15: =IFERROR(IF(AS$6<25,AS$9*AS$8*0.75,IF(AS$6<45,AS$9*AS$8*0.25,IF(AS$6<65,AS$9*AS$8*0,IF(AS$6>=65,AS$9*AS$8*0,0)))),0) -> 0 | AT15: =IFERROR(IF(AT$6<25,AT$9*AT$8*0.75,IF(AT$6<45,AT$9*AT$8*0.25,IF(AT$6<65,AT$9*AT$8*0,IF(AT$6>=65,AT$9*AT$8*0,0)))),0) -> 0 | AU15: =IFERROR(IF(AU$6<25,AU$9*AU$8*0.75,IF(AU$6<45,AU$9*AU$8*0.25,IF(AU$6<65,AU$9*AU$8*0,IF(AU$6>=65,AU$9*AU$8*0,0)))),0) -> 0 | AV15: =IFERROR(IF(AV$6<25,AV$9*AV$8*0.75,IF(AV$6<45,AV$9*AV$8*0.25,IF(AV$6<65,AV$9*AV$8*0,IF(AV$6>=65,AV$9*AV$8*0,0)))),0) -> 0 | AW15: =IFERROR(IF(AW$6<25,AW$9*AW$8*0.75,IF(AW$6<45,AW$9*AW$8*0.25,IF(AW$6<65,AW$9*AW$8*0,IF(AW$6>=65,AW$9*AW$8*0,0)))),0) -> 0 | AX15: =IFERROR(IF(AX$6<25,AX$9*AX$8*0.75,IF(AX$6<45,AX$9*AX$8*0.25,IF(AX$6<65,AX$9*AX$8*0,IF(AX$6>=65,AX$9*AX$8*0,0)))),0) -> 0 | AY15: =IFERROR(IF(AY$6<25,AY$9*AY$8*0.75,IF(AY$6<45,AY$9*AY$8*0.25,IF(AY$6<65,AY$9*AY$8*0,IF(AY$6>=65,AY$9*AY$8*0,0)))),0) -> 0 | AZ15: =IFERROR(IF(AZ$6<25,AZ$9*AZ$8*0.75,IF(AZ$6<45,AZ$9*AZ$8*0.25,IF(AZ$6<65,AZ$9*AZ$8*0,IF(AZ$6>=65,AZ$9*AZ$8*0,0)))),0) -> 0 | BA15: =IFERROR(IF(BA$6<25,BA$9*BA$8*0.75,IF(BA$6<45,BA$9*BA$8*0.25,IF(BA$6<65,BA$9*BA$8*0,IF(BA$6>=65,BA$9*BA$8*0,0)))),0) -> 0 | BB15: =IFERROR(IF(BB$6<25,BB$9*BB$8*0.75,IF(BB$6<45,BB$9*BB$8*0.25,IF(BB$6<65,BB$9*BB$8*0,IF(BB$6>=65,BB$9*BB$8*0,0)))),0) -> 0 | BC15: =IFERROR(IF(BC$6<25,BC$9*BC$8*0.75,IF(BC$6<45,BC$9*BC$8*0.25,IF(BC$6<65,BC$9*BC$8*0,IF(BC$6>=65,BC$9*BC$8*0,0)))),0) -> 0 | BD15: =IFERROR(IF(BD$6<25,BD$9*BD$8*0.75,IF(BD$6<45,BD$9*BD$8*0.25,IF(BD$6<65,BD$9*BD$8*0,IF(BD$6>=65,BD$9*BD$8*0,0)))),0) -> 0 | BE15: =IFERROR(IF(BE$6<25,BE$9*BE$8*0.75,IF(BE$6<45,BE$9*BE$8*0.25,IF(BE$6<65,BE$9*BE$8*0,IF(BE$6>=65,BE$9*BE$8*0,0)))),0) -> 0 | BF15: =IFERROR(IF(BF$6<25,BF$9*BF$8*0.75,IF(BF$6<45,BF$9*BF$8*0.25,IF(BF$6<65,BF$9*BF$8*0,IF(BF$6>=65,BF$9*BF$8*0,0)))),0) -> 0 | BG15: =IFERROR(IF(BG$6<25,BG$9*BG$8*0.75,IF(BG$6<45,BG$9*BG$8*0.25,IF(BG$6<65,BG$9*BG$8*0,IF(BG$6>=65,BG$9*BG$8*0,0)))),0) -> 0 | BH15: =IFERROR(IF(BH$6<25,BH$9*BH$8*0.75,IF(BH$6<45,BH$9*BH$8*0.25,IF(BH$6<65,BH$9*BH$8*0,IF(BH$6>=65,BH$9*BH$8*0,0)))),0) -> 0 | BI15: =IFERROR(IF(BI$6<25,BI$9*BI$8*0.75,IF(BI$6<45,BI$9*BI$8*0.25,IF(BI$6<65,BI$9*BI$8*0,IF(BI$6>=65,BI$9*BI$8*0,0)))),0) -> 0 | BJ15: =IFERROR(IF(BJ$6<25,BJ$9*BJ$8*0.75,IF(BJ$6<45,BJ$9*BJ$8*0.25,IF(BJ$6<65,BJ$9*BJ$8*0,IF(BJ$6>=65,BJ$9*BJ$8*0,0)))),0) -> 0 | BK15: =IFERROR(IF(BK$6<25,BK$9*BK$8*0.75,IF(BK$6<45,BK$9*BK$8*0.25,IF(BK$6<65,BK$9*BK$8*0,IF(BK$6>=65,BK$9*BK$8*0,0)))),0) -> 0 | BL15: =IFERROR(IF(BL$6<25,BL$9*BL$8*0.75,IF(BL$6<45,BL$9*BL$8*0.25,IF(BL$6<65,BL$9*BL$8*0,IF(BL$6>=65,BL$9*BL$8*0,0)))),0) -> 0 | BM15: =IFERROR(IF(BM$6<25,BM$9*BM$8*0.75,IF(BM$6<45,BM$9*BM$8*0.25,IF(BM$6<65,BM$9*BM$8*0,IF(BM$6>=65,BM$9*BM$8*0,0)))),0) -> 0 | BN15: =IFERROR(IF(BN$6<25,BN$9*BN$8*0.75,IF(BN$6<45,BN$9*BN$8*0.25,IF(BN$6<65,BN$9*BN$8*0,IF(BN$6>=65,BN$9*BN$8*0,0)))),0) -> 0 | BO15: =IFERROR(IF(BO$6<25,BO$9*BO$8*0.75,IF(BO$6<45,BO$9*BO$8*0.25,IF(BO$6<65,BO$9*BO$8*0,IF(BO$6>=65,BO$9*BO$8*0,0)))),0) -> 0 | BP15: =IFERROR(IF(BP$6<25,BP$9*BP$8*0.75,IF(BP$6<45,BP$9*BP$8*0.25,IF(BP$6<65,BP$9*BP$8*0,IF(BP$6>=65,BP$9*BP$8*0,0)))),0) -> 0
A16: <15k | B16: =IFERROR(IF(B$7<15000,0.75*B$15,IF(B$7<35000,0.25*B$15,IF(B$7<50000,0*B$15,IF(B$7<75000,0*B$15,IF(B$7<100000,0*B$15,IF(B$7<150000,0*B$15,IF(B$7>=150000,0*B$15,0))))))),0) -> 0 | C16: =IFERROR(IF(C$7<15000,0.75*C$15,IF(C$7<35000,0.25*C$15,IF(C$7<50000,0*C$15,IF(C$7<75000,0*C$15,IF(C$7<100000,0*C$15,IF(C$7<150000,0*C$15,IF(C$7>=150000,0*C$15,0))))))),0) -> 0 | D16: =IFERROR(IF(D$7<15000,0.75*D$15,IF(D$7<35000,0.25*D$15,IF(D$7<50000,0*D$15,IF(D$7<75000,0*D$15,IF(D$7<100000,0*D$15,IF(D$7<150000,0*D$15,IF(D$7>=150000,0*D$15,0))))))),0) -> 0 | E16: =IFERROR(IF(E$7<15000,0.75*E$15,IF(E$7<35000,0.25*E$15,IF(E$7<50000,0*E$15,IF(E$7<75000,0*E$15,IF(E$7<100000,0*E$15,IF(E$7<150000,0*E$15,IF(E$7>=150000,0*E$15,0))))))),0) -> 0 | F16: =IFERROR(IF(F$7<15000,0.75*F$15,IF(F$7<35000,0.25*F$15,IF(F$7<50000,0*F$15,IF(F$7<75000,0*F$15,IF(F$7<100000,0*F$15,IF(F$7<150000,0*F$15,IF(F$7>=150000,0*F$15,0))))))),0) -> 0 | G16: =IFERROR(IF(G$7<15000,0.75*G$15,IF(G$7<35000,0.25*G$15,IF(G$7<50000,0*G$15,IF(G$7<75000,0*G$15,IF(G$7<100000,0*G$15,IF(G$7<150000,0*G$15,IF(G$7>=150000,0*G$15,0))))))),0) -> 0 | H16: =IFERROR(IF(H$7<15000,0.75*H$15,IF(H$7<35000,0.25*H$15,IF(H$7<50000,0*H$15,IF(H$7<75000,0*H$15,IF(H$7<100000,0*H$15,IF(H$7<150000,0*H$15,IF(H$7>=150000,0*H$15,0))))))),0) -> 0 | I16: =IFERROR(IF(I$7<15000,0.75*I$15,IF(I$7<35000,0.25*I$15,IF(I$7<50000,0*I$15,IF(I$7<75000,0*I$15,IF(I$7<100000,0*I$15,IF(I$7<150000,0*I$15,IF(I$7>=150000,0*I$15,0))))))),0) -> 0 | J16: =IFERROR(IF(J$7<15000,0.75*J$15,IF(J$7<35000,0.25*J$15,IF(J$7<50000,0*J$15,IF(J$7<75000,0*J$15,IF(J$7<100000,0*J$15,IF(J$7<150000,0*J$15,IF(J$7>=150000,0*J$15,0))))))),0) -> 0 | K16: =IFERROR(IF(K$7<15000,0.75*K$15,IF(K$7<35000,0.25*K$15,IF(K$7<50000,0*K$15,IF(K$7<75000,0*K$15,IF(K$7<100000,0*K$15,IF(K$7<150000,0*K$15,IF(K$7>=150000,0*K$15,0))))))),0) -> 0 | L16: =IFERROR(IF(L$7<15000,0.75*L$15,IF(L$7<35000,0.25*L$15,IF(L$7<50000,0*L$15,IF(L$7<75000,0*L$15,IF(L$7<100000,0*L$15,IF(L$7<150000,0*L$15,IF(L$7>=150000,0*L$15,0))))))),0) -> 0 | M16: =IFERROR(IF(M$7<15000,0.75*M$15,IF(M$7<35000,0.25*M$15,IF(M$7<50000,0*M$15,IF(M$7<75000,0*M$15,IF(M$7<100000,0*M$15,IF(M$7<150000,0*M$15,IF(M$7>=150000,0*M$15,0))))))),0) -> 0 | N16: =IFERROR(IF(N$7<15000,0.75*N$15,IF(N$7<35000,0.25*N$15,IF(N$7<50000,0*N$15,IF(N$7<75000,0*N$15,IF(N$7<100000,0*N$15,IF(N$7<150000,0*N$15,IF(N$7>=150000,0*N$15,0))))))),0) -> 0 | O16: =IFERROR(IF(O$7<15000,0.75*O$15,IF(O$7<35000,0.25*O$15,IF(O$7<50000,0*O$15,IF(O$7<75000,0*O$15,IF(O$7<100000,0*O$15,IF(O$7<150000,0*O$15,IF(O$7>=150000,0*O$15,0))))))),0) -> 0 | P16: =IFERROR(IF(P$7<15000,0.75*P$15,IF(P$7<35000,0.25*P$15,IF(P$7<50000,0*P$15,IF(P$7<75000,0*P$15,IF(P$7<100000,0*P$15,IF(P$7<150000,0*P$15,IF(P$7>=150000,0*P$15,0))))))),0) -> 0 | Q16: =IFERROR(IF(Q$7<15000,0.75*Q$15,IF(Q$7<35000,0.25*Q$15,IF(Q$7<50000,0*Q$15,IF(Q$7<75000,0*Q$15,IF(Q$7<100000,0*Q$15,IF(Q$7<150000,0*Q$15,IF(Q$7>=150000,0*Q$15,0))))))),0) -> 0 | R16: =IFERROR(IF(R$7<15000,0.75*R$15,IF(R$7<35000,0.25*R$15,IF(R$7<50000,0*R$15,IF(R$7<75000,0*R$15,IF(R$7<100000,0*R$15,IF(R$7<150000,0*R$15,IF(R$7>=150000,0*R$15,0))))))),0) -> 0 | S16: =IFERROR(IF(S$7<15000,0.75*S$15,IF(S$7<35000,0.25*S$15,IF(S$7<50000,0*S$15,IF(S$7<75000,0*S$15,IF(S$7<100000,0*S$15,IF(S$7<150000,0*S$15,IF(S$7>=150000,0*S$15,0))))))),0) -> 0 | T16: =IFERROR(IF(T$7<15000,0.75*T$15,IF(T$7<35000,0.25*T$15,IF(T$7<50000,0*T$15,IF(T$7<75000,0*T$15,IF(T$7<100000,0*T$15,IF(T$7<150000,0*T$15,IF(T$7>=150000,0*T$15,0))))))),0) -> 0 | U16: =IFERROR(IF(U$7<15000,0.75*U$15,IF(U$7<35000,0.25*U$15,IF(U$7<50000,0*U$15,IF(U$7<75000,0*U$15,IF(U$7<100000,0*U$15,IF(U$7<150000,0*U$15,IF(U$7>=150000,0*U$15,0))))))),0) -> 0 | V16: =IFERROR(IF(V$7<15000,0.75*V$15,IF(V$7<35000,0.25*V$15,IF(V$7<50000,0*V$15,IF(V$7<75000,0*V$15,IF(V$7<100000,0*V$15,IF(V$7<150000,0*V$15,IF(V$7>=150000,0*V$15,0))))))),0) -> 0 | W16: =IFERROR(IF(W$7<15000,0.75*W$15,IF(W$7<35000,0.25*W$15,IF(W$7<50000,0*W$15,IF(W$7<75000,0*W$15,IF(W$7<100000,0*W$15,IF(W$7<150000,0*W$15,IF(W$7>=150000,0*W$15,0))))))),0) -> 0 | X16: =IFERROR(IF(X$7<15000,0.75*X$15,IF(X$7<35000,0.25*X$15,IF(X$7<50000,0*X$15,IF(X$7<75000,0*X$15,IF(X$7<100000,0*X$15,IF(X$7<150000,0*X$15,IF(X$7>=150000,0*X$15,0))))))),0) -> 0 | Y16: =IFERROR(IF(Y$7<15000,0.75*Y$15,IF(Y$7<35000,0.25*Y$15,IF(Y$7<50000,0*Y$15,IF(Y$7<75000,0*Y$15,IF(Y$7<100000,0*Y$15,IF(Y$7<150000,0*Y$15,IF(Y$7>=150000,0*Y$15,0))))))),0) -> 0 | Z16: =IFERROR(IF(Z$7<15000,0.75*Z$15,IF(Z$7<35000,0.25*Z$15,IF(Z$7<50000,0*Z$15,IF(Z$7<75000,0*Z$15,IF(Z$7<100000,0*Z$15,IF(Z$7<150000,0*Z$15,IF(Z$7>=150000,0*Z$15,0))))))),0) -> 0 | AA16: =IFERROR(IF(AA$7<15000,0.75*AA$15,IF(AA$7<35000,0.25*AA$15,IF(AA$7<50000,0*AA$15,IF(AA$7<75000,0*AA$15,IF(AA$7<100000,0*AA$15,IF(AA$7<150000,0*AA$15,IF(AA$7>=150000,0*AA$15,0))))))),0) -> 0 | AB16: =IFERROR(IF(AB$7<15000,0.75*AB$15,IF(AB$7<35000,0.25*AB$15,IF(AB$7<50000,0*AB$15,IF(AB$7<75000,0*AB$15,IF(AB$7<100000,0*AB$15,IF(AB$7<150000,0*AB$15,IF(AB$7>=150000,0*AB$15,0))))))),0) -> 0 | AC16: =IFERROR(IF(AC$7<15000,0.75*AC$15,IF(AC$7<35000,0.25*AC$15,IF(AC$7<50000,0*AC$15,IF(AC$7<75000,0*AC$15,IF(AC$7<100000,0*AC$15,IF(AC$7<150000,0*AC$15,IF(AC$7>=150000,0*AC$15,0))))))),0) -> 0 | AD16: =IFERROR(IF(AD$7<15000,0.75*AD$15,IF(AD$7<35000,0.25*AD$15,IF(AD$7<50000,0*AD$15,IF(AD$7<75000,0*AD$15,IF(AD$7<100000,0*AD$15,IF(AD$7<150000,0*AD$15,IF(AD$7>=150000,0*AD$15,0))))))),0) -> 0 | AE16: =IFERROR(IF(AE$7<15000,0.75*AE$15,IF(AE$7<35000,0.25*AE$15,IF(AE$7<50000,0*AE$15,IF(AE$7<75000,0*AE$15,IF(AE$7<100000,0*AE$15,IF(AE$7<150000,0*AE$15,IF(AE$7>=150000,0*AE$15,0))))))),0) -> 0 | AF16: =IFERROR(IF(AF$7<15000,0.75*AF$15,IF(AF$7<35000,0.25*AF$15,IF(AF$7<50000,0*AF$15,IF(AF$7<75000,0*AF$15,IF(AF$7<100000,0*AF$15,IF(AF$7<150000,0*AF$15,IF(AF$7>=150000,0*AF$15,0))))))),0) -> 0 | AG16: =IFERROR(IF(AG$7<15000,0.75*AG$15,IF(AG$7<35000,0.25*AG$15,IF(AG$7<50000,0*AG$15,IF(AG$7<75000,0*AG$15,IF(AG$7<100000,0*AG$15,IF(AG$7<150000,0*AG$15,IF(AG$7>=150000,0*AG$15,0))))))),0) -> 0 | AH16: =IFERROR(IF(AH$7<15000,0.75*AH$15,IF(AH$7<35000,0.25*AH$15,IF(AH$7<50000,0*AH$15,IF(AH$7<75000,0*AH$15,IF(AH$7<100000,0*AH$15,IF(AH$7<150000,0*AH$15,IF(AH$7>=150000,0*AH$15,0))))))),0) -> 0 | AI16: =IFERROR(IF(AI$7<15000,0.75*AI$15,IF(AI$7<35000,0.25*AI$15,IF(AI$7<50000,0*AI$15,IF(AI$7<75000,0*AI$15,IF(AI$7<100000,0*AI$15,IF(AI$7<150000,0*AI$15,IF(AI$7>=150000,0*AI$15,0))))))),0) -> 0 | AJ16: =IFERROR(IF(AJ$7<15000,0.75*AJ$15,IF(AJ$7<35000,0.25*AJ$15,IF(AJ$7<50000,0*AJ$15,IF(AJ$7<75000,0*AJ$15,IF(AJ$7<100000,0*AJ$15,IF(AJ$7<150000,0*AJ$15,IF(AJ$7>=150000,0*AJ$15,0))))))),0) -> 0 | AK16: =IFERROR(IF(AK$7<15000,0.75*AK$15,IF(AK$7<35000,0.25*AK$15,IF(AK$7<50000,0*AK$15,IF(AK$7<75000,0*AK$15,IF(AK$7<100000,0*AK$15,IF(AK$7<150000,0*AK$15,IF(AK$7>=150000,0*AK$15,0))))))),0) -> 0 | AL16: =IFERROR(IF(AL$7<15000,0.75*AL$15,IF(AL$7<35000,0.25*AL$15,IF(AL$7<50000,0*AL$15,IF(AL$7<75000,0*AL$15,IF(AL$7<100000,0*AL$15,IF(AL$7<150000,0*AL$15,IF(AL$7>=150000,0*AL$15,0))))))),0) -> 0 | AM16: =IFERROR(IF(AM$7<15000,0.75*AM$15,IF(AM$7<35000,0.25*AM$15,IF(AM$7<50000,0*AM$15,IF(AM$7<75000,0*AM$15,IF(AM$7<100000,0*AM$15,IF(AM$7<150000,0*AM$15,IF(AM$7>=150000,0*AM$15,0))))))),0) -> 0 | AN16: =IFERROR(IF(AN$7<15000,0.75*AN$15,IF(AN$7<35000,0.25*AN$15,IF(AN$7<50000,0*AN$15,IF(AN$7<75000,0*AN$15,IF(AN$7<100000,0*AN$15,IF(AN$7<150000,0*AN$15,IF(AN$7>=150000,0*AN$15,0))))))),0) -> 0 | AO16: =IFERROR(IF(AO$7<15000,0.75*AO$15,IF(AO$7<35000,0.25*AO$15,IF(AO$7<50000,0*AO$15,IF(AO$7<75000,0*AO$15,IF(AO$7<100000,0*AO$15,IF(AO$7<150000,0*AO$15,IF(AO$7>=150000,0*AO$15,0))))))),0) -> 0 | AP16: =IFERROR(IF(AP$7<15000,0.75*AP$15,IF(AP$7<35000,0.25*AP$15,IF(AP$7<50000,0*AP$15,IF(AP$7<75000,0*AP$15,IF(AP$7<100000,0*AP$15,IF(AP$7<150000,0*AP$15,IF(AP$7>=150000,0*AP$15,0))))))),0) -> 0 | AQ16: =IFERROR(IF(AQ$7<15000,0.75*AQ$15,IF(AQ$7<35000,0.25*AQ$15,IF(AQ$7<50000,0*AQ$15,IF(AQ$7<75000,0*AQ$15,IF(AQ$7<100000,0*AQ$15,IF(AQ$7<150000,0*AQ$15,IF(AQ$7>=150000,0*AQ$15,0))))))),0) -> 0 | AR16: =IFERROR(IF(AR$7<15000,0.75*AR$15,IF(AR$7<35000,0.25*AR$15,IF(AR$7<50000,0*AR$15,IF(AR$7<75000,0*AR$15,IF(AR$7<100000,0*AR$15,IF(AR$7<150000,0*AR$15,IF(AR$7>=150000,0*AR$15,0))))))),0) -> 0 | AS16: =IFERROR(IF(AS$7<15000,0.75*AS$15,IF(AS$7<35000,0.25*AS$15,IF(AS$7<50000,0*AS$15,IF(AS$7<75000,0*AS$15,IF(AS$7<100000,0*AS$15,IF(AS$7<150000,0*AS$15,IF(AS$7>=150000,0*AS$15,0))))))),0) -> 0 | AT16: =IFERROR(IF(AT$7<15000,0.75*AT$15,IF(AT$7<35000,0.25*AT$15,IF(AT$7<50000,0*AT$15,IF(AT$7<75000,0*AT$15,IF(AT$7<100000,0*AT$15,IF(AT$7<150000,0*AT$15,IF(AT$7>=150000,0*AT$15,0))))))),0) -> 0 | AU16: =IFERROR(IF(AU$7<15000,0.75*AU$15,IF(AU$7<35000,0.25*AU$15,IF(AU$7<50000,0*AU$15,IF(AU$7<75000,0*AU$15,IF(AU$7<100000,0*AU$15,IF(AU$7<150000,0*AU$15,IF(AU$7>=150000,0*AU$15,0))))))),0) -> 0 | AV16: =IFERROR(IF(AV$7<15000,0.75*AV$15,IF(AV$7<35000,0.25*AV$15,IF(AV$7<50000,0*AV$15,IF(AV$7<75000,0*AV$15,IF(AV$7<100000,0*AV$15,IF(AV$7<150000,0*AV$15,IF(AV$7>=150000,0*AV$15,0))))))),0) -> 0 | AW16: =IFERROR(IF(AW$7<15000,0.75*AW$15,IF(AW$7<35000,0.25*AW$15,IF(AW$7<50000,0*AW$15,IF(AW$7<75000,0*AW$15,IF(AW$7<100000,0*AW$15,IF(AW$7<150000,0*AW$15,IF(AW$7>=150000,0*AW$15,0))))))),0) -> 0 | AX16: =IFERROR(IF(AX$7<15000,0.75*AX$15,IF(AX$7<35000,0.25*AX$15,IF(AX$7<50000,0*AX$15,IF(AX$7<75000,0*AX$15,IF(AX$7<100000,0*AX$15,IF(AX$7<150000,0*AX$15,IF(AX$7>=150000,0*AX$15,0))))))),0) -> 0 | AY16: =IFERROR(IF(AY$7<15000,0.75*AY$15,IF(AY$7<35000,0.25*AY$15,IF(AY$7<50000,0*AY$15,IF(AY$7<75000,0*AY$15,IF(AY$7<100000,0*AY$15,IF(AY$7<150000,0*AY$15,IF(AY$7>=150000,0*AY$15,0))))))),0) -> 0 | AZ16: =IFERROR(IF(AZ$7<15000,0.75*AZ$15,IF(AZ$7<35000,0.25*AZ$15,IF(AZ$7<50000,0*AZ$15,IF(AZ$7<75000,0*AZ$15,IF(AZ$7<100000,0*AZ$15,IF(AZ$7<150000,0*AZ$15,IF(AZ$7>=150000,0*AZ$15,0))))))),0) -> 0 | BA16: =IFERROR(IF(BA$7<15000,0.75*BA$15,IF(BA$7<35000,0.25*BA$15,IF(BA$7<50000,0*BA$15,IF(BA$7<75000,0*BA$15,IF(BA$7<100000,0*BA$15,IF(BA$7<150000,0*BA$15,IF(BA$7>=150000,0*BA$15,0))))))),0) -> 0 | BB16: =IFERROR(IF(BB$7<15000,0.75*BB$15,IF(BB$7<35000,0.25*BB$15,IF(BB$7<50000,0*BB$15,IF(BB$7<75000,0*BB$15,IF(BB$7<100000,0*BB$15,IF(BB$7<150000,0*BB$15,IF(BB$7>=150000,0*BB$15,0))))))),0) -> 0 | BC16: =IFERROR(IF(BC$7<15000,0.75*BC$15,IF(BC$7<35000,0.25*BC$15,IF(BC$7<50000,0*BC$15,IF(BC$7<75000,0*BC$15,IF(BC$7<100000,0*BC$15,IF(BC$7<150000,0*BC$15,IF(BC$7>=150000,0*BC$15,0))))))),0) -> 0 | BD16: =IFERROR(IF(BD$7<15000,0.75*BD$15,IF(BD$7<35000,0.25*BD$15,IF(BD$7<50000,0*BD$15,IF(BD$7<75000,0*BD$15,IF(BD$7<100000,0*BD$15,IF(BD$7<150000,0*BD$15,IF(BD$7>=150000,0*BD$15,0))))))),0) -> 0 | BE16: =IFERROR(IF(BE$7<15000,0.75*BE$15,IF(BE$7<35000,0.25*BE$15,IF(BE$7<50000,0*BE$15,IF(BE$7<75000,0*BE$15,IF(BE$7<100000,0*BE$15,IF(BE$7<150000,0*BE$15,IF(BE$7>=150000,0*BE$15,0))))))),0) -> 0 | BF16: =IFERROR(IF(BF$7<15000,0.75*BF$15,IF(BF$7<35000,0.25*BF$15,IF(BF$7<50000,0*BF$15,IF(BF$7<75000,0*BF$15,IF(BF$7<100000,0*BF$15,IF(BF$7<150000,0*BF$15,IF(BF$7>=150000,0*BF$15,0))))))),0) -> 0 | BG16: =IFERROR(IF(BG$7<15000,0.75*BG$15,IF(BG$7<35000,0.25*BG$15,IF(BG$7<50000,0*BG$15,IF(BG$7<75000,0*BG$15,IF(BG$7<100000,0*BG$15,IF(BG$7<150000,0*BG$15,IF(BG$7>=150000,0*BG$15,0))))))),0) -> 0 | BH16: =IFERROR(IF(BH$7<15000,0.75*BH$15,IF(BH$7<35000,0.25*BH$15,IF(BH$7<50000,0*BH$15,IF(BH$7<75000,0*BH$15,IF(BH$7<100000,0*BH$15,IF(BH$7<150000,0*BH$15,IF(BH$7>=150000,0*BH$15,0))))))),0) -> 0 | BI16: =IFERROR(IF(BI$7<15000,0.75*BI$15,IF(BI$7<35000,0.25*BI$15,IF(BI$7<50000,0*BI$15,IF(BI$7<75000,0*BI$15,IF(BI$7<100000,0*BI$15,IF(BI$7<150000,0*BI$15,IF(BI$7>=150000,0*BI$15,0))))))),0) -> 0 | BJ16: =IFERROR(IF(BJ$7<15000,0.75*BJ$15,IF(BJ$7<35000,0.25*BJ$15,IF(BJ$7<50000,0*BJ$15,IF(BJ$7<75000,0*BJ$15,IF(BJ$7<100000,0*BJ$15,IF(BJ$7<150000,0*BJ$15,IF(BJ$7>=150000,0*BJ$15,0))))))),0) -> 0 | BK16: =IFERROR(IF(BK$7<15000,0.75*BK$15,IF(BK$7<35000,0.25*BK$15,IF(BK$7<50000,0*BK$15,IF(BK$7<75000,0*BK$15,IF(BK$7<100000,0*BK$15,IF(BK$7<150000,0*BK$15,IF(BK$7>=150000,0*BK$15,0))))))),0) -> 0 | BL16: =IFERROR(IF(BL$7<15000,0.75*BL$15,IF(BL$7<35000,0.25*BL$15,IF(BL$7<50000,0*BL$15,IF(BL$7<75000,0*BL$15,IF(BL$7<100000,0*BL$15,IF(BL$7<150000,0*BL$15,IF(BL$7>=150000,0*BL$15,0))))))),0) -> 0 | BM16: =IFERROR(IF(BM$7<15000,0.75*BM$15,IF(BM$7<35000,0.25*BM$15,IF(BM$7<50000,0*BM$15,IF(BM$7<75000,0*BM$15,IF(BM$7<100000,0*BM$15,IF(BM$7<150000,0*BM$15,IF(BM$7>=150000,0*BM$15,0))))))),0) -> 0 | BN16: =IFERROR(IF(BN$7<15000,0.75*BN$15,IF(BN$7<35000,0.25*BN$15,IF(BN$7<50000,0*BN$15,IF(BN$7<75000,0*BN$15,IF(BN$7<100000,0*BN$15,IF(BN$7<150000,0*BN$15,IF(BN$7>=150000,0*BN$15,0))))))),0) -> 0 | BO16: =IFERROR(IF(BO$7<15000,0.75*BO$15,IF(BO$7<35000,0.25*BO$15,IF(BO$7<50000,0*BO$15,IF(BO$7<75000,0*BO$15,IF(BO$7<100000,0*BO$15,IF(BO$7<150000,0*BO$15,IF(BO$7>=150000,0*BO$15,0))))))),0) -> 0 | BP16: =IFERROR(IF(BP$7<15000,0.75*BP$15,IF(BP$7<35000,0.25*BP$15,IF(BP$7<50000,0*BP$15,IF(BP$7<75000,0*BP$15,IF(BP$7<100000,0*BP$15,IF(BP$7<150000,0*BP$15,IF(BP$7>=150000,0*BP$15,0))))))),0) -> 0
A17: 15k <35k | B17: =IFERROR(IF(B$7<15000,0.25*B$15,IF(B$7<35000,0.5*B$15,IF(B$7<50000,0.25*B$15,IF(B$7<75000,0*B$15,IF(B$7<100000,0*B$15,IF(B$7<150000,0*B$15,IF(B$7>=150000,0*B$15,0))))))),0) -> 0 | C17: =IFERROR(IF(C$7<15000,0.25*C$15,IF(C$7<35000,0.5*C$15,IF(C$7<50000,0.25*C$15,IF(C$7<75000,0*C$15,IF(C$7<100000,0*C$15,IF(C$7<150000,0*C$15,IF(C$7>=150000,0*C$15,0))))))),0) -> 0 | D17: =IFERROR(IF(D$7<15000,0.25*D$15,IF(D$7<35000,0.5*D$15,IF(D$7<50000,0.25*D$15,IF(D$7<75000,0*D$15,IF(D$7<100000,0*D$15,IF(D$7<150000,0*D$15,IF(D$7>=150000,0*D$15,0))))))),0) -> 0 | E17: =IFERROR(IF(E$7<15000,0.25*E$15,IF(E$7<35000,0.5*E$15,IF(E$7<50000,0.25*E$15,IF(E$7<75000,0*E$15,IF(E$7<100000,0*E$15,IF(E$7<150000,0*E$15,IF(E$7>=150000,0*E$15,0))))))),0) -> 0 | F17: =IFERROR(IF(F$7<15000,0.25*F$15,IF(F$7<35000,0.5*F$15,IF(F$7<50000,0.25*F$15,IF(F$7<75000,0*F$15,IF(F$7<100000,0*F$15,IF(F$7<150000,0*F$15,IF(F$7>=150000,0*F$15,0))))))),0) -> 0 | G17: =IFERROR(IF(G$7<15000,0.25*G$15,IF(G$7<35000,0.5*G$15,IF(G$7<50000,0.25*G$15,IF(G$7<75000,0*G$15,IF(G$7<100000,0*G$15,IF(G$7<150000,0*G$15,IF(G$7>=150000,0*G$15,0))))))),0) -> 0 | H17: =IFERROR(IF(H$7<15000,0.25*H$15,IF(H$7<35000,0.5*H$15,IF(H$7<50000,0.25*H$15,IF(H$7<75000,0*H$15,IF(H$7<100000,0*H$15,IF(H$7<150000,0*H$15,IF(H$7>=150000,0*H$15,0))))))),0) -> 0 | I17: =IFERROR(IF(I$7<15000,0.25*I$15,IF(I$7<35000,0.5*I$15,IF(I$7<50000,0.25*I$15,IF(I$7<75000,0*I$15,IF(I$7<100000,0*I$15,IF(I$7<150000,0*I$15,IF(I$7>=150000,0*I$15,0))))))),0) -> 0 | J17: =IFERROR(IF(J$7<15000,0.25*J$15,IF(J$7<35000,0.5*J$15,IF(J$7<50000,0.25*J$15,IF(J$7<75000,0*J$15,IF(J$7<100000,0*J$15,IF(J$7<150000,0*J$15,IF(J$7>=150000,0*J$15,0))))))),0) -> 0 | K17: =IFERROR(IF(K$7<15000,0.25*K$15,IF(K$7<35000,0.5*K$15,IF(K$7<50000,0.25*K$15,IF(K$7<75000,0*K$15,IF(K$7<100000,0*K$15,IF(K$7<150000,0*K$15,IF(K$7>=150000,0*K$15,0))))))),0) -> 0 | L17: =IFERROR(IF(L$7<15000,0.25*L$15,IF(L$7<35000,0.5*L$15,IF(L$7<50000,0.25*L$15,IF(L$7<75000,0*L$15,IF(L$7<100000,0*L$15,IF(L$7<150000,0*L$15,IF(L$7>=150000,0*L$15,0))))))),0) -> 0 | M17: =IFERROR(IF(M$7<15000,0.25*M$15,IF(M$7<35000,0.5*M$15,IF(M$7<50000,0.25*M$15,IF(M$7<75000,0*M$15,IF(M$7<100000,0*M$15,IF(M$7<150000,0*M$15,IF(M$7>=150000,0*M$15,0))))))),0) -> 0 | N17: =IFERROR(IF(N$7<15000,0.25*N$15,IF(N$7<35000,0.5*N$15,IF(N$7<50000,0.25*N$15,IF(N$7<75000,0*N$15,IF(N$7<100000,0*N$15,IF(N$7<150000,0*N$15,IF(N$7>=150000,0*N$15,0))))))),0) -> 0 | O17: =IFERROR(IF(O$7<15000,0.25*O$15,IF(O$7<35000,0.5*O$15,IF(O$7<50000,0.25*O$15,IF(O$7<75000,0*O$15,IF(O$7<100000,0*O$15,IF(O$7<150000,0*O$15,IF(O$7>=150000,0*O$15,0))))))),0) -> 0 | P17: =IFERROR(IF(P$7<15000,0.25*P$15,IF(P$7<35000,0.5*P$15,IF(P$7<50000,0.25*P$15,IF(P$7<75000,0*P$15,IF(P$7<100000,0*P$15,IF(P$7<150000,0*P$15,IF(P$7>=150000,0*P$15,0))))))),0) -> 0 | Q17: =IFERROR(IF(Q$7<15000,0.25*Q$15,IF(Q$7<35000,0.5*Q$15,IF(Q$7<50000,0.25*Q$15,IF(Q$7<75000,0*Q$15,IF(Q$7<100000,0*Q$15,IF(Q$7<150000,0*Q$15,IF(Q$7>=150000,0*Q$15,0))))))),0) -> 0 | R17: =IFERROR(IF(R$7<15000,0.25*R$15,IF(R$7<35000,0.5*R$15,IF(R$7<50000,0.25*R$15,IF(R$7<75000,0*R$15,IF(R$7<100000,0*R$15,IF(R$7<150000,0*R$15,IF(R$7>=150000,0*R$15,0))))))),0) -> 0 | S17: =IFERROR(IF(S$7<15000,0.25*S$15,IF(S$7<35000,0.5*S$15,IF(S$7<50000,0.25*S$15,IF(S$7<75000,0*S$15,IF(S$7<100000,0*S$15,IF(S$7<150000,0*S$15,IF(S$7>=150000,0*S$15,0))))))),0) -> 0 | T17: =IFERROR(IF(T$7<15000,0.25*T$15,IF(T$7<35000,0.5*T$15,IF(T$7<50000,0.25*T$15,IF(T$7<75000,0*T$15,IF(T$7<100000,0*T$15,IF(T$7<150000,0*T$15,IF(T$7>=150000,0*T$15,0))))))),0) -> 0 | U17: =IFERROR(IF(U$7<15000,0.25*U$15,IF(U$7<35000,0.5*U$15,IF(U$7<50000,0.25*U$15,IF(U$7<75000,0*U$15,IF(U$7<100000,0*U$15,IF(U$7<150000,0*U$15,IF(U$7>=150000,0*U$15,0))))))),0) -> 0 | V17: =IFERROR(IF(V$7<15000,0.25*V$15,IF(V$7<35000,0.5*V$15,IF(V$7<50000,0.25*V$15,IF(V$7<75000,0*V$15,IF(V$7<100000,0*V$15,IF(V$7<150000,0*V$15,IF(V$7>=150000,0*V$15,0))))))),0) -> 0 | W17: =IFERROR(IF(W$7<15000,0.25*W$15,IF(W$7<35000,0.5*W$15,IF(W$7<50000,0.25*W$15,IF(W$7<75000,0*W$15,IF(W$7<100000,0*W$15,IF(W$7<150000,0*W$15,IF(W$7>=150000,0*W$15,0))))))),0) -> 0 | X17: =IFERROR(IF(X$7<15000,0.25*X$15,IF(X$7<35000,0.5*X$15,IF(X$7<50000,0.25*X$15,IF(X$7<75000,0*X$15,IF(X$7<100000,0*X$15,IF(X$7<150000,0*X$15,IF(X$7>=150000,0*X$15,0))))))),0) -> 0 | Y17: =IFERROR(IF(Y$7<15000,0.25*Y$15,IF(Y$7<35000,0.5*Y$15,IF(Y$7<50000,0.25*Y$15,IF(Y$7<75000,0*Y$15,IF(Y$7<100000,0*Y$15,IF(Y$7<150000,0*Y$15,IF(Y$7>=150000,0*Y$15,0))))))),0) -> 0 | Z17: =IFERROR(IF(Z$7<15000,0.25*Z$15,IF(Z$7<35000,0.5*Z$15,IF(Z$7<50000,0.25*Z$15,IF(Z$7<75000,0*Z$15,IF(Z$7<100000,0*Z$15,IF(Z$7<150000,0*Z$15,IF(Z$7>=150000,0*Z$15,0))))))),0) -> 0 | AA17: =IFERROR(IF(AA$7<15000,0.25*AA$15,IF(AA$7<35000,0.5*AA$15,IF(AA$7<50000,0.25*AA$15,IF(AA$7<75000,0*AA$15,IF(AA$7<100000,0*AA$15,IF(AA$7<150000,0*AA$15,IF(AA$7>=150000,0*AA$15,0))))))),0) -> 0 | AB17: =IFERROR(IF(AB$7<15000,0.25*AB$15,IF(AB$7<35000,0.5*AB$15,IF(AB$7<50000,0.25*AB$15,IF(AB$7<75000,0*AB$15,IF(AB$7<100000,0*AB$15,IF(AB$7<150000,0*AB$15,IF(AB$7>=150000,0*AB$15,0))))))),0) -> 0 | AC17: =IFERROR(IF(AC$7<15000,0.25*AC$15,IF(AC$7<35000,0.5*AC$15,IF(AC$7<50000,0.25*AC$15,IF(AC$7<75000,0*AC$15,IF(AC$7<100000,0*AC$15,IF(AC$7<150000,0*AC$15,IF(AC$7>=150000,0*AC$15,0))))))),0) -> 0 | AD17: =IFERROR(IF(AD$7<15000,0.25*AD$15,IF(AD$7<35000,0.5*AD$15,IF(AD$7<50000,0.25*AD$15,IF(AD$7<75000,0*AD$15,IF(AD$7<100000,0*AD$15,IF(AD$7<150000,0*AD$15,IF(AD$7>=150000,0*AD$15,0))))))),0) -> 0 | AE17: =IFERROR(IF(AE$7<15000,0.25*AE$15,IF(AE$7<35000,0.5*AE$15,IF(AE$7<50000,0.25*AE$15,IF(AE$7<75000,0*AE$15,IF(AE$7<100000,0*AE$15,IF(AE$7<150000,0*AE$15,IF(AE$7>=150000,0*AE$15,0))))))),0) -> 0 | AF17: =IFERROR(IF(AF$7<15000,0.25*AF$15,IF(AF$7<35000,0.5*AF$15,IF(AF$7<50000,0.25*AF$15,IF(AF$7<75000,0*AF$15,IF(AF$7<100000,0*AF$15,IF(AF$7<150000,0*AF$15,IF(AF$7>=150000,0*AF$15,0))))))),0) -> 0 | AG17: =IFERROR(IF(AG$7<15000,0.25*AG$15,IF(AG$7<35000,0.5*AG$15,IF(AG$7<50000,0.25*AG$15,IF(AG$7<75000,0*AG$15,IF(AG$7<100000,0*AG$15,IF(AG$7<150000,0*AG$15,IF(AG$7>=150000,0*AG$15,0))))))),0) -> 0 | AH17: =IFERROR(IF(AH$7<15000,0.25*AH$15,IF(AH$7<35000,0.5*AH$15,IF(AH$7<50000,0.25*AH$15,IF(AH$7<75000,0*AH$15,IF(AH$7<100000,0*AH$15,IF(AH$7<150000,0*AH$15,IF(AH$7>=150000,0*AH$15,0))))))),0) -> 0 | AI17: =IFERROR(IF(AI$7<15000,0.25*AI$15,IF(AI$7<35000,0.5*AI$15,IF(AI$7<50000,0.25*AI$15,IF(AI$7<75000,0*AI$15,IF(AI$7<100000,0*AI$15,IF(AI$7<150000,0*AI$15,IF(AI$7>=150000,0*AI$15,0))))))),0) -> 0 | AJ17: =IFERROR(IF(AJ$7<15000,0.25*AJ$15,IF(AJ$7<35000,0.5*AJ$15,IF(AJ$7<50000,0.25*AJ$15,IF(AJ$7<75000,0*AJ$15,IF(AJ$7<100000,0*AJ$15,IF(AJ$7<150000,0*AJ$15,IF(AJ$7>=150000,0*AJ$15,0))))))),0) -> 0 | AK17: =IFERROR(IF(AK$7<15000,0.25*AK$15,IF(AK$7<35000,0.5*AK$15,IF(AK$7<50000,0.25*AK$15,IF(AK$7<75000,0*AK$15,IF(AK$7<100000,0*AK$15,IF(AK$7<150000,0*AK$15,IF(AK$7>=150000,0*AK$15,0))))))),0) -> 0 | AL17: =IFERROR(IF(AL$7<15000,0.25*AL$15,IF(AL$7<35000,0.5*AL$15,IF(AL$7<50000,0.25*AL$15,IF(AL$7<75000,0*AL$15,IF(AL$7<100000,0*AL$15,IF(AL$7<150000,0*AL$15,IF(AL$7>=150000,0*AL$15,0))))))),0) -> 0 | AM17: =IFERROR(IF(AM$7<15000,0.25*AM$15,IF(AM$7<35000,0.5*AM$15,IF(AM$7<50000,0.25*AM$15,IF(AM$7<75000,0*AM$15,IF(AM$7<100000,0*AM$15,IF(AM$7<150000,0*AM$15,IF(AM$7>=150000,0*AM$15,0))))))),0) -> 0 | AN17: =IFERROR(IF(AN$7<15000,0.25*AN$15,IF(AN$7<35000,0.5*AN$15,IF(AN$7<50000,0.25*AN$15,IF(AN$7<75000,0*AN$15,IF(AN$7<100000,0*AN$15,IF(AN$7<150000,0*AN$15,IF(AN$7>=150000,0*AN$15,0))))))),0) -> 0 | AO17: =IFERROR(IF(AO$7<15000,0.25*AO$15,IF(AO$7<35000,0.5*AO$15,IF(AO$7<50000,0.25*AO$15,IF(AO$7<75000,0*AO$15,IF(AO$7<100000,0*AO$15,IF(AO$7<150000,0*AO$15,IF(AO$7>=150000,0*AO$15,0))))))),0) -> 0 | AP17: =IFERROR(IF(AP$7<15000,0.25*AP$15,IF(AP$7<35000,0.5*AP$15,IF(AP$7<50000,0.25*AP$15,IF(AP$7<75000,0*AP$15,IF(AP$7<100000,0*AP$15,IF(AP$7<150000,0*AP$15,IF(AP$7>=150000,0*AP$15,0))))))),0) -> 0 | AQ17: =IFERROR(IF(AQ$7<15000,0.25*AQ$15,IF(AQ$7<35000,0.5*AQ$15,IF(AQ$7<50000,0.25*AQ$15,IF(AQ$7<75000,0*AQ$15,IF(AQ$7<100000,0*AQ$15,IF(AQ$7<150000,0*AQ$15,IF(AQ$7>=150000,0*AQ$15,0))))))),0) -> 0 | AR17: =IFERROR(IF(AR$7<15000,0.25*AR$15,IF(AR$7<35000,0.5*AR$15,IF(AR$7<50000,0.25*AR$15,IF(AR$7<75000,0*AR$15,IF(AR$7<100000,0*AR$15,IF(AR$7<150000,0*AR$15,IF(AR$7>=150000,0*AR$15,0))))))),0) -> 0 | AS17: =IFERROR(IF(AS$7<15000,0.25*AS$15,IF(AS$7<35000,0.5*AS$15,IF(AS$7<50000,0.25*AS$15,IF(AS$7<75000,0*AS$15,IF(AS$7<100000,0*AS$15,IF(AS$7<150000,0*AS$15,IF(AS$7>=150000,0*AS$15,0))))))),0) -> 0 | AT17: =IFERROR(IF(AT$7<15000,0.25*AT$15,IF(AT$7<35000,0.5*AT$15,IF(AT$7<50000,0.25*AT$15,IF(AT$7<75000,0*AT$15,IF(AT$7<100000,0*AT$15,IF(AT$7<150000,0*AT$15,IF(AT$7>=150000,0*AT$15,0))))))),0) -> 0 | AU17: =IFERROR(IF(AU$7<15000,0.25*AU$15,IF(AU$7<35000,0.5*AU$15,IF(AU$7<50000,0.25*AU$15,IF(AU$7<75000,0*AU$15,IF(AU$7<100000,0*AU$15,IF(AU$7<150000,0*AU$15,IF(AU$7>=150000,0*AU$15,0))))))),0) -> 0 | AV17: =IFERROR(IF(AV$7<15000,0.25*AV$15,IF(AV$7<35000,0.5*AV$15,IF(AV$7<50000,0.25*AV$15,IF(AV$7<75000,0*AV$15,IF(AV$7<100000,0*AV$15,IF(AV$7<150000,0*AV$15,IF(AV$7>=150000,0*AV$15,0))))))),0) -> 0 | AW17: =IFERROR(IF(AW$7<15000,0.25*AW$15,IF(AW$7<35000,0.5*AW$15,IF(AW$7<50000,0.25*AW$15,IF(AW$7<75000,0*AW$15,IF(AW$7<100000,0*AW$15,IF(AW$7<150000,0*AW$15,IF(AW$7>=150000,0*AW$15,0))))))),0) -> 0 | AX17: =IFERROR(IF(AX$7<15000,0.25*AX$15,IF(AX$7<35000,0.5*AX$15,IF(AX$7<50000,0.25*AX$15,IF(AX$7<75000,0*AX$15,IF(AX$7<100000,0*AX$15,IF(AX$7<150000,0*AX$15,IF(AX$7>=150000,0*AX$15,0))))))),0) -> 0 | AY17: =IFERROR(IF(AY$7<15000,0.25*AY$15,IF(AY$7<35000,0.5*AY$15,IF(AY$7<50000,0.25*AY$15,IF(AY$7<75000,0*AY$15,IF(AY$7<100000,0*AY$15,IF(AY$7<150000,0*AY$15,IF(AY$7>=150000,0*AY$15,0))))))),0) -> 0 | AZ17: =IFERROR(IF(AZ$7<15000,0.25*AZ$15,IF(AZ$7<35000,0.5*AZ$15,IF(AZ$7<50000,0.25*AZ$15,IF(AZ$7<75000,0*AZ$15,IF(AZ$7<100000,0*AZ$15,IF(AZ$7<150000,0*AZ$15,IF(AZ$7>=150000,0*AZ$15,0))))))),0) -> 0 | BA17: =IFERROR(IF(BA$7<15000,0.25*BA$15,IF(BA$7<35000,0.5*BA$15,IF(BA$7<50000,0.25*BA$15,IF(BA$7<75000,0*BA$15,IF(BA$7<100000,0*BA$15,IF(BA$7<150000,0*BA$15,IF(BA$7>=150000,0*BA$15,0))))))),0) -> 0 | BB17: =IFERROR(IF(BB$7<15000,0.25*BB$15,IF(BB$7<35000,0.5*BB$15,IF(BB$7<50000,0.25*BB$15,IF(BB$7<75000,0*BB$15,IF(BB$7<100000,0*BB$15,IF(BB$7<150000,0*BB$15,IF(BB$7>=150000,0*BB$15,0))))))),0) -> 0 | BC17: =IFERROR(IF(BC$7<15000,0.25*BC$15,IF(BC$7<35000,0.5*BC$15,IF(BC$7<50000,0.25*BC$15,IF(BC$7<75000,0*BC$15,IF(BC$7<100000,0*BC$15,IF(BC$7<150000,0*BC$15,IF(BC$7>=150000,0*BC$15,0))))))),0) -> 0 | BD17: =IFERROR(IF(BD$7<15000,0.25*BD$15,IF(BD$7<35000,0.5*BD$15,IF(BD$7<50000,0.25*BD$15,IF(BD$7<75000,0*BD$15,IF(BD$7<100000,0*BD$15,IF(BD$7<150000,0*BD$15,IF(BD$7>=150000,0*BD$15,0))))))),0) -> 0 | BE17: =IFERROR(IF(BE$7<15000,0.25*BE$15,IF(BE$7<35000,0.5*BE$15,IF(BE$7<50000,0.25*BE$15,IF(BE$7<75000,0*BE$15,IF(BE$7<100000,0*BE$15,IF(BE$7<150000,0*BE$15,IF(BE$7>=150000,0*BE$15,0))))))),0) -> 0 | BF17: =IFERROR(IF(BF$7<15000,0.25*BF$15,IF(BF$7<35000,0.5*BF$15,IF(BF$7<50000,0.25*BF$15,IF(BF$7<75000,0*BF$15,IF(BF$7<100000,0*BF$15,IF(BF$7<150000,0*BF$15,IF(BF$7>=150000,0*BF$15,0))))))),0) -> 0 | BG17: =IFERROR(IF(BG$7<15000,0.25*BG$15,IF(BG$7<35000,0.5*BG$15,IF(BG$7<50000,0.25*BG$15,IF(BG$7<75000,0*BG$15,IF(BG$7<100000,0*BG$15,IF(BG$7<150000,0*BG$15,IF(BG$7>=150000,0*BG$15,0))))))),0) -> 0 | BH17: =IFERROR(IF(BH$7<15000,0.25*BH$15,IF(BH$7<35000,0.5*BH$15,IF(BH$7<50000,0.25*BH$15,IF(BH$7<75000,0*BH$15,IF(BH$7<100000,0*BH$15,IF(BH$7<150000,0*BH$15,IF(BH$7>=150000,0*BH$15,0))))))),0) -> 0 | BI17: =IFERROR(IF(BI$7<15000,0.25*BI$15,IF(BI$7<35000,0.5*BI$15,IF(BI$7<50000,0.25*BI$15,IF(BI$7<75000,0*BI$15,IF(BI$7<100000,0*BI$15,IF(BI$7<150000,0*BI$15,IF(BI$7>=150000,0*BI$15,0))))))),0) -> 0 | BJ17: =IFERROR(IF(BJ$7<15000,0.25*BJ$15,IF(BJ$7<35000,0.5*BJ$15,IF(BJ$7<50000,0.25*BJ$15,IF(BJ$7<75000,0*BJ$15,IF(BJ$7<100000,0*BJ$15,IF(BJ$7<150000,0*BJ$15,IF(BJ$7>=150000,0*BJ$15,0))))))),0) -> 0 | BK17: =IFERROR(IF(BK$7<15000,0.25*BK$15,IF(BK$7<35000,0.5*BK$15,IF(BK$7<50000,0.25*BK$15,IF(BK$7<75000,0*BK$15,IF(BK$7<100000,0*BK$15,IF(BK$7<150000,0*BK$15,IF(BK$7>=150000,0*BK$15,0))))))),0) -> 0 | BL17: =IFERROR(IF(BL$7<15000,0.25*BL$15,IF(BL$7<35000,0.5*BL$15,IF(BL$7<50000,0.25*BL$15,IF(BL$7<75000,0*BL$15,IF(BL$7<100000,0*BL$15,IF(BL$7<150000,0*BL$15,IF(BL$7>=150000,0*BL$15,0))))))),0) -> 0 | BM17: =IFERROR(IF(BM$7<15000,0.25*BM$15,IF(BM$7<35000,0.5*BM$15,IF(BM$7<50000,0.25*BM$15,IF(BM$7<75000,0*BM$15,IF(BM$7<100000,0*BM$15,IF(BM$7<150000,0*BM$15,IF(BM$7>=150000,0*BM$15,0))))))),0) -> 0 | BN17: =IFERROR(IF(BN$7<15000,0.25*BN$15,IF(BN$7<35000,0.5*BN$15,IF(BN$7<50000,0.25*BN$15,IF(BN$7<75000,0*BN$15,IF(BN$7<100000,0*BN$15,IF(BN$7<150000,0*BN$15,IF(BN$7>=150000,0*BN$15,0))))))),0) -> 0 | BO17: =IFERROR(IF(BO$7<15000,0.25*BO$15,IF(BO$7<35000,0.5*BO$15,IF(BO$7<50000,0.25*BO$15,IF(BO$7<75000,0*BO$15,IF(BO$7<100000,0*BO$15,IF(BO$7<150000,0*BO$15,IF(BO$7>=150000,0*BO$15,0))))))),0) -> 0 | BP17: =IFERROR(IF(BP$7<15000,0.25*BP$15,IF(BP$7<35000,0.5*BP$15,IF(BP$7<50000,0.25*BP$15,IF(BP$7<75000,0*BP$15,IF(BP$7<100000,0*BP$15,IF(BP$7<150000,0*BP$15,IF(BP$7>=150000,0*BP$15,0))))))),0) -> 0
